Workbook

Sheet Readme
A1: Perpetual Depreciation Calculator Tool by Black Horse Excellence | F1: Perpetual Depreciation Calculator Tool by Black Horse Excellence
C2: www.blackhorseexcellence.com
B3: Name of Company | C3: ABC Infrastructure Private Limited | F3: Terms of Use | V3: In Rs | W3: 1
B4: Amount in | C4: In Rs | V4: Amounts in ` | W4: 1
F5: This tool is the property of Black Horse Excellence. | V5: ` in '000 | W5: 1000
B6: PPE Schedule Sheet | C6: Despription | F6: This is trial/demo version of Perpetual Depreciation Tool for evaluation perpose. | V6: ` in lacs | W6: 100000
B7: Current Period | C7: It's the period for which PPE Schedule is prepared. Ensure period is within the range of 12 column in PPE Register (Column R to Column AC). | F7: You may use this for the purspose of evaluation of tool or for understanding purpose or for educational purpose. | V7: ` in lakhs | W7: 100000
B8: Previous Period (read Note 1) | C8: It's comparative previous year. Enter comparative period. | F8: You may not make copies of this tool and redistribute or sale it. | V8: ` in millions | W8: 1000000
B9: Mapping | C9: Add all Asset Category Mapping to Column P,"Mapping" to get data from PPE Register to PPE Schedule. You can unhide rows to add additional mappings. Select entire rows covering hide rows and unhide rows. | F9: You may not publish this on any website or by any means to making this available to general public. | V9: ` In crores | W9: 10000000
B11: Depreciation Calculator Sheet | C11: Despription | F11: All rights reserved. Black Horse Excellence. 2019
B12: Method | C12: Select Method of Depreciation from Dropdown List, SLM or WDV
B13: Periodicity | C13: Select from Dropdown list period for which depreciation is to be computed
B14: Range Start Date | C14: Type first day of any month.
B15: Depreciation Calculator Sheet | C15: Despription
B16: Name of Assets | C16: Name of Asset or Asset ID or any specific Asset identifier
B17: Assets Category | C17: Cetegory of Asset
B18: Cost of Purchase | C18: Original cost of asset (read Note 2)
B19: Residual Value | C19: Enter residual value of assets
B20: Date of Put in Place / Closing Date | C20: If you enter Original cost of asset, then actual date of put into place. If you enter opening value of asset, then enter closing date of previous period (eg.If you enter opening balance as of 1st April,2018, then date has to be 31st March, 2018).
B21: Date of Retirement | C21: Date of Retirement based on Useful life
B22: Original Useful Life of Asset(Years) | C22: Original useful life of asset
B23: Rate for WDV method | C23: Auto Calculated
B24: Date of Sale | C24: Actual Date of Sale when asset is sold
B25: Sale of Asset | C25: Select from Dropdown list, Yes or No
B26: Sale Value | C26: Amount realized at the time of sale
B27: Gain/Loss on sale of assets | C27: Auto Calculated
B28: Gross Block Opening Balance | C28: Gross value of Individual asset as on date of transition
B29: Accumalated Depreciation Opening Balance | C29: Accumulated Depreciation of Individual asset till date of transition
B30: Depreciation Check | C30: This cell is to check whether depreciation is calculated correct or not. 0 means it is correct. Negative amount indicates less depreciation calculated. Positive difference indicates higher depreciation calculated. When you get either negative or possitive difference that means - either Date of retirement is not exact as per useful life or - Accumalated depreciation is not correct
B32: PPE Register | C32: This sheet is to manage Fixed asset related data at one place and in structured manner. User can modify table as per the requirement of entity.
B34: Note 1 | C34: PPE Schedule captures only current period data from Depreciation Calculator. As one changes range of current period, data will also be updated as per selected period.
B35: Note 2 | C35: * Enter either original cost of assets or Opening Value of asset(Gross block & Accumulated depreciation)
B36: Note 3 | C36: When you enter opening balance of assets, accumulated depreciation has to be exact as future depreciation is calculated on the same.
B37: Do's and Don'ts | C37: -->One can copy from other file or this file and paste in this file to fill blue coloured data. However, do not use Cut Paste Short Cut to move data within this file. -->Copy paste, cut paste from any sheet to PPE Schedule, Depreciation Calculator will not work. --> Do not copy paste Green Coloured Cells. --> Do not change name of sheets. --> Add entire row or column wherever required.
B39: www.taxguru.in

Sheet PPE Schedule
B2: =Readme!C3 -> ABC Infrastructure Private Limited | N2: ='Depreciation Calculator'!Q1 -> WDV | Q2: Input Cells
N3: ='Depreciation Calculator'!Q2 -> Yearly | Q3: Formula Cells
N4: ='Depreciation Calculator'!Q3 -> 2018-04-01
B5: Property, Plant and Equipment | M5: =VLOOKUP(Readme!C4,Readme!V3:W9,2,0) -> 1 | N5: Current Period | O5: 2018-04-01 | P5: =EOMONTH(O5,VLOOKUP('Depreciation Calculator'!Q2,'Depreciation Calculator'!AU2:AV5,2,0)) -> 2019-03-31 | R5: This table is the engine to capture data. Do not delete/copy/paste/alter these columns or rows.
B6: Name of Assets | C6: Gross Block | G6: Depreciation and Amortization | K6: Net Block | N6: Previous Period | O6: =O5-365 -> 2017-04-01 | P6: =P5-365 -> 2018-03-31 | R6: Gross Block | V6: Depreciation and Amortization | Z6: Net Block
C7: As on | D7: Addition | E7: Deduction | F7: As on | G7: As on | H7: for the | I7: Deduction | J7: As on | K7: As on | L7: As on | R7: As on | S7: Addition | T7: Deduction | U7: As on | V7: As on | W7: for the | X7: Deduction | Y7: As on | Z7: As on | AA7: As on
C8: =O5 -> 2018-04-01 | F8: =P5 -> 2019-03-31 | G8: =C8 -> 2018-04-01 | H8: year | J8: =F8 -> 2019-03-31 | K8: =F8 -> 2019-03-31 | L8: =P6 -> 2018-03-31 | P8: Mapping | R8: =O5 -> 2018-04-01 | U8: =P5 -> 2019-03-31 | V8: =R8 -> 2018-04-01 | W8: year | Y8: =U8 -> 2019-03-31 | Z8: =U8 -> 2019-03-31 | AA8: =P6 -> 2018-03-31
B9: i. Tangible Assets
R10: =ROUND(SUMIFS('Depreciation Calculator'!E:E,'Depreciation Calculator'!I:I,"<"&'PPE Schedule'!O5,'Depreciation Calculator'!D:D,P10)/M5,0)+ROUND(SUMIFS('Depreciation Calculator'!G:G,'Depreciation Calculator'!I:I,"<"&'PPE Schedule'!O5,'Depreciation Calculator'!D:D,P10)/M5,0)-ROUND(SUMIFS('Depreciation Calculator'!E:E,'Depreciation Calculator'!L:L,"<"&'PPE Schedule'!O5,'Depreciation Calculator'!D:D,P10,'Depreciation Calculator'!M:M,"Yes")/M5,0)-ROUND(SUMIFS('Depreciation Calculator'!G:G,'Depreciation Calculator'!L:L,"<"&'PPE Schedule'!O5,'Depreciation Calculator'!D:D,P10,'Depreciation Calculator'!M:M,"Yes")/M5,0) -> 0 | S10: =ROUND(SUMIFS('Depreciation Calculator'!E:E,'Depreciation Calculator'!I:I,">="&'PPE Schedule'!O5,'Depreciation Calculator'!I:I,"<="&'PPE Schedule'!P5,'Depreciation Calculator'!D:D,P10)/M5,0) -> 0 | T10: =ROUND((SUMIFS('Depreciation Calculator'!E:E,'Depreciation Calculator'!L:L,">="&'PPE Schedule'!O5,'Depreciation Calculator'!L:L,"<="&'PPE Schedule'!P5,'Depreciation Calculator'!D:D,P10,'Depreciation Calculator'!M:M,"Yes")+SUMIFS('Depreciation Calculator'!G:G,'Depreciation Calculator'!L:L,">="&'PPE Schedule'!O5,'Depreciation Calculator'!L:L,"<="&'PPE Schedule'!P5,'Depreciation Calculator'!D:D,P10,'Depreciation Calculator'!M:M,"Yes"))/M5,0) -> 0 | U10: =R10+S10-T10 -> 0 | V10: =ROUND((SUMIF('Depreciation Calculator'!D:D,'PPE Schedule'!P10,'Depreciation Calculator'!H:H)+SUMIF('Depreciation Calculator'!D:D,'PPE Schedule'!P10,'Depreciation Calculator'!S:S)+IF(O5='Depreciation Calculator'!U2,SUM(SUMIF('Depreciation Calculator'!D:D,P10,'Depreciation Calculator'!T:T)),IF(O5='Depreciation Calculator'!V2,SUM(SUMIF('Depreciation Calculator'!D:D,P10,'Depreciation Calculator'!T:T),SUMIF('Depreciation Calculator'!D:D,P10,'Depreciation Calculator'!U:U)),IF(O5='Depreciation Calculator'!W2,SUM(SUMIF('Depreciation Calculator'!D:D,P10,'Depreciation Calculator'!T:T),SUMIF('Depreciation Calculator'!D:D,P10,'Depreciation Calculator'!U:U),SUMIF('Depreciation Calculator'!D:D,P10,'Depreciation Calculator'!V:V)),IF(O5='Depreciation Calculator'!X2,SUM(SUMIF('Depreciation Calculator'!D:D,P10,'Depreciation Calculator'!T:T),SUMIF('Depreciation Calculator'!D:D,P10,'Depreciation Calculator'!U:U),SUMIF('Depreciation Calculator'!D:D,P10,'Depreciation Calculator'!V:V),SUMIF('Depreciation Calculator'!D:D,P10,'Depreciation Calculator'!W:W)),IF(O5='Depreciation Calculator'!Y2,SUM(SUMIF('Depreciation Calculator'!D:D,P10,'Depreciation Calculator'!T:T),SUMIF('Depreciation Calculator'!D:D,P10,'Depreciation Calculator'!U:U),SUMIF('Depreciation Calculator'!D:D,P10,'Depreciation Calculator'!V:V),SUMIF('Depreciation Calculator'!D:D,P10,'Depreciation Calculator'!W:W),SUMIF('Depreciation Calculator'!D:D,P10,'Depreciation Calculator'!X:X)),IF(O5='Depreciation Calculator'!Z2,SUM(SUMIF('Depreciation Calculator'!D:D,P10,'Depreciation Calculator'!T:T),SUMIF('Depreciation Calculator'!D:D,P10,'Depreciation Calculator'!U:U),SUMIF('Depreciation Calculator'!D:D,P10,'Depreciation Calculator'!V:V),SUMIF('Depreciation Calculator'!D:D,P10,'Depreciation Calculator'!W:W),SUMIF('Depreciation Calculator'!D:D,P10,'Depreciation Calculator'!X:X),SUMIF('Depreciation Calculator'!D:D,P10,'Depreciation Calculator'!Y:Y)),IF(O5='Depreciation Calculator'!AA2,SUM(SUMIF('Depreciation Calculator'!D:D,P10,'Depreciation Calculator'!T:T),SUMIF('Depreciation Calculator'!D:D,P10,'Depreciation Calculator'!U:U),SUMIF('Depreciation Calculator'!D:D,P10,'Depreciation Calculator'!V:V),SUMIF('Depreciation Calculator'!D:D,P10,'Depreciation Calculator'!W:W),SUMIF('Depreciation Calculator'!D:D,P10,'Depreciation Calculator'!X:X),SUMIF('Depreciation Calculator'!D:D,P10,'Depreciation Calculator'!Y:Y),SUMIF('Depreciation Calculator'!D:D,P10,'Depreciation Calculator'!Z:Z)),IF(O5='Depreciation Calculator'!AB2,SUM(SUMIF('Depreciation Calculator'!D:D,P10,'Depreciation Calculator'!T:T),SUMIF('Depreciation Calculator'!D:D,P10,'Depreciation Calculator'!U:U),SUMIF('Depreciation Calculator'!D:D,P10,'Depreciation Calculator'!V:V),SUMIF('Depreciation Calculator'!D:D,P10,'Depreciation Calculator'!W:W),SUMIF('Depreciation Calculator'!D:D,P10,'Depreciation Calculator'!X:X),SUMIF('Depreciation Calculator'!D:D,P10,'Depreciation Calculator'!Y:Y),SUMIF('Depreciation Calculator'!D:D,P10,'Depreciation Calculator'!Z:Z),SUMIF('Depreciation Calculator'!D:D,P10,'Depreciation Calculator'!AA:AA)),IF(O5='Depreciation Calculator'!AC2,SUM(SUMIF('Depreciation Calculator'!D:D,P10,'Depreciation Calculator'!T:T),SUMIF('Depreciation Calculator'!D:D,P10,'Depreciation Calculator'!U:U),SUMIF('Depreciation Calculator'!D:D,P10,'Depreciation Calculator'!V:V),SUMIF('Depreciation Calculator'!D:D,P10,'Depreciation Calculator'!W:W),SUMIF('Depreciation Calculator'!D:D,P10,'Depreciation Calculator'!X:X),SUMIF('Depreciation Calculator'!D:D,P10,'Depreciation Calculator'!Y:Y),SUMIF('Depreciation Calculator'!D:D,P10,'Depreciation Calculator'!Z:Z),SUMIF('Depreciation Calculator'!D:D,P10,'Depreciation Calculator'!AA:AA),SUMIF('Depreciation Calculator'!D:D,P10,'Depreciation Calculator'!AB:AB)),IF(O5='Depreciation Calculator'!AD2,SUM(SUMIF('Depreciation Calculator'!D:D,P10,'Depreciation Calculator'!T:T),SUMIF('Depreciation Calculator'!D:D,P10,'Depreciation Calculator'!U:U),SUMIF('Depreciation Calculator'!D:D,P10,'Depreciation Calculator'!V:V),SUMIF('Depreciation Calculator'!D:D,P10,'Depreciation Calculator'!W:W),SUMIF('Depreciation Calculator'!D:D,P10,'Depreciation Calculator'!X:X),SUMIF('Depreciation Calculator'!D:D,P10,'Depreciation Calculator'!Y:Y),SUMIF('Depreciation Calculator'!D:D,P10,'Depreciation Calculator'!Z:Z),SUMIF('Depreciation Calculator'!D:D,P10,'Depreciation Calculator'!AA:AA),SUMIF('Depreciation Calculator'!D:D,P10,'Depreciation Calculator'!AB:AB),SUMIF('Depreciation Calculator'!D:D,P10,'Depreciation Calculator'!AC:AC)),IF(O5='Depreciation Calculator'!AE2,SUM(SUMIF('Depreciation Calculator'!D:D,P10,'Depreciation Calculator'!T:T),SUMIF('Depreciation Calculator'!D:D,P10,'Depreciation Calculator'!U:U),SUMIF('Depreciation Calculator'!D:D,P10,'Depreciation Calculator'!V:V),SUMIF('Depreciation Calculator'!D:D,P10,'Depreciation Calculator'!W:W),SUMIF('Depreciation Calculator'!D:D,P10,'Depreciation Calculator'!X:X),SUMIF('Depreciation Calculator'!D:D,P10,'Depreciation Calculator'!Y:Y),SUMIF('Depreciation Calculator'!D:D,P10,'Depreciation Calculator'!Z:Z),SUMIF('Depreciation Calculator'!D:D,P10,'Depreciation Calculator'!AA:AA),SUMIF('Depreciation Calculator'!D:D,P10,'Depreciation Calculator'!AB:AB),SUMIF('Depreciation Calculator'!D:D,P10,'Depreciation Calculator'!AC:AC),SUMIF('Depreciation Calculator'!D:D,P10,'Depreciation Calculator'!AD:AD))))))))))))))/M5,0)-ROUND((SUMIFS('Depreciation Calculator'!E:E,'Depreciation Calculator'!L:L,"<"&'PPE Schedule'!O5,'Depreciation Calculator'!D:D,P10,'Depreciation Calculator'!M:M,"Yes")+SUMIFS('Depreciation Calculator'!G:G,'Depreciation Calculator'!L:L,"<"&'PPE Schedule'!O5,'Depreciation Calculator'!D:D,P10,'Depreciation Calculator'!M:M,"Yes")+SUMIFS('Depreciation Calculator'!O:O,'Depreciation Calculator'!L:L,"<"&'PPE Schedule'!O5,'Depreciation Calculator'!D:D,P10,'Depreciation Calculator'!M:M,"Yes")-SUMIFS('Depreciation Calculator'!N:N,'Depreciation Calculator'!L:L,"<"&'PPE Schedule'!O5,'Depreciation Calculator'!D:D,P10,'Depreciation Calculator'!M:M,"Yes"))/M5,0) -> 0 | W10: =ROUND((SUMIF('Depreciation Calculator'!D:D,'PPE Schedule'!P10,IF(O5='Depreciation Calculator'!T2,'Depreciation Calculator'!T1,IF(O5='Depreciation Calculator'!U2,'Depreciation Calculator'!U1,IF(O5='Depreciation Calculator'!V2,'Depreciation Calculator'!V1,IF(O5='Depreciation Calculator'!W2,'Depreciation Calculator'!W1,IF(O5='Depreciation Calculator'!X2,'Depreciation Calculator'!X1,IF(O5='Depreciation Calculator'!Y2,'Depreciation Calculator'!Y1,IF(O5='Depreciation Calculator'!AA2,'Depreciation Calculator'!AA1,IF(O5='Depreciation Calculator'!Z2,'Depreciation Calculator'!Z1,IF(O5='Depreciation Calculator'!AB2,'Depreciation Calculator'!AB1,IF(O5='Depreciation Calculator'!AC2,'Depreciation Calculator'!AC1,IF(O5='Depreciation Calculator'!AD2,'Depreciation Calculator'!AD1,IF(O5='Depreciation Calculator'!AE2,'Depreciation Calculator'!AE1,"Select proper range of year"))))))))))))))/M5,0) -> 0 | X10: =ROUND((SUMIFS('Depreciation Calculator'!E:E,'Depreciation Calculator'!L:L,">="&'PPE Schedule'!O5,'Depreciation Calculator'!L:L,"<="&'PPE Schedule'!P5,'Depreciation Calculator'!D:D,P10,'Depreciation Calculator'!M:M,"Yes")+SUMIFS('Depreciation Calculator'!G:G,'Depreciation Calculator'!L:L,">="&'PPE Schedule'!O5,'Depreciation Calculator'!L:L,"<="&'PPE Schedule'!P5,'Depreciation Calculator'!D:D,P10,'Depreciation Calculator'!M:M,"Yes")+SUMIFS('Depreciation Calculator'!O:O,'Depreciation Calculator'!L:L,">="&'PPE Schedule'!O5,'Depreciation Calculator'!L:L,"<="&'PPE Schedule'!P5,'Depreciation Calculator'!D:D,P10,'Depreciation Calculator'!M:M,"Yes")-SUMIFS('Depreciation Calculator'!N:N,'Depreciation Calculator'!L:L,">="&'PPE Schedule'!O5,'Depreciation Calculator'!L:L,"<="&'PPE Schedule'!P5,'Depreciation Calculator'!D:D,P10,'Depreciation Calculator'!M:M,"Yes"))/M5,0) -> 0 | Y10: =V10+W10-X10 -> 0 | Z10: =U10-Y10 -> 0
B11: =P11 -> Land | C11: =R11 -> 7000000 | D11: =S11 -> 0 | E11: =T11 -> 0 | F11: =+C11+D11-E11 -> 7000000 | G11: =V11 -> 0 | H11: =W11 -> 0 | I11: =X11 -> 0 | J11: =+G11+H11-I11 -> 0 | K11: =F11-J11 -> 7000000 | P11: Land | R11: =ROUND(SUMIFS('Depreciation Calculator'!E:E,'Depreciation Calculator'!I:I,"<"&'PPE Schedule'!O5,'Depreciation Calculator'!D:D,P11)/M5,0)+ROUND(SUMIFS('Depreciation Calculator'!G:G,'Depreciation Calculator'!I:I,"<"&'PPE Schedule'!O5,'Depreciation Calculator'!D:D,P11)/M5,0)-ROUND(SUMIFS('Depreciation Calculator'!E:E,'Depreciation Calculator'!L:L,"<"&'PPE Schedule'!O5,'Depreciation Calculator'!D:D,P11,'Depreciation Calculator'!M:M,"Yes")/M5,0)-ROUND(SUMIFS('Depreciation Calculator'!G:G,'Depreciation Calculator'!L:L,"<"&'PPE Schedule'!O5,'Depreciation Calculator'!D:D,P11,'Depreciation Calculator'!M:M,"Yes")/M5,0) -> 7000000 | S11: =ROUND(SUMIFS('Depreciation Calculator'!E:E,'Depreciation Calculator'!I:I,">="&'PPE Schedule'!O5,'Depreciation Calculator'!I:I,"<="&'PPE Schedule'!P5,'Depreciation Calculator'!D:D,P11)/M5,0) -> 0 | T11: =ROUND((SUMIFS('Depreciation Calculator'!E:E,'Depreciation Calculator'!L:L,">="&'PPE Schedule'!O5,'Depreciation Calculator'!L:L,"<="&'PPE Schedule'!P5,'Depreciation Calculator'!D:D,P11,'Depreciation Calculator'!M:M,"Yes")+SUMIFS('Depreciation Calculator'!G:G,'Depreciation Calculator'!L:L,">="&'PPE Schedule'!O5,'Depreciation Calculator'!L:L,"<="&'PPE Schedule'!P5,'Depreciation Calculator'!D:D,P11,'Depreciation Calculator'!M:M,"Yes"))/M5,0) -> 0 | U11: =R11+S11-T11 -> 7000000 | V11: =ROUND((SUMIF('Depreciation Calculator'!D:D,'PPE Schedule'!P11,'Depreciation Calculator'!H:H)+SUMIF('Depreciation Calculator'!D:D,'PPE Schedule'!P11,'Depreciation Calculator'!S:S)+IF(O5='Depreciation Calculator'!U2,SUM(SUMIF('Depreciation Calculator'!D:D,P11,'Depreciation Calculator'!T:T)),IF(O5='Depreciation Calculator'!V2,SUM(SUMIF('Depreciation Calculator'!D:D,P11,'Depreciation Calculator'!T:T),SUMIF('Depreciation Calculator'!D:D,P11,'Depreciation Calculator'!U:U)),IF(O5='Depreciation Calculator'!W2,SUM(SUMIF('Depreciation Calculator'!D:D,P11,'Depreciation Calculator'!T:T),SUMIF('Depreciation Calculator'!D:D,P11,'Depreciation Calculator'!U:U),SUMIF('Depreciation Calculator'!D:D,P11,'Depreciation Calculator'!V:V)),IF(O5='Depreciation Calculator'!X2,SUM(SUMIF('Depreciation Calculator'!D:D,P11,'Depreciation Calculator'!T:T),SUMIF('Depreciation Calculator'!D:D,P11,'Depreciation Calculator'!U:U),SUMIF('Depreciation Calculator'!D:D,P11,'Depreciation Calculator'!V:V),SUMIF('Depreciation Calculator'!D:D,P11,'Depreciation Calculator'!W:W)),IF(O5='Depreciation Calculator'!Y2,SUM(SUMIF('Depreciation Calculator'!D:D,P11,'Depreciation Calculator'!T:T),SUMIF('Depreciation Calculator'!D:D,P11,'Depreciation Calculator'!U:U),SUMIF('Depreciation Calculator'!D:D,P11,'Depreciation Calculator'!V:V),SUMIF('Depreciation Calculator'!D:D,P11,'Depreciation Calculator'!W:W),SUMIF('Depreciation Calculator'!D:D,P11,'Depreciation Calculator'!X:X)),IF(O5='Depreciation Calculator'!Z2,SUM(SUMIF('Depreciation Calculator'!D:D,P11,'Depreciation Calculator'!T:T),SUMIF('Depreciation Calculator'!D:D,P11,'Depreciation Calculator'!U:U),SUMIF('Depreciation Calculator'!D:D,P11,'Depreciation Calculator'!V:V),SUMIF('Depreciation Calculator'!D:D,P11,'Depreciation Calculator'!W:W),SUMIF('Depreciation Calculator'!D:D,P11,'Depreciation Calculator'!X:X),SUMIF('Depreciation Calculator'!D:D,P11,'Depreciation Calculator'!Y:Y)),IF(O5='Depreciation Calculator'!AA2,SUM(SUMIF('Depreciation Calculator'!D:D,P11,'Depreciation Calculator'!T:T),SUMIF('Depreciation Calculator'!D:D,P11,'Depreciation Calculator'!U:U),SUMIF('Depreciation Calculator'!D:D,P11,'Depreciation Calculator'!V:V),SUMIF('Depreciation Calculator'!D:D,P11,'Depreciation Calculator'!W:W),SUMIF('Depreciation Calculator'!D:D,P11,'Depreciation Calculator'!X:X),SUMIF('Depreciation Calculator'!D:D,P11,'Depreciation Calculator'!Y:Y),SUMIF('Depreciation Calculator'!D:D,P11,'Depreciation Calculator'!Z:Z)),IF(O5='Depreciation Calculator'!AB2,SUM(SUMIF('Depreciation Calculator'!D:D,P11,'Depreciation Calculator'!T:T),SUMIF('Depreciation Calculator'!D:D,P11,'Depreciation Calculator'!U:U),SUMIF('Depreciation Calculator'!D:D,P11,'Depreciation Calculator'!V:V),SUMIF('Depreciation Calculator'!D:D,P11,'Depreciation Calculator'!W:W),SUMIF('Depreciation Calculator'!D:D,P11,'Depreciation Calculator'!X:X),SUMIF('Depreciation Calculator'!D:D,P11,'Depreciation Calculator'!Y:Y),SUMIF('Depreciation Calculator'!D:D,P11,'Depreciation Calculator'!Z:Z),SUMIF('Depreciation Calculator'!D:D,P11,'Depreciation Calculator'!AA:AA)),IF(O5='Depreciation Calculator'!AC2,SUM(SUMIF('Depreciation Calculator'!D:D,P11,'Depreciation Calculator'!T:T),SUMIF('Depreciation Calculator'!D:D,P11,'Depreciation Calculator'!U:U),SUMIF('Depreciation Calculator'!D:D,P11,'Depreciation Calculator'!V:V),SUMIF('Depreciation Calculator'!D:D,P11,'Depreciation Calculator'!W:W),SUMIF('Depreciation Calculator'!D:D,P11,'Depreciation Calculator'!X:X),SUMIF('Depreciation Calculator'!D:D,P11,'Depreciation Calculator'!Y:Y),SUMIF('Depreciation Calculator'!D:D,P11,'Depreciation Calculator'!Z:Z),SUMIF('Depreciation Calculator'!D:D,P11,'Depreciation Calculator'!AA:AA),SUMIF('Depreciation Calculator'!D:D,P11,'Depreciation Calculator'!AB:AB)),IF(O5='Depreciation Calculator'!AD2,SUM(SUMIF('Depreciation Calculator'!D:D,P11,'Depreciation Calculator'!T:T),SUMIF('Depreciation Calculator'!D:D,P11,'Depreciation Calculator'!U:U),SUMIF('Depreciation Calculator'!D:D,P11,'Depreciation Calculator'!V:V),SUMIF('Depreciation Calculator'!D:D,P11,'Depreciation Calculator'!W:W),SUMIF('Depreciation Calculator'!D:D,P11,'Depreciation Calculator'!X:X),SUMIF('Depreciation Calculator'!D:D,P11,'Depreciation Calculator'!Y:Y),SUMIF('Depreciation Calculator'!D:D,P11,'Depreciation Calculator'!Z:Z),SUMIF('Depreciation Calculator'!D:D,P11,'Depreciation Calculator'!AA:AA),SUMIF('Depreciation Calculator'!D:D,P11,'Depreciation Calculator'!AB:AB),SUMIF('Depreciation Calculator'!D:D,P11,'Depreciation Calculator'!AC:AC)),IF(O5='Depreciation Calculator'!AE2,SUM(SUMIF('Depreciation Calculator'!D:D,P11,'Depreciation Calculator'!T:T),SUMIF('Depreciation Calculator'!D:D,P11,'Depreciation Calculator'!U:U),SUMIF('Depreciation Calculator'!D:D,P11,'Depreciation Calculator'!V:V),SUMIF('Depreciation Calculator'!D:D,P11,'Depreciation Calculator'!W:W),SUMIF('Depreciation Calculator'!D:D,P11,'Depreciation Calculator'!X:X),SUMIF('Depreciation Calculator'!D:D,P11,'Depreciation Calculator'!Y:Y),SUMIF('Depreciation Calculator'!D:D,P11,'Depreciation Calculator'!Z:Z),SUMIF('Depreciation Calculator'!D:D,P11,'Depreciation Calculator'!AA:AA),SUMIF('Depreciation Calculator'!D:D,P11,'Depreciation Calculator'!AB:AB),SUMIF('Depreciation Calculator'!D:D,P11,'Depreciation Calculator'!AC:AC),SUMIF('Depreciation Calculator'!D:D,P11,'Depreciation Calculator'!AD:AD))))))))))))))/M5,0)-ROUND((SUMIFS('Depreciation Calculator'!E:E,'Depreciation Calculator'!L:L,"<"&'PPE Schedule'!O5,'Depreciation Calculator'!D:D,P11,'Depreciation Calculator'!M:M,"Yes")+SUMIFS('Depreciation Calculator'!G:G,'Depreciation Calculator'!L:L,"<"&'PPE Schedule'!O5,'Depreciation Calculator'!D:D,P11,'Depreciation Calculator'!M:M,"Yes")+SUMIFS('Depreciation Calculator'!O:O,'Depreciation Calculator'!L:L,"<"&'PPE Schedule'!O5,'Depreciation Calculator'!D:D,P11,'Depreciation Calculator'!M:M,"Yes")-SUMIFS('Depreciation Calculator'!N:N,'Depreciation Calculator'!L:L,"<"&'PPE Schedule'!O5,'Depreciation Calculator'!D:D,P11,'Depreciation Calculator'!M:M,"Yes"))/M5,0) -> 0 | W11: =ROUND((SUMIF('Depreciation Calculator'!D:D,'PPE Schedule'!P11,IF(O5='Depreciation Calculator'!T2,'Depreciation Calculator'!T1,IF(O5='Depreciation Calculator'!U2,'Depreciation Calculator'!U1,IF(O5='Depreciation Calculator'!V2,'Depreciation Calculator'!V1,IF(O5='Depreciation Calculator'!W2,'Depreciation Calculator'!W1,IF(O5='Depreciation Calculator'!X2,'Depreciation Calculator'!X1,IF(O5='Depreciation Calculator'!Y2,'Depreciation Calculator'!Y1,IF(O5='Depreciation Calculator'!AA2,'Depreciation Calculator'!AA1,IF(O5='Depreciation Calculator'!Z2,'Depreciation Calculator'!Z1,IF(O5='Depreciation Calculator'!AB2,'Depreciation Calculator'!AB1,IF(O5='Depreciation Calculator'!AC2,'Depreciation Calculator'!AC1,IF(O5='Depreciation Calculator'!AD2,'Depreciation Calculator'!AD1,IF(O5='Depreciation Calculator'!AE2,'Depreciation Calculator'!AE1,"Select proper range of year"))))))))))))))/M5,0) -> 0 | X11: =ROUND((SUMIFS('Depreciation Calculator'!E:E,'Depreciation Calculator'!L:L,">="&'PPE Schedule'!O5,'Depreciation Calculator'!L:L,"<="&'PPE Schedule'!P5,'Depreciation Calculator'!D:D,P11,'Depreciation Calculator'!M:M,"Yes")+SUMIFS('Depreciation Calculator'!G:G,'Depreciation Calculator'!L:L,">="&'PPE Schedule'!O5,'Depreciation Calculator'!L:L,"<="&'PPE Schedule'!P5,'Depreciation Calculator'!D:D,P11,'Depreciation Calculator'!M:M,"Yes")+SUMIFS('Depreciation Calculator'!O:O,'Depreciation Calculator'!L:L,">="&'PPE Schedule'!O5,'Depreciation Calculator'!L:L,"<="&'PPE Schedule'!P5,'Depreciation Calculator'!D:D,P11,'Depreciation Calculator'!M:M,"Yes")-SUMIFS('Depreciation Calculator'!N:N,'Depreciation Calculator'!L:L,">="&'PPE Schedule'!O5,'Depreciation Calculator'!L:L,"<="&'PPE Schedule'!P5,'Depreciation Calculator'!D:D,P11,'Depreciation Calculator'!M:M,"Yes"))/M5,0) -> 0 | Y11: =V11+W11-X11 -> 0 | Z11: =U11-Y11 -> 7000000
B12: =P12 -> Furniture and Fixtures | C12: 2503000 | D12: 0 | E12: 0 | F12: =+C12+D12-E12 -> 2503000 | G12: 1650267 | H12: 220743 | I12: 0 | J12: =+G12+H12-I12 -> 1871010 | K12: =F12-J12 -> 631990 | P12: ='Depreciation Calculator'!D8 -> Furniture and Fixtures | R12: =ROUND(SUMIFS('Depreciation Calculator'!E:E,'Depreciation Calculator'!I:I,"<"&'PPE Schedule'!O5,'Depreciation Calculator'!D:D,P12)/M5,0)+ROUND(SUMIFS('Depreciation Calculator'!G:G,'Depreciation Calculator'!I:I,"<"&'PPE Schedule'!O5,'Depreciation Calculator'!D:D,P12)/M5,0)-ROUND(SUMIFS('Depreciation Calculator'!E:E,'Depreciation Calculator'!L:L,"<"&'PPE Schedule'!O5,'Depreciation Calculator'!D:D,P12,'Depreciation Calculator'!M:M,"Yes")/M5,0)-ROUND(SUMIFS('Depreciation Calculator'!G:G,'Depreciation Calculator'!L:L,"<"&'PPE Schedule'!O5,'Depreciation Calculator'!D:D,P12,'Depreciation Calculator'!M:M,"Yes")/M5,0) -> 2503000 | S12: =ROUND(SUMIFS('Depreciation Calculator'!E:E,'Depreciation Calculator'!I:I,">="&'PPE Schedule'!O5,'Depreciation Calculator'!I:I,"<="&'PPE Schedule'!P5,'Depreciation Calculator'!D:D,P12)/M5,0) -> 0 | T12: =ROUND((SUMIFS('Depreciation Calculator'!E:E,'Depreciation Calculator'!L:L,">="&'PPE Schedule'!O5,'Depreciation Calculator'!L:L,"<="&'PPE Schedule'!P5,'Depreciation Calculator'!D:D,P12,'Depreciation Calculator'!M:M,"Yes")+SUMIFS('Depreciation Calculator'!G:G,'Depreciation Calculator'!L:L,">="&'PPE Schedule'!O5,'Depreciation Calculator'!L:L,"<="&'PPE Schedule'!P5,'Depreciation Calculator'!D:D,P12,'Depreciation Calculator'!M:M,"Yes"))/M5,0) -> 0 | U12: =R12+S12-T12 -> 2503000 | V12: =ROUND((SUMIF('Depreciation Calculator'!D:D,'PPE Schedule'!P12,'Depreciation Calculator'!H:H)+SUMIF('Depreciation Calculator'!D:D,'PPE Schedule'!P12,'Depreciation Calculator'!S:S)+IF(O5='Depreciation Calculator'!U2,SUM(SUMIF('Depreciation Calculator'!D:D,P12,'Depreciation Calculator'!T:T)),IF(O5='Depreciation Calculator'!V2,SUM(SUMIF('Depreciation Calculator'!D:D,P12,'Depreciation Calculator'!T:T),SUMIF('Depreciation Calculator'!D:D,P12,'Depreciation Calculator'!U:U)),IF(O5='Depreciation Calculator'!W2,SUM(SUMIF('Depreciation Calculator'!D:D,P12,'Depreciation Calculator'!T:T),SUMIF('Depreciation Calculator'!D:D,P12,'Depreciation Calculator'!U:U),SUMIF('Depreciation Calculator'!D:D,P12,'Depreciation Calculator'!V:V)),IF(O5='Depreciation Calculator'!X2,SUM(SUMIF('Depreciation Calculator'!D:D,P12,'Depreciation Calculator'!T:T),SUMIF('Depreciation Calculator'!D:D,P12,'Depreciation Calculator'!U:U),SUMIF('Depreciation Calculator'!D:D,P12,'Depreciation Calculator'!V:V),SUMIF('Depreciation Calculator'!D:D,P12,'Depreciation Calculator'!W:W)),IF(O5='Depreciation Calculator'!Y2,SUM(SUMIF('Depreciation Calculator'!D:D,P12,'Depreciation Calculator'!T:T),SUMIF('Depreciation Calculator'!D:D,P12,'Depreciation Calculator'!U:U),SUMIF('Depreciation Calculator'!D:D,P12,'Depreciation Calculator'!V:V),SUMIF('Depreciation Calculator'!D:D,P12,'Depreciation Calculator'!W:W),SUMIF('Depreciation Calculator'!D:D,P12,'Depreciation Calculator'!X:X)),IF(O5='Depreciation Calculator'!Z2,SUM(SUMIF('Depreciation Calculator'!D:D,P12,'Depreciation Calculator'!T:T),SUMIF('Depreciation Calculator'!D:D,P12,'Depreciation Calculator'!U:U),SUMIF('Depreciation Calculator'!D:D,P12,'Depreciation Calculator'!V:V),SUMIF('Depreciation Calculator'!D:D,P12,'Depreciation Calculator'!W:W),SUMIF('Depreciation Calculator'!D:D,P12,'Depreciation Calculator'!X:X),SUMIF('Depreciation Calculator'!D:D,P12,'Depreciation Calculator'!Y:Y)),IF(O5='Depreciation Calculator'!AA2,SUM(SUMIF('Depreciation Calculator'!D:D,P12,'Depreciation Calculator'!T:T),SUMIF('Depreciation Calculator'!D:D,P12,'Depreciation Calculator'!U:U),SUMIF('Depreciation Calculator'!D:D,P12,'Depreciation Calculator'!V:V),SUMIF('Depreciation Calculator'!D:D,P12,'Depreciation Calculator'!W:W),SUMIF('Depreciation Calculator'!D:D,P12,'Depreciation Calculator'!X:X),SUMIF('Depreciation Calculator'!D:D,P12,'Depreciation Calculator'!Y:Y),SUMIF('Depreciation Calculator'!D:D,P12,'Depreciation Calculator'!Z:Z)),IF(O5='Depreciation Calculator'!AB2,SUM(SUMIF('Depreciation Calculator'!D:D,P12,'Depreciation Calculator'!T:T),SUMIF('Depreciation Calculator'!D:D,P12,'Depreciation Calculator'!U:U),SUMIF('Depreciation Calculator'!D:D,P12,'Depreciation Calculator'!V:V),SUMIF('Depreciation Calculator'!D:D,P12,'Depreciation Calculator'!W:W),SUMIF('Depreciation Calculator'!D:D,P12,'Depreciation Calculator'!X:X),SUMIF('Depreciation Calculator'!D:D,P12,'Depreciation Calculator'!Y:Y),SUMIF('Depreciation Calculator'!D:D,P12,'Depreciation Calculator'!Z:Z),SUMIF('Depreciation Calculator'!D:D,P12,'Depreciation Calculator'!AA:AA)),IF(O5='Depreciation Calculator'!AC2,SUM(SUMIF('Depreciation Calculator'!D:D,P12,'Depreciation Calculator'!T:T),SUMIF('Depreciation Calculator'!D:D,P12,'Depreciation Calculator'!U:U),SUMIF('Depreciation Calculator'!D:D,P12,'Depreciation Calculator'!V:V),SUMIF('Depreciation Calculator'!D:D,P12,'Depreciation Calculator'!W:W),SUMIF('Depreciation Calculator'!D:D,P12,'Depreciation Calculator'!X:X),SUMIF('Depreciation Calculator'!D:D,P12,'Depreciation Calculator'!Y:Y),SUMIF('Depreciation Calculator'!D:D,P12,'Depreciation Calculator'!Z:Z),SUMIF('Depreciation Calculator'!D:D,P12,'Depreciation Calculator'!AA:AA),SUMIF('Depreciation Calculator'!D:D,P12,'Depreciation Calculator'!AB:AB)),IF(O5='Depreciation Calculator'!AD2,SUM(SUMIF('Depreciation Calculator'!D:D,P12,'Depreciation Calculator'!T:T),SUMIF('Depreciation Calculator'!D:D,P12,'Depreciation Calculator'!U:U),SUMIF('Depreciation Calculator'!D:D,P12,'Depreciation Calculator'!V:V),SUMIF('Depreciation Calculator'!D:D,P12,'Depreciation Calculator'!W:W),SUMIF('Depreciation Calculator'!D:D,P12,'Depreciation Calculator'!X:X),SUMIF('Depreciation Calculator'!D:D,P12,'Depreciation Calculator'!Y:Y),SUMIF('Depreciation Calculator'!D:D,P12,'Depreciation Calculator'!Z:Z),SUMIF('Depreciation Calculator'!D:D,P12,'Depreciation Calculator'!AA:AA),SUMIF('Depreciation Calculator'!D:D,P12,'Depreciation Calculator'!AB:AB),SUMIF('Depreciation Calculator'!D:D,P12,'Depreciation Calculator'!AC:AC)),IF(O5='Depreciation Calculator'!AE2,SUM(SUMIF('Depreciation Calculator'!D:D,P12,'Depreciation Calculator'!T:T),SUMIF('Depreciation Calculator'!D:D,P12,'Depreciation Calculator'!U:U),SUMIF('Depreciation Calculator'!D:D,P12,'Depreciation Calculator'!V:V),SUMIF('Depreciation Calculator'!D:D,P12,'Depreciation Calculator'!W:W),SUMIF('Depreciation Calculator'!D:D,P12,'Depreciation Calculator'!X:X),SUMIF('Depreciation Calculator'!D:D,P12,'Depreciation Calculator'!Y:Y),SUMIF('Depreciation Calculator'!D:D,P12,'Depreciation Calculator'!Z:Z),SUMIF('Depreciation Calculator'!D:D,P12,'Depreciation Calculator'!AA:AA),SUMIF('Depreciation Calculator'!D:D,P12,'Depreciation Calculator'!AB:AB),SUMIF('Depreciation Calculator'!D:D,P12,'Depreciation Calculator'!AC:AC),SUMIF('Depreciation Calculator'!D:D,P12,'Depreciation Calculator'!AD:AD))))))))))))))/M5,0)-ROUND((SUMIFS('Depreciation Calculator'!E:E,'Depreciation Calculator'!L:L,"<"&'PPE Schedule'!O5,'Depreciation Calculator'!D:D,P12,'Depreciation Calculator'!M:M,"Yes")+SUMIFS('Depreciation Calculator'!G:G,'Depreciation Calculator'!L:L,"<"&'PPE Schedule'!O5,'Depreciation Calculator'!D:D,P12,'Depreciation Calculator'!M:M,"Yes")+SUMIFS('Depreciation Calculator'!O:O,'Depreciation Calculator'!L:L,"<"&'PPE Schedule'!O5,'Depreciation Calculator'!D:D,P12,'Depreciation Calculator'!M:M,"Yes")-SUMIFS('Depreciation Calculator'!N:N,'Depreciation Calculator'!L:L,"<"&'PPE Schedule'!O5,'Depreciation Calculator'!D:D,P12,'Depreciation Calculator'!M:M,"Yes"))/M5,0) -> 1650267 | W12: =ROUND((SUMIF('Depreciation Calculator'!D:D,'PPE Schedule'!P12,IF(O5='Depreciation Calculator'!T2,'Depreciation Calculator'!T1,IF(O5='Depreciation Calculator'!U2,'Depreciation Calculator'!U1,IF(O5='Depreciation Calculator'!V2,'Depreciation Calculator'!V1,IF(O5='Depreciation Calculator'!W2,'Depreciation Calculator'!W1,IF(O5='Depreciation Calculator'!X2,'Depreciation Calculator'!X1,IF(O5='Depreciation Calculator'!Y2,'Depreciation Calculator'!Y1,IF(O5='Depreciation Calculator'!AA2,'Depreciation Calculator'!AA1,IF(O5='Depreciation Calculator'!Z2,'Depreciation Calculator'!Z1,IF(O5='Depreciation Calculator'!AB2,'Depreciation Calculator'!AB1,IF(O5='Depreciation Calculator'!AC2,'Depreciation Calculator'!AC1,IF(O5='Depreciation Calculator'!AD2,'Depreciation Calculator'!AD1,IF(O5='Depreciation Calculator'!AE2,'Depreciation Calculator'!AE1,"Select proper range of year"))))))))))))))/M5,0) -> 220743 | X12: =ROUND((SUMIFS('Depreciation Calculator'!E:E,'Depreciation Calculator'!L:L,">="&'PPE Schedule'!O5,'Depreciation Calculator'!L:L,"<="&'PPE Schedule'!P5,'Depreciation Calculator'!D:D,P12,'Depreciation Calculator'!M:M,"Yes")+SUMIFS('Depreciation Calculator'!G:G,'Depreciation Calculator'!L:L,">="&'PPE Schedule'!O5,'Depreciation Calculator'!L:L,"<="&'PPE Schedule'!P5,'Depreciation Calculator'!D:D,P12,'Depreciation Calculator'!M:M,"Yes")+SUMIFS('Depreciation Calculator'!O:O,'Depreciation Calculator'!L:L,">="&'PPE Schedule'!O5,'Depreciation Calculator'!L:L,"<="&'PPE Schedule'!P5,'Depreciation Calculator'!D:D,P12,'Depreciation Calculator'!M:M,"Yes")-SUMIFS('Depreciation Calculator'!N:N,'Depreciation Calculator'!L:L,">="&'PPE Schedule'!O5,'Depreciation Calculator'!L:L,"<="&'PPE Schedule'!P5,'Depreciation Calculator'!D:D,P12,'Depreciation Calculator'!M:M,"Yes"))/M5,0) -> 0 | Y12: =V12+W12-X12 -> 1871010 | Z12: =U12-Y12 -> 631990
B13: Plant and Machinary | C13: 2542000 | D13: 0 | E13: 0 | F13: 2542000 | G13: 206859 | H13: 422745 | I13: 0 | J13: 629604 | K13: =F13-J13 -> 1912396 | P13: ='Depreciation Calculator'!D9 -> Plant and Machinary | R13: =ROUND(SUMIFS('Depreciation Calculator'!E:E,'Depreciation Calculator'!I:I,"<"&'PPE Schedule'!O5,'Depreciation Calculator'!D:D,P13)/M5,0)+ROUND(SUMIFS('Depreciation Calculator'!G:G,'Depreciation Calculator'!I:I,"<"&'PPE Schedule'!O5,'Depreciation Calculator'!D:D,P13)/M5,0)-ROUND(SUMIFS('Depreciation Calculator'!E:E,'Depreciation Calculator'!L:L,"<"&'PPE Schedule'!O5,'Depreciation Calculator'!D:D,P13,'Depreciation Calculator'!M:M,"Yes")/M5,0)-ROUND(SUMIFS('Depreciation Calculator'!G:G,'Depreciation Calculator'!L:L,"<"&'PPE Schedule'!O5,'Depreciation Calculator'!D:D,P13,'Depreciation Calculator'!M:M,"Yes")/M5,0) -> 2542000 | S13: =ROUND(SUMIFS('Depreciation Calculator'!E:E,'Depreciation Calculator'!I:I,">="&'PPE Schedule'!O5,'Depreciation Calculator'!I:I,"<="&'PPE Schedule'!P5,'Depreciation Calculator'!D:D,P13)/M5,0) -> 0 | T13: =ROUND((SUMIFS('Depreciation Calculator'!E:E,'Depreciation Calculator'!L:L,">="&'PPE Schedule'!O5,'Depreciation Calculator'!L:L,"<="&'PPE Schedule'!P5,'Depreciation Calculator'!D:D,P13,'Depreciation Calculator'!M:M,"Yes")+SUMIFS('Depreciation Calculator'!G:G,'Depreciation Calculator'!L:L,">="&'PPE Schedule'!O5,'Depreciation Calculator'!L:L,"<="&'PPE Schedule'!P5,'Depreciation Calculator'!D:D,P13,'Depreciation Calculator'!M:M,"Yes"))/M5,0) -> 0 | U13: 2542000 | V13: =ROUND((SUMIF('Depreciation Calculator'!D:D,'PPE Schedule'!P13,'Depreciation Calculator'!H:H)+SUMIF('Depreciation Calculator'!D:D,'PPE Schedule'!P13,'Depreciation Calculator'!S:S)+IF(O5='Depreciation Calculator'!U2,SUM(SUMIF('Depreciation Calculator'!D:D,P13,'Depreciation Calculator'!T:T)),IF(O5='Depreciation Calculator'!V2,SUM(SUMIF('Depreciation Calculator'!D:D,P13,'Depreciation Calculator'!T:T),SUMIF('Depreciation Calculator'!D:D,P13,'Depreciation Calculator'!U:U)),IF(O5='Depreciation Calculator'!W2,SUM(SUMIF('Depreciation Calculator'!D:D,P13,'Depreciation Calculator'!T:T),SUMIF('Depreciation Calculator'!D:D,P13,'Depreciation Calculator'!U:U),SUMIF('Depreciation Calculator'!D:D,P13,'Depreciation Calculator'!V:V)),IF(O5='Depreciation Calculator'!X2,SUM(SUMIF('Depreciation Calculator'!D:D,P13,'Depreciation Calculator'!T:T),SUMIF('Depreciation Calculator'!D:D,P13,'Depreciation Calculator'!U:U),SUMIF('Depreciation Calculator'!D:D,P13,'Depreciation Calculator'!V:V),SUMIF('Depreciation Calculator'!D:D,P13,'Depreciation Calculator'!W:W)),IF(O5='Depreciation Calculator'!Y2,SUM(SUMIF('Depreciation Calculator'!D:D,P13,'Depreciation Calculator'!T:T),SUMIF('Depreciation Calculator'!D:D,P13,'Depreciation Calculator'!U:U),SUMIF('Depreciation Calculator'!D:D,P13,'Depreciation Calculator'!V:V),SUMIF('Depreciation Calculator'!D:D,P13,'Depreciation Calculator'!W:W),SUMIF('Depreciation Calculator'!D:D,P13,'Depreciation Calculator'!X:X)),IF(O5='Depreciation Calculator'!Z2,SUM(SUMIF('Depreciation Calculator'!D:D,P13,'Depreciation Calculator'!T:T),SUMIF('Depreciation Calculator'!D:D,P13,'Depreciation Calculator'!U:U),SUMIF('Depreciation Calculator'!D:D,P13,'Depreciation Calculator'!V:V),SUMIF('Depreciation Calculator'!D:D,P13,'Depreciation Calculator'!W:W),SUMIF('Depreciation Calculator'!D:D,P13,'Depreciation Calculator'!X:X),SUMIF('Depreciation Calculator'!D:D,P13,'Depreciation Calculator'!Y:Y)),IF(O5='Depreciation Calculator'!AA2,SUM(SUMIF('Depreciation Calculator'!D:D,P13,'Depreciation Calculator'!T:T),SUMIF('Depreciation Calculator'!D:D,P13,'Depreciation Calculator'!U:U),SUMIF('Depreciation Calculator'!D:D,P13,'Depreciation Calculator'!V:V),SUMIF('Depreciation Calculator'!D:D,P13,'Depreciation Calculator'!W:W),SUMIF('Depreciation Calculator'!D:D,P13,'Depreciation Calculator'!X:X),SUMIF('Depreciation Calculator'!D:D,P13,'Depreciation Calculator'!Y:Y),SUMIF('Depreciation Calculator'!D:D,P13,'Depreciation Calculator'!Z:Z)),IF(O5='Depreciation Calculator'!AB2,SUM(SUMIF('Depreciation Calculator'!D:D,P13,'Depreciation Calculator'!T:T),SUMIF('Depreciation Calculator'!D:D,P13,'Depreciation Calculator'!U:U),SUMIF('Depreciation Calculator'!D:D,P13,'Depreciation Calculator'!V:V),SUMIF('Depreciation Calculator'!D:D,P13,'Depreciation Calculator'!W:W),SUMIF('Depreciation Calculator'!D:D,P13,'Depreciation Calculator'!X:X),SUMIF('Depreciation Calculator'!D:D,P13,'Depreciation Calculator'!Y:Y),SUMIF('Depreciation Calculator'!D:D,P13,'Depreciation Calculator'!Z:Z),SUMIF('Depreciation Calculator'!D:D,P13,'Depreciation Calculator'!AA:AA)),IF(O5='Depreciation Calculator'!AC2,SUM(SUMIF('Depreciation Calculator'!D:D,P13,'Depreciation Calculator'!T:T),SUMIF('Depreciation Calculator'!D:D,P13,'Depreciation Calculator'!U:U),SUMIF('Depreciation Calculator'!D:D,P13,'Depreciation Calculator'!V:V),SUMIF('Depreciation Calculator'!D:D,P13,'Depreciation Calculator'!W:W),SUMIF('Depreciation Calculator'!D:D,P13,'Depreciation Calculator'!X:X),SUMIF('Depreciation Calculator'!D:D,P13,'Depreciation Calculator'!Y:Y),SUMIF('Depreciation Calculator'!D:D,P13,'Depreciation Calculator'!Z:Z),SUMIF('Depreciation Calculator'!D:D,P13,'Depreciation Calculator'!AA:AA),SUMIF('Depreciation Calculator'!D:D,P13,'Depreciation Calculator'!AB:AB)),IF(O5='Depreciation Calculator'!AD2,SUM(SUMIF('Depreciation Calculator'!D:D,P13,'Depreciation Calculator'!T:T),SUMIF('Depreciation Calculator'!D:D,P13,'Depreciation Calculator'!U:U),SUMIF('Depreciation Calculator'!D:D,P13,'Depreciation Calculator'!V:V),SUMIF('Depreciation Calculator'!D:D,P13,'Depreciation Calculator'!W:W),SUMIF('Depreciation Calculator'!D:D,P13,'Depreciation Calculator'!X:X),SUMIF('Depreciation Calculator'!D:D,P13,'Depreciation Calculator'!Y:Y),SUMIF('Depreciation Calculator'!D:D,P13,'Depreciation Calculator'!Z:Z),SUMIF('Depreciation Calculator'!D:D,P13,'Depreciation Calculator'!AA:AA),SUMIF('Depreciation Calculator'!D:D,P13,'Depreciation Calculator'!AB:AB),SUMIF('Depreciation Calculator'!D:D,P13,'Depreciation Calculator'!AC:AC)),IF(O5='Depreciation Calculator'!AE2,SUM(SUMIF('Depreciation Calculator'!D:D,P13,'Depreciation Calculator'!T:T),SUMIF('Depreciation Calculator'!D:D,P13,'Depreciation Calculator'!U:U),SUMIF('Depreciation Calculator'!D:D,P13,'Depreciation Calculator'!V:V),SUMIF('Depreciation Calculator'!D:D,P13,'Depreciation Calculator'!W:W),SUMIF('Depreciation Calculator'!D:D,P13,'Depreciation Calculator'!X:X),SUMIF('Depreciation Calculator'!D:D,P13,'Depreciation Calculator'!Y:Y),SUMIF('Depreciation Calculator'!D:D,P13,'Depreciation Calculator'!Z:Z),SUMIF('Depreciation Calculator'!D:D,P13,'Depreciation Calculator'!AA:AA),SUMIF('Depreciation Calculator'!D:D,P13,'Depreciation Calculator'!AB:AB),SUMIF('Depreciation Calculator'!D:D,P13,'Depreciation Calculator'!AC:AC),SUMIF('Depreciation Calculator'!D:D,P13,'Depreciation Calculator'!AD:AD))))))))))))))/M5,0)-ROUND((SUMIFS('Depreciation Calculator'!E:E,'Depreciation Calculator'!L:L,"<"&'PPE Schedule'!O5,'Depreciation Calculator'!D:D,P13,'Depreciation Calculator'!M:M,"Yes")+SUMIFS('Depreciation Calculator'!G:G,'Depreciation Calculator'!L:L,"<"&'PPE Schedule'!O5,'Depreciation Calculator'!D:D,P13,'Depreciation Calculator'!M:M,"Yes")+SUMIFS('Depreciation Calculator'!O:O,'Depreciation Calculator'!L:L,"<"&'PPE Schedule'!O5,'Depreciation Calculator'!D:D,P13,'Depreciation Calculator'!M:M,"Yes")-SUMIFS('Depreciation Calculator'!N:N,'Depreciation Calculator'!L:L,"<"&'PPE Schedule'!O5,'Depreciation Calculator'!D:D,P13,'Depreciation Calculator'!M:M,"Yes"))/M5,0) -> 206859 | W13: =ROUND((SUMIF('Depreciation Calculator'!D:D,'PPE Schedule'!P13,IF(O5='Depreciation Calculator'!T2,'Depreciation Calculator'!T1,IF(O5='Depreciation Calculator'!U2,'Depreciation Calculator'!U1,IF(O5='Depreciation Calculator'!V2,'Depreciation Calculator'!V1,IF(O5='Depreciation Calculator'!W2,'Depreciation Calculator'!W1,IF(O5='Depreciation Calculator'!X2,'Depreciation Calculator'!X1,IF(O5='Depreciation Calculator'!Y2,'Depreciation Calculator'!Y1,IF(O5='Depreciation Calculator'!AA2,'Depreciation Calculator'!AA1,IF(O5='Depreciation Calculator'!Z2,'Depreciation Calculator'!Z1,IF(O5='Depreciation Calculator'!AB2,'Depreciation Calculator'!AB1,IF(O5='Depreciation Calculator'!AC2,'Depreciation Calculator'!AC1,IF(O5='Depreciation Calculator'!AD2,'Depreciation Calculator'!AD1,IF(O5='Depreciation Calculator'!AE2,'Depreciation Calculator'!AE1,"Select proper range of year"))))))))))))))/M5,0) -> 422745 | X13: =ROUND((SUMIFS('Depreciation Calculator'!E:E,'Depreciation Calculator'!L:L,">="&'PPE Schedule'!O5,'Depreciation Calculator'!L:L,"<="&'PPE Schedule'!P5,'Depreciation Calculator'!D:D,P13,'Depreciation Calculator'!M:M,"Yes")+SUMIFS('Depreciation Calculator'!G:G,'Depreciation Calculator'!L:L,">="&'PPE Schedule'!O5,'Depreciation Calculator'!L:L,"<="&'PPE Schedule'!P5,'Depreciation Calculator'!D:D,P13,'Depreciation Calculator'!M:M,"Yes")+SUMIFS('Depreciation Calculator'!O:O,'Depreciation Calculator'!L:L,">="&'PPE Schedule'!O5,'Depreciation Calculator'!L:L,"<="&'PPE Schedule'!P5,'Depreciation Calculator'!D:D,P13,'Depreciation Calculator'!M:M,"Yes")-SUMIFS('Depreciation Calculator'!N:N,'Depreciation Calculator'!L:L,">="&'PPE Schedule'!O5,'Depreciation Calculator'!L:L,"<="&'PPE Schedule'!P5,'Depreciation Calculator'!D:D,P13,'Depreciation Calculator'!M:M,"Yes"))/M5,0) -> 0 | Y13: 629604 | Z13: 1912396
B14: Building | C14: 12493800 | D14: 0 | E14: 0 | F14: 12493800 | G14: 299586 | H14: 593894 | I14: 0 | J14: 893480 | K14: 11600320 | P14: ='Depreciation Calculator'!D10 -> Building | R14: =ROUND(SUMIFS('Depreciation Calculator'!E:E,'Depreciation Calculator'!I:I,"<"&'PPE Schedule'!O5,'Depreciation Calculator'!D:D,P14)/M5,0)+ROUND(SUMIFS('Depreciation Calculator'!G:G,'Depreciation Calculator'!I:I,"<"&'PPE Schedule'!O5,'Depreciation Calculator'!D:D,P14)/M5,0)-ROUND(SUMIFS('Depreciation Calculator'!E:E,'Depreciation Calculator'!L:L,"<"&'PPE Schedule'!O5,'Depreciation Calculator'!D:D,P14,'Depreciation Calculator'!M:M,"Yes")/M5,0)-ROUND(SUMIFS('Depreciation Calculator'!G:G,'Depreciation Calculator'!L:L,"<"&'PPE Schedule'!O5,'Depreciation Calculator'!D:D,P14,'Depreciation Calculator'!M:M,"Yes")/M5,0) -> 12493800 | S14: =ROUND(SUMIFS('Depreciation Calculator'!E:E,'Depreciation Calculator'!I:I,">="&'PPE Schedule'!O5,'Depreciation Calculator'!I:I,"<="&'PPE Schedule'!P5,'Depreciation Calculator'!D:D,P14)/M5,0) -> 0 | T14: =ROUND((SUMIFS('Depreciation Calculator'!E:E,'Depreciation Calculator'!L:L,">="&'PPE Schedule'!O5,'Depreciation Calculator'!L:L,"<="&'PPE Schedule'!P5,'Depreciation Calculator'!D:D,P14,'Depreciation Calculator'!M:M,"Yes")+SUMIFS('Depreciation Calculator'!G:G,'Depreciation Calculator'!L:L,">="&'PPE Schedule'!O5,'Depreciation Calculator'!L:L,"<="&'PPE Schedule'!P5,'Depreciation Calculator'!D:D,P14,'Depreciation Calculator'!M:M,"Yes"))/M5,0) -> 0 | U14: 12493800 | V14: =ROUND((SUMIF('Depreciation Calculator'!D:D,'PPE Schedule'!P14,'Depreciation Calculator'!H:H)+SUMIF('Depreciation Calculator'!D:D,'PPE Schedule'!P14,'Depreciation Calculator'!S:S)+IF(O5='Depreciation Calculator'!U2,SUM(SUMIF('Depreciation Calculator'!D:D,P14,'Depreciation Calculator'!T:T)),IF(O5='Depreciation Calculator'!V2,SUM(SUMIF('Depreciation Calculator'!D:D,P14,'Depreciation Calculator'!T:T),SUMIF('Depreciation Calculator'!D:D,P14,'Depreciation Calculator'!U:U)),IF(O5='Depreciation Calculator'!W2,SUM(SUMIF('Depreciation Calculator'!D:D,P14,'Depreciation Calculator'!T:T),SUMIF('Depreciation Calculator'!D:D,P14,'Depreciation Calculator'!U:U),SUMIF('Depreciation Calculator'!D:D,P14,'Depreciation Calculator'!V:V)),IF(O5='Depreciation Calculator'!X2,SUM(SUMIF('Depreciation Calculator'!D:D,P14,'Depreciation Calculator'!T:T),SUMIF('Depreciation Calculator'!D:D,P14,'Depreciation Calculator'!U:U),SUMIF('Depreciation Calculator'!D:D,P14,'Depreciation Calculator'!V:V),SUMIF('Depreciation Calculator'!D:D,P14,'Depreciation Calculator'!W:W)),IF(O5='Depreciation Calculator'!Y2,SUM(SUMIF('Depreciation Calculator'!D:D,P14,'Depreciation Calculator'!T:T),SUMIF('Depreciation Calculator'!D:D,P14,'Depreciation Calculator'!U:U),SUMIF('Depreciation Calculator'!D:D,P14,'Depreciation Calculator'!V:V),SUMIF('Depreciation Calculator'!D:D,P14,'Depreciation Calculator'!W:W),SUMIF('Depreciation Calculator'!D:D,P14,'Depreciation Calculator'!X:X)),IF(O5='Depreciation Calculator'!Z2,SUM(SUMIF('Depreciation Calculator'!D:D,P14,'Depreciation Calculator'!T:T),SUMIF('Depreciation Calculator'!D:D,P14,'Depreciation Calculator'!U:U),SUMIF('Depreciation Calculator'!D:D,P14,'Depreciation Calculator'!V:V),SUMIF('Depreciation Calculator'!D:D,P14,'Depreciation Calculator'!W:W),SUMIF('Depreciation Calculator'!D:D,P14,'Depreciation Calculator'!X:X),SUMIF('Depreciation Calculator'!D:D,P14,'Depreciation Calculator'!Y:Y)),IF(O5='Depreciation Calculator'!AA2,SUM(SUMIF('Depreciation Calculator'!D:D,P14,'Depreciation Calculator'!T:T),SUMIF('Depreciation Calculator'!D:D,P14,'Depreciation Calculator'!U:U),SUMIF('Depreciation Calculator'!D:D,P14,'Depreciation Calculator'!V:V),SUMIF('Depreciation Calculator'!D:D,P14,'Depreciation Calculator'!W:W),SUMIF('Depreciation Calculator'!D:D,P14,'Depreciation Calculator'!X:X),SUMIF('Depreciation Calculator'!D:D,P14,'Depreciation Calculator'!Y:Y),SUMIF('Depreciation Calculator'!D:D,P14,'Depreciation Calculator'!Z:Z)),IF(O5='Depreciation Calculator'!AB2,SUM(SUMIF('Depreciation Calculator'!D:D,P14,'Depreciation Calculator'!T:T),SUMIF('Depreciation Calculator'!D:D,P14,'Depreciation Calculator'!U:U),SUMIF('Depreciation Calculator'!D:D,P14,'Depreciation Calculator'!V:V),SUMIF('Depreciation Calculator'!D:D,P14,'Depreciation Calculator'!W:W),SUMIF('Depreciation Calculator'!D:D,P14,'Depreciation Calculator'!X:X),SUMIF('Depreciation Calculator'!D:D,P14,'Depreciation Calculator'!Y:Y),SUMIF('Depreciation Calculator'!D:D,P14,'Depreciation Calculator'!Z:Z),SUMIF('Depreciation Calculator'!D:D,P14,'Depreciation Calculator'!AA:AA)),IF(O5='Depreciation Calculator'!AC2,SUM(SUMIF('Depreciation Calculator'!D:D,P14,'Depreciation Calculator'!T:T),SUMIF('Depreciation Calculator'!D:D,P14,'Depreciation Calculator'!U:U),SUMIF('Depreciation Calculator'!D:D,P14,'Depreciation Calculator'!V:V),SUMIF('Depreciation Calculator'!D:D,P14,'Depreciation Calculator'!W:W),SUMIF('Depreciation Calculator'!D:D,P14,'Depreciation Calculator'!X:X),SUMIF('Depreciation Calculator'!D:D,P14,'Depreciation Calculator'!Y:Y),SUMIF('Depreciation Calculator'!D:D,P14,'Depreciation Calculator'!Z:Z),SUMIF('Depreciation Calculator'!D:D,P14,'Depreciation Calculator'!AA:AA),SUMIF('Depreciation Calculator'!D:D,P14,'Depreciation Calculator'!AB:AB)),IF(O5='Depreciation Calculator'!AD2,SUM(SUMIF('Depreciation Calculator'!D:D,P14,'Depreciation Calculator'!T:T),SUMIF('Depreciation Calculator'!D:D,P14,'Depreciation Calculator'!U:U),SUMIF('Depreciation Calculator'!D:D,P14,'Depreciation Calculator'!V:V),SUMIF('Depreciation Calculator'!D:D,P14,'Depreciation Calculator'!W:W),SUMIF('Depreciation Calculator'!D:D,P14,'Depreciation Calculator'!X:X),SUMIF('Depreciation Calculator'!D:D,P14,'Depreciation Calculator'!Y:Y),SUMIF('Depreciation Calculator'!D:D,P14,'Depreciation Calculator'!Z:Z),SUMIF('Depreciation Calculator'!D:D,P14,'Depreciation Calculator'!AA:AA),SUMIF('Depreciation Calculator'!D:D,P14,'Depreciation Calculator'!AB:AB),SUMIF('Depreciation Calculator'!D:D,P14,'Depreciation Calculator'!AC:AC)),IF(O5='Depreciation Calculator'!AE2,SUM(SUMIF('Depreciation Calculator'!D:D,P14,'Depreciation Calculator'!T:T),SUMIF('Depreciation Calculator'!D:D,P14,'Depreciation Calculator'!U:U),SUMIF('Depreciation Calculator'!D:D,P14,'Depreciation Calculator'!V:V),SUMIF('Depreciation Calculator'!D:D,P14,'Depreciation Calculator'!W:W),SUMIF('Depreciation Calculator'!D:D,P14,'Depreciation Calculator'!X:X),SUMIF('Depreciation Calculator'!D:D,P14,'Depreciation Calculator'!Y:Y),SUMIF('Depreciation Calculator'!D:D,P14,'Depreciation Calculator'!Z:Z),SUMIF('Depreciation Calculator'!D:D,P14,'Depreciation Calculator'!AA:AA),SUMIF('Depreciation Calculator'!D:D,P14,'Depreciation Calculator'!AB:AB),SUMIF('Depreciation Calculator'!D:D,P14,'Depreciation Calculator'!AC:AC),SUMIF('Depreciation Calculator'!D:D,P14,'Depreciation Calculator'!AD:AD))))))))))))))/M5,0)-ROUND((SUMIFS('Depreciation Calculator'!E:E,'Depreciation Calculator'!L:L,"<"&'PPE Schedule'!O5,'Depreciation Calculator'!D:D,P14,'Depreciation Calculator'!M:M,"Yes")+SUMIFS('Depreciation Calculator'!G:G,'Depreciation Calculator'!L:L,"<"&'PPE Schedule'!O5,'Depreciation Calculator'!D:D,P14,'Depreciation Calculator'!M:M,"Yes")+SUMIFS('Depreciation Calculator'!O:O,'Depreciation Calculator'!L:L,"<"&'PPE Schedule'!O5,'Depreciation Calculator'!D:D,P14,'Depreciation Calculator'!M:M,"Yes")-SUMIFS('Depreciation Calculator'!N:N,'Depreciation Calculator'!L:L,"<"&'PPE Schedule'!O5,'Depreciation Calculator'!D:D,P14,'Depreciation Calculator'!M:M,"Yes"))/M5,0) -> 299586 | W14: =ROUND((SUMIF('Depreciation Calculator'!D:D,'PPE Schedule'!P14,IF(O5='Depreciation Calculator'!T2,'Depreciation Calculator'!T1,IF(O5='Depreciation Calculator'!U2,'Depreciation Calculator'!U1,IF(O5='Depreciation Calculator'!V2,'Depreciation Calculator'!V1,IF(O5='Depreciation Calculator'!W2,'Depreciation Calculator'!W1,IF(O5='Depreciation Calculator'!X2,'Depreciation Calculator'!X1,IF(O5='Depreciation Calculator'!Y2,'Depreciation Calculator'!Y1,IF(O5='Depreciation Calculator'!AA2,'Depreciation Calculator'!AA1,IF(O5='Depreciation Calculator'!Z2,'Depreciation Calculator'!Z1,IF(O5='Depreciation Calculator'!AB2,'Depreciation Calculator'!AB1,IF(O5='Depreciation Calculator'!AC2,'Depreciation Calculator'!AC1,IF(O5='Depreciation Calculator'!AD2,'Depreciation Calculator'!AD1,IF(O5='Depreciation Calculator'!AE2,'Depreciation Calculator'!AE1,"Select proper range of year"))))))))))))))/M5,0) -> 593894 | X14: =ROUND((SUMIFS('Depreciation Calculator'!E:E,'Depreciation Calculator'!L:L,">="&'PPE Schedule'!O5,'Depreciation Calculator'!L:L,"<="&'PPE Schedule'!P5,'Depreciation Calculator'!D:D,P14,'Depreciation Calculator'!M:M,"Yes")+SUMIFS('Depreciation Calculator'!G:G,'Depreciation Calculator'!L:L,">="&'PPE Schedule'!O5,'Depreciation Calculator'!L:L,"<="&'PPE Schedule'!P5,'Depreciation Calculator'!D:D,P14,'Depreciation Calculator'!M:M,"Yes")+SUMIFS('Depreciation Calculator'!O:O,'Depreciation Calculator'!L:L,">="&'PPE Schedule'!O5,'Depreciation Calculator'!L:L,"<="&'PPE Schedule'!P5,'Depreciation Calculator'!D:D,P14,'Depreciation Calculator'!M:M,"Yes")-SUMIFS('Depreciation Calculator'!N:N,'Depreciation Calculator'!L:L,">="&'PPE Schedule'!O5,'Depreciation Calculator'!L:L,"<="&'PPE Schedule'!P5,'Depreciation Calculator'!D:D,P14,'Depreciation Calculator'!M:M,"Yes"))/M5,0) -> 0 | Y14: 893480 | Z14: 11600320
B15: Computers | C15: 548900 | D15: 0 | E15: 0 | F15: 548900 | G15: 387375 | H15: 102019 | I15: 0 | J15: 489394 | K15: 59506 | P15: Computers | R15: =ROUND(SUMIFS('Depreciation Calculator'!E:E,'Depreciation Calculator'!I:I,"<"&'PPE Schedule'!O5,'Depreciation Calculator'!D:D,P15)/M5,0)+ROUND(SUMIFS('Depreciation Calculator'!G:G,'Depreciation Calculator'!I:I,"<"&'PPE Schedule'!O5,'Depreciation Calculator'!D:D,P15)/M5,0)-ROUND(SUMIFS('Depreciation Calculator'!E:E,'Depreciation Calculator'!L:L,"<"&'PPE Schedule'!O5,'Depreciation Calculator'!D:D,P15,'Depreciation Calculator'!M:M,"Yes")/M5,0)-ROUND(SUMIFS('Depreciation Calculator'!G:G,'Depreciation Calculator'!L:L,"<"&'PPE Schedule'!O5,'Depreciation Calculator'!D:D,P15,'Depreciation Calculator'!M:M,"Yes")/M5,0) -> 548900 | S15: =ROUND(SUMIFS('Depreciation Calculator'!E:E,'Depreciation Calculator'!I:I,">="&'PPE Schedule'!O5,'Depreciation Calculator'!I:I,"<="&'PPE Schedule'!P5,'Depreciation Calculator'!D:D,P15)/M5,0) -> 0 | T15: =ROUND((SUMIFS('Depreciation Calculator'!E:E,'Depreciation Calculator'!L:L,">="&'PPE Schedule'!O5,'Depreciation Calculator'!L:L,"<="&'PPE Schedule'!P5,'Depreciation Calculator'!D:D,P15,'Depreciation Calculator'!M:M,"Yes")+SUMIFS('Depreciation Calculator'!G:G,'Depreciation Calculator'!L:L,">="&'PPE Schedule'!O5,'Depreciation Calculator'!L:L,"<="&'PPE Schedule'!P5,'Depreciation Calculator'!D:D,P15,'Depreciation Calculator'!M:M,"Yes"))/M5,0) -> 0 | U15: 548900 | V15: =ROUND((SUMIF('Depreciation Calculator'!D:D,'PPE Schedule'!P15,'Depreciation Calculator'!H:H)+SUMIF('Depreciation Calculator'!D:D,'PPE Schedule'!P15,'Depreciation Calculator'!S:S)+IF(O5='Depreciation Calculator'!U2,SUM(SUMIF('Depreciation Calculator'!D:D,P15,'Depreciation Calculator'!T:T)),IF(O5='Depreciation Calculator'!V2,SUM(SUMIF('Depreciation Calculator'!D:D,P15,'Depreciation Calculator'!T:T),SUMIF('Depreciation Calculator'!D:D,P15,'Depreciation Calculator'!U:U)),IF(O5='Depreciation Calculator'!W2,SUM(SUMIF('Depreciation Calculator'!D:D,P15,'Depreciation Calculator'!T:T),SUMIF('Depreciation Calculator'!D:D,P15,'Depreciation Calculator'!U:U),SUMIF('Depreciation Calculator'!D:D,P15,'Depreciation Calculator'!V:V)),IF(O5='Depreciation Calculator'!X2,SUM(SUMIF('Depreciation Calculator'!D:D,P15,'Depreciation Calculator'!T:T),SUMIF('Depreciation Calculator'!D:D,P15,'Depreciation Calculator'!U:U),SUMIF('Depreciation Calculator'!D:D,P15,'Depreciation Calculator'!V:V),SUMIF('Depreciation Calculator'!D:D,P15,'Depreciation Calculator'!W:W)),IF(O5='Depreciation Calculator'!Y2,SUM(SUMIF('Depreciation Calculator'!D:D,P15,'Depreciation Calculator'!T:T),SUMIF('Depreciation Calculator'!D:D,P15,'Depreciation Calculator'!U:U),SUMIF('Depreciation Calculator'!D:D,P15,'Depreciation Calculator'!V:V),SUMIF('Depreciation Calculator'!D:D,P15,'Depreciation Calculator'!W:W),SUMIF('Depreciation Calculator'!D:D,P15,'Depreciation Calculator'!X:X)),IF(O5='Depreciation Calculator'!Z2,SUM(SUMIF('Depreciation Calculator'!D:D,P15,'Depreciation Calculator'!T:T),SUMIF('Depreciation Calculator'!D:D,P15,'Depreciation Calculator'!U:U),SUMIF('Depreciation Calculator'!D:D,P15,'Depreciation Calculator'!V:V),SUMIF('Depreciation Calculator'!D:D,P15,'Depreciation Calculator'!W:W),SUMIF('Depreciation Calculator'!D:D,P15,'Depreciation Calculator'!X:X),SUMIF('Depreciation Calculator'!D:D,P15,'Depreciation Calculator'!Y:Y)),IF(O5='Depreciation Calculator'!AA2,SUM(SUMIF('Depreciation Calculator'!D:D,P15,'Depreciation Calculator'!T:T),SUMIF('Depreciation Calculator'!D:D,P15,'Depreciation Calculator'!U:U),SUMIF('Depreciation Calculator'!D:D,P15,'Depreciation Calculator'!V:V),SUMIF('Depreciation Calculator'!D:D,P15,'Depreciation Calculator'!W:W),SUMIF('Depreciation Calculator'!D:D,P15,'Depreciation Calculator'!X:X),SUMIF('Depreciation Calculator'!D:D,P15,'Depreciation Calculator'!Y:Y),SUMIF('Depreciation Calculator'!D:D,P15,'Depreciation Calculator'!Z:Z)),IF(O5='Depreciation Calculator'!AB2,SUM(SUMIF('Depreciation Calculator'!D:D,P15,'Depreciation Calculator'!T:T),SUMIF('Depreciation Calculator'!D:D,P15,'Depreciation Calculator'!U:U),SUMIF('Depreciation Calculator'!D:D,P15,'Depreciation Calculator'!V:V),SUMIF('Depreciation Calculator'!D:D,P15,'Depreciation Calculator'!W:W),SUMIF('Depreciation Calculator'!D:D,P15,'Depreciation Calculator'!X:X),SUMIF('Depreciation Calculator'!D:D,P15,'Depreciation Calculator'!Y:Y),SUMIF('Depreciation Calculator'!D:D,P15,'Depreciation Calculator'!Z:Z),SUMIF('Depreciation Calculator'!D:D,P15,'Depreciation Calculator'!AA:AA)),IF(O5='Depreciation Calculator'!AC2,SUM(SUMIF('Depreciation Calculator'!D:D,P15,'Depreciation Calculator'!T:T),SUMIF('Depreciation Calculator'!D:D,P15,'Depreciation Calculator'!U:U),SUMIF('Depreciation Calculator'!D:D,P15,'Depreciation Calculator'!V:V),SUMIF('Depreciation Calculator'!D:D,P15,'Depreciation Calculator'!W:W),SUMIF('Depreciation Calculator'!D:D,P15,'Depreciation Calculator'!X:X),SUMIF('Depreciation Calculator'!D:D,P15,'Depreciation Calculator'!Y:Y),SUMIF('Depreciation Calculator'!D:D,P15,'Depreciation Calculator'!Z:Z),SUMIF('Depreciation Calculator'!D:D,P15,'Depreciation Calculator'!AA:AA),SUMIF('Depreciation Calculator'!D:D,P15,'Depreciation Calculator'!AB:AB)),IF(O5='Depreciation Calculator'!AD2,SUM(SUMIF('Depreciation Calculator'!D:D,P15,'Depreciation Calculator'!T:T),SUMIF('Depreciation Calculator'!D:D,P15,'Depreciation Calculator'!U:U),SUMIF('Depreciation Calculator'!D:D,P15,'Depreciation Calculator'!V:V),SUMIF('Depreciation Calculator'!D:D,P15,'Depreciation Calculator'!W:W),SUMIF('Depreciation Calculator'!D:D,P15,'Depreciation Calculator'!X:X),SUMIF('Depreciation Calculator'!D:D,P15,'Depreciation Calculator'!Y:Y),SUMIF('Depreciation Calculator'!D:D,P15,'Depreciation Calculator'!Z:Z),SUMIF('Depreciation Calculator'!D:D,P15,'Depreciation Calculator'!AA:AA),SUMIF('Depreciation Calculator'!D:D,P15,'Depreciation Calculator'!AB:AB),SUMIF('Depreciation Calculator'!D:D,P15,'Depreciation Calculator'!AC:AC)),IF(O5='Depreciation Calculator'!AE2,SUM(SUMIF('Depreciation Calculator'!D:D,P15,'Depreciation Calculator'!T:T),SUMIF('Depreciation Calculator'!D:D,P15,'Depreciation Calculator'!U:U),SUMIF('Depreciation Calculator'!D:D,P15,'Depreciation Calculator'!V:V),SUMIF('Depreciation Calculator'!D:D,P15,'Depreciation Calculator'!W:W),SUMIF('Depreciation Calculator'!D:D,P15,'Depreciation Calculator'!X:X),SUMIF('Depreciation Calculator'!D:D,P15,'Depreciation Calculator'!Y:Y),SUMIF('Depreciation Calculator'!D:D,P15,'Depreciation Calculator'!Z:Z),SUMIF('Depreciation Calculator'!D:D,P15,'Depreciation Calculator'!AA:AA),SUMIF('Depreciation Calculator'!D:D,P15,'Depreciation Calculator'!AB:AB),SUMIF('Depreciation Calculator'!D:D,P15,'Depreciation Calculator'!AC:AC),SUMIF('Depreciation Calculator'!D:D,P15,'Depreciation Calculator'!AD:AD))))))))))))))/M5,0)-ROUND((SUMIFS('Depreciation Calculator'!E:E,'Depreciation Calculator'!L:L,"<"&'PPE Schedule'!O5,'Depreciation Calculator'!D:D,P15,'Depreciation Calculator'!M:M,"Yes")+SUMIFS('Depreciation Calculator'!G:G,'Depreciation Calculator'!L:L,"<"&'PPE Schedule'!O5,'Depreciation Calculator'!D:D,P15,'Depreciation Calculator'!M:M,"Yes")+SUMIFS('Depreciation Calculator'!O:O,'Depreciation Calculator'!L:L,"<"&'PPE Schedule'!O5,'Depreciation Calculator'!D:D,P15,'Depreciation Calculator'!M:M,"Yes")-SUMIFS('Depreciation Calculator'!N:N,'Depreciation Calculator'!L:L,"<"&'PPE Schedule'!O5,'Depreciation Calculator'!D:D,P15,'Depreciation Calculator'!M:M,"Yes"))/M5,0) -> 387375 | W15: =ROUND((SUMIF('Depreciation Calculator'!D:D,'PPE Schedule'!P15,IF(O5='Depreciation Calculator'!T2,'Depreciation Calculator'!T1,IF(O5='Depreciation Calculator'!U2,'Depreciation Calculator'!U1,IF(O5='Depreciation Calculator'!V2,'Depreciation Calculator'!V1,IF(O5='Depreciation Calculator'!W2,'Depreciation Calculator'!W1,IF(O5='Depreciation Calculator'!X2,'Depreciation Calculator'!X1,IF(O5='Depreciation Calculator'!Y2,'Depreciation Calculator'!Y1,IF(O5='Depreciation Calculator'!AA2,'Depreciation Calculator'!AA1,IF(O5='Depreciation Calculator'!Z2,'Depreciation Calculator'!Z1,IF(O5='Depreciation Calculator'!AB2,'Depreciation Calculator'!AB1,IF(O5='Depreciation Calculator'!AC2,'Depreciation Calculator'!AC1,IF(O5='Depreciation Calculator'!AD2,'Depreciation Calculator'!AD1,IF(O5='Depreciation Calculator'!AE2,'Depreciation Calculator'!AE1,"Select proper range of year"))))))))))))))/M5,0) -> 102019 | X15: =ROUND((SUMIFS('Depreciation Calculator'!E:E,'Depreciation Calculator'!L:L,">="&'PPE Schedule'!O5,'Depreciation Calculator'!L:L,"<="&'PPE Schedule'!P5,'Depreciation Calculator'!D:D,P15,'Depreciation Calculator'!M:M,"Yes")+SUMIFS('Depreciation Calculator'!G:G,'Depreciation Calculator'!L:L,">="&'PPE Schedule'!O5,'Depreciation Calculator'!L:L,"<="&'PPE Schedule'!P5,'Depreciation Calculator'!D:D,P15,'Depreciation Calculator'!M:M,"Yes")+SUMIFS('Depreciation Calculator'!O:O,'Depreciation Calculator'!L:L,">="&'PPE Schedule'!O5,'Depreciation Calculator'!L:L,"<="&'PPE Schedule'!P5,'Depreciation Calculator'!D:D,P15,'Depreciation Calculator'!M:M,"Yes")-SUMIFS('Depreciation Calculator'!N:N,'Depreciation Calculator'!L:L,">="&'PPE Schedule'!O5,'Depreciation Calculator'!L:L,"<="&'PPE Schedule'!P5,'Depreciation Calculator'!D:D,P15,'Depreciation Calculator'!M:M,"Yes"))/M5,0) -> 0 | Y15: 489394 | Z15: 59506
B16: =P16 -> 0 | C16: 0 | D16: 0 | E16: 0 | F16: 0 | G16: 0 | H16: 0 | I16: 0 | J16: 0 | K16: 0 | R16: =ROUND(SUMIFS('Depreciation Calculator'!E:E,'Depreciation Calculator'!I:I,"<"&'PPE Schedule'!O5,'Depreciation Calculator'!D:D,P16)/M5,0)+ROUND(SUMIFS('Depreciation Calculator'!G:G,'Depreciation Calculator'!I:I,"<"&'PPE Schedule'!O5,'Depreciation Calculator'!D:D,P16)/M5,0)-ROUND(SUMIFS('Depreciation Calculator'!E:E,'Depreciation Calculator'!L:L,"<"&'PPE Schedule'!O5,'Depreciation Calculator'!D:D,P16,'Depreciation Calculator'!M:M,"Yes")/M5,0)-ROUND(SUMIFS('Depreciation Calculator'!G:G,'Depreciation Calculator'!L:L,"<"&'PPE Schedule'!O5,'Depreciation Calculator'!D:D,P16,'Depreciation Calculator'!M:M,"Yes")/M5,0) -> 0 | S16: =ROUND(SUMIFS('Depreciation Calculator'!E:E,'Depreciation Calculator'!I:I,">="&'PPE Schedule'!O5,'Depreciation Calculator'!I:I,"<="&'PPE Schedule'!P5,'Depreciation Calculator'!D:D,P16)/M5,0) -> 0 | T16: =ROUND((SUMIFS('Depreciation Calculator'!E:E,'Depreciation Calculator'!L:L,">="&'PPE Schedule'!O5,'Depreciation Calculator'!L:L,"<="&'PPE Schedule'!P5,'Depreciation Calculator'!D:D,P16,'Depreciation Calculator'!M:M,"Yes")+SUMIFS('Depreciation Calculator'!G:G,'Depreciation Calculator'!L:L,">="&'PPE Schedule'!O5,'Depreciation Calculator'!L:L,"<="&'PPE Schedule'!P5,'Depreciation Calculator'!D:D,P16,'Depreciation Calculator'!M:M,"Yes"))/M5,0) -> 0 | U16: 0 | V16: =ROUND((SUMIF('Depreciation Calculator'!D:D,'PPE Schedule'!P16,'Depreciation Calculator'!H:H)+SUMIF('Depreciation Calculator'!D:D,'PPE Schedule'!P16,'Depreciation Calculator'!S:S)+IF(O5='Depreciation Calculator'!U2,SUM(SUMIF('Depreciation Calculator'!D:D,P16,'Depreciation Calculator'!T:T)),IF(O5='Depreciation Calculator'!V2,SUM(SUMIF('Depreciation Calculator'!D:D,P16,'Depreciation Calculator'!T:T),SUMIF('Depreciation Calculator'!D:D,P16,'Depreciation Calculator'!U:U)),IF(O5='Depreciation Calculator'!W2,SUM(SUMIF('Depreciation Calculator'!D:D,P16,'Depreciation Calculator'!T:T),SUMIF('Depreciation Calculator'!D:D,P16,'Depreciation Calculator'!U:U),SUMIF('Depreciation Calculator'!D:D,P16,'Depreciation Calculator'!V:V)),IF(O5='Depreciation Calculator'!X2,SUM(SUMIF('Depreciation Calculator'!D:D,P16,'Depreciation Calculator'!T:T),SUMIF('Depreciation Calculator'!D:D,P16,'Depreciation Calculator'!U:U),SUMIF('Depreciation Calculator'!D:D,P16,'Depreciation Calculator'!V:V),SUMIF('Depreciation Calculator'!D:D,P16,'Depreciation Calculator'!W:W)),IF(O5='Depreciation Calculator'!Y2,SUM(SUMIF('Depreciation Calculator'!D:D,P16,'Depreciation Calculator'!T:T),SUMIF('Depreciation Calculator'!D:D,P16,'Depreciation Calculator'!U:U),SUMIF('Depreciation Calculator'!D:D,P16,'Depreciation Calculator'!V:V),SUMIF('Depreciation Calculator'!D:D,P16,'Depreciation Calculator'!W:W),SUMIF('Depreciation Calculator'!D:D,P16,'Depreciation Calculator'!X:X)),IF(O5='Depreciation Calculator'!Z2,SUM(SUMIF('Depreciation Calculator'!D:D,P16,'Depreciation Calculator'!T:T),SUMIF('Depreciation Calculator'!D:D,P16,'Depreciation Calculator'!U:U),SUMIF('Depreciation Calculator'!D:D,P16,'Depreciation Calculator'!V:V),SUMIF('Depreciation Calculator'!D:D,P16,'Depreciation Calculator'!W:W),SUMIF('Depreciation Calculator'!D:D,P16,'Depreciation Calculator'!X:X),SUMIF('Depreciation Calculator'!D:D,P16,'Depreciation Calculator'!Y:Y)),IF(O5='Depreciation Calculator'!AA2,SUM(SUMIF('Depreciation Calculator'!D:D,P16,'Depreciation Calculator'!T:T),SUMIF('Depreciation Calculator'!D:D,P16,'Depreciation Calculator'!U:U),SUMIF('Depreciation Calculator'!D:D,P16,'Depreciation Calculator'!V:V),SUMIF('Depreciation Calculator'!D:D,P16,'Depreciation Calculator'!W:W),SUMIF('Depreciation Calculator'!D:D,P16,'Depreciation Calculator'!X:X),SUMIF('Depreciation Calculator'!D:D,P16,'Depreciation Calculator'!Y:Y),SUMIF('Depreciation Calculator'!D:D,P16,'Depreciation Calculator'!Z:Z)),IF(O5='Depreciation Calculator'!AB2,SUM(SUMIF('Depreciation Calculator'!D:D,P16,'Depreciation Calculator'!T:T),SUMIF('Depreciation Calculator'!D:D,P16,'Depreciation Calculator'!U:U),SUMIF('Depreciation Calculator'!D:D,P16,'Depreciation Calculator'!V:V),SUMIF('Depreciation Calculator'!D:D,P16,'Depreciation Calculator'!W:W),SUMIF('Depreciation Calculator'!D:D,P16,'Depreciation Calculator'!X:X),SUMIF('Depreciation Calculator'!D:D,P16,'Depreciation Calculator'!Y:Y),SUMIF('Depreciation Calculator'!D:D,P16,'Depreciation Calculator'!Z:Z),SUMIF('Depreciation Calculator'!D:D,P16,'Depreciation Calculator'!AA:AA)),IF(O5='Depreciation Calculator'!AC2,SUM(SUMIF('Depreciation Calculator'!D:D,P16,'Depreciation Calculator'!T:T),SUMIF('Depreciation Calculator'!D:D,P16,'Depreciation Calculator'!U:U),SUMIF('Depreciation Calculator'!D:D,P16,'Depreciation Calculator'!V:V),SUMIF('Depreciation Calculator'!D:D,P16,'Depreciation Calculator'!W:W),SUMIF('Depreciation Calculator'!D:D,P16,'Depreciation Calculator'!X:X),SUMIF('Depreciation Calculator'!D:D,P16,'Depreciation Calculator'!Y:Y),SUMIF('Depreciation Calculator'!D:D,P16,'Depreciation Calculator'!Z:Z),SUMIF('Depreciation Calculator'!D:D,P16,'Depreciation Calculator'!AA:AA),SUMIF('Depreciation Calculator'!D:D,P16,'Depreciation Calculator'!AB:AB)),IF(O5='Depreciation Calculator'!AD2,SUM(SUMIF('Depreciation Calculator'!D:D,P16,'Depreciation Calculator'!T:T),SUMIF('Depreciation Calculator'!D:D,P16,'Depreciation Calculator'!U:U),SUMIF('Depreciation Calculator'!D:D,P16,'Depreciation Calculator'!V:V),SUMIF('Depreciation Calculator'!D:D,P16,'Depreciation Calculator'!W:W),SUMIF('Depreciation Calculator'!D:D,P16,'Depreciation Calculator'!X:X),SUMIF('Depreciation Calculator'!D:D,P16,'Depreciation Calculator'!Y:Y),SUMIF('Depreciation Calculator'!D:D,P16,'Depreciation Calculator'!Z:Z),SUMIF('Depreciation Calculator'!D:D,P16,'Depreciation Calculator'!AA:AA),SUMIF('Depreciation Calculator'!D:D,P16,'Depreciation Calculator'!AB:AB),SUMIF('Depreciation Calculator'!D:D,P16,'Depreciation Calculator'!AC:AC)),IF(O5='Depreciation Calculator'!AE2,SUM(SUMIF('Depreciation Calculator'!D:D,P16,'Depreciation Calculator'!T:T),SUMIF('Depreciation Calculator'!D:D,P16,'Depreciation Calculator'!U:U),SUMIF('Depreciation Calculator'!D:D,P16,'Depreciation Calculator'!V:V),SUMIF('Depreciation Calculator'!D:D,P16,'Depreciation Calculator'!W:W),SUMIF('Depreciation Calculator'!D:D,P16,'Depreciation Calculator'!X:X),SUMIF('Depreciation Calculator'!D:D,P16,'Depreciation Calculator'!Y:Y),SUMIF('Depreciation Calculator'!D:D,P16,'Depreciation Calculator'!Z:Z),SUMIF('Depreciation Calculator'!D:D,P16,'Depreciation Calculator'!AA:AA),SUMIF('Depreciation Calculator'!D:D,P16,'Depreciation Calculator'!AB:AB),SUMIF('Depreciation Calculator'!D:D,P16,'Depreciation Calculator'!AC:AC),SUMIF('Depreciation Calculator'!D:D,P16,'Depreciation Calculator'!AD:AD))))))))))))))/M5,0)-ROUND((SUMIFS('Depreciation Calculator'!E:E,'Depreciation Calculator'!L:L,"<"&'PPE Schedule'!O5,'Depreciation Calculator'!D:D,P16,'Depreciation Calculator'!M:M,"Yes")+SUMIFS('Depreciation Calculator'!G:G,'Depreciation Calculator'!L:L,"<"&'PPE Schedule'!O5,'Depreciation Calculator'!D:D,P16,'Depreciation Calculator'!M:M,"Yes")+SUMIFS('Depreciation Calculator'!O:O,'Depreciation Calculator'!L:L,"<"&'PPE Schedule'!O5,'Depreciation Calculator'!D:D,P16,'Depreciation Calculator'!M:M,"Yes")-SUMIFS('Depreciation Calculator'!N:N,'Depreciation Calculator'!L:L,"<"&'PPE Schedule'!O5,'Depreciation Calculator'!D:D,P16,'Depreciation Calculator'!M:M,"Yes"))/M5,0) -> 0 | W16: =ROUND((SUMIF('Depreciation Calculator'!D:D,'PPE Schedule'!P16,IF(O5='Depreciation Calculator'!T2,'Depreciation Calculator'!T1,IF(O5='Depreciation Calculator'!U2,'Depreciation Calculator'!U1,IF(O5='Depreciation Calculator'!V2,'Depreciation Calculator'!V1,IF(O5='Depreciation Calculator'!W2,'Depreciation Calculator'!W1,IF(O5='Depreciation Calculator'!X2,'Depreciation Calculator'!X1,IF(O5='Depreciation Calculator'!Y2,'Depreciation Calculator'!Y1,IF(O5='Depreciation Calculator'!AA2,'Depreciation Calculator'!AA1,IF(O5='Depreciation Calculator'!Z2,'Depreciation Calculator'!Z1,IF(O5='Depreciation Calculator'!AB2,'Depreciation Calculator'!AB1,IF(O5='Depreciation Calculator'!AC2,'Depreciation Calculator'!AC1,IF(O5='Depreciation Calculator'!AD2,'Depreciation Calculator'!AD1,IF(O5='Depreciation Calculator'!AE2,'Depreciation Calculator'!AE1,"Select proper range of year"))))))))))))))/M5,0) -> 0 | X16: =ROUND((SUMIFS('Depreciation Calculator'!E:E,'Depreciation Calculator'!L:L,">="&'PPE Schedule'!O5,'Depreciation Calculator'!L:L,"<="&'PPE Schedule'!P5,'Depreciation Calculator'!D:D,P16,'Depreciation Calculator'!M:M,"Yes")+SUMIFS('Depreciation Calculator'!G:G,'Depreciation Calculator'!L:L,">="&'PPE Schedule'!O5,'Depreciation Calculator'!L:L,"<="&'PPE Schedule'!P5,'Depreciation Calculator'!D:D,P16,'Depreciation Calculator'!M:M,"Yes")+SUMIFS('Depreciation Calculator'!O:O,'Depreciation Calculator'!L:L,">="&'PPE Schedule'!O5,'Depreciation Calculator'!L:L,"<="&'PPE Schedule'!P5,'Depreciation Calculator'!D:D,P16,'Depreciation Calculator'!M:M,"Yes")-SUMIFS('Depreciation Calculator'!N:N,'Depreciation Calculator'!L:L,">="&'PPE Schedule'!O5,'Depreciation Calculator'!L:L,"<="&'PPE Schedule'!P5,'Depreciation Calculator'!D:D,P16,'Depreciation Calculator'!M:M,"Yes"))/M5,0) -> 0 | Y16: 0 | Z16: 0
B17: 0 | C17: =R17 -> 0 | D17: 0 | E17: 0 | F17: 0 | G17: 0 | H17: 0 | I17: 0 | J17: 0 | K17: =F17-J17 -> 0 | R17: =ROUND(SUMIFS('Depreciation Calculator'!E:E,'Depreciation Calculator'!I:I,"<"&'PPE Schedule'!O5,'Depreciation Calculator'!D:D,P17)/M5,0)+ROUND(SUMIFS('Depreciation Calculator'!G:G,'Depreciation Calculator'!I:I,"<"&'PPE Schedule'!O5,'Depreciation Calculator'!D:D,P17)/M5,0)-ROUND(SUMIFS('Depreciation Calculator'!E:E,'Depreciation Calculator'!L:L,"<"&'PPE Schedule'!O5,'Depreciation Calculator'!D:D,P17,'Depreciation Calculator'!M:M,"Yes")/M5,0)-ROUND(SUMIFS('Depreciation Calculator'!G:G,'Depreciation Calculator'!L:L,"<"&'PPE Schedule'!O5,'Depreciation Calculator'!D:D,P17,'Depreciation Calculator'!M:M,"Yes")/M5,0) -> 0 | S17: =ROUND(SUMIFS('Depreciation Calculator'!E:E,'Depreciation Calculator'!I:I,">="&'PPE Schedule'!O5,'Depreciation Calculator'!I:I,"<="&'PPE Schedule'!P5,'Depreciation Calculator'!D:D,P17)/M5,0) -> 0 | T17: =ROUND((SUMIFS('Depreciation Calculator'!E:E,'Depreciation Calculator'!L:L,">="&'PPE Schedule'!O5,'Depreciation Calculator'!L:L,"<="&'PPE Schedule'!P5,'Depreciation Calculator'!D:D,P17,'Depreciation Calculator'!M:M,"Yes")+SUMIFS('Depreciation Calculator'!G:G,'Depreciation Calculator'!L:L,">="&'PPE Schedule'!O5,'Depreciation Calculator'!L:L,"<="&'PPE Schedule'!P5,'Depreciation Calculator'!D:D,P17,'Depreciation Calculator'!M:M,"Yes"))/M5,0) -> 0 | U17: 0 | V17: =ROUND((SUMIF('Depreciation Calculator'!D:D,'PPE Schedule'!P17,'Depreciation Calculator'!H:H)+SUMIF('Depreciation Calculator'!D:D,'PPE Schedule'!P17,'Depreciation Calculator'!S:S)+IF(O5='Depreciation Calculator'!U2,SUM(SUMIF('Depreciation Calculator'!D:D,P17,'Depreciation Calculator'!T:T)),IF(O5='Depreciation Calculator'!V2,SUM(SUMIF('Depreciation Calculator'!D:D,P17,'Depreciation Calculator'!T:T),SUMIF('Depreciation Calculator'!D:D,P17,'Depreciation Calculator'!U:U)),IF(O5='Depreciation Calculator'!W2,SUM(SUMIF('Depreciation Calculator'!D:D,P17,'Depreciation Calculator'!T:T),SUMIF('Depreciation Calculator'!D:D,P17,'Depreciation Calculator'!U:U),SUMIF('Depreciation Calculator'!D:D,P17,'Depreciation Calculator'!V:V)),IF(O5='Depreciation Calculator'!X2,SUM(SUMIF('Depreciation Calculator'!D:D,P17,'Depreciation Calculator'!T:T),SUMIF('Depreciation Calculator'!D:D,P17,'Depreciation Calculator'!U:U),SUMIF('Depreciation Calculator'!D:D,P17,'Depreciation Calculator'!V:V),SUMIF('Depreciation Calculator'!D:D,P17,'Depreciation Calculator'!W:W)),IF(O5='Depreciation Calculator'!Y2,SUM(SUMIF('Depreciation Calculator'!D:D,P17,'Depreciation Calculator'!T:T),SUMIF('Depreciation Calculator'!D:D,P17,'Depreciation Calculator'!U:U),SUMIF('Depreciation Calculator'!D:D,P17,'Depreciation Calculator'!V:V),SUMIF('Depreciation Calculator'!D:D,P17,'Depreciation Calculator'!W:W),SUMIF('Depreciation Calculator'!D:D,P17,'Depreciation Calculator'!X:X)),IF(O5='Depreciation Calculator'!Z2,SUM(SUMIF('Depreciation Calculator'!D:D,P17,'Depreciation Calculator'!T:T),SUMIF('Depreciation Calculator'!D:D,P17,'Depreciation Calculator'!U:U),SUMIF('Depreciation Calculator'!D:D,P17,'Depreciation Calculator'!V:V),SUMIF('Depreciation Calculator'!D:D,P17,'Depreciation Calculator'!W:W),SUMIF('Depreciation Calculator'!D:D,P17,'Depreciation Calculator'!X:X),SUMIF('Depreciation Calculator'!D:D,P17,'Depreciation Calculator'!Y:Y)),IF(O5='Depreciation Calculator'!AA2,SUM(SUMIF('Depreciation Calculator'!D:D,P17,'Depreciation Calculator'!T:T),SUMIF('Depreciation Calculator'!D:D,P17,'Depreciation Calculator'!U:U),SUMIF('Depreciation Calculator'!D:D,P17,'Depreciation Calculator'!V:V),SUMIF('Depreciation Calculator'!D:D,P17,'Depreciation Calculator'!W:W),SUMIF('Depreciation Calculator'!D:D,P17,'Depreciation Calculator'!X:X),SUMIF('Depreciation Calculator'!D:D,P17,'Depreciation Calculator'!Y:Y),SUMIF('Depreciation Calculator'!D:D,P17,'Depreciation Calculator'!Z:Z)),IF(O5='Depreciation Calculator'!AB2,SUM(SUMIF('Depreciation Calculator'!D:D,P17,'Depreciation Calculator'!T:T),SUMIF('Depreciation Calculator'!D:D,P17,'Depreciation Calculator'!U:U),SUMIF('Depreciation Calculator'!D:D,P17,'Depreciation Calculator'!V:V),SUMIF('Depreciation Calculator'!D:D,P17,'Depreciation Calculator'!W:W),SUMIF('Depreciation Calculator'!D:D,P17,'Depreciation Calculator'!X:X),SUMIF('Depreciation Calculator'!D:D,P17,'Depreciation Calculator'!Y:Y),SUMIF('Depreciation Calculator'!D:D,P17,'Depreciation Calculator'!Z:Z),SUMIF('Depreciation Calculator'!D:D,P17,'Depreciation Calculator'!AA:AA)),IF(O5='Depreciation Calculator'!AC2,SUM(SUMIF('Depreciation Calculator'!D:D,P17,'Depreciation Calculator'!T:T),SUMIF('Depreciation Calculator'!D:D,P17,'Depreciation Calculator'!U:U),SUMIF('Depreciation Calculator'!D:D,P17,'Depreciation Calculator'!V:V),SUMIF('Depreciation Calculator'!D:D,P17,'Depreciation Calculator'!W:W),SUMIF('Depreciation Calculator'!D:D,P17,'Depreciation Calculator'!X:X),SUMIF('Depreciation Calculator'!D:D,P17,'Depreciation Calculator'!Y:Y),SUMIF('Depreciation Calculator'!D:D,P17,'Depreciation Calculator'!Z:Z),SUMIF('Depreciation Calculator'!D:D,P17,'Depreciation Calculator'!AA:AA),SUMIF('Depreciation Calculator'!D:D,P17,'Depreciation Calculator'!AB:AB)),IF(O5='Depreciation Calculator'!AD2,SUM(SUMIF('Depreciation Calculator'!D:D,P17,'Depreciation Calculator'!T:T),SUMIF('Depreciation Calculator'!D:D,P17,'Depreciation Calculator'!U:U),SUMIF('Depreciation Calculator'!D:D,P17,'Depreciation Calculator'!V:V),SUMIF('Depreciation Calculator'!D:D,P17,'Depreciation Calculator'!W:W),SUMIF('Depreciation Calculator'!D:D,P17,'Depreciation Calculator'!X:X),SUMIF('Depreciation Calculator'!D:D,P17,'Depreciation Calculator'!Y:Y),SUMIF('Depreciation Calculator'!D:D,P17,'Depreciation Calculator'!Z:Z),SUMIF('Depreciation Calculator'!D:D,P17,'Depreciation Calculator'!AA:AA),SUMIF('Depreciation Calculator'!D:D,P17,'Depreciation Calculator'!AB:AB),SUMIF('Depreciation Calculator'!D:D,P17,'Depreciation Calculator'!AC:AC)),IF(O5='Depreciation Calculator'!AE2,SUM(SUMIF('Depreciation Calculator'!D:D,P17,'Depreciation Calculator'!T:T),SUMIF('Depreciation Calculator'!D:D,P17,'Depreciation Calculator'!U:U),SUMIF('Depreciation Calculator'!D:D,P17,'Depreciation Calculator'!V:V),SUMIF('Depreciation Calculator'!D:D,P17,'Depreciation Calculator'!W:W),SUMIF('Depreciation Calculator'!D:D,P17,'Depreciation Calculator'!X:X),SUMIF('Depreciation Calculator'!D:D,P17,'Depreciation Calculator'!Y:Y),SUMIF('Depreciation Calculator'!D:D,P17,'Depreciation Calculator'!Z:Z),SUMIF('Depreciation Calculator'!D:D,P17,'Depreciation Calculator'!AA:AA),SUMIF('Depreciation Calculator'!D:D,P17,'Depreciation Calculator'!AB:AB),SUMIF('Depreciation Calculator'!D:D,P17,'Depreciation Calculator'!AC:AC),SUMIF('Depreciation Calculator'!D:D,P17,'Depreciation Calculator'!AD:AD))))))))))))))/M5,0)-ROUND((SUMIFS('Depreciation Calculator'!E:E,'Depreciation Calculator'!L:L,"<"&'PPE Schedule'!O5,'Depreciation Calculator'!D:D,P17,'Depreciation Calculator'!M:M,"Yes")+SUMIFS('Depreciation Calculator'!G:G,'Depreciation Calculator'!L:L,"<"&'PPE Schedule'!O5,'Depreciation Calculator'!D:D,P17,'Depreciation Calculator'!M:M,"Yes")+SUMIFS('Depreciation Calculator'!O:O,'Depreciation Calculator'!L:L,"<"&'PPE Schedule'!O5,'Depreciation Calculator'!D:D,P17,'Depreciation Calculator'!M:M,"Yes")-SUMIFS('Depreciation Calculator'!N:N,'Depreciation Calculator'!L:L,"<"&'PPE Schedule'!O5,'Depreciation Calculator'!D:D,P17,'Depreciation Calculator'!M:M,"Yes"))/M5,0) -> 0 | W17: =ROUND((SUMIF('Depreciation Calculator'!D:D,'PPE Schedule'!P17,IF(O5='Depreciation Calculator'!T2,'Depreciation Calculator'!T1,IF(O5='Depreciation Calculator'!U2,'Depreciation Calculator'!U1,IF(O5='Depreciation Calculator'!V2,'Depreciation Calculator'!V1,IF(O5='Depreciation Calculator'!W2,'Depreciation Calculator'!W1,IF(O5='Depreciation Calculator'!X2,'Depreciation Calculator'!X1,IF(O5='Depreciation Calculator'!Y2,'Depreciation Calculator'!Y1,IF(O5='Depreciation Calculator'!AA2,'Depreciation Calculator'!AA1,IF(O5='Depreciation Calculator'!Z2,'Depreciation Calculator'!Z1,IF(O5='Depreciation Calculator'!AB2,'Depreciation Calculator'!AB1,IF(O5='Depreciation Calculator'!AC2,'Depreciation Calculator'!AC1,IF(O5='Depreciation Calculator'!AD2,'Depreciation Calculator'!AD1,IF(O5='Depreciation Calculator'!AE2,'Depreciation Calculator'!AE1,"Select proper range of year"))))))))))))))/M5,0) -> 0 | X17: =ROUND((SUMIFS('Depreciation Calculator'!E:E,'Depreciation Calculator'!L:L,">="&'PPE Schedule'!O5,'Depreciation Calculator'!L:L,"<="&'PPE Schedule'!P5,'Depreciation Calculator'!D:D,P17,'Depreciation Calculator'!M:M,"Yes")+SUMIFS('Depreciation Calculator'!G:G,'Depreciation Calculator'!L:L,">="&'PPE Schedule'!O5,'Depreciation Calculator'!L:L,"<="&'PPE Schedule'!P5,'Depreciation Calculator'!D:D,P17,'Depreciation Calculator'!M:M,"Yes")+SUMIFS('Depreciation Calculator'!O:O,'Depreciation Calculator'!L:L,">="&'PPE Schedule'!O5,'Depreciation Calculator'!L:L,"<="&'PPE Schedule'!P5,'Depreciation Calculator'!D:D,P17,'Depreciation Calculator'!M:M,"Yes")-SUMIFS('Depreciation Calculator'!N:N,'Depreciation Calculator'!L:L,">="&'PPE Schedule'!O5,'Depreciation Calculator'!L:L,"<="&'PPE Schedule'!P5,'Depreciation Calculator'!D:D,P17,'Depreciation Calculator'!M:M,"Yes"))/M5,0) -> 0 | Y17: 0 | Z17: 0
B18: 0 | C18: =R18 -> 0 | D18: =S18 -> 0 | E18: =T18 -> 0 | F18: =+C18+D18-E18 -> 0 | G18: =V18 -> 0 | H18: =W18 -> 0 | I18: =X18 -> 0 | J18: =+G18+H18-I18 -> 0 | K18: =F18-J18 -> 0 | R18: =ROUND(SUMIFS('Depreciation Calculator'!E:E,'Depreciation Calculator'!I:I,"<"&'PPE Schedule'!O5,'Depreciation Calculator'!D:D,P18)/M5,0)+ROUND(SUMIFS('Depreciation Calculator'!G:G,'Depreciation Calculator'!I:I,"<"&'PPE Schedule'!O5,'Depreciation Calculator'!D:D,P18)/M5,0)-ROUND(SUMIFS('Depreciation Calculator'!E:E,'Depreciation Calculator'!L:L,"<"&'PPE Schedule'!O5,'Depreciation Calculator'!D:D,P18,'Depreciation Calculator'!M:M,"Yes")/M5,0)-ROUND(SUMIFS('Depreciation Calculator'!G:G,'Depreciation Calculator'!L:L,"<"&'PPE Schedule'!O5,'Depreciation Calculator'!D:D,P18,'Depreciation Calculator'!M:M,"Yes")/M5,0) -> 0 | S18: =ROUND(SUMIFS('Depreciation Calculator'!E:E,'Depreciation Calculator'!I:I,">="&'PPE Schedule'!O5,'Depreciation Calculator'!I:I,"<="&'PPE Schedule'!P5,'Depreciation Calculator'!D:D,P18)/M5,0) -> 0 | T18: =ROUND((SUMIFS('Depreciation Calculator'!E:E,'Depreciation Calculator'!L:L,">="&'PPE Schedule'!O5,'Depreciation Calculator'!L:L,"<="&'PPE Schedule'!P5,'Depreciation Calculator'!D:D,P18,'Depreciation Calculator'!M:M,"Yes")+SUMIFS('Depreciation Calculator'!G:G,'Depreciation Calculator'!L:L,">="&'PPE Schedule'!O5,'Depreciation Calculator'!L:L,"<="&'PPE Schedule'!P5,'Depreciation Calculator'!D:D,P18,'Depreciation Calculator'!M:M,"Yes"))/M5,0) -> 0 | U18: 0 | V18: =ROUND((SUMIF('Depreciation Calculator'!D:D,'PPE Schedule'!P18,'Depreciation Calculator'!H:H)+SUMIF('Depreciation Calculator'!D:D,'PPE Schedule'!P18,'Depreciation Calculator'!S:S)+IF(O5='Depreciation Calculator'!U2,SUM(SUMIF('Depreciation Calculator'!D:D,P18,'Depreciation Calculator'!T:T)),IF(O5='Depreciation Calculator'!V2,SUM(SUMIF('Depreciation Calculator'!D:D,P18,'Depreciation Calculator'!T:T),SUMIF('Depreciation Calculator'!D:D,P18,'Depreciation Calculator'!U:U)),IF(O5='Depreciation Calculator'!W2,SUM(SUMIF('Depreciation Calculator'!D:D,P18,'Depreciation Calculator'!T:T),SUMIF('Depreciation Calculator'!D:D,P18,'Depreciation Calculator'!U:U),SUMIF('Depreciation Calculator'!D:D,P18,'Depreciation Calculator'!V:V)),IF(O5='Depreciation Calculator'!X2,SUM(SUMIF('Depreciation Calculator'!D:D,P18,'Depreciation Calculator'!T:T),SUMIF('Depreciation Calculator'!D:D,P18,'Depreciation Calculator'!U:U),SUMIF('Depreciation Calculator'!D:D,P18,'Depreciation Calculator'!V:V),SUMIF('Depreciation Calculator'!D:D,P18,'Depreciation Calculator'!W:W)),IF(O5='Depreciation Calculator'!Y2,SUM(SUMIF('Depreciation Calculator'!D:D,P18,'Depreciation Calculator'!T:T),SUMIF('Depreciation Calculator'!D:D,P18,'Depreciation Calculator'!U:U),SUMIF('Depreciation Calculator'!D:D,P18,'Depreciation Calculator'!V:V),SUMIF('Depreciation Calculator'!D:D,P18,'Depreciation Calculator'!W:W),SUMIF('Depreciation Calculator'!D:D,P18,'Depreciation Calculator'!X:X)),IF(O5='Depreciation Calculator'!Z2,SUM(SUMIF('Depreciation Calculator'!D:D,P18,'Depreciation Calculator'!T:T),SUMIF('Depreciation Calculator'!D:D,P18,'Depreciation Calculator'!U:U),SUMIF('Depreciation Calculator'!D:D,P18,'Depreciation Calculator'!V:V),SUMIF('Depreciation Calculator'!D:D,P18,'Depreciation Calculator'!W:W),SUMIF('Depreciation Calculator'!D:D,P18,'Depreciation Calculator'!X:X),SUMIF('Depreciation Calculator'!D:D,P18,'Depreciation Calculator'!Y:Y)),IF(O5='Depreciation Calculator'!AA2,SUM(SUMIF('Depreciation Calculator'!D:D,P18,'Depreciation Calculator'!T:T),SUMIF('Depreciation Calculator'!D:D,P18,'Depreciation Calculator'!U:U),SUMIF('Depreciation Calculator'!D:D,P18,'Depreciation Calculator'!V:V),SUMIF('Depreciation Calculator'!D:D,P18,'Depreciation Calculator'!W:W),SUMIF('Depreciation Calculator'!D:D,P18,'Depreciation Calculator'!X:X),SUMIF('Depreciation Calculator'!D:D,P18,'Depreciation Calculator'!Y:Y),SUMIF('Depreciation Calculator'!D:D,P18,'Depreciation Calculator'!Z:Z)),IF(O5='Depreciation Calculator'!AB2,SUM(SUMIF('Depreciation Calculator'!D:D,P18,'Depreciation Calculator'!T:T),SUMIF('Depreciation Calculator'!D:D,P18,'Depreciation Calculator'!U:U),SUMIF('Depreciation Calculator'!D:D,P18,'Depreciation Calculator'!V:V),SUMIF('Depreciation Calculator'!D:D,P18,'Depreciation Calculator'!W:W),SUMIF('Depreciation Calculator'!D:D,P18,'Depreciation Calculator'!X:X),SUMIF('Depreciation Calculator'!D:D,P18,'Depreciation Calculator'!Y:Y),SUMIF('Depreciation Calculator'!D:D,P18,'Depreciation Calculator'!Z:Z),SUMIF('Depreciation Calculator'!D:D,P18,'Depreciation Calculator'!AA:AA)),IF(O5='Depreciation Calculator'!AC2,SUM(SUMIF('Depreciation Calculator'!D:D,P18,'Depreciation Calculator'!T:T),SUMIF('Depreciation Calculator'!D:D,P18,'Depreciation Calculator'!U:U),SUMIF('Depreciation Calculator'!D:D,P18,'Depreciation Calculator'!V:V),SUMIF('Depreciation Calculator'!D:D,P18,'Depreciation Calculator'!W:W),SUMIF('Depreciation Calculator'!D:D,P18,'Depreciation Calculator'!X:X),SUMIF('Depreciation Calculator'!D:D,P18,'Depreciation Calculator'!Y:Y),SUMIF('Depreciation Calculator'!D:D,P18,'Depreciation Calculator'!Z:Z),SUMIF('Depreciation Calculator'!D:D,P18,'Depreciation Calculator'!AA:AA),SUMIF('Depreciation Calculator'!D:D,P18,'Depreciation Calculator'!AB:AB)),IF(O5='Depreciation Calculator'!AD2,SUM(SUMIF('Depreciation Calculator'!D:D,P18,'Depreciation Calculator'!T:T),SUMIF('Depreciation Calculator'!D:D,P18,'Depreciation Calculator'!U:U),SUMIF('Depreciation Calculator'!D:D,P18,'Depreciation Calculator'!V:V),SUMIF('Depreciation Calculator'!D:D,P18,'Depreciation Calculator'!W:W),SUMIF('Depreciation Calculator'!D:D,P18,'Depreciation Calculator'!X:X),SUMIF('Depreciation Calculator'!D:D,P18,'Depreciation Calculator'!Y:Y),SUMIF('Depreciation Calculator'!D:D,P18,'Depreciation Calculator'!Z:Z),SUMIF('Depreciation Calculator'!D:D,P18,'Depreciation Calculator'!AA:AA),SUMIF('Depreciation Calculator'!D:D,P18,'Depreciation Calculator'!AB:AB),SUMIF('Depreciation Calculator'!D:D,P18,'Depreciation Calculator'!AC:AC)),IF(O5='Depreciation Calculator'!AE2,SUM(SUMIF('Depreciation Calculator'!D:D,P18,'Depreciation Calculator'!T:T),SUMIF('Depreciation Calculator'!D:D,P18,'Depreciation Calculator'!U:U),SUMIF('Depreciation Calculator'!D:D,P18,'Depreciation Calculator'!V:V),SUMIF('Depreciation Calculator'!D:D,P18,'Depreciation Calculator'!W:W),SUMIF('Depreciation Calculator'!D:D,P18,'Depreciation Calculator'!X:X),SUMIF('Depreciation Calculator'!D:D,P18,'Depreciation Calculator'!Y:Y),SUMIF('Depreciation Calculator'!D:D,P18,'Depreciation Calculator'!Z:Z),SUMIF('Depreciation Calculator'!D:D,P18,'Depreciation Calculator'!AA:AA),SUMIF('Depreciation Calculator'!D:D,P18,'Depreciation Calculator'!AB:AB),SUMIF('Depreciation Calculator'!D:D,P18,'Depreciation Calculator'!AC:AC),SUMIF('Depreciation Calculator'!D:D,P18,'Depreciation Calculator'!AD:AD))))))))))))))/M5,0)-ROUND((SUMIFS('Depreciation Calculator'!E:E,'Depreciation Calculator'!L:L,"<"&'PPE Schedule'!O5,'Depreciation Calculator'!D:D,P18,'Depreciation Calculator'!M:M,"Yes")+SUMIFS('Depreciation Calculator'!G:G,'Depreciation Calculator'!L:L,"<"&'PPE Schedule'!O5,'Depreciation Calculator'!D:D,P18,'Depreciation Calculator'!M:M,"Yes")+SUMIFS('Depreciation Calculator'!O:O,'Depreciation Calculator'!L:L,"<"&'PPE Schedule'!O5,'Depreciation Calculator'!D:D,P18,'Depreciation Calculator'!M:M,"Yes")-SUMIFS('Depreciation Calculator'!N:N,'Depreciation Calculator'!L:L,"<"&'PPE Schedule'!O5,'Depreciation Calculator'!D:D,P18,'Depreciation Calculator'!M:M,"Yes"))/M5,0) -> 0 | W18: =ROUND((SUMIF('Depreciation Calculator'!D:D,'PPE Schedule'!P18,IF(O5='Depreciation Calculator'!T2,'Depreciation Calculator'!T1,IF(O5='Depreciation Calculator'!U2,'Depreciation Calculator'!U1,IF(O5='Depreciation Calculator'!V2,'Depreciation Calculator'!V1,IF(O5='Depreciation Calculator'!W2,'Depreciation Calculator'!W1,IF(O5='Depreciation Calculator'!X2,'Depreciation Calculator'!X1,IF(O5='Depreciation Calculator'!Y2,'Depreciation Calculator'!Y1,IF(O5='Depreciation Calculator'!AA2,'Depreciation Calculator'!AA1,IF(O5='Depreciation Calculator'!Z2,'Depreciation Calculator'!Z1,IF(O5='Depreciation Calculator'!AB2,'Depreciation Calculator'!AB1,IF(O5='Depreciation Calculator'!AC2,'Depreciation Calculator'!AC1,IF(O5='Depreciation Calculator'!AD2,'Depreciation Calculator'!AD1,IF(O5='Depreciation Calculator'!AE2,'Depreciation Calculator'!AE1,"Select proper range of year"))))))))))))))/M5,0) -> 0 | X18: =ROUND((SUMIFS('Depreciation Calculator'!E:E,'Depreciation Calculator'!L:L,">="&'PPE Schedule'!O5,'Depreciation Calculator'!L:L,"<="&'PPE Schedule'!P5,'Depreciation Calculator'!D:D,P18,'Depreciation Calculator'!M:M,"Yes")+SUMIFS('Depreciation Calculator'!G:G,'Depreciation Calculator'!L:L,">="&'PPE Schedule'!O5,'Depreciation Calculator'!L:L,"<="&'PPE Schedule'!P5,'Depreciation Calculator'!D:D,P18,'Depreciation Calculator'!M:M,"Yes")+SUMIFS('Depreciation Calculator'!O:O,'Depreciation Calculator'!L:L,">="&'PPE Schedule'!O5,'Depreciation Calculator'!L:L,"<="&'PPE Schedule'!P5,'Depreciation Calculator'!D:D,P18,'Depreciation Calculator'!M:M,"Yes")-SUMIFS('Depreciation Calculator'!N:N,'Depreciation Calculator'!L:L,">="&'PPE Schedule'!O5,'Depreciation Calculator'!L:L,"<="&'PPE Schedule'!P5,'Depreciation Calculator'!D:D,P18,'Depreciation Calculator'!M:M,"Yes"))/M5,0) -> 0 | Y18: 0 | Z18: 0
C19: 0 | D19: 0 | E19: 0 | F19: 0 | G19: =V19 -> 0 | H19: 0 | I19: 0 | J19: 0 | K19: 0 | R19: =ROUND(SUMIFS('Depreciation Calculator'!E:E,'Depreciation Calculator'!I:I,"<"&'PPE Schedule'!O5,'Depreciation Calculator'!D:D,P19)/M5,0)+ROUND(SUMIFS('Depreciation Calculator'!G:G,'Depreciation Calculator'!I:I,"<"&'PPE Schedule'!O5,'Depreciation Calculator'!D:D,P19)/M5,0)-ROUND(SUMIFS('Depreciation Calculator'!E:E,'Depreciation Calculator'!L:L,"<"&'PPE Schedule'!O5,'Depreciation Calculator'!D:D,P19,'Depreciation Calculator'!M:M,"Yes")/M5,0)-ROUND(SUMIFS('Depreciation Calculator'!G:G,'Depreciation Calculator'!L:L,"<"&'PPE Schedule'!O5,'Depreciation Calculator'!D:D,P19,'Depreciation Calculator'!M:M,"Yes")/M5,0) -> 0 | S19: =ROUND(SUMIFS('Depreciation Calculator'!E:E,'Depreciation Calculator'!I:I,">="&'PPE Schedule'!O5,'Depreciation Calculator'!I:I,"<="&'PPE Schedule'!P5,'Depreciation Calculator'!D:D,P19)/M5,0) -> 0 | T19: =ROUND((SUMIFS('Depreciation Calculator'!E:E,'Depreciation Calculator'!L:L,">="&'PPE Schedule'!O5,'Depreciation Calculator'!L:L,"<="&'PPE Schedule'!P5,'Depreciation Calculator'!D:D,P19,'Depreciation Calculator'!M:M,"Yes")+SUMIFS('Depreciation Calculator'!G:G,'Depreciation Calculator'!L:L,">="&'PPE Schedule'!O5,'Depreciation Calculator'!L:L,"<="&'PPE Schedule'!P5,'Depreciation Calculator'!D:D,P19,'Depreciation Calculator'!M:M,"Yes"))/M5,0) -> 0 | U19: 0 | V19: =ROUND((SUMIF('Depreciation Calculator'!D:D,'PPE Schedule'!P19,'Depreciation Calculator'!H:H)+SUMIF('Depreciation Calculator'!D:D,'PPE Schedule'!P19,'Depreciation Calculator'!S:S)+IF(O5='Depreciation Calculator'!U2,SUM(SUMIF('Depreciation Calculator'!D:D,P19,'Depreciation Calculator'!T:T)),IF(O5='Depreciation Calculator'!V2,SUM(SUMIF('Depreciation Calculator'!D:D,P19,'Depreciation Calculator'!T:T),SUMIF('Depreciation Calculator'!D:D,P19,'Depreciation Calculator'!U:U)),IF(O5='Depreciation Calculator'!W2,SUM(SUMIF('Depreciation Calculator'!D:D,P19,'Depreciation Calculator'!T:T),SUMIF('Depreciation Calculator'!D:D,P19,'Depreciation Calculator'!U:U),SUMIF('Depreciation Calculator'!D:D,P19,'Depreciation Calculator'!V:V)),IF(O5='Depreciation Calculator'!X2,SUM(SUMIF('Depreciation Calculator'!D:D,P19,'Depreciation Calculator'!T:T),SUMIF('Depreciation Calculator'!D:D,P19,'Depreciation Calculator'!U:U),SUMIF('Depreciation Calculator'!D:D,P19,'Depreciation Calculator'!V:V),SUMIF('Depreciation Calculator'!D:D,P19,'Depreciation Calculator'!W:W)),IF(O5='Depreciation Calculator'!Y2,SUM(SUMIF('Depreciation Calculator'!D:D,P19,'Depreciation Calculator'!T:T),SUMIF('Depreciation Calculator'!D:D,P19,'Depreciation Calculator'!U:U),SUMIF('Depreciation Calculator'!D:D,P19,'Depreciation Calculator'!V:V),SUMIF('Depreciation Calculator'!D:D,P19,'Depreciation Calculator'!W:W),SUMIF('Depreciation Calculator'!D:D,P19,'Depreciation Calculator'!X:X)),IF(O5='Depreciation Calculator'!Z2,SUM(SUMIF('Depreciation Calculator'!D:D,P19,'Depreciation Calculator'!T:T),SUMIF('Depreciation Calculator'!D:D,P19,'Depreciation Calculator'!U:U),SUMIF('Depreciation Calculator'!D:D,P19,'Depreciation Calculator'!V:V),SUMIF('Depreciation Calculator'!D:D,P19,'Depreciation Calculator'!W:W),SUMIF('Depreciation Calculator'!D:D,P19,'Depreciation Calculator'!X:X),SUMIF('Depreciation Calculator'!D:D,P19,'Depreciation Calculator'!Y:Y)),IF(O5='Depreciation Calculator'!AA2,SUM(SUMIF('Depreciation Calculator'!D:D,P19,'Depreciation Calculator'!T:T),SUMIF('Depreciation Calculator'!D:D,P19,'Depreciation Calculator'!U:U),SUMIF('Depreciation Calculator'!D:D,P19,'Depreciation Calculator'!V:V),SUMIF('Depreciation Calculator'!D:D,P19,'Depreciation Calculator'!W:W),SUMIF('Depreciation Calculator'!D:D,P19,'Depreciation Calculator'!X:X),SUMIF('Depreciation Calculator'!D:D,P19,'Depreciation Calculator'!Y:Y),SUMIF('Depreciation Calculator'!D:D,P19,'Depreciation Calculator'!Z:Z)),IF(O5='Depreciation Calculator'!AB2,SUM(SUMIF('Depreciation Calculator'!D:D,P19,'Depreciation Calculator'!T:T),SUMIF('Depreciation Calculator'!D:D,P19,'Depreciation Calculator'!U:U),SUMIF('Depreciation Calculator'!D:D,P19,'Depreciation Calculator'!V:V),SUMIF('Depreciation Calculator'!D:D,P19,'Depreciation Calculator'!W:W),SUMIF('Depreciation Calculator'!D:D,P19,'Depreciation Calculator'!X:X),SUMIF('Depreciation Calculator'!D:D,P19,'Depreciation Calculator'!Y:Y),SUMIF('Depreciation Calculator'!D:D,P19,'Depreciation Calculator'!Z:Z),SUMIF('Depreciation Calculator'!D:D,P19,'Depreciation Calculator'!AA:AA)),IF(O5='Depreciation Calculator'!AC2,SUM(SUMIF('Depreciation Calculator'!D:D,P19,'Depreciation Calculator'!T:T),SUMIF('Depreciation Calculator'!D:D,P19,'Depreciation Calculator'!U:U),SUMIF('Depreciation Calculator'!D:D,P19,'Depreciation Calculator'!V:V),SUMIF('Depreciation Calculator'!D:D,P19,'Depreciation Calculator'!W:W),SUMIF('Depreciation Calculator'!D:D,P19,'Depreciation Calculator'!X:X),SUMIF('Depreciation Calculator'!D:D,P19,'Depreciation Calculator'!Y:Y),SUMIF('Depreciation Calculator'!D:D,P19,'Depreciation Calculator'!Z:Z),SUMIF('Depreciation Calculator'!D:D,P19,'Depreciation Calculator'!AA:AA),SUMIF('Depreciation Calculator'!D:D,P19,'Depreciation Calculator'!AB:AB)),IF(O5='Depreciation Calculator'!AD2,SUM(SUMIF('Depreciation Calculator'!D:D,P19,'Depreciation Calculator'!T:T),SUMIF('Depreciation Calculator'!D:D,P19,'Depreciation Calculator'!U:U),SUMIF('Depreciation Calculator'!D:D,P19,'Depreciation Calculator'!V:V),SUMIF('Depreciation Calculator'!D:D,P19,'Depreciation Calculator'!W:W),SUMIF('Depreciation Calculator'!D:D,P19,'Depreciation Calculator'!X:X),SUMIF('Depreciation Calculator'!D:D,P19,'Depreciation Calculator'!Y:Y),SUMIF('Depreciation Calculator'!D:D,P19,'Depreciation Calculator'!Z:Z),SUMIF('Depreciation Calculator'!D:D,P19,'Depreciation Calculator'!AA:AA),SUMIF('Depreciation Calculator'!D:D,P19,'Depreciation Calculator'!AB:AB),SUMIF('Depreciation Calculator'!D:D,P19,'Depreciation Calculator'!AC:AC)),IF(O5='Depreciation Calculator'!AE2,SUM(SUMIF('Depreciation Calculator'!D:D,P19,'Depreciation Calculator'!T:T),SUMIF('Depreciation Calculator'!D:D,P19,'Depreciation Calculator'!U:U),SUMIF('Depreciation Calculator'!D:D,P19,'Depreciation Calculator'!V:V),SUMIF('Depreciation Calculator'!D:D,P19,'Depreciation Calculator'!W:W),SUMIF('Depreciation Calculator'!D:D,P19,'Depreciation Calculator'!X:X),SUMIF('Depreciation Calculator'!D:D,P19,'Depreciation Calculator'!Y:Y),SUMIF('Depreciation Calculator'!D:D,P19,'Depreciation Calculator'!Z:Z),SUMIF('Depreciation Calculator'!D:D,P19,'Depreciation Calculator'!AA:AA),SUMIF('Depreciation Calculator'!D:D,P19,'Depreciation Calculator'!AB:AB),SUMIF('Depreciation Calculator'!D:D,P19,'Depreciation Calculator'!AC:AC),SUMIF('Depreciation Calculator'!D:D,P19,'Depreciation Calculator'!AD:AD))))))))))))))/M5,0)-ROUND((SUMIFS('Depreciation Calculator'!E:E,'Depreciation Calculator'!L:L,"<"&'PPE Schedule'!O5,'Depreciation Calculator'!D:D,P19,'Depreciation Calculator'!M:M,"Yes")+SUMIFS('Depreciation Calculator'!G:G,'Depreciation Calculator'!L:L,"<"&'PPE Schedule'!O5,'Depreciation Calculator'!D:D,P19,'Depreciation Calculator'!M:M,"Yes")+SUMIFS('Depreciation Calculator'!O:O,'Depreciation Calculator'!L:L,"<"&'PPE Schedule'!O5,'Depreciation Calculator'!D:D,P19,'Depreciation Calculator'!M:M,"Yes")-SUMIFS('Depreciation Calculator'!N:N,'Depreciation Calculator'!L:L,"<"&'PPE Schedule'!O5,'Depreciation Calculator'!D:D,P19,'Depreciation Calculator'!M:M,"Yes"))/M5,0) -> 0 | W19: =ROUND((SUMIF('Depreciation Calculator'!D:D,'PPE Schedule'!P19,IF(O5='Depreciation Calculator'!T2,'Depreciation Calculator'!T1,IF(O5='Depreciation Calculator'!U2,'Depreciation Calculator'!U1,IF(O5='Depreciation Calculator'!V2,'Depreciation Calculator'!V1,IF(O5='Depreciation Calculator'!W2,'Depreciation Calculator'!W1,IF(O5='Depreciation Calculator'!X2,'Depreciation Calculator'!X1,IF(O5='Depreciation Calculator'!Y2,'Depreciation Calculator'!Y1,IF(O5='Depreciation Calculator'!AA2,'Depreciation Calculator'!AA1,IF(O5='Depreciation Calculator'!Z2,'Depreciation Calculator'!Z1,IF(O5='Depreciation Calculator'!AB2,'Depreciation Calculator'!AB1,IF(O5='Depreciation Calculator'!AC2,'Depreciation Calculator'!AC1,IF(O5='Depreciation Calculator'!AD2,'Depreciation Calculator'!AD1,IF(O5='Depreciation Calculator'!AE2,'Depreciation Calculator'!AE1,"Select proper range of year"))))))))))))))/M5,0) -> 0 | X19: =ROUND((SUMIFS('Depreciation Calculator'!E:E,'Depreciation Calculator'!L:L,">="&'PPE Schedule'!O5,'Depreciation Calculator'!L:L,"<="&'PPE Schedule'!P5,'Depreciation Calculator'!D:D,P19,'Depreciation Calculator'!M:M,"Yes")+SUMIFS('Depreciation Calculator'!G:G,'Depreciation Calculator'!L:L,">="&'PPE Schedule'!O5,'Depreciation Calculator'!L:L,"<="&'PPE Schedule'!P5,'Depreciation Calculator'!D:D,P19,'Depreciation Calculator'!M:M,"Yes")+SUMIFS('Depreciation Calculator'!O:O,'Depreciation Calculator'!L:L,">="&'PPE Schedule'!O5,'Depreciation Calculator'!L:L,"<="&'PPE Schedule'!P5,'Depreciation Calculator'!D:D,P19,'Depreciation Calculator'!M:M,"Yes")-SUMIFS('Depreciation Calculator'!N:N,'Depreciation Calculator'!L:L,">="&'PPE Schedule'!O5,'Depreciation Calculator'!L:L,"<="&'PPE Schedule'!P5,'Depreciation Calculator'!D:D,P19,'Depreciation Calculator'!M:M,"Yes"))/M5,0) -> 0 | Y19: 0 | Z19: 0
B20: Total | C20: =SUM(C9:C19) -> 25087700 | D20: 0 | E20: 0 | F20: 25087700 | G20: 2544087 | H20: 1339401 | I20: 0 | J20: 3883488 | K20: 21204212 | L20: 0 | R20: =ROUND(SUMIFS('Depreciation Calculator'!E:E,'Depreciation Calculator'!I:I,"<"&'PPE Schedule'!O5,'Depreciation Calculator'!D:D,P20)/M5,0)+ROUND(SUMIFS('Depreciation Calculator'!G:G,'Depreciation Calculator'!I:I,"<"&'PPE Schedule'!O5,'Depreciation Calculator'!D:D,P20)/M5,0)-ROUND(SUMIFS('Depreciation Calculator'!E:E,'Depreciation Calculator'!L:L,"<"&'PPE Schedule'!O5,'Depreciation Calculator'!D:D,P20,'Depreciation Calculator'!M:M,"Yes")/M5,0)-ROUND(SUMIFS('Depreciation Calculator'!G:G,'Depreciation Calculator'!L:L,"<"&'PPE Schedule'!O5,'Depreciation Calculator'!D:D,P20,'Depreciation Calculator'!M:M,"Yes")/M5,0) -> 0 | S20: =ROUND(SUMIFS('Depreciation Calculator'!E:E,'Depreciation Calculator'!I:I,">="&'PPE Schedule'!O5,'Depreciation Calculator'!I:I,"<="&'PPE Schedule'!P5,'Depreciation Calculator'!D:D,P20)/M5,0) -> 0 | T20: =ROUND((SUMIFS('Depreciation Calculator'!E:E,'Depreciation Calculator'!L:L,">="&'PPE Schedule'!O5,'Depreciation Calculator'!L:L,"<="&'PPE Schedule'!P5,'Depreciation Calculator'!D:D,P20,'Depreciation Calculator'!M:M,"Yes")+SUMIFS('Depreciation Calculator'!G:G,'Depreciation Calculator'!L:L,">="&'PPE Schedule'!O5,'Depreciation Calculator'!L:L,"<="&'PPE Schedule'!P5,'Depreciation Calculator'!D:D,P20,'Depreciation Calculator'!M:M,"Yes"))/M5,0) -> 0 | U20: 0 | V20: =ROUND((SUMIF('Depreciation Calculator'!D:D,'PPE Schedule'!P20,'Depreciation Calculator'!H:H)+SUMIF('Depreciation Calculator'!D:D,'PPE Schedule'!P20,'Depreciation Calculator'!S:S)+IF(O5='Depreciation Calculator'!U2,SUM(SUMIF('Depreciation Calculator'!D:D,P20,'Depreciation Calculator'!T:T)),IF(O5='Depreciation Calculator'!V2,SUM(SUMIF('Depreciation Calculator'!D:D,P20,'Depreciation Calculator'!T:T),SUMIF('Depreciation Calculator'!D:D,P20,'Depreciation Calculator'!U:U)),IF(O5='Depreciation Calculator'!W2,SUM(SUMIF('Depreciation Calculator'!D:D,P20,'Depreciation Calculator'!T:T),SUMIF('Depreciation Calculator'!D:D,P20,'Depreciation Calculator'!U:U),SUMIF('Depreciation Calculator'!D:D,P20,'Depreciation Calculator'!V:V)),IF(O5='Depreciation Calculator'!X2,SUM(SUMIF('Depreciation Calculator'!D:D,P20,'Depreciation Calculator'!T:T),SUMIF('Depreciation Calculator'!D:D,P20,'Depreciation Calculator'!U:U),SUMIF('Depreciation Calculator'!D:D,P20,'Depreciation Calculator'!V:V),SUMIF('Depreciation Calculator'!D:D,P20,'Depreciation Calculator'!W:W)),IF(O5='Depreciation Calculator'!Y2,SUM(SUMIF('Depreciation Calculator'!D:D,P20,'Depreciation Calculator'!T:T),SUMIF('Depreciation Calculator'!D:D,P20,'Depreciation Calculator'!U:U),SUMIF('Depreciation Calculator'!D:D,P20,'Depreciation Calculator'!V:V),SUMIF('Depreciation Calculator'!D:D,P20,'Depreciation Calculator'!W:W),SUMIF('Depreciation Calculator'!D:D,P20,'Depreciation Calculator'!X:X)),IF(O5='Depreciation Calculator'!Z2,SUM(SUMIF('Depreciation Calculator'!D:D,P20,'Depreciation Calculator'!T:T),SUMIF('Depreciation Calculator'!D:D,P20,'Depreciation Calculator'!U:U),SUMIF('Depreciation Calculator'!D:D,P20,'Depreciation Calculator'!V:V),SUMIF('Depreciation Calculator'!D:D,P20,'Depreciation Calculator'!W:W),SUMIF('Depreciation Calculator'!D:D,P20,'Depreciation Calculator'!X:X),SUMIF('Depreciation Calculator'!D:D,P20,'Depreciation Calculator'!Y:Y)),IF(O5='Depreciation Calculator'!AA2,SUM(SUMIF('Depreciation Calculator'!D:D,P20,'Depreciation Calculator'!T:T),SUMIF('Depreciation Calculator'!D:D,P20,'Depreciation Calculator'!U:U),SUMIF('Depreciation Calculator'!D:D,P20,'Depreciation Calculator'!V:V),SUMIF('Depreciation Calculator'!D:D,P20,'Depreciation Calculator'!W:W),SUMIF('Depreciation Calculator'!D:D,P20,'Depreciation Calculator'!X:X),SUMIF('Depreciation Calculator'!D:D,P20,'Depreciation Calculator'!Y:Y),SUMIF('Depreciation Calculator'!D:D,P20,'Depreciation Calculator'!Z:Z)),IF(O5='Depreciation Calculator'!AB2,SUM(SUMIF('Depreciation Calculator'!D:D,P20,'Depreciation Calculator'!T:T),SUMIF('Depreciation Calculator'!D:D,P20,'Depreciation Calculator'!U:U),SUMIF('Depreciation Calculator'!D:D,P20,'Depreciation Calculator'!V:V),SUMIF('Depreciation Calculator'!D:D,P20,'Depreciation Calculator'!W:W),SUMIF('Depreciation Calculator'!D:D,P20,'Depreciation Calculator'!X:X),SUMIF('Depreciation Calculator'!D:D,P20,'Depreciation Calculator'!Y:Y),SUMIF('Depreciation Calculator'!D:D,P20,'Depreciation Calculator'!Z:Z),SUMIF('Depreciation Calculator'!D:D,P20,'Depreciation Calculator'!AA:AA)),IF(O5='Depreciation Calculator'!AC2,SUM(SUMIF('Depreciation Calculator'!D:D,P20,'Depreciation Calculator'!T:T),SUMIF('Depreciation Calculator'!D:D,P20,'Depreciation Calculator'!U:U),SUMIF('Depreciation Calculator'!D:D,P20,'Depreciation Calculator'!V:V),SUMIF('Depreciation Calculator'!D:D,P20,'Depreciation Calculator'!W:W),SUMIF('Depreciation Calculator'!D:D,P20,'Depreciation Calculator'!X:X),SUMIF('Depreciation Calculator'!D:D,P20,'Depreciation Calculator'!Y:Y),SUMIF('Depreciation Calculator'!D:D,P20,'Depreciation Calculator'!Z:Z),SUMIF('Depreciation Calculator'!D:D,P20,'Depreciation Calculator'!AA:AA),SUMIF('Depreciation Calculator'!D:D,P20,'Depreciation Calculator'!AB:AB)),IF(O5='Depreciation Calculator'!AD2,SUM(SUMIF('Depreciation Calculator'!D:D,P20,'Depreciation Calculator'!T:T),SUMIF('Depreciation Calculator'!D:D,P20,'Depreciation Calculator'!U:U),SUMIF('Depreciation Calculator'!D:D,P20,'Depreciation Calculator'!V:V),SUMIF('Depreciation Calculator'!D:D,P20,'Depreciation Calculator'!W:W),SUMIF('Depreciation Calculator'!D:D,P20,'Depreciation Calculator'!X:X),SUMIF('Depreciation Calculator'!D:D,P20,'Depreciation Calculator'!Y:Y),SUMIF('Depreciation Calculator'!D:D,P20,'Depreciation Calculator'!Z:Z),SUMIF('Depreciation Calculator'!D:D,P20,'Depreciation Calculator'!AA:AA),SUMIF('Depreciation Calculator'!D:D,P20,'Depreciation Calculator'!AB:AB),SUMIF('Depreciation Calculator'!D:D,P20,'Depreciation Calculator'!AC:AC)),IF(O5='Depreciation Calculator'!AE2,SUM(SUMIF('Depreciation Calculator'!D:D,P20,'Depreciation Calculator'!T:T),SUMIF('Depreciation Calculator'!D:D,P20,'Depreciation Calculator'!U:U),SUMIF('Depreciation Calculator'!D:D,P20,'Depreciation Calculator'!V:V),SUMIF('Depreciation Calculator'!D:D,P20,'Depreciation Calculator'!W:W),SUMIF('Depreciation Calculator'!D:D,P20,'Depreciation Calculator'!X:X),SUMIF('Depreciation Calculator'!D:D,P20,'Depreciation Calculator'!Y:Y),SUMIF('Depreciation Calculator'!D:D,P20,'Depreciation Calculator'!Z:Z),SUMIF('Depreciation Calculator'!D:D,P20,'Depreciation Calculator'!AA:AA),SUMIF('Depreciation Calculator'!D:D,P20,'Depreciation Calculator'!AB:AB),SUMIF('Depreciation Calculator'!D:D,P20,'Depreciation Calculator'!AC:AC),SUMIF('Depreciation Calculator'!D:D,P20,'Depreciation Calculator'!AD:AD))))))))))))))/M5,0)-ROUND((SUMIFS('Depreciation Calculator'!E:E,'Depreciation Calculator'!L:L,"<"&'PPE Schedule'!O5,'Depreciation Calculator'!D:D,P20,'Depreciation Calculator'!M:M,"Yes")+SUMIFS('Depreciation Calculator'!G:G,'Depreciation Calculator'!L:L,"<"&'PPE Schedule'!O5,'Depreciation Calculator'!D:D,P20,'Depreciation Calculator'!M:M,"Yes")+SUMIFS('Depreciation Calculator'!O:O,'Depreciation Calculator'!L:L,"<"&'PPE Schedule'!O5,'Depreciation Calculator'!D:D,P20,'Depreciation Calculator'!M:M,"Yes")-SUMIFS('Depreciation Calculator'!N:N,'Depreciation Calculator'!L:L,"<"&'PPE Schedule'!O5,'Depreciation Calculator'!D:D,P20,'Depreciation Calculator'!M:M,"Yes"))/M5,0) -> 0 | W20: =ROUND((SUMIF('Depreciation Calculator'!D:D,'PPE Schedule'!P20,IF(O5='Depreciation Calculator'!T2,'Depreciation Calculator'!T1,IF(O5='Depreciation Calculator'!U2,'Depreciation Calculator'!U1,IF(O5='Depreciation Calculator'!V2,'Depreciation Calculator'!V1,IF(O5='Depreciation Calculator'!W2,'Depreciation Calculator'!W1,IF(O5='Depreciation Calculator'!X2,'Depreciation Calculator'!X1,IF(O5='Depreciation Calculator'!Y2,'Depreciation Calculator'!Y1,IF(O5='Depreciation Calculator'!AA2,'Depreciation Calculator'!AA1,IF(O5='Depreciation Calculator'!Z2,'Depreciation Calculator'!Z1,IF(O5='Depreciation Calculator'!AB2,'Depreciation Calculator'!AB1,IF(O5='Depreciation Calculator'!AC2,'Depreciation Calculator'!AC1,IF(O5='Depreciation Calculator'!AD2,'Depreciation Calculator'!AD1,IF(O5='Depreciation Calculator'!AE2,'Depreciation Calculator'!AE1,"Select proper range of year"))))))))))))))/M5,0) -> 0 | X20: =ROUND((SUMIFS('Depreciation Calculator'!E:E,'Depreciation Calculator'!L:L,">="&'PPE Schedule'!O5,'Depreciation Calculator'!L:L,"<="&'PPE Schedule'!P5,'Depreciation Calculator'!D:D,P20,'Depreciation Calculator'!M:M,"Yes")+SUMIFS('Depreciation Calculator'!G:G,'Depreciation Calculator'!L:L,">="&'PPE Schedule'!O5,'Depreciation Calculator'!L:L,"<="&'PPE Schedule'!P5,'Depreciation Calculator'!D:D,P20,'Depreciation Calculator'!M:M,"Yes")+SUMIFS('Depreciation Calculator'!O:O,'Depreciation Calculator'!L:L,">="&'PPE Schedule'!O5,'Depreciation Calculator'!L:L,"<="&'PPE Schedule'!P5,'Depreciation Calculator'!D:D,P20,'Depreciation Calculator'!M:M,"Yes")-SUMIFS('Depreciation Calculator'!N:N,'Depreciation Calculator'!L:L,">="&'PPE Schedule'!O5,'Depreciation Calculator'!L:L,"<="&'PPE Schedule'!P5,'Depreciation Calculator'!D:D,P20,'Depreciation Calculator'!M:M,"Yes"))/M5,0) -> 0 | Y20: 0 | Z20: 0
B21: Previous Year | R21: =ROUND(SUMIFS('Depreciation Calculator'!E:E,'Depreciation Calculator'!I:I,"<"&'PPE Schedule'!O5,'Depreciation Calculator'!D:D,P21)/M5,0)+ROUND(SUMIFS('Depreciation Calculator'!G:G,'Depreciation Calculator'!I:I,"<"&'PPE Schedule'!O5,'Depreciation Calculator'!D:D,P21)/M5,0)-ROUND(SUMIFS('Depreciation Calculator'!E:E,'Depreciation Calculator'!L:L,"<"&'PPE Schedule'!O5,'Depreciation Calculator'!D:D,P21,'Depreciation Calculator'!M:M,"Yes")/M5,0)-ROUND(SUMIFS('Depreciation Calculator'!G:G,'Depreciation Calculator'!L:L,"<"&'PPE Schedule'!O5,'Depreciation Calculator'!D:D,P21,'Depreciation Calculator'!M:M,"Yes")/M5,0) -> 0 | S21: =ROUND(SUMIFS('Depreciation Calculator'!E:E,'Depreciation Calculator'!I:I,">="&'PPE Schedule'!O5,'Depreciation Calculator'!I:I,"<="&'PPE Schedule'!P5,'Depreciation Calculator'!D:D,P21)/M5,0) -> 0 | T21: =ROUND((SUMIFS('Depreciation Calculator'!E:E,'Depreciation Calculator'!L:L,">="&'PPE Schedule'!O5,'Depreciation Calculator'!L:L,"<="&'PPE Schedule'!P5,'Depreciation Calculator'!D:D,P21,'Depreciation Calculator'!M:M,"Yes")+SUMIFS('Depreciation Calculator'!G:G,'Depreciation Calculator'!L:L,">="&'PPE Schedule'!O5,'Depreciation Calculator'!L:L,"<="&'PPE Schedule'!P5,'Depreciation Calculator'!D:D,P21,'Depreciation Calculator'!M:M,"Yes"))/M5,0) -> 0 | U21: 0 | V21: =ROUND((SUMIF('Depreciation Calculator'!D:D,'PPE Schedule'!P21,'Depreciation Calculator'!H:H)+SUMIF('Depreciation Calculator'!D:D,'PPE Schedule'!P21,'Depreciation Calculator'!S:S)+IF(O5='Depreciation Calculator'!U2,SUM(SUMIF('Depreciation Calculator'!D:D,P21,'Depreciation Calculator'!T:T)),IF(O5='Depreciation Calculator'!V2,SUM(SUMIF('Depreciation Calculator'!D:D,P21,'Depreciation Calculator'!T:T),SUMIF('Depreciation Calculator'!D:D,P21,'Depreciation Calculator'!U:U)),IF(O5='Depreciation Calculator'!W2,SUM(SUMIF('Depreciation Calculator'!D:D,P21,'Depreciation Calculator'!T:T),SUMIF('Depreciation Calculator'!D:D,P21,'Depreciation Calculator'!U:U),SUMIF('Depreciation Calculator'!D:D,P21,'Depreciation Calculator'!V:V)),IF(O5='Depreciation Calculator'!X2,SUM(SUMIF('Depreciation Calculator'!D:D,P21,'Depreciation Calculator'!T:T),SUMIF('Depreciation Calculator'!D:D,P21,'Depreciation Calculator'!U:U),SUMIF('Depreciation Calculator'!D:D,P21,'Depreciation Calculator'!V:V),SUMIF('Depreciation Calculator'!D:D,P21,'Depreciation Calculator'!W:W)),IF(O5='Depreciation Calculator'!Y2,SUM(SUMIF('Depreciation Calculator'!D:D,P21,'Depreciation Calculator'!T:T),SUMIF('Depreciation Calculator'!D:D,P21,'Depreciation Calculator'!U:U),SUMIF('Depreciation Calculator'!D:D,P21,'Depreciation Calculator'!V:V),SUMIF('Depreciation Calculator'!D:D,P21,'Depreciation Calculator'!W:W),SUMIF('Depreciation Calculator'!D:D,P21,'Depreciation Calculator'!X:X)),IF(O5='Depreciation Calculator'!Z2,SUM(SUMIF('Depreciation Calculator'!D:D,P21,'Depreciation Calculator'!T:T),SUMIF('Depreciation Calculator'!D:D,P21,'Depreciation Calculator'!U:U),SUMIF('Depreciation Calculator'!D:D,P21,'Depreciation Calculator'!V:V),SUMIF('Depreciation Calculator'!D:D,P21,'Depreciation Calculator'!W:W),SUMIF('Depreciation Calculator'!D:D,P21,'Depreciation Calculator'!X:X),SUMIF('Depreciation Calculator'!D:D,P21,'Depreciation Calculator'!Y:Y)),IF(O5='Depreciation Calculator'!AA2,SUM(SUMIF('Depreciation Calculator'!D:D,P21,'Depreciation Calculator'!T:T),SUMIF('Depreciation Calculator'!D:D,P21,'Depreciation Calculator'!U:U),SUMIF('Depreciation Calculator'!D:D,P21,'Depreciation Calculator'!V:V),SUMIF('Depreciation Calculator'!D:D,P21,'Depreciation Calculator'!W:W),SUMIF('Depreciation Calculator'!D:D,P21,'Depreciation Calculator'!X:X),SUMIF('Depreciation Calculator'!D:D,P21,'Depreciation Calculator'!Y:Y),SUMIF('Depreciation Calculator'!D:D,P21,'Depreciation Calculator'!Z:Z)),IF(O5='Depreciation Calculator'!AB2,SUM(SUMIF('Depreciation Calculator'!D:D,P21,'Depreciation Calculator'!T:T),SUMIF('Depreciation Calculator'!D:D,P21,'Depreciation Calculator'!U:U),SUMIF('Depreciation Calculator'!D:D,P21,'Depreciation Calculator'!V:V),SUMIF('Depreciation Calculator'!D:D,P21,'Depreciation Calculator'!W:W),SUMIF('Depreciation Calculator'!D:D,P21,'Depreciation Calculator'!X:X),SUMIF('Depreciation Calculator'!D:D,P21,'Depreciation Calculator'!Y:Y),SUMIF('Depreciation Calculator'!D:D,P21,'Depreciation Calculator'!Z:Z),SUMIF('Depreciation Calculator'!D:D,P21,'Depreciation Calculator'!AA:AA)),IF(O5='Depreciation Calculator'!AC2,SUM(SUMIF('Depreciation Calculator'!D:D,P21,'Depreciation Calculator'!T:T),SUMIF('Depreciation Calculator'!D:D,P21,'Depreciation Calculator'!U:U),SUMIF('Depreciation Calculator'!D:D,P21,'Depreciation Calculator'!V:V),SUMIF('Depreciation Calculator'!D:D,P21,'Depreciation Calculator'!W:W),SUMIF('Depreciation Calculator'!D:D,P21,'Depreciation Calculator'!X:X),SUMIF('Depreciation Calculator'!D:D,P21,'Depreciation Calculator'!Y:Y),SUMIF('Depreciation Calculator'!D:D,P21,'Depreciation Calculator'!Z:Z),SUMIF('Depreciation Calculator'!D:D,P21,'Depreciation Calculator'!AA:AA),SUMIF('Depreciation Calculator'!D:D,P21,'Depreciation Calculator'!AB:AB)),IF(O5='Depreciation Calculator'!AD2,SUM(SUMIF('Depreciation Calculator'!D:D,P21,'Depreciation Calculator'!T:T),SUMIF('Depreciation Calculator'!D:D,P21,'Depreciation Calculator'!U:U),SUMIF('Depreciation Calculator'!D:D,P21,'Depreciation Calculator'!V:V),SUMIF('Depreciation Calculator'!D:D,P21,'Depreciation Calculator'!W:W),SUMIF('Depreciation Calculator'!D:D,P21,'Depreciation Calculator'!X:X),SUMIF('Depreciation Calculator'!D:D,P21,'Depreciation Calculator'!Y:Y),SUMIF('Depreciation Calculator'!D:D,P21,'Depreciation Calculator'!Z:Z),SUMIF('Depreciation Calculator'!D:D,P21,'Depreciation Calculator'!AA:AA),SUMIF('Depreciation Calculator'!D:D,P21,'Depreciation Calculator'!AB:AB),SUMIF('Depreciation Calculator'!D:D,P21,'Depreciation Calculator'!AC:AC)),IF(O5='Depreciation Calculator'!AE2,SUM(SUMIF('Depreciation Calculator'!D:D,P21,'Depreciation Calculator'!T:T),SUMIF('Depreciation Calculator'!D:D,P21,'Depreciation Calculator'!U:U),SUMIF('Depreciation Calculator'!D:D,P21,'Depreciation Calculator'!V:V),SUMIF('Depreciation Calculator'!D:D,P21,'Depreciation Calculator'!W:W),SUMIF('Depreciation Calculator'!D:D,P21,'Depreciation Calculator'!X:X),SUMIF('Depreciation Calculator'!D:D,P21,'Depreciation Calculator'!Y:Y),SUMIF('Depreciation Calculator'!D:D,P21,'Depreciation Calculator'!Z:Z),SUMIF('Depreciation Calculator'!D:D,P21,'Depreciation Calculator'!AA:AA),SUMIF('Depreciation Calculator'!D:D,P21,'Depreciation Calculator'!AB:AB),SUMIF('Depreciation Calculator'!D:D,P21,'Depreciation Calculator'!AC:AC),SUMIF('Depreciation Calculator'!D:D,P21,'Depreciation Calculator'!AD:AD))))))))))))))/M5,0)-ROUND((SUMIFS('Depreciation Calculator'!E:E,'Depreciation Calculator'!L:L,"<"&'PPE Schedule'!O5,'Depreciation Calculator'!D:D,P21,'Depreciation Calculator'!M:M,"Yes")+SUMIFS('Depreciation Calculator'!G:G,'Depreciation Calculator'!L:L,"<"&'PPE Schedule'!O5,'Depreciation Calculator'!D:D,P21,'Depreciation Calculator'!M:M,"Yes")+SUMIFS('Depreciation Calculator'!O:O,'Depreciation Calculator'!L:L,"<"&'PPE Schedule'!O5,'Depreciation Calculator'!D:D,P21,'Depreciation Calculator'!M:M,"Yes")-SUMIFS('Depreciation Calculator'!N:N,'Depreciation Calculator'!L:L,"<"&'PPE Schedule'!O5,'Depreciation Calculator'!D:D,P21,'Depreciation Calculator'!M:M,"Yes"))/M5,0) -> 0 | W21: =ROUND((SUMIF('Depreciation Calculator'!D:D,'PPE Schedule'!P21,IF(O5='Depreciation Calculator'!T2,'Depreciation Calculator'!T1,IF(O5='Depreciation Calculator'!U2,'Depreciation Calculator'!U1,IF(O5='Depreciation Calculator'!V2,'Depreciation Calculator'!V1,IF(O5='Depreciation Calculator'!W2,'Depreciation Calculator'!W1,IF(O5='Depreciation Calculator'!X2,'Depreciation Calculator'!X1,IF(O5='Depreciation Calculator'!Y2,'Depreciation Calculator'!Y1,IF(O5='Depreciation Calculator'!AA2,'Depreciation Calculator'!AA1,IF(O5='Depreciation Calculator'!Z2,'Depreciation Calculator'!Z1,IF(O5='Depreciation Calculator'!AB2,'Depreciation Calculator'!AB1,IF(O5='Depreciation Calculator'!AC2,'Depreciation Calculator'!AC1,IF(O5='Depreciation Calculator'!AD2,'Depreciation Calculator'!AD1,IF(O5='Depreciation Calculator'!AE2,'Depreciation Calculator'!AE1,"Select proper range of year"))))))))))))))/M5,0) -> 0 | X21: =ROUND((SUMIFS('Depreciation Calculator'!E:E,'Depreciation Calculator'!L:L,">="&'PPE Schedule'!O5,'Depreciation Calculator'!L:L,"<="&'PPE Schedule'!P5,'Depreciation Calculator'!D:D,P21,'Depreciation Calculator'!M:M,"Yes")+SUMIFS('Depreciation Calculator'!G:G,'Depreciation Calculator'!L:L,">="&'PPE Schedule'!O5,'Depreciation Calculator'!L:L,"<="&'PPE Schedule'!P5,'Depreciation Calculator'!D:D,P21,'Depreciation Calculator'!M:M,"Yes")+SUMIFS('Depreciation Calculator'!O:O,'Depreciation Calculator'!L:L,">="&'PPE Schedule'!O5,'Depreciation Calculator'!L:L,"<="&'PPE Schedule'!P5,'Depreciation Calculator'!D:D,P21,'Depreciation Calculator'!M:M,"Yes")-SUMIFS('Depreciation Calculator'!N:N,'Depreciation Calculator'!L:L,">="&'PPE Schedule'!O5,'Depreciation Calculator'!L:L,"<="&'PPE Schedule'!P5,'Depreciation Calculator'!D:D,P21,'Depreciation Calculator'!M:M,"Yes"))/M5,0) -> 0 | Y21: 0 | Z21: 0
R22: =ROUND(SUMIFS('Depreciation Calculator'!E:E,'Depreciation Calculator'!I:I,"<"&'PPE Schedule'!O5,'Depreciation Calculator'!D:D,P22)/M5,0)+ROUND(SUMIFS('Depreciation Calculator'!G:G,'Depreciation Calculator'!I:I,"<"&'PPE Schedule'!O5,'Depreciation Calculator'!D:D,P22)/M5,0)-ROUND(SUMIFS('Depreciation Calculator'!E:E,'Depreciation Calculator'!L:L,"<"&'PPE Schedule'!O5,'Depreciation Calculator'!D:D,P22,'Depreciation Calculator'!M:M,"Yes")/M5,0)-ROUND(SUMIFS('Depreciation Calculator'!G:G,'Depreciation Calculator'!L:L,"<"&'PPE Schedule'!O5,'Depreciation Calculator'!D:D,P22,'Depreciation Calculator'!M:M,"Yes")/M5,0) -> 0 | S22: =ROUND(SUMIFS('Depreciation Calculator'!E:E,'Depreciation Calculator'!I:I,">="&'PPE Schedule'!O5,'Depreciation Calculator'!I:I,"<="&'PPE Schedule'!P5,'Depreciation Calculator'!D:D,P22)/M5,0) -> 0 | T22: =ROUND((SUMIFS('Depreciation Calculator'!E:E,'Depreciation Calculator'!L:L,">="&'PPE Schedule'!O5,'Depreciation Calculator'!L:L,"<="&'PPE Schedule'!P5,'Depreciation Calculator'!D:D,P22,'Depreciation Calculator'!M:M,"Yes")+SUMIFS('Depreciation Calculator'!G:G,'Depreciation Calculator'!L:L,">="&'PPE Schedule'!O5,'Depreciation Calculator'!L:L,"<="&'PPE Schedule'!P5,'Depreciation Calculator'!D:D,P22,'Depreciation Calculator'!M:M,"Yes"))/M5,0) -> 0 | U22: 0 | V22: =ROUND((SUMIF('Depreciation Calculator'!D:D,'PPE Schedule'!P22,'Depreciation Calculator'!H:H)+SUMIF('Depreciation Calculator'!D:D,'PPE Schedule'!P22,'Depreciation Calculator'!S:S)+IF(O5='Depreciation Calculator'!U2,SUM(SUMIF('Depreciation Calculator'!D:D,P22,'Depreciation Calculator'!T:T)),IF(O5='Depreciation Calculator'!V2,SUM(SUMIF('Depreciation Calculator'!D:D,P22,'Depreciation Calculator'!T:T),SUMIF('Depreciation Calculator'!D:D,P22,'Depreciation Calculator'!U:U)),IF(O5='Depreciation Calculator'!W2,SUM(SUMIF('Depreciation Calculator'!D:D,P22,'Depreciation Calculator'!T:T),SUMIF('Depreciation Calculator'!D:D,P22,'Depreciation Calculator'!U:U),SUMIF('Depreciation Calculator'!D:D,P22,'Depreciation Calculator'!V:V)),IF(O5='Depreciation Calculator'!X2,SUM(SUMIF('Depreciation Calculator'!D:D,P22,'Depreciation Calculator'!T:T),SUMIF('Depreciation Calculator'!D:D,P22,'Depreciation Calculator'!U:U),SUMIF('Depreciation Calculator'!D:D,P22,'Depreciation Calculator'!V:V),SUMIF('Depreciation Calculator'!D:D,P22,'Depreciation Calculator'!W:W)),IF(O5='Depreciation Calculator'!Y2,SUM(SUMIF('Depreciation Calculator'!D:D,P22,'Depreciation Calculator'!T:T),SUMIF('Depreciation Calculator'!D:D,P22,'Depreciation Calculator'!U:U),SUMIF('Depreciation Calculator'!D:D,P22,'Depreciation Calculator'!V:V),SUMIF('Depreciation Calculator'!D:D,P22,'Depreciation Calculator'!W:W),SUMIF('Depreciation Calculator'!D:D,P22,'Depreciation Calculator'!X:X)),IF(O5='Depreciation Calculator'!Z2,SUM(SUMIF('Depreciation Calculator'!D:D,P22,'Depreciation Calculator'!T:T),SUMIF('Depreciation Calculator'!D:D,P22,'Depreciation Calculator'!U:U),SUMIF('Depreciation Calculator'!D:D,P22,'Depreciation Calculator'!V:V),SUMIF('Depreciation Calculator'!D:D,P22,'Depreciation Calculator'!W:W),SUMIF('Depreciation Calculator'!D:D,P22,'Depreciation Calculator'!X:X),SUMIF('Depreciation Calculator'!D:D,P22,'Depreciation Calculator'!Y:Y)),IF(O5='Depreciation Calculator'!AA2,SUM(SUMIF('Depreciation Calculator'!D:D,P22,'Depreciation Calculator'!T:T),SUMIF('Depreciation Calculator'!D:D,P22,'Depreciation Calculator'!U:U),SUMIF('Depreciation Calculator'!D:D,P22,'Depreciation Calculator'!V:V),SUMIF('Depreciation Calculator'!D:D,P22,'Depreciation Calculator'!W:W),SUMIF('Depreciation Calculator'!D:D,P22,'Depreciation Calculator'!X:X),SUMIF('Depreciation Calculator'!D:D,P22,'Depreciation Calculator'!Y:Y),SUMIF('Depreciation Calculator'!D:D,P22,'Depreciation Calculator'!Z:Z)),IF(O5='Depreciation Calculator'!AB2,SUM(SUMIF('Depreciation Calculator'!D:D,P22,'Depreciation Calculator'!T:T),SUMIF('Depreciation Calculator'!D:D,P22,'Depreciation Calculator'!U:U),SUMIF('Depreciation Calculator'!D:D,P22,'Depreciation Calculator'!V:V),SUMIF('Depreciation Calculator'!D:D,P22,'Depreciation Calculator'!W:W),SUMIF('Depreciation Calculator'!D:D,P22,'Depreciation Calculator'!X:X),SUMIF('Depreciation Calculator'!D:D,P22,'Depreciation Calculator'!Y:Y),SUMIF('Depreciation Calculator'!D:D,P22,'Depreciation Calculator'!Z:Z),SUMIF('Depreciation Calculator'!D:D,P22,'Depreciation Calculator'!AA:AA)),IF(O5='Depreciation Calculator'!AC2,SUM(SUMIF('Depreciation Calculator'!D:D,P22,'Depreciation Calculator'!T:T),SUMIF('Depreciation Calculator'!D:D,P22,'Depreciation Calculator'!U:U),SUMIF('Depreciation Calculator'!D:D,P22,'Depreciation Calculator'!V:V),SUMIF('Depreciation Calculator'!D:D,P22,'Depreciation Calculator'!W:W),SUMIF('Depreciation Calculator'!D:D,P22,'Depreciation Calculator'!X:X),SUMIF('Depreciation Calculator'!D:D,P22,'Depreciation Calculator'!Y:Y),SUMIF('Depreciation Calculator'!D:D,P22,'Depreciation Calculator'!Z:Z),SUMIF('Depreciation Calculator'!D:D,P22,'Depreciation Calculator'!AA:AA),SUMIF('Depreciation Calculator'!D:D,P22,'Depreciation Calculator'!AB:AB)),IF(O5='Depreciation Calculator'!AD2,SUM(SUMIF('Depreciation Calculator'!D:D,P22,'Depreciation Calculator'!T:T),SUMIF('Depreciation Calculator'!D:D,P22,'Depreciation Calculator'!U:U),SUMIF('Depreciation Calculator'!D:D,P22,'Depreciation Calculator'!V:V),SUMIF('Depreciation Calculator'!D:D,P22,'Depreciation Calculator'!W:W),SUMIF('Depreciation Calculator'!D:D,P22,'Depreciation Calculator'!X:X),SUMIF('Depreciation Calculator'!D:D,P22,'Depreciation Calculator'!Y:Y),SUMIF('Depreciation Calculator'!D:D,P22,'Depreciation Calculator'!Z:Z),SUMIF('Depreciation Calculator'!D:D,P22,'Depreciation Calculator'!AA:AA),SUMIF('Depreciation Calculator'!D:D,P22,'Depreciation Calculator'!AB:AB),SUMIF('Depreciation Calculator'!D:D,P22,'Depreciation Calculator'!AC:AC)),IF(O5='Depreciation Calculator'!AE2,SUM(SUMIF('Depreciation Calculator'!D:D,P22,'Depreciation Calculator'!T:T),SUMIF('Depreciation Calculator'!D:D,P22,'Depreciation Calculator'!U:U),SUMIF('Depreciation Calculator'!D:D,P22,'Depreciation Calculator'!V:V),SUMIF('Depreciation Calculator'!D:D,P22,'Depreciation Calculator'!W:W),SUMIF('Depreciation Calculator'!D:D,P22,'Depreciation Calculator'!X:X),SUMIF('Depreciation Calculator'!D:D,P22,'Depreciation Calculator'!Y:Y),SUMIF('Depreciation Calculator'!D:D,P22,'Depreciation Calculator'!Z:Z),SUMIF('Depreciation Calculator'!D:D,P22,'Depreciation Calculator'!AA:AA),SUMIF('Depreciation Calculator'!D:D,P22,'Depreciation Calculator'!AB:AB),SUMIF('Depreciation Calculator'!D:D,P22,'Depreciation Calculator'!AC:AC),SUMIF('Depreciation Calculator'!D:D,P22,'Depreciation Calculator'!AD:AD))))))))))))))/M5,0)-ROUND((SUMIFS('Depreciation Calculator'!E:E,'Depreciation Calculator'!L:L,"<"&'PPE Schedule'!O5,'Depreciation Calculator'!D:D,P22,'Depreciation Calculator'!M:M,"Yes")+SUMIFS('Depreciation Calculator'!G:G,'Depreciation Calculator'!L:L,"<"&'PPE Schedule'!O5,'Depreciation Calculator'!D:D,P22,'Depreciation Calculator'!M:M,"Yes")+SUMIFS('Depreciation Calculator'!O:O,'Depreciation Calculator'!L:L,"<"&'PPE Schedule'!O5,'Depreciation Calculator'!D:D,P22,'Depreciation Calculator'!M:M,"Yes")-SUMIFS('Depreciation Calculator'!N:N,'Depreciation Calculator'!L:L,"<"&'PPE Schedule'!O5,'Depreciation Calculator'!D:D,P22,'Depreciation Calculator'!M:M,"Yes"))/M5,0) -> 0 | W22: =ROUND((SUMIF('Depreciation Calculator'!D:D,'PPE Schedule'!P22,IF(O5='Depreciation Calculator'!T2,'Depreciation Calculator'!T1,IF(O5='Depreciation Calculator'!U2,'Depreciation Calculator'!U1,IF(O5='Depreciation Calculator'!V2,'Depreciation Calculator'!V1,IF(O5='Depreciation Calculator'!W2,'Depreciation Calculator'!W1,IF(O5='Depreciation Calculator'!X2,'Depreciation Calculator'!X1,IF(O5='Depreciation Calculator'!Y2,'Depreciation Calculator'!Y1,IF(O5='Depreciation Calculator'!AA2,'Depreciation Calculator'!AA1,IF(O5='Depreciation Calculator'!Z2,'Depreciation Calculator'!Z1,IF(O5='Depreciation Calculator'!AB2,'Depreciation Calculator'!AB1,IF(O5='Depreciation Calculator'!AC2,'Depreciation Calculator'!AC1,IF(O5='Depreciation Calculator'!AD2,'Depreciation Calculator'!AD1,IF(O5='Depreciation Calculator'!AE2,'Depreciation Calculator'!AE1,"Select proper range of year"))))))))))))))/M5,0) -> 0 | X22: =ROUND((SUMIFS('Depreciation Calculator'!E:E,'Depreciation Calculator'!L:L,">="&'PPE Schedule'!O5,'Depreciation Calculator'!L:L,"<="&'PPE Schedule'!P5,'Depreciation Calculator'!D:D,P22,'Depreciation Calculator'!M:M,"Yes")+SUMIFS('Depreciation Calculator'!G:G,'Depreciation Calculator'!L:L,">="&'PPE Schedule'!O5,'Depreciation Calculator'!L:L,"<="&'PPE Schedule'!P5,'Depreciation Calculator'!D:D,P22,'Depreciation Calculator'!M:M,"Yes")+SUMIFS('Depreciation Calculator'!O:O,'Depreciation Calculator'!L:L,">="&'PPE Schedule'!O5,'Depreciation Calculator'!L:L,"<="&'PPE Schedule'!P5,'Depreciation Calculator'!D:D,P22,'Depreciation Calculator'!M:M,"Yes")-SUMIFS('Depreciation Calculator'!N:N,'Depreciation Calculator'!L:L,">="&'PPE Schedule'!O5,'Depreciation Calculator'!L:L,"<="&'PPE Schedule'!P5,'Depreciation Calculator'!D:D,P22,'Depreciation Calculator'!M:M,"Yes"))/M5,0) -> 0 | Y22: 0 | Z22: 0
B23: ii. Intangible Assets | R23: =ROUND(SUMIFS('Depreciation Calculator'!E:E,'Depreciation Calculator'!I:I,"<"&'PPE Schedule'!O5,'Depreciation Calculator'!D:D,P23)/M5,0)+ROUND(SUMIFS('Depreciation Calculator'!G:G,'Depreciation Calculator'!I:I,"<"&'PPE Schedule'!O5,'Depreciation Calculator'!D:D,P23)/M5,0)-ROUND(SUMIFS('Depreciation Calculator'!E:E,'Depreciation Calculator'!L:L,"<"&'PPE Schedule'!O5,'Depreciation Calculator'!D:D,P23,'Depreciation Calculator'!M:M,"Yes")/M5,0)-ROUND(SUMIFS('Depreciation Calculator'!G:G,'Depreciation Calculator'!L:L,"<"&'PPE Schedule'!O5,'Depreciation Calculator'!D:D,P23,'Depreciation Calculator'!M:M,"Yes")/M5,0) -> 0 | S23: =ROUND(SUMIFS('Depreciation Calculator'!E:E,'Depreciation Calculator'!I:I,">="&'PPE Schedule'!O5,'Depreciation Calculator'!I:I,"<="&'PPE Schedule'!P5,'Depreciation Calculator'!D:D,P23)/M5,0) -> 0 | T23: =ROUND((SUMIFS('Depreciation Calculator'!E:E,'Depreciation Calculator'!L:L,">="&'PPE Schedule'!O5,'Depreciation Calculator'!L:L,"<="&'PPE Schedule'!P5,'Depreciation Calculator'!D:D,P23,'Depreciation Calculator'!M:M,"Yes")+SUMIFS('Depreciation Calculator'!G:G,'Depreciation Calculator'!L:L,">="&'PPE Schedule'!O5,'Depreciation Calculator'!L:L,"<="&'PPE Schedule'!P5,'Depreciation Calculator'!D:D,P23,'Depreciation Calculator'!M:M,"Yes"))/M5,0) -> 0 | U23: 0 | V23: =ROUND((SUMIF('Depreciation Calculator'!D:D,'PPE Schedule'!P23,'Depreciation Calculator'!H:H)+SUMIF('Depreciation Calculator'!D:D,'PPE Schedule'!P23,'Depreciation Calculator'!S:S)+IF(O5='Depreciation Calculator'!U2,SUM(SUMIF('Depreciation Calculator'!D:D,P23,'Depreciation Calculator'!T:T)),IF(O5='Depreciation Calculator'!V2,SUM(SUMIF('Depreciation Calculator'!D:D,P23,'Depreciation Calculator'!T:T),SUMIF('Depreciation Calculator'!D:D,P23,'Depreciation Calculator'!U:U)),IF(O5='Depreciation Calculator'!W2,SUM(SUMIF('Depreciation Calculator'!D:D,P23,'Depreciation Calculator'!T:T),SUMIF('Depreciation Calculator'!D:D,P23,'Depreciation Calculator'!U:U),SUMIF('Depreciation Calculator'!D:D,P23,'Depreciation Calculator'!V:V)),IF(O5='Depreciation Calculator'!X2,SUM(SUMIF('Depreciation Calculator'!D:D,P23,'Depreciation Calculator'!T:T),SUMIF('Depreciation Calculator'!D:D,P23,'Depreciation Calculator'!U:U),SUMIF('Depreciation Calculator'!D:D,P23,'Depreciation Calculator'!V:V),SUMIF('Depreciation Calculator'!D:D,P23,'Depreciation Calculator'!W:W)),IF(O5='Depreciation Calculator'!Y2,SUM(SUMIF('Depreciation Calculator'!D:D,P23,'Depreciation Calculator'!T:T),SUMIF('Depreciation Calculator'!D:D,P23,'Depreciation Calculator'!U:U),SUMIF('Depreciation Calculator'!D:D,P23,'Depreciation Calculator'!V:V),SUMIF('Depreciation Calculator'!D:D,P23,'Depreciation Calculator'!W:W),SUMIF('Depreciation Calculator'!D:D,P23,'Depreciation Calculator'!X:X)),IF(O5='Depreciation Calculator'!Z2,SUM(SUMIF('Depreciation Calculator'!D:D,P23,'Depreciation Calculator'!T:T),SUMIF('Depreciation Calculator'!D:D,P23,'Depreciation Calculator'!U:U),SUMIF('Depreciation Calculator'!D:D,P23,'Depreciation Calculator'!V:V),SUMIF('Depreciation Calculator'!D:D,P23,'Depreciation Calculator'!W:W),SUMIF('Depreciation Calculator'!D:D,P23,'Depreciation Calculator'!X:X),SUMIF('Depreciation Calculator'!D:D,P23,'Depreciation Calculator'!Y:Y)),IF(O5='Depreciation Calculator'!AA2,SUM(SUMIF('Depreciation Calculator'!D:D,P23,'Depreciation Calculator'!T:T),SUMIF('Depreciation Calculator'!D:D,P23,'Depreciation Calculator'!U:U),SUMIF('Depreciation Calculator'!D:D,P23,'Depreciation Calculator'!V:V),SUMIF('Depreciation Calculator'!D:D,P23,'Depreciation Calculator'!W:W),SUMIF('Depreciation Calculator'!D:D,P23,'Depreciation Calculator'!X:X),SUMIF('Depreciation Calculator'!D:D,P23,'Depreciation Calculator'!Y:Y),SUMIF('Depreciation Calculator'!D:D,P23,'Depreciation Calculator'!Z:Z)),IF(O5='Depreciation Calculator'!AB2,SUM(SUMIF('Depreciation Calculator'!D:D,P23,'Depreciation Calculator'!T:T),SUMIF('Depreciation Calculator'!D:D,P23,'Depreciation Calculator'!U:U),SUMIF('Depreciation Calculator'!D:D,P23,'Depreciation Calculator'!V:V),SUMIF('Depreciation Calculator'!D:D,P23,'Depreciation Calculator'!W:W),SUMIF('Depreciation Calculator'!D:D,P23,'Depreciation Calculator'!X:X),SUMIF('Depreciation Calculator'!D:D,P23,'Depreciation Calculator'!Y:Y),SUMIF('Depreciation Calculator'!D:D,P23,'Depreciation Calculator'!Z:Z),SUMIF('Depreciation Calculator'!D:D,P23,'Depreciation Calculator'!AA:AA)),IF(O5='Depreciation Calculator'!AC2,SUM(SUMIF('Depreciation Calculator'!D:D,P23,'Depreciation Calculator'!T:T),SUMIF('Depreciation Calculator'!D:D,P23,'Depreciation Calculator'!U:U),SUMIF('Depreciation Calculator'!D:D,P23,'Depreciation Calculator'!V:V),SUMIF('Depreciation Calculator'!D:D,P23,'Depreciation Calculator'!W:W),SUMIF('Depreciation Calculator'!D:D,P23,'Depreciation Calculator'!X:X),SUMIF('Depreciation Calculator'!D:D,P23,'Depreciation Calculator'!Y:Y),SUMIF('Depreciation Calculator'!D:D,P23,'Depreciation Calculator'!Z:Z),SUMIF('Depreciation Calculator'!D:D,P23,'Depreciation Calculator'!AA:AA),SUMIF('Depreciation Calculator'!D:D,P23,'Depreciation Calculator'!AB:AB)),IF(O5='Depreciation Calculator'!AD2,SUM(SUMIF('Depreciation Calculator'!D:D,P23,'Depreciation Calculator'!T:T),SUMIF('Depreciation Calculator'!D:D,P23,'Depreciation Calculator'!U:U),SUMIF('Depreciation Calculator'!D:D,P23,'Depreciation Calculator'!V:V),SUMIF('Depreciation Calculator'!D:D,P23,'Depreciation Calculator'!W:W),SUMIF('Depreciation Calculator'!D:D,P23,'Depreciation Calculator'!X:X),SUMIF('Depreciation Calculator'!D:D,P23,'Depreciation Calculator'!Y:Y),SUMIF('Depreciation Calculator'!D:D,P23,'Depreciation Calculator'!Z:Z),SUMIF('Depreciation Calculator'!D:D,P23,'Depreciation Calculator'!AA:AA),SUMIF('Depreciation Calculator'!D:D,P23,'Depreciation Calculator'!AB:AB),SUMIF('Depreciation Calculator'!D:D,P23,'Depreciation Calculator'!AC:AC)),IF(O5='Depreciation Calculator'!AE2,SUM(SUMIF('Depreciation Calculator'!D:D,P23,'Depreciation Calculator'!T:T),SUMIF('Depreciation Calculator'!D:D,P23,'Depreciation Calculator'!U:U),SUMIF('Depreciation Calculator'!D:D,P23,'Depreciation Calculator'!V:V),SUMIF('Depreciation Calculator'!D:D,P23,'Depreciation Calculator'!W:W),SUMIF('Depreciation Calculator'!D:D,P23,'Depreciation Calculator'!X:X),SUMIF('Depreciation Calculator'!D:D,P23,'Depreciation Calculator'!Y:Y),SUMIF('Depreciation Calculator'!D:D,P23,'Depreciation Calculator'!Z:Z),SUMIF('Depreciation Calculator'!D:D,P23,'Depreciation Calculator'!AA:AA),SUMIF('Depreciation Calculator'!D:D,P23,'Depreciation Calculator'!AB:AB),SUMIF('Depreciation Calculator'!D:D,P23,'Depreciation Calculator'!AC:AC),SUMIF('Depreciation Calculator'!D:D,P23,'Depreciation Calculator'!AD:AD))))))))))))))/M5,0)-ROUND((SUMIFS('Depreciation Calculator'!E:E,'Depreciation Calculator'!L:L,"<"&'PPE Schedule'!O5,'Depreciation Calculator'!D:D,P23,'Depreciation Calculator'!M:M,"Yes")+SUMIFS('Depreciation Calculator'!G:G,'Depreciation Calculator'!L:L,"<"&'PPE Schedule'!O5,'Depreciation Calculator'!D:D,P23,'Depreciation Calculator'!M:M,"Yes")+SUMIFS('Depreciation Calculator'!O:O,'Depreciation Calculator'!L:L,"<"&'PPE Schedule'!O5,'Depreciation Calculator'!D:D,P23,'Depreciation Calculator'!M:M,"Yes")-SUMIFS('Depreciation Calculator'!N:N,'Depreciation Calculator'!L:L,"<"&'PPE Schedule'!O5,'Depreciation Calculator'!D:D,P23,'Depreciation Calculator'!M:M,"Yes"))/M5,0) -> 0 | W23: =ROUND((SUMIF('Depreciation Calculator'!D:D,'PPE Schedule'!P23,IF(O5='Depreciation Calculator'!T2,'Depreciation Calculator'!T1,IF(O5='Depreciation Calculator'!U2,'Depreciation Calculator'!U1,IF(O5='Depreciation Calculator'!V2,'Depreciation Calculator'!V1,IF(O5='Depreciation Calculator'!W2,'Depreciation Calculator'!W1,IF(O5='Depreciation Calculator'!X2,'Depreciation Calculator'!X1,IF(O5='Depreciation Calculator'!Y2,'Depreciation Calculator'!Y1,IF(O5='Depreciation Calculator'!AA2,'Depreciation Calculator'!AA1,IF(O5='Depreciation Calculator'!Z2,'Depreciation Calculator'!Z1,IF(O5='Depreciation Calculator'!AB2,'Depreciation Calculator'!AB1,IF(O5='Depreciation Calculator'!AC2,'Depreciation Calculator'!AC1,IF(O5='Depreciation Calculator'!AD2,'Depreciation Calculator'!AD1,IF(O5='Depreciation Calculator'!AE2,'Depreciation Calculator'!AE1,"Select proper range of year"))))))))))))))/M5,0) -> 0 | X23: =ROUND((SUMIFS('Depreciation Calculator'!E:E,'Depreciation Calculator'!L:L,">="&'PPE Schedule'!O5,'Depreciation Calculator'!L:L,"<="&'PPE Schedule'!P5,'Depreciation Calculator'!D:D,P23,'Depreciation Calculator'!M:M,"Yes")+SUMIFS('Depreciation Calculator'!G:G,'Depreciation Calculator'!L:L,">="&'PPE Schedule'!O5,'Depreciation Calculator'!L:L,"<="&'PPE Schedule'!P5,'Depreciation Calculator'!D:D,P23,'Depreciation Calculator'!M:M,"Yes")+SUMIFS('Depreciation Calculator'!O:O,'Depreciation Calculator'!L:L,">="&'PPE Schedule'!O5,'Depreciation Calculator'!L:L,"<="&'PPE Schedule'!P5,'Depreciation Calculator'!D:D,P23,'Depreciation Calculator'!M:M,"Yes")-SUMIFS('Depreciation Calculator'!N:N,'Depreciation Calculator'!L:L,">="&'PPE Schedule'!O5,'Depreciation Calculator'!L:L,"<="&'PPE Schedule'!P5,'Depreciation Calculator'!D:D,P23,'Depreciation Calculator'!M:M,"Yes"))/M5,0) -> 0 | Y23: 0 | Z23: 0
R24: =ROUND(SUMIFS('Depreciation Calculator'!E:E,'Depreciation Calculator'!I:I,"<"&'PPE Schedule'!O5,'Depreciation Calculator'!D:D,P24)/M5,0)+ROUND(SUMIFS('Depreciation Calculator'!G:G,'Depreciation Calculator'!I:I,"<"&'PPE Schedule'!O5,'Depreciation Calculator'!D:D,P24)/M5,0)-ROUND(SUMIFS('Depreciation Calculator'!E:E,'Depreciation Calculator'!L:L,"<"&'PPE Schedule'!O5,'Depreciation Calculator'!D:D,P24,'Depreciation Calculator'!M:M,"Yes")/M5,0)-ROUND(SUMIFS('Depreciation Calculator'!G:G,'Depreciation Calculator'!L:L,"<"&'PPE Schedule'!O5,'Depreciation Calculator'!D:D,P24,'Depreciation Calculator'!M:M,"Yes")/M5,0) -> 0 | S24: =ROUND(SUMIFS('Depreciation Calculator'!E:E,'Depreciation Calculator'!I:I,">="&'PPE Schedule'!O5,'Depreciation Calculator'!I:I,"<="&'PPE Schedule'!P5,'Depreciation Calculator'!D:D,P24)/M5,0) -> 0 | T24: =ROUND((SUMIFS('Depreciation Calculator'!E:E,'Depreciation Calculator'!L:L,">="&'PPE Schedule'!O5,'Depreciation Calculator'!L:L,"<="&'PPE Schedule'!P5,'Depreciation Calculator'!D:D,P24,'Depreciation Calculator'!M:M,"Yes")+SUMIFS('Depreciation Calculator'!G:G,'Depreciation Calculator'!L:L,">="&'PPE Schedule'!O5,'Depreciation Calculator'!L:L,"<="&'PPE Schedule'!P5,'Depreciation Calculator'!D:D,P24,'Depreciation Calculator'!M:M,"Yes"))/M5,0) -> 0 | U24: 0 | V24: =ROUND((SUMIF('Depreciation Calculator'!D:D,'PPE Schedule'!P24,'Depreciation Calculator'!H:H)+SUMIF('Depreciation Calculator'!D:D,'PPE Schedule'!P24,'Depreciation Calculator'!S:S)+IF(O5='Depreciation Calculator'!U2,SUM(SUMIF('Depreciation Calculator'!D:D,P24,'Depreciation Calculator'!T:T)),IF(O5='Depreciation Calculator'!V2,SUM(SUMIF('Depreciation Calculator'!D:D,P24,'Depreciation Calculator'!T:T),SUMIF('Depreciation Calculator'!D:D,P24,'Depreciation Calculator'!U:U)),IF(O5='Depreciation Calculator'!W2,SUM(SUMIF('Depreciation Calculator'!D:D,P24,'Depreciation Calculator'!T:T),SUMIF('Depreciation Calculator'!D:D,P24,'Depreciation Calculator'!U:U),SUMIF('Depreciation Calculator'!D:D,P24,'Depreciation Calculator'!V:V)),IF(O5='Depreciation Calculator'!X2,SUM(SUMIF('Depreciation Calculator'!D:D,P24,'Depreciation Calculator'!T:T),SUMIF('Depreciation Calculator'!D:D,P24,'Depreciation Calculator'!U:U),SUMIF('Depreciation Calculator'!D:D,P24,'Depreciation Calculator'!V:V),SUMIF('Depreciation Calculator'!D:D,P24,'Depreciation Calculator'!W:W)),IF(O5='Depreciation Calculator'!Y2,SUM(SUMIF('Depreciation Calculator'!D:D,P24,'Depreciation Calculator'!T:T),SUMIF('Depreciation Calculator'!D:D,P24,'Depreciation Calculator'!U:U),SUMIF('Depreciation Calculator'!D:D,P24,'Depreciation Calculator'!V:V),SUMIF('Depreciation Calculator'!D:D,P24,'Depreciation Calculator'!W:W),SUMIF('Depreciation Calculator'!D:D,P24,'Depreciation Calculator'!X:X)),IF(O5='Depreciation Calculator'!Z2,SUM(SUMIF('Depreciation Calculator'!D:D,P24,'Depreciation Calculator'!T:T),SUMIF('Depreciation Calculator'!D:D,P24,'Depreciation Calculator'!U:U),SUMIF('Depreciation Calculator'!D:D,P24,'Depreciation Calculator'!V:V),SUMIF('Depreciation Calculator'!D:D,P24,'Depreciation Calculator'!W:W),SUMIF('Depreciation Calculator'!D:D,P24,'Depreciation Calculator'!X:X),SUMIF('Depreciation Calculator'!D:D,P24,'Depreciation Calculator'!Y:Y)),IF(O5='Depreciation Calculator'!AA2,SUM(SUMIF('Depreciation Calculator'!D:D,P24,'Depreciation Calculator'!T:T),SUMIF('Depreciation Calculator'!D:D,P24,'Depreciation Calculator'!U:U),SUMIF('Depreciation Calculator'!D:D,P24,'Depreciation Calculator'!V:V),SUMIF('Depreciation Calculator'!D:D,P24,'Depreciation Calculator'!W:W),SUMIF('Depreciation Calculator'!D:D,P24,'Depreciation Calculator'!X:X),SUMIF('Depreciation Calculator'!D:D,P24,'Depreciation Calculator'!Y:Y),SUMIF('Depreciation Calculator'!D:D,P24,'Depreciation Calculator'!Z:Z)),IF(O5='Depreciation Calculator'!AB2,SUM(SUMIF('Depreciation Calculator'!D:D,P24,'Depreciation Calculator'!T:T),SUMIF('Depreciation Calculator'!D:D,P24,'Depreciation Calculator'!U:U),SUMIF('Depreciation Calculator'!D:D,P24,'Depreciation Calculator'!V:V),SUMIF('Depreciation Calculator'!D:D,P24,'Depreciation Calculator'!W:W),SUMIF('Depreciation Calculator'!D:D,P24,'Depreciation Calculator'!X:X),SUMIF('Depreciation Calculator'!D:D,P24,'Depreciation Calculator'!Y:Y),SUMIF('Depreciation Calculator'!D:D,P24,'Depreciation Calculator'!Z:Z),SUMIF('Depreciation Calculator'!D:D,P24,'Depreciation Calculator'!AA:AA)),IF(O5='Depreciation Calculator'!AC2,SUM(SUMIF('Depreciation Calculator'!D:D,P24,'Depreciation Calculator'!T:T),SUMIF('Depreciation Calculator'!D:D,P24,'Depreciation Calculator'!U:U),SUMIF('Depreciation Calculator'!D:D,P24,'Depreciation Calculator'!V:V),SUMIF('Depreciation Calculator'!D:D,P24,'Depreciation Calculator'!W:W),SUMIF('Depreciation Calculator'!D:D,P24,'Depreciation Calculator'!X:X),SUMIF('Depreciation Calculator'!D:D,P24,'Depreciation Calculator'!Y:Y),SUMIF('Depreciation Calculator'!D:D,P24,'Depreciation Calculator'!Z:Z),SUMIF('Depreciation Calculator'!D:D,P24,'Depreciation Calculator'!AA:AA),SUMIF('Depreciation Calculator'!D:D,P24,'Depreciation Calculator'!AB:AB)),IF(O5='Depreciation Calculator'!AD2,SUM(SUMIF('Depreciation Calculator'!D:D,P24,'Depreciation Calculator'!T:T),SUMIF('Depreciation Calculator'!D:D,P24,'Depreciation Calculator'!U:U),SUMIF('Depreciation Calculator'!D:D,P24,'Depreciation Calculator'!V:V),SUMIF('Depreciation Calculator'!D:D,P24,'Depreciation Calculator'!W:W),SUMIF('Depreciation Calculator'!D:D,P24,'Depreciation Calculator'!X:X),SUMIF('Depreciation Calculator'!D:D,P24,'Depreciation Calculator'!Y:Y),SUMIF('Depreciation Calculator'!D:D,P24,'Depreciation Calculator'!Z:Z),SUMIF('Depreciation Calculator'!D:D,P24,'Depreciation Calculator'!AA:AA),SUMIF('Depreciation Calculator'!D:D,P24,'Depreciation Calculator'!AB:AB),SUMIF('Depreciation Calculator'!D:D,P24,'Depreciation Calculator'!AC:AC)),IF(O5='Depreciation Calculator'!AE2,SUM(SUMIF('Depreciation Calculator'!D:D,P24,'Depreciation Calculator'!T:T),SUMIF('Depreciation Calculator'!D:D,P24,'Depreciation Calculator'!U:U),SUMIF('Depreciation Calculator'!D:D,P24,'Depreciation Calculator'!V:V),SUMIF('Depreciation Calculator'!D:D,P24,'Depreciation Calculator'!W:W),SUMIF('Depreciation Calculator'!D:D,P24,'Depreciation Calculator'!X:X),SUMIF('Depreciation Calculator'!D:D,P24,'Depreciation Calculator'!Y:Y),SUMIF('Depreciation Calculator'!D:D,P24,'Depreciation Calculator'!Z:Z),SUMIF('Depreciation Calculator'!D:D,P24,'Depreciation Calculator'!AA:AA),SUMIF('Depreciation Calculator'!D:D,P24,'Depreciation Calculator'!AB:AB),SUMIF('Depreciation Calculator'!D:D,P24,'Depreciation Calculator'!AC:AC),SUMIF('Depreciation Calculator'!D:D,P24,'Depreciation Calculator'!AD:AD))))))))))))))/M5,0)-ROUND((SUMIFS('Depreciation Calculator'!E:E,'Depreciation Calculator'!L:L,"<"&'PPE Schedule'!O5,'Depreciation Calculator'!D:D,P24,'Depreciation Calculator'!M:M,"Yes")+SUMIFS('Depreciation Calculator'!G:G,'Depreciation Calculator'!L:L,"<"&'PPE Schedule'!O5,'Depreciation Calculator'!D:D,P24,'Depreciation Calculator'!M:M,"Yes")+SUMIFS('Depreciation Calculator'!O:O,'Depreciation Calculator'!L:L,"<"&'PPE Schedule'!O5,'Depreciation Calculator'!D:D,P24,'Depreciation Calculator'!M:M,"Yes")-SUMIFS('Depreciation Calculator'!N:N,'Depreciation Calculator'!L:L,"<"&'PPE Schedule'!O5,'Depreciation Calculator'!D:D,P24,'Depreciation Calculator'!M:M,"Yes"))/M5,0) -> 0 | W24: =ROUND((SUMIF('Depreciation Calculator'!D:D,'PPE Schedule'!P24,IF(O5='Depreciation Calculator'!T2,'Depreciation Calculator'!T1,IF(O5='Depreciation Calculator'!U2,'Depreciation Calculator'!U1,IF(O5='Depreciation Calculator'!V2,'Depreciation Calculator'!V1,IF(O5='Depreciation Calculator'!W2,'Depreciation Calculator'!W1,IF(O5='Depreciation Calculator'!X2,'Depreciation Calculator'!X1,IF(O5='Depreciation Calculator'!Y2,'Depreciation Calculator'!Y1,IF(O5='Depreciation Calculator'!AA2,'Depreciation Calculator'!AA1,IF(O5='Depreciation Calculator'!Z2,'Depreciation Calculator'!Z1,IF(O5='Depreciation Calculator'!AB2,'Depreciation Calculator'!AB1,IF(O5='Depreciation Calculator'!AC2,'Depreciation Calculator'!AC1,IF(O5='Depreciation Calculator'!AD2,'Depreciation Calculator'!AD1,IF(O5='Depreciation Calculator'!AE2,'Depreciation Calculator'!AE1,"Select proper range of year"))))))))))))))/M5,0) -> 0 | X24: =ROUND((SUMIFS('Depreciation Calculator'!E:E,'Depreciation Calculator'!L:L,">="&'PPE Schedule'!O5,'Depreciation Calculator'!L:L,"<="&'PPE Schedule'!P5,'Depreciation Calculator'!D:D,P24,'Depreciation Calculator'!M:M,"Yes")+SUMIFS('Depreciation Calculator'!G:G,'Depreciation Calculator'!L:L,">="&'PPE Schedule'!O5,'Depreciation Calculator'!L:L,"<="&'PPE Schedule'!P5,'Depreciation Calculator'!D:D,P24,'Depreciation Calculator'!M:M,"Yes")+SUMIFS('Depreciation Calculator'!O:O,'Depreciation Calculator'!L:L,">="&'PPE Schedule'!O5,'Depreciation Calculator'!L:L,"<="&'PPE Schedule'!P5,'Depreciation Calculator'!D:D,P24,'Depreciation Calculator'!M:M,"Yes")-SUMIFS('Depreciation Calculator'!N:N,'Depreciation Calculator'!L:L,">="&'PPE Schedule'!O5,'Depreciation Calculator'!L:L,"<="&'PPE Schedule'!P5,'Depreciation Calculator'!D:D,P24,'Depreciation Calculator'!M:M,"Yes"))/M5,0) -> 0 | Y24: 0 | Z24: 0
B25: (a) Goodwill; | C25: =R25 -> 0 | D25: =S25 -> 0 | E25: =T25 -> 0 | F25: =+C25+D25-E25 -> 0 | G25: =V25 -> 0 | H25: =W25 -> 0 | I25: =X25 -> 0 | J25: =+G25+H25-I25 -> 0 | K25: =F25-J25 -> 0 | R25: =ROUND(SUMIFS('Depreciation Calculator'!E:E,'Depreciation Calculator'!I:I,"<"&'PPE Schedule'!O5,'Depreciation Calculator'!D:D,P25)/M5,0)+ROUND(SUMIFS('Depreciation Calculator'!G:G,'Depreciation Calculator'!I:I,"<"&'PPE Schedule'!O5,'Depreciation Calculator'!D:D,P25)/M5,0)-ROUND(SUMIFS('Depreciation Calculator'!E:E,'Depreciation Calculator'!L:L,"<"&'PPE Schedule'!O5,'Depreciation Calculator'!D:D,P25,'Depreciation Calculator'!M:M,"Yes")/M5,0)-ROUND(SUMIFS('Depreciation Calculator'!G:G,'Depreciation Calculator'!L:L,"<"&'PPE Schedule'!O5,'Depreciation Calculator'!D:D,P25,'Depreciation Calculator'!M:M,"Yes")/M5,0) -> 0 | S25: =ROUND(SUMIFS('Depreciation Calculator'!E:E,'Depreciation Calculator'!I:I,">="&'PPE Schedule'!O5,'Depreciation Calculator'!I:I,"<="&'PPE Schedule'!P5,'Depreciation Calculator'!D:D,P25)/M5,0) -> 0 | T25: =ROUND((SUMIFS('Depreciation Calculator'!E:E,'Depreciation Calculator'!L:L,">="&'PPE Schedule'!O5,'Depreciation Calculator'!L:L,"<="&'PPE Schedule'!P5,'Depreciation Calculator'!D:D,P25,'Depreciation Calculator'!M:M,"Yes")+SUMIFS('Depreciation Calculator'!G:G,'Depreciation Calculator'!L:L,">="&'PPE Schedule'!O5,'Depreciation Calculator'!L:L,"<="&'PPE Schedule'!P5,'Depreciation Calculator'!D:D,P25,'Depreciation Calculator'!M:M,"Yes"))/M5,0) -> 0 | U25: 0 | V25: =ROUND((SUMIF('Depreciation Calculator'!D:D,'PPE Schedule'!P25,'Depreciation Calculator'!H:H)+SUMIF('Depreciation Calculator'!D:D,'PPE Schedule'!P25,'Depreciation Calculator'!S:S)+IF(O5='Depreciation Calculator'!U2,SUM(SUMIF('Depreciation Calculator'!D:D,P25,'Depreciation Calculator'!T:T)),IF(O5='Depreciation Calculator'!V2,SUM(SUMIF('Depreciation Calculator'!D:D,P25,'Depreciation Calculator'!T:T),SUMIF('Depreciation Calculator'!D:D,P25,'Depreciation Calculator'!U:U)),IF(O5='Depreciation Calculator'!W2,SUM(SUMIF('Depreciation Calculator'!D:D,P25,'Depreciation Calculator'!T:T),SUMIF('Depreciation Calculator'!D:D,P25,'Depreciation Calculator'!U:U),SUMIF('Depreciation Calculator'!D:D,P25,'Depreciation Calculator'!V:V)),IF(O5='Depreciation Calculator'!X2,SUM(SUMIF('Depreciation Calculator'!D:D,P25,'Depreciation Calculator'!T:T),SUMIF('Depreciation Calculator'!D:D,P25,'Depreciation Calculator'!U:U),SUMIF('Depreciation Calculator'!D:D,P25,'Depreciation Calculator'!V:V),SUMIF('Depreciation Calculator'!D:D,P25,'Depreciation Calculator'!W:W)),IF(O5='Depreciation Calculator'!Y2,SUM(SUMIF('Depreciation Calculator'!D:D,P25,'Depreciation Calculator'!T:T),SUMIF('Depreciation Calculator'!D:D,P25,'Depreciation Calculator'!U:U),SUMIF('Depreciation Calculator'!D:D,P25,'Depreciation Calculator'!V:V),SUMIF('Depreciation Calculator'!D:D,P25,'Depreciation Calculator'!W:W),SUMIF('Depreciation Calculator'!D:D,P25,'Depreciation Calculator'!X:X)),IF(O5='Depreciation Calculator'!Z2,SUM(SUMIF('Depreciation Calculator'!D:D,P25,'Depreciation Calculator'!T:T),SUMIF('Depreciation Calculator'!D:D,P25,'Depreciation Calculator'!U:U),SUMIF('Depreciation Calculator'!D:D,P25,'Depreciation Calculator'!V:V),SUMIF('Depreciation Calculator'!D:D,P25,'Depreciation Calculator'!W:W),SUMIF('Depreciation Calculator'!D:D,P25,'Depreciation Calculator'!X:X),SUMIF('Depreciation Calculator'!D:D,P25,'Depreciation Calculator'!Y:Y)),IF(O5='Depreciation Calculator'!AA2,SUM(SUMIF('Depreciation Calculator'!D:D,P25,'Depreciation Calculator'!T:T),SUMIF('Depreciation Calculator'!D:D,P25,'Depreciation Calculator'!U:U),SUMIF('Depreciation Calculator'!D:D,P25,'Depreciation Calculator'!V:V),SUMIF('Depreciation Calculator'!D:D,P25,'Depreciation Calculator'!W:W),SUMIF('Depreciation Calculator'!D:D,P25,'Depreciation Calculator'!X:X),SUMIF('Depreciation Calculator'!D:D,P25,'Depreciation Calculator'!Y:Y),SUMIF('Depreciation Calculator'!D:D,P25,'Depreciation Calculator'!Z:Z)),IF(O5='Depreciation Calculator'!AB2,SUM(SUMIF('Depreciation Calculator'!D:D,P25,'Depreciation Calculator'!T:T),SUMIF('Depreciation Calculator'!D:D,P25,'Depreciation Calculator'!U:U),SUMIF('Depreciation Calculator'!D:D,P25,'Depreciation Calculator'!V:V),SUMIF('Depreciation Calculator'!D:D,P25,'Depreciation Calculator'!W:W),SUMIF('Depreciation Calculator'!D:D,P25,'Depreciation Calculator'!X:X),SUMIF('Depreciation Calculator'!D:D,P25,'Depreciation Calculator'!Y:Y),SUMIF('Depreciation Calculator'!D:D,P25,'Depreciation Calculator'!Z:Z),SUMIF('Depreciation Calculator'!D:D,P25,'Depreciation Calculator'!AA:AA)),IF(O5='Depreciation Calculator'!AC2,SUM(SUMIF('Depreciation Calculator'!D:D,P25,'Depreciation Calculator'!T:T),SUMIF('Depreciation Calculator'!D:D,P25,'Depreciation Calculator'!U:U),SUMIF('Depreciation Calculator'!D:D,P25,'Depreciation Calculator'!V:V),SUMIF('Depreciation Calculator'!D:D,P25,'Depreciation Calculator'!W:W),SUMIF('Depreciation Calculator'!D:D,P25,'Depreciation Calculator'!X:X),SUMIF('Depreciation Calculator'!D:D,P25,'Depreciation Calculator'!Y:Y),SUMIF('Depreciation Calculator'!D:D,P25,'Depreciation Calculator'!Z:Z),SUMIF('Depreciation Calculator'!D:D,P25,'Depreciation Calculator'!AA:AA),SUMIF('Depreciation Calculator'!D:D,P25,'Depreciation Calculator'!AB:AB)),IF(O5='Depreciation Calculator'!AD2,SUM(SUMIF('Depreciation Calculator'!D:D,P25,'Depreciation Calculator'!T:T),SUMIF('Depreciation Calculator'!D:D,P25,'Depreciation Calculator'!U:U),SUMIF('Depreciation Calculator'!D:D,P25,'Depreciation Calculator'!V:V),SUMIF('Depreciation Calculator'!D:D,P25,'Depreciation Calculator'!W:W),SUMIF('Depreciation Calculator'!D:D,P25,'Depreciation Calculator'!X:X),SUMIF('Depreciation Calculator'!D:D,P25,'Depreciation Calculator'!Y:Y),SUMIF('Depreciation Calculator'!D:D,P25,'Depreciation Calculator'!Z:Z),SUMIF('Depreciation Calculator'!D:D,P25,'Depreciation Calculator'!AA:AA),SUMIF('Depreciation Calculator'!D:D,P25,'Depreciation Calculator'!AB:AB),SUMIF('Depreciation Calculator'!D:D,P25,'Depreciation Calculator'!AC:AC)),IF(O5='Depreciation Calculator'!AE2,SUM(SUMIF('Depreciation Calculator'!D:D,P25,'Depreciation Calculator'!T:T),SUMIF('Depreciation Calculator'!D:D,P25,'Depreciation Calculator'!U:U),SUMIF('Depreciation Calculator'!D:D,P25,'Depreciation Calculator'!V:V),SUMIF('Depreciation Calculator'!D:D,P25,'Depreciation Calculator'!W:W),SUMIF('Depreciation Calculator'!D:D,P25,'Depreciation Calculator'!X:X),SUMIF('Depreciation Calculator'!D:D,P25,'Depreciation Calculator'!Y:Y),SUMIF('Depreciation Calculator'!D:D,P25,'Depreciation Calculator'!Z:Z),SUMIF('Depreciation Calculator'!D:D,P25,'Depreciation Calculator'!AA:AA),SUMIF('Depreciation Calculator'!D:D,P25,'Depreciation Calculator'!AB:AB),SUMIF('Depreciation Calculator'!D:D,P25,'Depreciation Calculator'!AC:AC),SUMIF('Depreciation Calculator'!D:D,P25,'Depreciation Calculator'!AD:AD))))))))))))))/M5,0)-ROUND((SUMIFS('Depreciation Calculator'!E:E,'Depreciation Calculator'!L:L,"<"&'PPE Schedule'!O5,'Depreciation Calculator'!D:D,P25,'Depreciation Calculator'!M:M,"Yes")+SUMIFS('Depreciation Calculator'!G:G,'Depreciation Calculator'!L:L,"<"&'PPE Schedule'!O5,'Depreciation Calculator'!D:D,P25,'Depreciation Calculator'!M:M,"Yes")+SUMIFS('Depreciation Calculator'!O:O,'Depreciation Calculator'!L:L,"<"&'PPE Schedule'!O5,'Depreciation Calculator'!D:D,P25,'Depreciation Calculator'!M:M,"Yes")-SUMIFS('Depreciation Calculator'!N:N,'Depreciation Calculator'!L:L,"<"&'PPE Schedule'!O5,'Depreciation Calculator'!D:D,P25,'Depreciation Calculator'!M:M,"Yes"))/M5,0) -> 0 | W25: =ROUND((SUMIF('Depreciation Calculator'!D:D,'PPE Schedule'!P25,IF(O5='Depreciation Calculator'!T2,'Depreciation Calculator'!T1,IF(O5='Depreciation Calculator'!U2,'Depreciation Calculator'!U1,IF(O5='Depreciation Calculator'!V2,'Depreciation Calculator'!V1,IF(O5='Depreciation Calculator'!W2,'Depreciation Calculator'!W1,IF(O5='Depreciation Calculator'!X2,'Depreciation Calculator'!X1,IF(O5='Depreciation Calculator'!Y2,'Depreciation Calculator'!Y1,IF(O5='Depreciation Calculator'!AA2,'Depreciation Calculator'!AA1,IF(O5='Depreciation Calculator'!Z2,'Depreciation Calculator'!Z1,IF(O5='Depreciation Calculator'!AB2,'Depreciation Calculator'!AB1,IF(O5='Depreciation Calculator'!AC2,'Depreciation Calculator'!AC1,IF(O5='Depreciation Calculator'!AD2,'Depreciation Calculator'!AD1,IF(O5='Depreciation Calculator'!AE2,'Depreciation Calculator'!AE1,"Select proper range of year"))))))))))))))/M5,0) -> 0 | X25: =ROUND((SUMIFS('Depreciation Calculator'!E:E,'Depreciation Calculator'!L:L,">="&'PPE Schedule'!O5,'Depreciation Calculator'!L:L,"<="&'PPE Schedule'!P5,'Depreciation Calculator'!D:D,P25,'Depreciation Calculator'!M:M,"Yes")+SUMIFS('Depreciation Calculator'!G:G,'Depreciation Calculator'!L:L,">="&'PPE Schedule'!O5,'Depreciation Calculator'!L:L,"<="&'PPE Schedule'!P5,'Depreciation Calculator'!D:D,P25,'Depreciation Calculator'!M:M,"Yes")+SUMIFS('Depreciation Calculator'!O:O,'Depreciation Calculator'!L:L,">="&'PPE Schedule'!O5,'Depreciation Calculator'!L:L,"<="&'PPE Schedule'!P5,'Depreciation Calculator'!D:D,P25,'Depreciation Calculator'!M:M,"Yes")-SUMIFS('Depreciation Calculator'!N:N,'Depreciation Calculator'!L:L,">="&'PPE Schedule'!O5,'Depreciation Calculator'!L:L,"<="&'PPE Schedule'!P5,'Depreciation Calculator'!D:D,P25,'Depreciation Calculator'!M:M,"Yes"))/M5,0) -> 0 | Y25: 0 | Z25: 0
B26: (b) Brands /trademarks; | C26: =R26 -> 0 | D26: =S26 -> 0 | E26: =T26 -> 0 | F26: =+C26+D26-E26 -> 0 | G26: =V26 -> 0 | H26: =W26 -> 0 | I26: =X26 -> 0 | J26: =+G26+H26-I26 -> 0 | K26: =F26-J26 -> 0 | R26: =ROUND(SUMIFS('Depreciation Calculator'!E:E,'Depreciation Calculator'!I:I,"<"&'PPE Schedule'!O5,'Depreciation Calculator'!D:D,P26)/M5,0)+ROUND(SUMIFS('Depreciation Calculator'!G:G,'Depreciation Calculator'!I:I,"<"&'PPE Schedule'!O5,'Depreciation Calculator'!D:D,P26)/M5,0)-ROUND(SUMIFS('Depreciation Calculator'!E:E,'Depreciation Calculator'!L:L,"<"&'PPE Schedule'!O5,'Depreciation Calculator'!D:D,P26,'Depreciation Calculator'!M:M,"Yes")/M5,0)-ROUND(SUMIFS('Depreciation Calculator'!G:G,'Depreciation Calculator'!L:L,"<"&'PPE Schedule'!O5,'Depreciation Calculator'!D:D,P26,'Depreciation Calculator'!M:M,"Yes")/M5,0) -> 0 | S26: =ROUND(SUMIFS('Depreciation Calculator'!E:E,'Depreciation Calculator'!I:I,">="&'PPE Schedule'!O5,'Depreciation Calculator'!I:I,"<="&'PPE Schedule'!P5,'Depreciation Calculator'!D:D,P26)/M5,0) -> 0 | T26: =ROUND((SUMIFS('Depreciation Calculator'!E:E,'Depreciation Calculator'!L:L,">="&'PPE Schedule'!O5,'Depreciation Calculator'!L:L,"<="&'PPE Schedule'!P5,'Depreciation Calculator'!D:D,P26,'Depreciation Calculator'!M:M,"Yes")+SUMIFS('Depreciation Calculator'!G:G,'Depreciation Calculator'!L:L,">="&'PPE Schedule'!O5,'Depreciation Calculator'!L:L,"<="&'PPE Schedule'!P5,'Depreciation Calculator'!D:D,P26,'Depreciation Calculator'!M:M,"Yes"))/M5,0) -> 0 | U26: 0 | V26: =ROUND((SUMIF('Depreciation Calculator'!D:D,'PPE Schedule'!P26,'Depreciation Calculator'!H:H)+SUMIF('Depreciation Calculator'!D:D,'PPE Schedule'!P26,'Depreciation Calculator'!S:S)+IF(O5='Depreciation Calculator'!U2,SUM(SUMIF('Depreciation Calculator'!D:D,P26,'Depreciation Calculator'!T:T)),IF(O5='Depreciation Calculator'!V2,SUM(SUMIF('Depreciation Calculator'!D:D,P26,'Depreciation Calculator'!T:T),SUMIF('Depreciation Calculator'!D:D,P26,'Depreciation Calculator'!U:U)),IF(O5='Depreciation Calculator'!W2,SUM(SUMIF('Depreciation Calculator'!D:D,P26,'Depreciation Calculator'!T:T),SUMIF('Depreciation Calculator'!D:D,P26,'Depreciation Calculator'!U:U),SUMIF('Depreciation Calculator'!D:D,P26,'Depreciation Calculator'!V:V)),IF(O5='Depreciation Calculator'!X2,SUM(SUMIF('Depreciation Calculator'!D:D,P26,'Depreciation Calculator'!T:T),SUMIF('Depreciation Calculator'!D:D,P26,'Depreciation Calculator'!U:U),SUMIF('Depreciation Calculator'!D:D,P26,'Depreciation Calculator'!V:V),SUMIF('Depreciation Calculator'!D:D,P26,'Depreciation Calculator'!W:W)),IF(O5='Depreciation Calculator'!Y2,SUM(SUMIF('Depreciation Calculator'!D:D,P26,'Depreciation Calculator'!T:T),SUMIF('Depreciation Calculator'!D:D,P26,'Depreciation Calculator'!U:U),SUMIF('Depreciation Calculator'!D:D,P26,'Depreciation Calculator'!V:V),SUMIF('Depreciation Calculator'!D:D,P26,'Depreciation Calculator'!W:W),SUMIF('Depreciation Calculator'!D:D,P26,'Depreciation Calculator'!X:X)),IF(O5='Depreciation Calculator'!Z2,SUM(SUMIF('Depreciation Calculator'!D:D,P26,'Depreciation Calculator'!T:T),SUMIF('Depreciation Calculator'!D:D,P26,'Depreciation Calculator'!U:U),SUMIF('Depreciation Calculator'!D:D,P26,'Depreciation Calculator'!V:V),SUMIF('Depreciation Calculator'!D:D,P26,'Depreciation Calculator'!W:W),SUMIF('Depreciation Calculator'!D:D,P26,'Depreciation Calculator'!X:X),SUMIF('Depreciation Calculator'!D:D,P26,'Depreciation Calculator'!Y:Y)),IF(O5='Depreciation Calculator'!AA2,SUM(SUMIF('Depreciation Calculator'!D:D,P26,'Depreciation Calculator'!T:T),SUMIF('Depreciation Calculator'!D:D,P26,'Depreciation Calculator'!U:U),SUMIF('Depreciation Calculator'!D:D,P26,'Depreciation Calculator'!V:V),SUMIF('Depreciation Calculator'!D:D,P26,'Depreciation Calculator'!W:W),SUMIF('Depreciation Calculator'!D:D,P26,'Depreciation Calculator'!X:X),SUMIF('Depreciation Calculator'!D:D,P26,'Depreciation Calculator'!Y:Y),SUMIF('Depreciation Calculator'!D:D,P26,'Depreciation Calculator'!Z:Z)),IF(O5='Depreciation Calculator'!AB2,SUM(SUMIF('Depreciation Calculator'!D:D,P26,'Depreciation Calculator'!T:T),SUMIF('Depreciation Calculator'!D:D,P26,'Depreciation Calculator'!U:U),SUMIF('Depreciation Calculator'!D:D,P26,'Depreciation Calculator'!V:V),SUMIF('Depreciation Calculator'!D:D,P26,'Depreciation Calculator'!W:W),SUMIF('Depreciation Calculator'!D:D,P26,'Depreciation Calculator'!X:X),SUMIF('Depreciation Calculator'!D:D,P26,'Depreciation Calculator'!Y:Y),SUMIF('Depreciation Calculator'!D:D,P26,'Depreciation Calculator'!Z:Z),SUMIF('Depreciation Calculator'!D:D,P26,'Depreciation Calculator'!AA:AA)),IF(O5='Depreciation Calculator'!AC2,SUM(SUMIF('Depreciation Calculator'!D:D,P26,'Depreciation Calculator'!T:T),SUMIF('Depreciation Calculator'!D:D,P26,'Depreciation Calculator'!U:U),SUMIF('Depreciation Calculator'!D:D,P26,'Depreciation Calculator'!V:V),SUMIF('Depreciation Calculator'!D:D,P26,'Depreciation Calculator'!W:W),SUMIF('Depreciation Calculator'!D:D,P26,'Depreciation Calculator'!X:X),SUMIF('Depreciation Calculator'!D:D,P26,'Depreciation Calculator'!Y:Y),SUMIF('Depreciation Calculator'!D:D,P26,'Depreciation Calculator'!Z:Z),SUMIF('Depreciation Calculator'!D:D,P26,'Depreciation Calculator'!AA:AA),SUMIF('Depreciation Calculator'!D:D,P26,'Depreciation Calculator'!AB:AB)),IF(O5='Depreciation Calculator'!AD2,SUM(SUMIF('Depreciation Calculator'!D:D,P26,'Depreciation Calculator'!T:T),SUMIF('Depreciation Calculator'!D:D,P26,'Depreciation Calculator'!U:U),SUMIF('Depreciation Calculator'!D:D,P26,'Depreciation Calculator'!V:V),SUMIF('Depreciation Calculator'!D:D,P26,'Depreciation Calculator'!W:W),SUMIF('Depreciation Calculator'!D:D,P26,'Depreciation Calculator'!X:X),SUMIF('Depreciation Calculator'!D:D,P26,'Depreciation Calculator'!Y:Y),SUMIF('Depreciation Calculator'!D:D,P26,'Depreciation Calculator'!Z:Z),SUMIF('Depreciation Calculator'!D:D,P26,'Depreciation Calculator'!AA:AA),SUMIF('Depreciation Calculator'!D:D,P26,'Depreciation Calculator'!AB:AB),SUMIF('Depreciation Calculator'!D:D,P26,'Depreciation Calculator'!AC:AC)),IF(O5='Depreciation Calculator'!AE2,SUM(SUMIF('Depreciation Calculator'!D:D,P26,'Depreciation Calculator'!T:T),SUMIF('Depreciation Calculator'!D:D,P26,'Depreciation Calculator'!U:U),SUMIF('Depreciation Calculator'!D:D,P26,'Depreciation Calculator'!V:V),SUMIF('Depreciation Calculator'!D:D,P26,'Depreciation Calculator'!W:W),SUMIF('Depreciation Calculator'!D:D,P26,'Depreciation Calculator'!X:X),SUMIF('Depreciation Calculator'!D:D,P26,'Depreciation Calculator'!Y:Y),SUMIF('Depreciation Calculator'!D:D,P26,'Depreciation Calculator'!Z:Z),SUMIF('Depreciation Calculator'!D:D,P26,'Depreciation Calculator'!AA:AA),SUMIF('Depreciation Calculator'!D:D,P26,'Depreciation Calculator'!AB:AB),SUMIF('Depreciation Calculator'!D:D,P26,'Depreciation Calculator'!AC:AC),SUMIF('Depreciation Calculator'!D:D,P26,'Depreciation Calculator'!AD:AD))))))))))))))/M5,0)-ROUND((SUMIFS('Depreciation Calculator'!E:E,'Depreciation Calculator'!L:L,"<"&'PPE Schedule'!O5,'Depreciation Calculator'!D:D,P26,'Depreciation Calculator'!M:M,"Yes")+SUMIFS('Depreciation Calculator'!G:G,'Depreciation Calculator'!L:L,"<"&'PPE Schedule'!O5,'Depreciation Calculator'!D:D,P26,'Depreciation Calculator'!M:M,"Yes")+SUMIFS('Depreciation Calculator'!O:O,'Depreciation Calculator'!L:L,"<"&'PPE Schedule'!O5,'Depreciation Calculator'!D:D,P26,'Depreciation Calculator'!M:M,"Yes")-SUMIFS('Depreciation Calculator'!N:N,'Depreciation Calculator'!L:L,"<"&'PPE Schedule'!O5,'Depreciation Calculator'!D:D,P26,'Depreciation Calculator'!M:M,"Yes"))/M5,0) -> 0 | W26: =ROUND((SUMIF('Depreciation Calculator'!D:D,'PPE Schedule'!P26,IF(O5='Depreciation Calculator'!T2,'Depreciation Calculator'!T1,IF(O5='Depreciation Calculator'!U2,'Depreciation Calculator'!U1,IF(O5='Depreciation Calculator'!V2,'Depreciation Calculator'!V1,IF(O5='Depreciation Calculator'!W2,'Depreciation Calculator'!W1,IF(O5='Depreciation Calculator'!X2,'Depreciation Calculator'!X1,IF(O5='Depreciation Calculator'!Y2,'Depreciation Calculator'!Y1,IF(O5='Depreciation Calculator'!AA2,'Depreciation Calculator'!AA1,IF(O5='Depreciation Calculator'!Z2,'Depreciation Calculator'!Z1,IF(O5='Depreciation Calculator'!AB2,'Depreciation Calculator'!AB1,IF(O5='Depreciation Calculator'!AC2,'Depreciation Calculator'!AC1,IF(O5='Depreciation Calculator'!AD2,'Depreciation Calculator'!AD1,IF(O5='Depreciation Calculator'!AE2,'Depreciation Calculator'!AE1,"Select proper range of year"))))))))))))))/M5,0) -> 0 | X26: =ROUND((SUMIFS('Depreciation Calculator'!E:E,'Depreciation Calculator'!L:L,">="&'PPE Schedule'!O5,'Depreciation Calculator'!L:L,"<="&'PPE Schedule'!P5,'Depreciation Calculator'!D:D,P26,'Depreciation Calculator'!M:M,"Yes")+SUMIFS('Depreciation Calculator'!G:G,'Depreciation Calculator'!L:L,">="&'PPE Schedule'!O5,'Depreciation Calculator'!L:L,"<="&'PPE Schedule'!P5,'Depreciation Calculator'!D:D,P26,'Depreciation Calculator'!M:M,"Yes")+SUMIFS('Depreciation Calculator'!O:O,'Depreciation Calculator'!L:L,">="&'PPE Schedule'!O5,'Depreciation Calculator'!L:L,"<="&'PPE Schedule'!P5,'Depreciation Calculator'!D:D,P26,'Depreciation Calculator'!M:M,"Yes")-SUMIFS('Depreciation Calculator'!N:N,'Depreciation Calculator'!L:L,">="&'PPE Schedule'!O5,'Depreciation Calculator'!L:L,"<="&'PPE Schedule'!P5,'Depreciation Calculator'!D:D,P26,'Depreciation Calculator'!M:M,"Yes"))/M5,0) -> 0 | Y26: 0 | Z26: 0
B27: (c) Computer software; | C27: 0 | D27: 0 | E27: 0 | F27: 0 | G27: 0 | H27: 0 | I27: 0 | J27: 0 | K27: 0 | R27: =ROUND(SUMIFS('Depreciation Calculator'!E:E,'Depreciation Calculator'!I:I,"<"&'PPE Schedule'!O5,'Depreciation Calculator'!D:D,P27)/M5,0)+ROUND(SUMIFS('Depreciation Calculator'!G:G,'Depreciation Calculator'!I:I,"<"&'PPE Schedule'!O5,'Depreciation Calculator'!D:D,P27)/M5,0)-ROUND(SUMIFS('Depreciation Calculator'!E:E,'Depreciation Calculator'!L:L,"<"&'PPE Schedule'!O5,'Depreciation Calculator'!D:D,P27,'Depreciation Calculator'!M:M,"Yes")/M5,0)-ROUND(SUMIFS('Depreciation Calculator'!G:G,'Depreciation Calculator'!L:L,"<"&'PPE Schedule'!O5,'Depreciation Calculator'!D:D,P27,'Depreciation Calculator'!M:M,"Yes")/M5,0) -> 0 | S27: =ROUND(SUMIFS('Depreciation Calculator'!E:E,'Depreciation Calculator'!I:I,">="&'PPE Schedule'!O5,'Depreciation Calculator'!I:I,"<="&'PPE Schedule'!P5,'Depreciation Calculator'!D:D,P27)/M5,0) -> 0 | T27: =ROUND((SUMIFS('Depreciation Calculator'!E:E,'Depreciation Calculator'!L:L,">="&'PPE Schedule'!O5,'Depreciation Calculator'!L:L,"<="&'PPE Schedule'!P5,'Depreciation Calculator'!D:D,P27,'Depreciation Calculator'!M:M,"Yes")+SUMIFS('Depreciation Calculator'!G:G,'Depreciation Calculator'!L:L,">="&'PPE Schedule'!O5,'Depreciation Calculator'!L:L,"<="&'PPE Schedule'!P5,'Depreciation Calculator'!D:D,P27,'Depreciation Calculator'!M:M,"Yes"))/M5,0) -> 0 | U27: 0 | V27: =ROUND((SUMIF('Depreciation Calculator'!D:D,'PPE Schedule'!P27,'Depreciation Calculator'!H:H)+SUMIF('Depreciation Calculator'!D:D,'PPE Schedule'!P27,'Depreciation Calculator'!S:S)+IF(O5='Depreciation Calculator'!U2,SUM(SUMIF('Depreciation Calculator'!D:D,P27,'Depreciation Calculator'!T:T)),IF(O5='Depreciation Calculator'!V2,SUM(SUMIF('Depreciation Calculator'!D:D,P27,'Depreciation Calculator'!T:T),SUMIF('Depreciation Calculator'!D:D,P27,'Depreciation Calculator'!U:U)),IF(O5='Depreciation Calculator'!W2,SUM(SUMIF('Depreciation Calculator'!D:D,P27,'Depreciation Calculator'!T:T),SUMIF('Depreciation Calculator'!D:D,P27,'Depreciation Calculator'!U:U),SUMIF('Depreciation Calculator'!D:D,P27,'Depreciation Calculator'!V:V)),IF(O5='Depreciation Calculator'!X2,SUM(SUMIF('Depreciation Calculator'!D:D,P27,'Depreciation Calculator'!T:T),SUMIF('Depreciation Calculator'!D:D,P27,'Depreciation Calculator'!U:U),SUMIF('Depreciation Calculator'!D:D,P27,'Depreciation Calculator'!V:V),SUMIF('Depreciation Calculator'!D:D,P27,'Depreciation Calculator'!W:W)),IF(O5='Depreciation Calculator'!Y2,SUM(SUMIF('Depreciation Calculator'!D:D,P27,'Depreciation Calculator'!T:T),SUMIF('Depreciation Calculator'!D:D,P27,'Depreciation Calculator'!U:U),SUMIF('Depreciation Calculator'!D:D,P27,'Depreciation Calculator'!V:V),SUMIF('Depreciation Calculator'!D:D,P27,'Depreciation Calculator'!W:W),SUMIF('Depreciation Calculator'!D:D,P27,'Depreciation Calculator'!X:X)),IF(O5='Depreciation Calculator'!Z2,SUM(SUMIF('Depreciation Calculator'!D:D,P27,'Depreciation Calculator'!T:T),SUMIF('Depreciation Calculator'!D:D,P27,'Depreciation Calculator'!U:U),SUMIF('Depreciation Calculator'!D:D,P27,'Depreciation Calculator'!V:V),SUMIF('Depreciation Calculator'!D:D,P27,'Depreciation Calculator'!W:W),SUMIF('Depreciation Calculator'!D:D,P27,'Depreciation Calculator'!X:X),SUMIF('Depreciation Calculator'!D:D,P27,'Depreciation Calculator'!Y:Y)),IF(O5='Depreciation Calculator'!AA2,SUM(SUMIF('Depreciation Calculator'!D:D,P27,'Depreciation Calculator'!T:T),SUMIF('Depreciation Calculator'!D:D,P27,'Depreciation Calculator'!U:U),SUMIF('Depreciation Calculator'!D:D,P27,'Depreciation Calculator'!V:V),SUMIF('Depreciation Calculator'!D:D,P27,'Depreciation Calculator'!W:W),SUMIF('Depreciation Calculator'!D:D,P27,'Depreciation Calculator'!X:X),SUMIF('Depreciation Calculator'!D:D,P27,'Depreciation Calculator'!Y:Y),SUMIF('Depreciation Calculator'!D:D,P27,'Depreciation Calculator'!Z:Z)),IF(O5='Depreciation Calculator'!AB2,SUM(SUMIF('Depreciation Calculator'!D:D,P27,'Depreciation Calculator'!T:T),SUMIF('Depreciation Calculator'!D:D,P27,'Depreciation Calculator'!U:U),SUMIF('Depreciation Calculator'!D:D,P27,'Depreciation Calculator'!V:V),SUMIF('Depreciation Calculator'!D:D,P27,'Depreciation Calculator'!W:W),SUMIF('Depreciation Calculator'!D:D,P27,'Depreciation Calculator'!X:X),SUMIF('Depreciation Calculator'!D:D,P27,'Depreciation Calculator'!Y:Y),SUMIF('Depreciation Calculator'!D:D,P27,'Depreciation Calculator'!Z:Z),SUMIF('Depreciation Calculator'!D:D,P27,'Depreciation Calculator'!AA:AA)),IF(O5='Depreciation Calculator'!AC2,SUM(SUMIF('Depreciation Calculator'!D:D,P27,'Depreciation Calculator'!T:T),SUMIF('Depreciation Calculator'!D:D,P27,'Depreciation Calculator'!U:U),SUMIF('Depreciation Calculator'!D:D,P27,'Depreciation Calculator'!V:V),SUMIF('Depreciation Calculator'!D:D,P27,'Depreciation Calculator'!W:W),SUMIF('Depreciation Calculator'!D:D,P27,'Depreciation Calculator'!X:X),SUMIF('Depreciation Calculator'!D:D,P27,'Depreciation Calculator'!Y:Y),SUMIF('Depreciation Calculator'!D:D,P27,'Depreciation Calculator'!Z:Z),SUMIF('Depreciation Calculator'!D:D,P27,'Depreciation Calculator'!AA:AA),SUMIF('Depreciation Calculator'!D:D,P27,'Depreciation Calculator'!AB:AB)),IF(O5='Depreciation Calculator'!AD2,SUM(SUMIF('Depreciation Calculator'!D:D,P27,'Depreciation Calculator'!T:T),SUMIF('Depreciation Calculator'!D:D,P27,'Depreciation Calculator'!U:U),SUMIF('Depreciation Calculator'!D:D,P27,'Depreciation Calculator'!V:V),SUMIF('Depreciation Calculator'!D:D,P27,'Depreciation Calculator'!W:W),SUMIF('Depreciation Calculator'!D:D,P27,'Depreciation Calculator'!X:X),SUMIF('Depreciation Calculator'!D:D,P27,'Depreciation Calculator'!Y:Y),SUMIF('Depreciation Calculator'!D:D,P27,'Depreciation Calculator'!Z:Z),SUMIF('Depreciation Calculator'!D:D,P27,'Depreciation Calculator'!AA:AA),SUMIF('Depreciation Calculator'!D:D,P27,'Depreciation Calculator'!AB:AB),SUMIF('Depreciation Calculator'!D:D,P27,'Depreciation Calculator'!AC:AC)),IF(O5='Depreciation Calculator'!AE2,SUM(SUMIF('Depreciation Calculator'!D:D,P27,'Depreciation Calculator'!T:T),SUMIF('Depreciation Calculator'!D:D,P27,'Depreciation Calculator'!U:U),SUMIF('Depreciation Calculator'!D:D,P27,'Depreciation Calculator'!V:V),SUMIF('Depreciation Calculator'!D:D,P27,'Depreciation Calculator'!W:W),SUMIF('Depreciation Calculator'!D:D,P27,'Depreciation Calculator'!X:X),SUMIF('Depreciation Calculator'!D:D,P27,'Depreciation Calculator'!Y:Y),SUMIF('Depreciation Calculator'!D:D,P27,'Depreciation Calculator'!Z:Z),SUMIF('Depreciation Calculator'!D:D,P27,'Depreciation Calculator'!AA:AA),SUMIF('Depreciation Calculator'!D:D,P27,'Depreciation Calculator'!AB:AB),SUMIF('Depreciation Calculator'!D:D,P27,'Depreciation Calculator'!AC:AC),SUMIF('Depreciation Calculator'!D:D,P27,'Depreciation Calculator'!AD:AD))))))))))))))/M5,0)-ROUND((SUMIFS('Depreciation Calculator'!E:E,'Depreciation Calculator'!L:L,"<"&'PPE Schedule'!O5,'Depreciation Calculator'!D:D,P27,'Depreciation Calculator'!M:M,"Yes")+SUMIFS('Depreciation Calculator'!G:G,'Depreciation Calculator'!L:L,"<"&'PPE Schedule'!O5,'Depreciation Calculator'!D:D,P27,'Depreciation Calculator'!M:M,"Yes")+SUMIFS('Depreciation Calculator'!O:O,'Depreciation Calculator'!L:L,"<"&'PPE Schedule'!O5,'Depreciation Calculator'!D:D,P27,'Depreciation Calculator'!M:M,"Yes")-SUMIFS('Depreciation Calculator'!N:N,'Depreciation Calculator'!L:L,"<"&'PPE Schedule'!O5,'Depreciation Calculator'!D:D,P27,'Depreciation Calculator'!M:M,"Yes"))/M5,0) -> 0 | W27: =ROUND((SUMIF('Depreciation Calculator'!D:D,'PPE Schedule'!P27,IF(O5='Depreciation Calculator'!T2,'Depreciation Calculator'!T1,IF(O5='Depreciation Calculator'!U2,'Depreciation Calculator'!U1,IF(O5='Depreciation Calculator'!V2,'Depreciation Calculator'!V1,IF(O5='Depreciation Calculator'!W2,'Depreciation Calculator'!W1,IF(O5='Depreciation Calculator'!X2,'Depreciation Calculator'!X1,IF(O5='Depreciation Calculator'!Y2,'Depreciation Calculator'!Y1,IF(O5='Depreciation Calculator'!AA2,'Depreciation Calculator'!AA1,IF(O5='Depreciation Calculator'!Z2,'Depreciation Calculator'!Z1,IF(O5='Depreciation Calculator'!AB2,'Depreciation Calculator'!AB1,IF(O5='Depreciation Calculator'!AC2,'Depreciation Calculator'!AC1,IF(O5='Depreciation Calculator'!AD2,'Depreciation Calculator'!AD1,IF(O5='Depreciation Calculator'!AE2,'Depreciation Calculator'!AE1,"Select proper range of year"))))))))))))))/M5,0) -> 0 | X27: =ROUND((SUMIFS('Depreciation Calculator'!E:E,'Depreciation Calculator'!L:L,">="&'PPE Schedule'!O5,'Depreciation Calculator'!L:L,"<="&'PPE Schedule'!P5,'Depreciation Calculator'!D:D,P27,'Depreciation Calculator'!M:M,"Yes")+SUMIFS('Depreciation Calculator'!G:G,'Depreciation Calculator'!L:L,">="&'PPE Schedule'!O5,'Depreciation Calculator'!L:L,"<="&'PPE Schedule'!P5,'Depreciation Calculator'!D:D,P27,'Depreciation Calculator'!M:M,"Yes")+SUMIFS('Depreciation Calculator'!O:O,'Depreciation Calculator'!L:L,">="&'PPE Schedule'!O5,'Depreciation Calculator'!L:L,"<="&'PPE Schedule'!P5,'Depreciation Calculator'!D:D,P27,'Depreciation Calculator'!M:M,"Yes")-SUMIFS('Depreciation Calculator'!N:N,'Depreciation Calculator'!L:L,">="&'PPE Schedule'!O5,'Depreciation Calculator'!L:L,"<="&'PPE Schedule'!P5,'Depreciation Calculator'!D:D,P27,'Depreciation Calculator'!M:M,"Yes"))/M5,0) -> 0 | Y27: 0 | Z27: 0
B28: (d) Mastheads and publishing titles; | C28: 0 | D28: 0 | E28: 0 | F28: 0 | G28: 0 | H28: 0 | I28: 0 | J28: 0 | K28: 0 | R28: =ROUND(SUMIFS('Depreciation Calculator'!E:E,'Depreciation Calculator'!I:I,"<"&'PPE Schedule'!O5,'Depreciation Calculator'!D:D,P28)/M5,0)+ROUND(SUMIFS('Depreciation Calculator'!G:G,'Depreciation Calculator'!I:I,"<"&'PPE Schedule'!O5,'Depreciation Calculator'!D:D,P28)/M5,0)-ROUND(SUMIFS('Depreciation Calculator'!E:E,'Depreciation Calculator'!L:L,"<"&'PPE Schedule'!O5,'Depreciation Calculator'!D:D,P28,'Depreciation Calculator'!M:M,"Yes")/M5,0)-ROUND(SUMIFS('Depreciation Calculator'!G:G,'Depreciation Calculator'!L:L,"<"&'PPE Schedule'!O5,'Depreciation Calculator'!D:D,P28,'Depreciation Calculator'!M:M,"Yes")/M5,0) -> 0 | S28: =ROUND(SUMIFS('Depreciation Calculator'!E:E,'Depreciation Calculator'!I:I,">="&'PPE Schedule'!O5,'Depreciation Calculator'!I:I,"<="&'PPE Schedule'!P5,'Depreciation Calculator'!D:D,P28)/M5,0) -> 0 | T28: =ROUND((SUMIFS('Depreciation Calculator'!E:E,'Depreciation Calculator'!L:L,">="&'PPE Schedule'!O5,'Depreciation Calculator'!L:L,"<="&'PPE Schedule'!P5,'Depreciation Calculator'!D:D,P28,'Depreciation Calculator'!M:M,"Yes")+SUMIFS('Depreciation Calculator'!G:G,'Depreciation Calculator'!L:L,">="&'PPE Schedule'!O5,'Depreciation Calculator'!L:L,"<="&'PPE Schedule'!P5,'Depreciation Calculator'!D:D,P28,'Depreciation Calculator'!M:M,"Yes"))/M5,0) -> 0 | U28: 0 | V28: =ROUND((SUMIF('Depreciation Calculator'!D:D,'PPE Schedule'!P28,'Depreciation Calculator'!H:H)+SUMIF('Depreciation Calculator'!D:D,'PPE Schedule'!P28,'Depreciation Calculator'!S:S)+IF(O5='Depreciation Calculator'!U2,SUM(SUMIF('Depreciation Calculator'!D:D,P28,'Depreciation Calculator'!T:T)),IF(O5='Depreciation Calculator'!V2,SUM(SUMIF('Depreciation Calculator'!D:D,P28,'Depreciation Calculator'!T:T),SUMIF('Depreciation Calculator'!D:D,P28,'Depreciation Calculator'!U:U)),IF(O5='Depreciation Calculator'!W2,SUM(SUMIF('Depreciation Calculator'!D:D,P28,'Depreciation Calculator'!T:T),SUMIF('Depreciation Calculator'!D:D,P28,'Depreciation Calculator'!U:U),SUMIF('Depreciation Calculator'!D:D,P28,'Depreciation Calculator'!V:V)),IF(O5='Depreciation Calculator'!X2,SUM(SUMIF('Depreciation Calculator'!D:D,P28,'Depreciation Calculator'!T:T),SUMIF('Depreciation Calculator'!D:D,P28,'Depreciation Calculator'!U:U),SUMIF('Depreciation Calculator'!D:D,P28,'Depreciation Calculator'!V:V),SUMIF('Depreciation Calculator'!D:D,P28,'Depreciation Calculator'!W:W)),IF(O5='Depreciation Calculator'!Y2,SUM(SUMIF('Depreciation Calculator'!D:D,P28,'Depreciation Calculator'!T:T),SUMIF('Depreciation Calculator'!D:D,P28,'Depreciation Calculator'!U:U),SUMIF('Depreciation Calculator'!D:D,P28,'Depreciation Calculator'!V:V),SUMIF('Depreciation Calculator'!D:D,P28,'Depreciation Calculator'!W:W),SUMIF('Depreciation Calculator'!D:D,P28,'Depreciation Calculator'!X:X)),IF(O5='Depreciation Calculator'!Z2,SUM(SUMIF('Depreciation Calculator'!D:D,P28,'Depreciation Calculator'!T:T),SUMIF('Depreciation Calculator'!D:D,P28,'Depreciation Calculator'!U:U),SUMIF('Depreciation Calculator'!D:D,P28,'Depreciation Calculator'!V:V),SUMIF('Depreciation Calculator'!D:D,P28,'Depreciation Calculator'!W:W),SUMIF('Depreciation Calculator'!D:D,P28,'Depreciation Calculator'!X:X),SUMIF('Depreciation Calculator'!D:D,P28,'Depreciation Calculator'!Y:Y)),IF(O5='Depreciation Calculator'!AA2,SUM(SUMIF('Depreciation Calculator'!D:D,P28,'Depreciation Calculator'!T:T),SUMIF('Depreciation Calculator'!D:D,P28,'Depreciation Calculator'!U:U),SUMIF('Depreciation Calculator'!D:D,P28,'Depreciation Calculator'!V:V),SUMIF('Depreciation Calculator'!D:D,P28,'Depreciation Calculator'!W:W),SUMIF('Depreciation Calculator'!D:D,P28,'Depreciation Calculator'!X:X),SUMIF('Depreciation Calculator'!D:D,P28,'Depreciation Calculator'!Y:Y),SUMIF('Depreciation Calculator'!D:D,P28,'Depreciation Calculator'!Z:Z)),IF(O5='Depreciation Calculator'!AB2,SUM(SUMIF('Depreciation Calculator'!D:D,P28,'Depreciation Calculator'!T:T),SUMIF('Depreciation Calculator'!D:D,P28,'Depreciation Calculator'!U:U),SUMIF('Depreciation Calculator'!D:D,P28,'Depreciation Calculator'!V:V),SUMIF('Depreciation Calculator'!D:D,P28,'Depreciation Calculator'!W:W),SUMIF('Depreciation Calculator'!D:D,P28,'Depreciation Calculator'!X:X),SUMIF('Depreciation Calculator'!D:D,P28,'Depreciation Calculator'!Y:Y),SUMIF('Depreciation Calculator'!D:D,P28,'Depreciation Calculator'!Z:Z),SUMIF('Depreciation Calculator'!D:D,P28,'Depreciation Calculator'!AA:AA)),IF(O5='Depreciation Calculator'!AC2,SUM(SUMIF('Depreciation Calculator'!D:D,P28,'Depreciation Calculator'!T:T),SUMIF('Depreciation Calculator'!D:D,P28,'Depreciation Calculator'!U:U),SUMIF('Depreciation Calculator'!D:D,P28,'Depreciation Calculator'!V:V),SUMIF('Depreciation Calculator'!D:D,P28,'Depreciation Calculator'!W:W),SUMIF('Depreciation Calculator'!D:D,P28,'Depreciation Calculator'!X:X),SUMIF('Depreciation Calculator'!D:D,P28,'Depreciation Calculator'!Y:Y),SUMIF('Depreciation Calculator'!D:D,P28,'Depreciation Calculator'!Z:Z),SUMIF('Depreciation Calculator'!D:D,P28,'Depreciation Calculator'!AA:AA),SUMIF('Depreciation Calculator'!D:D,P28,'Depreciation Calculator'!AB:AB)),IF(O5='Depreciation Calculator'!AD2,SUM(SUMIF('Depreciation Calculator'!D:D,P28,'Depreciation Calculator'!T:T),SUMIF('Depreciation Calculator'!D:D,P28,'Depreciation Calculator'!U:U),SUMIF('Depreciation Calculator'!D:D,P28,'Depreciation Calculator'!V:V),SUMIF('Depreciation Calculator'!D:D,P28,'Depreciation Calculator'!W:W),SUMIF('Depreciation Calculator'!D:D,P28,'Depreciation Calculator'!X:X),SUMIF('Depreciation Calculator'!D:D,P28,'Depreciation Calculator'!Y:Y),SUMIF('Depreciation Calculator'!D:D,P28,'Depreciation Calculator'!Z:Z),SUMIF('Depreciation Calculator'!D:D,P28,'Depreciation Calculator'!AA:AA),SUMIF('Depreciation Calculator'!D:D,P28,'Depreciation Calculator'!AB:AB),SUMIF('Depreciation Calculator'!D:D,P28,'Depreciation Calculator'!AC:AC)),IF(O5='Depreciation Calculator'!AE2,SUM(SUMIF('Depreciation Calculator'!D:D,P28,'Depreciation Calculator'!T:T),SUMIF('Depreciation Calculator'!D:D,P28,'Depreciation Calculator'!U:U),SUMIF('Depreciation Calculator'!D:D,P28,'Depreciation Calculator'!V:V),SUMIF('Depreciation Calculator'!D:D,P28,'Depreciation Calculator'!W:W),SUMIF('Depreciation Calculator'!D:D,P28,'Depreciation Calculator'!X:X),SUMIF('Depreciation Calculator'!D:D,P28,'Depreciation Calculator'!Y:Y),SUMIF('Depreciation Calculator'!D:D,P28,'Depreciation Calculator'!Z:Z),SUMIF('Depreciation Calculator'!D:D,P28,'Depreciation Calculator'!AA:AA),SUMIF('Depreciation Calculator'!D:D,P28,'Depreciation Calculator'!AB:AB),SUMIF('Depreciation Calculator'!D:D,P28,'Depreciation Calculator'!AC:AC),SUMIF('Depreciation Calculator'!D:D,P28,'Depreciation Calculator'!AD:AD))))))))))))))/M5,0)-ROUND((SUMIFS('Depreciation Calculator'!E:E,'Depreciation Calculator'!L:L,"<"&'PPE Schedule'!O5,'Depreciation Calculator'!D:D,P28,'Depreciation Calculator'!M:M,"Yes")+SUMIFS('Depreciation Calculator'!G:G,'Depreciation Calculator'!L:L,"<"&'PPE Schedule'!O5,'Depreciation Calculator'!D:D,P28,'Depreciation Calculator'!M:M,"Yes")+SUMIFS('Depreciation Calculator'!O:O,'Depreciation Calculator'!L:L,"<"&'PPE Schedule'!O5,'Depreciation Calculator'!D:D,P28,'Depreciation Calculator'!M:M,"Yes")-SUMIFS('Depreciation Calculator'!N:N,'Depreciation Calculator'!L:L,"<"&'PPE Schedule'!O5,'Depreciation Calculator'!D:D,P28,'Depreciation Calculator'!M:M,"Yes"))/M5,0) -> 0 | W28: =ROUND((SUMIF('Depreciation Calculator'!D:D,'PPE Schedule'!P28,IF(O5='Depreciation Calculator'!T2,'Depreciation Calculator'!T1,IF(O5='Depreciation Calculator'!U2,'Depreciation Calculator'!U1,IF(O5='Depreciation Calculator'!V2,'Depreciation Calculator'!V1,IF(O5='Depreciation Calculator'!W2,'Depreciation Calculator'!W1,IF(O5='Depreciation Calculator'!X2,'Depreciation Calculator'!X1,IF(O5='Depreciation Calculator'!Y2,'Depreciation Calculator'!Y1,IF(O5='Depreciation Calculator'!AA2,'Depreciation Calculator'!AA1,IF(O5='Depreciation Calculator'!Z2,'Depreciation Calculator'!Z1,IF(O5='Depreciation Calculator'!AB2,'Depreciation Calculator'!AB1,IF(O5='Depreciation Calculator'!AC2,'Depreciation Calculator'!AC1,IF(O5='Depreciation Calculator'!AD2,'Depreciation Calculator'!AD1,IF(O5='Depreciation Calculator'!AE2,'Depreciation Calculator'!AE1,"Select proper range of year"))))))))))))))/M5,0) -> 0 | X28: =ROUND((SUMIFS('Depreciation Calculator'!E:E,'Depreciation Calculator'!L:L,">="&'PPE Schedule'!O5,'Depreciation Calculator'!L:L,"<="&'PPE Schedule'!P5,'Depreciation Calculator'!D:D,P28,'Depreciation Calculator'!M:M,"Yes")+SUMIFS('Depreciation Calculator'!G:G,'Depreciation Calculator'!L:L,">="&'PPE Schedule'!O5,'Depreciation Calculator'!L:L,"<="&'PPE Schedule'!P5,'Depreciation Calculator'!D:D,P28,'Depreciation Calculator'!M:M,"Yes")+SUMIFS('Depreciation Calculator'!O:O,'Depreciation Calculator'!L:L,">="&'PPE Schedule'!O5,'Depreciation Calculator'!L:L,"<="&'PPE Schedule'!P5,'Depreciation Calculator'!D:D,P28,'Depreciation Calculator'!M:M,"Yes")-SUMIFS('Depreciation Calculator'!N:N,'Depreciation Calculator'!L:L,">="&'PPE Schedule'!O5,'Depreciation Calculator'!L:L,"<="&'PPE Schedule'!P5,'Depreciation Calculator'!D:D,P28,'Depreciation Calculator'!M:M,"Yes"))/M5,0) -> 0 | Y28: 0 | Z28: 0
B29: (e) Mining rights; | C29: 0 | D29: 0 | E29: 0 | F29: 0 | G29: 0 | H29: 0 | I29: 0 | J29: 0 | K29: 0 | R29: =ROUND(SUMIFS('Depreciation Calculator'!E:E,'Depreciation Calculator'!I:I,"<"&'PPE Schedule'!O5,'Depreciation Calculator'!D:D,P29)/M5,0)+ROUND(SUMIFS('Depreciation Calculator'!G:G,'Depreciation Calculator'!I:I,"<"&'PPE Schedule'!O5,'Depreciation Calculator'!D:D,P29)/M5,0)-ROUND(SUMIFS('Depreciation Calculator'!E:E,'Depreciation Calculator'!L:L,"<"&'PPE Schedule'!O5,'Depreciation Calculator'!D:D,P29,'Depreciation Calculator'!M:M,"Yes")/M5,0)-ROUND(SUMIFS('Depreciation Calculator'!G:G,'Depreciation Calculator'!L:L,"<"&'PPE Schedule'!O5,'Depreciation Calculator'!D:D,P29,'Depreciation Calculator'!M:M,"Yes")/M5,0) -> 0 | S29: =ROUND(SUMIFS('Depreciation Calculator'!E:E,'Depreciation Calculator'!I:I,">="&'PPE Schedule'!O5,'Depreciation Calculator'!I:I,"<="&'PPE Schedule'!P5,'Depreciation Calculator'!D:D,P29)/M5,0) -> 0 | T29: =ROUND((SUMIFS('Depreciation Calculator'!E:E,'Depreciation Calculator'!L:L,">="&'PPE Schedule'!O5,'Depreciation Calculator'!L:L,"<="&'PPE Schedule'!P5,'Depreciation Calculator'!D:D,P29,'Depreciation Calculator'!M:M,"Yes")+SUMIFS('Depreciation Calculator'!G:G,'Depreciation Calculator'!L:L,">="&'PPE Schedule'!O5,'Depreciation Calculator'!L:L,"<="&'PPE Schedule'!P5,'Depreciation Calculator'!D:D,P29,'Depreciation Calculator'!M:M,"Yes"))/M5,0) -> 0 | U29: 0 | V29: =ROUND((SUMIF('Depreciation Calculator'!D:D,'PPE Schedule'!P29,'Depreciation Calculator'!H:H)+SUMIF('Depreciation Calculator'!D:D,'PPE Schedule'!P29,'Depreciation Calculator'!S:S)+IF(O5='Depreciation Calculator'!U2,SUM(SUMIF('Depreciation Calculator'!D:D,P29,'Depreciation Calculator'!T:T)),IF(O5='Depreciation Calculator'!V2,SUM(SUMIF('Depreciation Calculator'!D:D,P29,'Depreciation Calculator'!T:T),SUMIF('Depreciation Calculator'!D:D,P29,'Depreciation Calculator'!U:U)),IF(O5='Depreciation Calculator'!W2,SUM(SUMIF('Depreciation Calculator'!D:D,P29,'Depreciation Calculator'!T:T),SUMIF('Depreciation Calculator'!D:D,P29,'Depreciation Calculator'!U:U),SUMIF('Depreciation Calculator'!D:D,P29,'Depreciation Calculator'!V:V)),IF(O5='Depreciation Calculator'!X2,SUM(SUMIF('Depreciation Calculator'!D:D,P29,'Depreciation Calculator'!T:T),SUMIF('Depreciation Calculator'!D:D,P29,'Depreciation Calculator'!U:U),SUMIF('Depreciation Calculator'!D:D,P29,'Depreciation Calculator'!V:V),SUMIF('Depreciation Calculator'!D:D,P29,'Depreciation Calculator'!W:W)),IF(O5='Depreciation Calculator'!Y2,SUM(SUMIF('Depreciation Calculator'!D:D,P29,'Depreciation Calculator'!T:T),SUMIF('Depreciation Calculator'!D:D,P29,'Depreciation Calculator'!U:U),SUMIF('Depreciation Calculator'!D:D,P29,'Depreciation Calculator'!V:V),SUMIF('Depreciation Calculator'!D:D,P29,'Depreciation Calculator'!W:W),SUMIF('Depreciation Calculator'!D:D,P29,'Depreciation Calculator'!X:X)),IF(O5='Depreciation Calculator'!Z2,SUM(SUMIF('Depreciation Calculator'!D:D,P29,'Depreciation Calculator'!T:T),SUMIF('Depreciation Calculator'!D:D,P29,'Depreciation Calculator'!U:U),SUMIF('Depreciation Calculator'!D:D,P29,'Depreciation Calculator'!V:V),SUMIF('Depreciation Calculator'!D:D,P29,'Depreciation Calculator'!W:W),SUMIF('Depreciation Calculator'!D:D,P29,'Depreciation Calculator'!X:X),SUMIF('Depreciation Calculator'!D:D,P29,'Depreciation Calculator'!Y:Y)),IF(O5='Depreciation Calculator'!AA2,SUM(SUMIF('Depreciation Calculator'!D:D,P29,'Depreciation Calculator'!T:T),SUMIF('Depreciation Calculator'!D:D,P29,'Depreciation Calculator'!U:U),SUMIF('Depreciation Calculator'!D:D,P29,'Depreciation Calculator'!V:V),SUMIF('Depreciation Calculator'!D:D,P29,'Depreciation Calculator'!W:W),SUMIF('Depreciation Calculator'!D:D,P29,'Depreciation Calculator'!X:X),SUMIF('Depreciation Calculator'!D:D,P29,'Depreciation Calculator'!Y:Y),SUMIF('Depreciation Calculator'!D:D,P29,'Depreciation Calculator'!Z:Z)),IF(O5='Depreciation Calculator'!AB2,SUM(SUMIF('Depreciation Calculator'!D:D,P29,'Depreciation Calculator'!T:T),SUMIF('Depreciation Calculator'!D:D,P29,'Depreciation Calculator'!U:U),SUMIF('Depreciation Calculator'!D:D,P29,'Depreciation Calculator'!V:V),SUMIF('Depreciation Calculator'!D:D,P29,'Depreciation Calculator'!W:W),SUMIF('Depreciation Calculator'!D:D,P29,'Depreciation Calculator'!X:X),SUMIF('Depreciation Calculator'!D:D,P29,'Depreciation Calculator'!Y:Y),SUMIF('Depreciation Calculator'!D:D,P29,'Depreciation Calculator'!Z:Z),SUMIF('Depreciation Calculator'!D:D,P29,'Depreciation Calculator'!AA:AA)),IF(O5='Depreciation Calculator'!AC2,SUM(SUMIF('Depreciation Calculator'!D:D,P29,'Depreciation Calculator'!T:T),SUMIF('Depreciation Calculator'!D:D,P29,'Depreciation Calculator'!U:U),SUMIF('Depreciation Calculator'!D:D,P29,'Depreciation Calculator'!V:V),SUMIF('Depreciation Calculator'!D:D,P29,'Depreciation Calculator'!W:W),SUMIF('Depreciation Calculator'!D:D,P29,'Depreciation Calculator'!X:X),SUMIF('Depreciation Calculator'!D:D,P29,'Depreciation Calculator'!Y:Y),SUMIF('Depreciation Calculator'!D:D,P29,'Depreciation Calculator'!Z:Z),SUMIF('Depreciation Calculator'!D:D,P29,'Depreciation Calculator'!AA:AA),SUMIF('Depreciation Calculator'!D:D,P29,'Depreciation Calculator'!AB:AB)),IF(O5='Depreciation Calculator'!AD2,SUM(SUMIF('Depreciation Calculator'!D:D,P29,'Depreciation Calculator'!T:T),SUMIF('Depreciation Calculator'!D:D,P29,'Depreciation Calculator'!U:U),SUMIF('Depreciation Calculator'!D:D,P29,'Depreciation Calculator'!V:V),SUMIF('Depreciation Calculator'!D:D,P29,'Depreciation Calculator'!W:W),SUMIF('Depreciation Calculator'!D:D,P29,'Depreciation Calculator'!X:X),SUMIF('Depreciation Calculator'!D:D,P29,'Depreciation Calculator'!Y:Y),SUMIF('Depreciation Calculator'!D:D,P29,'Depreciation Calculator'!Z:Z),SUMIF('Depreciation Calculator'!D:D,P29,'Depreciation Calculator'!AA:AA),SUMIF('Depreciation Calculator'!D:D,P29,'Depreciation Calculator'!AB:AB),SUMIF('Depreciation Calculator'!D:D,P29,'Depreciation Calculator'!AC:AC)),IF(O5='Depreciation Calculator'!AE2,SUM(SUMIF('Depreciation Calculator'!D:D,P29,'Depreciation Calculator'!T:T),SUMIF('Depreciation Calculator'!D:D,P29,'Depreciation Calculator'!U:U),SUMIF('Depreciation Calculator'!D:D,P29,'Depreciation Calculator'!V:V),SUMIF('Depreciation Calculator'!D:D,P29,'Depreciation Calculator'!W:W),SUMIF('Depreciation Calculator'!D:D,P29,'Depreciation Calculator'!X:X),SUMIF('Depreciation Calculator'!D:D,P29,'Depreciation Calculator'!Y:Y),SUMIF('Depreciation Calculator'!D:D,P29,'Depreciation Calculator'!Z:Z),SUMIF('Depreciation Calculator'!D:D,P29,'Depreciation Calculator'!AA:AA),SUMIF('Depreciation Calculator'!D:D,P29,'Depreciation Calculator'!AB:AB),SUMIF('Depreciation Calculator'!D:D,P29,'Depreciation Calculator'!AC:AC),SUMIF('Depreciation Calculator'!D:D,P29,'Depreciation Calculator'!AD:AD))))))))))))))/M5,0)-ROUND((SUMIFS('Depreciation Calculator'!E:E,'Depreciation Calculator'!L:L,"<"&'PPE Schedule'!O5,'Depreciation Calculator'!D:D,P29,'Depreciation Calculator'!M:M,"Yes")+SUMIFS('Depreciation Calculator'!G:G,'Depreciation Calculator'!L:L,"<"&'PPE Schedule'!O5,'Depreciation Calculator'!D:D,P29,'Depreciation Calculator'!M:M,"Yes")+SUMIFS('Depreciation Calculator'!O:O,'Depreciation Calculator'!L:L,"<"&'PPE Schedule'!O5,'Depreciation Calculator'!D:D,P29,'Depreciation Calculator'!M:M,"Yes")-SUMIFS('Depreciation Calculator'!N:N,'Depreciation Calculator'!L:L,"<"&'PPE Schedule'!O5,'Depreciation Calculator'!D:D,P29,'Depreciation Calculator'!M:M,"Yes"))/M5,0) -> 0 | W29: =ROUND((SUMIF('Depreciation Calculator'!D:D,'PPE Schedule'!P29,IF(O5='Depreciation Calculator'!T2,'Depreciation Calculator'!T1,IF(O5='Depreciation Calculator'!U2,'Depreciation Calculator'!U1,IF(O5='Depreciation Calculator'!V2,'Depreciation Calculator'!V1,IF(O5='Depreciation Calculator'!W2,'Depreciation Calculator'!W1,IF(O5='Depreciation Calculator'!X2,'Depreciation Calculator'!X1,IF(O5='Depreciation Calculator'!Y2,'Depreciation Calculator'!Y1,IF(O5='Depreciation Calculator'!AA2,'Depreciation Calculator'!AA1,IF(O5='Depreciation Calculator'!Z2,'Depreciation Calculator'!Z1,IF(O5='Depreciation Calculator'!AB2,'Depreciation Calculator'!AB1,IF(O5='Depreciation Calculator'!AC2,'Depreciation Calculator'!AC1,IF(O5='Depreciation Calculator'!AD2,'Depreciation Calculator'!AD1,IF(O5='Depreciation Calculator'!AE2,'Depreciation Calculator'!AE1,"Select proper range of year"))))))))))))))/M5,0) -> 0 | X29: =ROUND((SUMIFS('Depreciation Calculator'!E:E,'Depreciation Calculator'!L:L,">="&'PPE Schedule'!O5,'Depreciation Calculator'!L:L,"<="&'PPE Schedule'!P5,'Depreciation Calculator'!D:D,P29,'Depreciation Calculator'!M:M,"Yes")+SUMIFS('Depreciation Calculator'!G:G,'Depreciation Calculator'!L:L,">="&'PPE Schedule'!O5,'Depreciation Calculator'!L:L,"<="&'PPE Schedule'!P5,'Depreciation Calculator'!D:D,P29,'Depreciation Calculator'!M:M,"Yes")+SUMIFS('Depreciation Calculator'!O:O,'Depreciation Calculator'!L:L,">="&'PPE Schedule'!O5,'Depreciation Calculator'!L:L,"<="&'PPE Schedule'!P5,'Depreciation Calculator'!D:D,P29,'Depreciation Calculator'!M:M,"Yes")-SUMIFS('Depreciation Calculator'!N:N,'Depreciation Calculator'!L:L,">="&'PPE Schedule'!O5,'Depreciation Calculator'!L:L,"<="&'PPE Schedule'!P5,'Depreciation Calculator'!D:D,P29,'Depreciation Calculator'!M:M,"Yes"))/M5,0) -> 0 | Y29: 0 | Z29: 0
B30: (f) Copyrights, and patents and other intellectual property rights, services and operating rights; | C30: 0 | D30: 0 | E30: 0 | F30: 0 | G30: 0 | H30: 0 | I30: 0 | J30: 0 | K30: 0 | R30: =ROUND(SUMIFS('Depreciation Calculator'!E:E,'Depreciation Calculator'!I:I,"<"&'PPE Schedule'!O5,'Depreciation Calculator'!D:D,P30)/M5,0)+ROUND(SUMIFS('Depreciation Calculator'!G:G,'Depreciation Calculator'!I:I,"<"&'PPE Schedule'!O5,'Depreciation Calculator'!D:D,P30)/M5,0)-ROUND(SUMIFS('Depreciation Calculator'!E:E,'Depreciation Calculator'!L:L,"<"&'PPE Schedule'!O5,'Depreciation Calculator'!D:D,P30,'Depreciation Calculator'!M:M,"Yes")/M5,0)-ROUND(SUMIFS('Depreciation Calculator'!G:G,'Depreciation Calculator'!L:L,"<"&'PPE Schedule'!O5,'Depreciation Calculator'!D:D,P30,'Depreciation Calculator'!M:M,"Yes")/M5,0) -> 0 | S30: =ROUND(SUMIFS('Depreciation Calculator'!E:E,'Depreciation Calculator'!I:I,">="&'PPE Schedule'!O5,'Depreciation Calculator'!I:I,"<="&'PPE Schedule'!P5,'Depreciation Calculator'!D:D,P30)/M5,0) -> 0 | T30: =ROUND((SUMIFS('Depreciation Calculator'!E:E,'Depreciation Calculator'!L:L,">="&'PPE Schedule'!O5,'Depreciation Calculator'!L:L,"<="&'PPE Schedule'!P5,'Depreciation Calculator'!D:D,P30,'Depreciation Calculator'!M:M,"Yes")+SUMIFS('Depreciation Calculator'!G:G,'Depreciation Calculator'!L:L,">="&'PPE Schedule'!O5,'Depreciation Calculator'!L:L,"<="&'PPE Schedule'!P5,'Depreciation Calculator'!D:D,P30,'Depreciation Calculator'!M:M,"Yes"))/M5,0) -> 0 | U30: 0 | V30: =ROUND((SUMIF('Depreciation Calculator'!D:D,'PPE Schedule'!P30,'Depreciation Calculator'!H:H)+SUMIF('Depreciation Calculator'!D:D,'PPE Schedule'!P30,'Depreciation Calculator'!S:S)+IF(O5='Depreciation Calculator'!U2,SUM(SUMIF('Depreciation Calculator'!D:D,P30,'Depreciation Calculator'!T:T)),IF(O5='Depreciation Calculator'!V2,SUM(SUMIF('Depreciation Calculator'!D:D,P30,'Depreciation Calculator'!T:T),SUMIF('Depreciation Calculator'!D:D,P30,'Depreciation Calculator'!U:U)),IF(O5='Depreciation Calculator'!W2,SUM(SUMIF('Depreciation Calculator'!D:D,P30,'Depreciation Calculator'!T:T),SUMIF('Depreciation Calculator'!D:D,P30,'Depreciation Calculator'!U:U),SUMIF('Depreciation Calculator'!D:D,P30,'Depreciation Calculator'!V:V)),IF(O5='Depreciation Calculator'!X2,SUM(SUMIF('Depreciation Calculator'!D:D,P30,'Depreciation Calculator'!T:T),SUMIF('Depreciation Calculator'!D:D,P30,'Depreciation Calculator'!U:U),SUMIF('Depreciation Calculator'!D:D,P30,'Depreciation Calculator'!V:V),SUMIF('Depreciation Calculator'!D:D,P30,'Depreciation Calculator'!W:W)),IF(O5='Depreciation Calculator'!Y2,SUM(SUMIF('Depreciation Calculator'!D:D,P30,'Depreciation Calculator'!T:T),SUMIF('Depreciation Calculator'!D:D,P30,'Depreciation Calculator'!U:U),SUMIF('Depreciation Calculator'!D:D,P30,'Depreciation Calculator'!V:V),SUMIF('Depreciation Calculator'!D:D,P30,'Depreciation Calculator'!W:W),SUMIF('Depreciation Calculator'!D:D,P30,'Depreciation Calculator'!X:X)),IF(O5='Depreciation Calculator'!Z2,SUM(SUMIF('Depreciation Calculator'!D:D,P30,'Depreciation Calculator'!T:T),SUMIF('Depreciation Calculator'!D:D,P30,'Depreciation Calculator'!U:U),SUMIF('Depreciation Calculator'!D:D,P30,'Depreciation Calculator'!V:V),SUMIF('Depreciation Calculator'!D:D,P30,'Depreciation Calculator'!W:W),SUMIF('Depreciation Calculator'!D:D,P30,'Depreciation Calculator'!X:X),SUMIF('Depreciation Calculator'!D:D,P30,'Depreciation Calculator'!Y:Y)),IF(O5='Depreciation Calculator'!AA2,SUM(SUMIF('Depreciation Calculator'!D:D,P30,'Depreciation Calculator'!T:T),SUMIF('Depreciation Calculator'!D:D,P30,'Depreciation Calculator'!U:U),SUMIF('Depreciation Calculator'!D:D,P30,'Depreciation Calculator'!V:V),SUMIF('Depreciation Calculator'!D:D,P30,'Depreciation Calculator'!W:W),SUMIF('Depreciation Calculator'!D:D,P30,'Depreciation Calculator'!X:X),SUMIF('Depreciation Calculator'!D:D,P30,'Depreciation Calculator'!Y:Y),SUMIF('Depreciation Calculator'!D:D,P30,'Depreciation Calculator'!Z:Z)),IF(O5='Depreciation Calculator'!AB2,SUM(SUMIF('Depreciation Calculator'!D:D,P30,'Depreciation Calculator'!T:T),SUMIF('Depreciation Calculator'!D:D,P30,'Depreciation Calculator'!U:U),SUMIF('Depreciation Calculator'!D:D,P30,'Depreciation Calculator'!V:V),SUMIF('Depreciation Calculator'!D:D,P30,'Depreciation Calculator'!W:W),SUMIF('Depreciation Calculator'!D:D,P30,'Depreciation Calculator'!X:X),SUMIF('Depreciation Calculator'!D:D,P30,'Depreciation Calculator'!Y:Y),SUMIF('Depreciation Calculator'!D:D,P30,'Depreciation Calculator'!Z:Z),SUMIF('Depreciation Calculator'!D:D,P30,'Depreciation Calculator'!AA:AA)),IF(O5='Depreciation Calculator'!AC2,SUM(SUMIF('Depreciation Calculator'!D:D,P30,'Depreciation Calculator'!T:T),SUMIF('Depreciation Calculator'!D:D,P30,'Depreciation Calculator'!U:U),SUMIF('Depreciation Calculator'!D:D,P30,'Depreciation Calculator'!V:V),SUMIF('Depreciation Calculator'!D:D,P30,'Depreciation Calculator'!W:W),SUMIF('Depreciation Calculator'!D:D,P30,'Depreciation Calculator'!X:X),SUMIF('Depreciation Calculator'!D:D,P30,'Depreciation Calculator'!Y:Y),SUMIF('Depreciation Calculator'!D:D,P30,'Depreciation Calculator'!Z:Z),SUMIF('Depreciation Calculator'!D:D,P30,'Depreciation Calculator'!AA:AA),SUMIF('Depreciation Calculator'!D:D,P30,'Depreciation Calculator'!AB:AB)),IF(O5='Depreciation Calculator'!AD2,SUM(SUMIF('Depreciation Calculator'!D:D,P30,'Depreciation Calculator'!T:T),SUMIF('Depreciation Calculator'!D:D,P30,'Depreciation Calculator'!U:U),SUMIF('Depreciation Calculator'!D:D,P30,'Depreciation Calculator'!V:V),SUMIF('Depreciation Calculator'!D:D,P30,'Depreciation Calculator'!W:W),SUMIF('Depreciation Calculator'!D:D,P30,'Depreciation Calculator'!X:X),SUMIF('Depreciation Calculator'!D:D,P30,'Depreciation Calculator'!Y:Y),SUMIF('Depreciation Calculator'!D:D,P30,'Depreciation Calculator'!Z:Z),SUMIF('Depreciation Calculator'!D:D,P30,'Depreciation Calculator'!AA:AA),SUMIF('Depreciation Calculator'!D:D,P30,'Depreciation Calculator'!AB:AB),SUMIF('Depreciation Calculator'!D:D,P30,'Depreciation Calculator'!AC:AC)),IF(O5='Depreciation Calculator'!AE2,SUM(SUMIF('Depreciation Calculator'!D:D,P30,'Depreciation Calculator'!T:T),SUMIF('Depreciation Calculator'!D:D,P30,'Depreciation Calculator'!U:U),SUMIF('Depreciation Calculator'!D:D,P30,'Depreciation Calculator'!V:V),SUMIF('Depreciation Calculator'!D:D,P30,'Depreciation Calculator'!W:W),SUMIF('Depreciation Calculator'!D:D,P30,'Depreciation Calculator'!X:X),SUMIF('Depreciation Calculator'!D:D,P30,'Depreciation Calculator'!Y:Y),SUMIF('Depreciation Calculator'!D:D,P30,'Depreciation Calculator'!Z:Z),SUMIF('Depreciation Calculator'!D:D,P30,'Depreciation Calculator'!AA:AA),SUMIF('Depreciation Calculator'!D:D,P30,'Depreciation Calculator'!AB:AB),SUMIF('Depreciation Calculator'!D:D,P30,'Depreciation Calculator'!AC:AC),SUMIF('Depreciation Calculator'!D:D,P30,'Depreciation Calculator'!AD:AD))))))))))))))/M5,0)-ROUND((SUMIFS('Depreciation Calculator'!E:E,'Depreciation Calculator'!L:L,"<"&'PPE Schedule'!O5,'Depreciation Calculator'!D:D,P30,'Depreciation Calculator'!M:M,"Yes")+SUMIFS('Depreciation Calculator'!G:G,'Depreciation Calculator'!L:L,"<"&'PPE Schedule'!O5,'Depreciation Calculator'!D:D,P30,'Depreciation Calculator'!M:M,"Yes")+SUMIFS('Depreciation Calculator'!O:O,'Depreciation Calculator'!L:L,"<"&'PPE Schedule'!O5,'Depreciation Calculator'!D:D,P30,'Depreciation Calculator'!M:M,"Yes")-SUMIFS('Depreciation Calculator'!N:N,'Depreciation Calculator'!L:L,"<"&'PPE Schedule'!O5,'Depreciation Calculator'!D:D,P30,'Depreciation Calculator'!M:M,"Yes"))/M5,0) -> 0 | W30: =ROUND((SUMIF('Depreciation Calculator'!D:D,'PPE Schedule'!P30,IF(O5='Depreciation Calculator'!T2,'Depreciation Calculator'!T1,IF(O5='Depreciation Calculator'!U2,'Depreciation Calculator'!U1,IF(O5='Depreciation Calculator'!V2,'Depreciation Calculator'!V1,IF(O5='Depreciation Calculator'!W2,'Depreciation Calculator'!W1,IF(O5='Depreciation Calculator'!X2,'Depreciation Calculator'!X1,IF(O5='Depreciation Calculator'!Y2,'Depreciation Calculator'!Y1,IF(O5='Depreciation Calculator'!AA2,'Depreciation Calculator'!AA1,IF(O5='Depreciation Calculator'!Z2,'Depreciation Calculator'!Z1,IF(O5='Depreciation Calculator'!AB2,'Depreciation Calculator'!AB1,IF(O5='Depreciation Calculator'!AC2,'Depreciation Calculator'!AC1,IF(O5='Depreciation Calculator'!AD2,'Depreciation Calculator'!AD1,IF(O5='Depreciation Calculator'!AE2,'Depreciation Calculator'!AE1,"Select proper range of year"))))))))))))))/M5,0) -> 0 | X30: =ROUND((SUMIFS('Depreciation Calculator'!E:E,'Depreciation Calculator'!L:L,">="&'PPE Schedule'!O5,'Depreciation Calculator'!L:L,"<="&'PPE Schedule'!P5,'Depreciation Calculator'!D:D,P30,'Depreciation Calculator'!M:M,"Yes")+SUMIFS('Depreciation Calculator'!G:G,'Depreciation Calculator'!L:L,">="&'PPE Schedule'!O5,'Depreciation Calculator'!L:L,"<="&'PPE Schedule'!P5,'Depreciation Calculator'!D:D,P30,'Depreciation Calculator'!M:M,"Yes")+SUMIFS('Depreciation Calculator'!O:O,'Depreciation Calculator'!L:L,">="&'PPE Schedule'!O5,'Depreciation Calculator'!L:L,"<="&'PPE Schedule'!P5,'Depreciation Calculator'!D:D,P30,'Depreciation Calculator'!M:M,"Yes")-SUMIFS('Depreciation Calculator'!N:N,'Depreciation Calculator'!L:L,">="&'PPE Schedule'!O5,'Depreciation Calculator'!L:L,"<="&'PPE Schedule'!P5,'Depreciation Calculator'!D:D,P30,'Depreciation Calculator'!M:M,"Yes"))/M5,0) -> 0 | Y30: 0 | Z30: 0
B31: (g) Recipes, formulae, models, designs and prototypes; | C31: 0 | D31: 0 | E31: 0 | F31: 0 | G31: 0 | H31: 0 | I31: 0 | J31: 0 | K31: 0 | R31: =ROUND(SUMIFS('Depreciation Calculator'!E:E,'Depreciation Calculator'!I:I,"<"&'PPE Schedule'!O5,'Depreciation Calculator'!D:D,P31)/M5,0)+ROUND(SUMIFS('Depreciation Calculator'!G:G,'Depreciation Calculator'!I:I,"<"&'PPE Schedule'!O5,'Depreciation Calculator'!D:D,P31)/M5,0)-ROUND(SUMIFS('Depreciation Calculator'!E:E,'Depreciation Calculator'!L:L,"<"&'PPE Schedule'!O5,'Depreciation Calculator'!D:D,P31,'Depreciation Calculator'!M:M,"Yes")/M5,0)-ROUND(SUMIFS('Depreciation Calculator'!G:G,'Depreciation Calculator'!L:L,"<"&'PPE Schedule'!O5,'Depreciation Calculator'!D:D,P31,'Depreciation Calculator'!M:M,"Yes")/M5,0) -> 0 | S31: =ROUND(SUMIFS('Depreciation Calculator'!E:E,'Depreciation Calculator'!I:I,">="&'PPE Schedule'!O5,'Depreciation Calculator'!I:I,"<="&'PPE Schedule'!P5,'Depreciation Calculator'!D:D,P31)/M5,0) -> 0 | T31: =ROUND((SUMIFS('Depreciation Calculator'!E:E,'Depreciation Calculator'!L:L,">="&'PPE Schedule'!O5,'Depreciation Calculator'!L:L,"<="&'PPE Schedule'!P5,'Depreciation Calculator'!D:D,P31,'Depreciation Calculator'!M:M,"Yes")+SUMIFS('Depreciation Calculator'!G:G,'Depreciation Calculator'!L:L,">="&'PPE Schedule'!O5,'Depreciation Calculator'!L:L,"<="&'PPE Schedule'!P5,'Depreciation Calculator'!D:D,P31,'Depreciation Calculator'!M:M,"Yes"))/M5,0) -> 0 | U31: 0 | V31: =ROUND((SUMIF('Depreciation Calculator'!D:D,'PPE Schedule'!P31,'Depreciation Calculator'!H:H)+SUMIF('Depreciation Calculator'!D:D,'PPE Schedule'!P31,'Depreciation Calculator'!S:S)+IF(O5='Depreciation Calculator'!U2,SUM(SUMIF('Depreciation Calculator'!D:D,P31,'Depreciation Calculator'!T:T)),IF(O5='Depreciation Calculator'!V2,SUM(SUMIF('Depreciation Calculator'!D:D,P31,'Depreciation Calculator'!T:T),SUMIF('Depreciation Calculator'!D:D,P31,'Depreciation Calculator'!U:U)),IF(O5='Depreciation Calculator'!W2,SUM(SUMIF('Depreciation Calculator'!D:D,P31,'Depreciation Calculator'!T:T),SUMIF('Depreciation Calculator'!D:D,P31,'Depreciation Calculator'!U:U),SUMIF('Depreciation Calculator'!D:D,P31,'Depreciation Calculator'!V:V)),IF(O5='Depreciation Calculator'!X2,SUM(SUMIF('Depreciation Calculator'!D:D,P31,'Depreciation Calculator'!T:T),SUMIF('Depreciation Calculator'!D:D,P31,'Depreciation Calculator'!U:U),SUMIF('Depreciation Calculator'!D:D,P31,'Depreciation Calculator'!V:V),SUMIF('Depreciation Calculator'!D:D,P31,'Depreciation Calculator'!W:W)),IF(O5='Depreciation Calculator'!Y2,SUM(SUMIF('Depreciation Calculator'!D:D,P31,'Depreciation Calculator'!T:T),SUMIF('Depreciation Calculator'!D:D,P31,'Depreciation Calculator'!U:U),SUMIF('Depreciation Calculator'!D:D,P31,'Depreciation Calculator'!V:V),SUMIF('Depreciation Calculator'!D:D,P31,'Depreciation Calculator'!W:W),SUMIF('Depreciation Calculator'!D:D,P31,'Depreciation Calculator'!X:X)),IF(O5='Depreciation Calculator'!Z2,SUM(SUMIF('Depreciation Calculator'!D:D,P31,'Depreciation Calculator'!T:T),SUMIF('Depreciation Calculator'!D:D,P31,'Depreciation Calculator'!U:U),SUMIF('Depreciation Calculator'!D:D,P31,'Depreciation Calculator'!V:V),SUMIF('Depreciation Calculator'!D:D,P31,'Depreciation Calculator'!W:W),SUMIF('Depreciation Calculator'!D:D,P31,'Depreciation Calculator'!X:X),SUMIF('Depreciation Calculator'!D:D,P31,'Depreciation Calculator'!Y:Y)),IF(O5='Depreciation Calculator'!AA2,SUM(SUMIF('Depreciation Calculator'!D:D,P31,'Depreciation Calculator'!T:T),SUMIF('Depreciation Calculator'!D:D,P31,'Depreciation Calculator'!U:U),SUMIF('Depreciation Calculator'!D:D,P31,'Depreciation Calculator'!V:V),SUMIF('Depreciation Calculator'!D:D,P31,'Depreciation Calculator'!W:W),SUMIF('Depreciation Calculator'!D:D,P31,'Depreciation Calculator'!X:X),SUMIF('Depreciation Calculator'!D:D,P31,'Depreciation Calculator'!Y:Y),SUMIF('Depreciation Calculator'!D:D,P31,'Depreciation Calculator'!Z:Z)),IF(O5='Depreciation Calculator'!AB2,SUM(SUMIF('Depreciation Calculator'!D:D,P31,'Depreciation Calculator'!T:T),SUMIF('Depreciation Calculator'!D:D,P31,'Depreciation Calculator'!U:U),SUMIF('Depreciation Calculator'!D:D,P31,'Depreciation Calculator'!V:V),SUMIF('Depreciation Calculator'!D:D,P31,'Depreciation Calculator'!W:W),SUMIF('Depreciation Calculator'!D:D,P31,'Depreciation Calculator'!X:X),SUMIF('Depreciation Calculator'!D:D,P31,'Depreciation Calculator'!Y:Y),SUMIF('Depreciation Calculator'!D:D,P31,'Depreciation Calculator'!Z:Z),SUMIF('Depreciation Calculator'!D:D,P31,'Depreciation Calculator'!AA:AA)),IF(O5='Depreciation Calculator'!AC2,SUM(SUMIF('Depreciation Calculator'!D:D,P31,'Depreciation Calculator'!T:T),SUMIF('Depreciation Calculator'!D:D,P31,'Depreciation Calculator'!U:U),SUMIF('Depreciation Calculator'!D:D,P31,'Depreciation Calculator'!V:V),SUMIF('Depreciation Calculator'!D:D,P31,'Depreciation Calculator'!W:W),SUMIF('Depreciation Calculator'!D:D,P31,'Depreciation Calculator'!X:X),SUMIF('Depreciation Calculator'!D:D,P31,'Depreciation Calculator'!Y:Y),SUMIF('Depreciation Calculator'!D:D,P31,'Depreciation Calculator'!Z:Z),SUMIF('Depreciation Calculator'!D:D,P31,'Depreciation Calculator'!AA:AA),SUMIF('Depreciation Calculator'!D:D,P31,'Depreciation Calculator'!AB:AB)),IF(O5='Depreciation Calculator'!AD2,SUM(SUMIF('Depreciation Calculator'!D:D,P31,'Depreciation Calculator'!T:T),SUMIF('Depreciation Calculator'!D:D,P31,'Depreciation Calculator'!U:U),SUMIF('Depreciation Calculator'!D:D,P31,'Depreciation Calculator'!V:V),SUMIF('Depreciation Calculator'!D:D,P31,'Depreciation Calculator'!W:W),SUMIF('Depreciation Calculator'!D:D,P31,'Depreciation Calculator'!X:X),SUMIF('Depreciation Calculator'!D:D,P31,'Depreciation Calculator'!Y:Y),SUMIF('Depreciation Calculator'!D:D,P31,'Depreciation Calculator'!Z:Z),SUMIF('Depreciation Calculator'!D:D,P31,'Depreciation Calculator'!AA:AA),SUMIF('Depreciation Calculator'!D:D,P31,'Depreciation Calculator'!AB:AB),SUMIF('Depreciation Calculator'!D:D,P31,'Depreciation Calculator'!AC:AC)),IF(O5='Depreciation Calculator'!AE2,SUM(SUMIF('Depreciation Calculator'!D:D,P31,'Depreciation Calculator'!T:T),SUMIF('Depreciation Calculator'!D:D,P31,'Depreciation Calculator'!U:U),SUMIF('Depreciation Calculator'!D:D,P31,'Depreciation Calculator'!V:V),SUMIF('Depreciation Calculator'!D:D,P31,'Depreciation Calculator'!W:W),SUMIF('Depreciation Calculator'!D:D,P31,'Depreciation Calculator'!X:X),SUMIF('Depreciation Calculator'!D:D,P31,'Depreciation Calculator'!Y:Y),SUMIF('Depreciation Calculator'!D:D,P31,'Depreciation Calculator'!Z:Z),SUMIF('Depreciation Calculator'!D:D,P31,'Depreciation Calculator'!AA:AA),SUMIF('Depreciation Calculator'!D:D,P31,'Depreciation Calculator'!AB:AB),SUMIF('Depreciation Calculator'!D:D,P31,'Depreciation Calculator'!AC:AC),SUMIF('Depreciation Calculator'!D:D,P31,'Depreciation Calculator'!AD:AD))))))))))))))/M5,0)-ROUND((SUMIFS('Depreciation Calculator'!E:E,'Depreciation Calculator'!L:L,"<"&'PPE Schedule'!O5,'Depreciation Calculator'!D:D,P31,'Depreciation Calculator'!M:M,"Yes")+SUMIFS('Depreciation Calculator'!G:G,'Depreciation Calculator'!L:L,"<"&'PPE Schedule'!O5,'Depreciation Calculator'!D:D,P31,'Depreciation Calculator'!M:M,"Yes")+SUMIFS('Depreciation Calculator'!O:O,'Depreciation Calculator'!L:L,"<"&'PPE Schedule'!O5,'Depreciation Calculator'!D:D,P31,'Depreciation Calculator'!M:M,"Yes")-SUMIFS('Depreciation Calculator'!N:N,'Depreciation Calculator'!L:L,"<"&'PPE Schedule'!O5,'Depreciation Calculator'!D:D,P31,'Depreciation Calculator'!M:M,"Yes"))/M5,0) -> 0 | W31: =ROUND((SUMIF('Depreciation Calculator'!D:D,'PPE Schedule'!P31,IF(O5='Depreciation Calculator'!T2,'Depreciation Calculator'!T1,IF(O5='Depreciation Calculator'!U2,'Depreciation Calculator'!U1,IF(O5='Depreciation Calculator'!V2,'Depreciation Calculator'!V1,IF(O5='Depreciation Calculator'!W2,'Depreciation Calculator'!W1,IF(O5='Depreciation Calculator'!X2,'Depreciation Calculator'!X1,IF(O5='Depreciation Calculator'!Y2,'Depreciation Calculator'!Y1,IF(O5='Depreciation Calculator'!AA2,'Depreciation Calculator'!AA1,IF(O5='Depreciation Calculator'!Z2,'Depreciation Calculator'!Z1,IF(O5='Depreciation Calculator'!AB2,'Depreciation Calculator'!AB1,IF(O5='Depreciation Calculator'!AC2,'Depreciation Calculator'!AC1,IF(O5='Depreciation Calculator'!AD2,'Depreciation Calculator'!AD1,IF(O5='Depreciation Calculator'!AE2,'Depreciation Calculator'!AE1,"Select proper range of year"))))))))))))))/M5,0) -> 0 | X31: =ROUND((SUMIFS('Depreciation Calculator'!E:E,'Depreciation Calculator'!L:L,">="&'PPE Schedule'!O5,'Depreciation Calculator'!L:L,"<="&'PPE Schedule'!P5,'Depreciation Calculator'!D:D,P31,'Depreciation Calculator'!M:M,"Yes")+SUMIFS('Depreciation Calculator'!G:G,'Depreciation Calculator'!L:L,">="&'PPE Schedule'!O5,'Depreciation Calculator'!L:L,"<="&'PPE Schedule'!P5,'Depreciation Calculator'!D:D,P31,'Depreciation Calculator'!M:M,"Yes")+SUMIFS('Depreciation Calculator'!O:O,'Depreciation Calculator'!L:L,">="&'PPE Schedule'!O5,'Depreciation Calculator'!L:L,"<="&'PPE Schedule'!P5,'Depreciation Calculator'!D:D,P31,'Depreciation Calculator'!M:M,"Yes")-SUMIFS('Depreciation Calculator'!N:N,'Depreciation Calculator'!L:L,">="&'PPE Schedule'!O5,'Depreciation Calculator'!L:L,"<="&'PPE Schedule'!P5,'Depreciation Calculator'!D:D,P31,'Depreciation Calculator'!M:M,"Yes"))/M5,0) -> 0 | Y31: 0 | Z31: 0
B32: (h) Licences and franchise; | C32: 0 | D32: 0 | E32: 0 | F32: 0 | G32: 0 | H32: 0 | I32: 0 | J32: 0 | K32: 0 | R32: =ROUND(SUMIFS('Depreciation Calculator'!E:E,'Depreciation Calculator'!I:I,"<"&'PPE Schedule'!O5,'Depreciation Calculator'!D:D,P32)/M5,0)+ROUND(SUMIFS('Depreciation Calculator'!G:G,'Depreciation Calculator'!I:I,"<"&'PPE Schedule'!O5,'Depreciation Calculator'!D:D,P32)/M5,0)-ROUND(SUMIFS('Depreciation Calculator'!E:E,'Depreciation Calculator'!L:L,"<"&'PPE Schedule'!O5,'Depreciation Calculator'!D:D,P32,'Depreciation Calculator'!M:M,"Yes")/M5,0)-ROUND(SUMIFS('Depreciation Calculator'!G:G,'Depreciation Calculator'!L:L,"<"&'PPE Schedule'!O5,'Depreciation Calculator'!D:D,P32,'Depreciation Calculator'!M:M,"Yes")/M5,0) -> 0 | S32: =ROUND(SUMIFS('Depreciation Calculator'!E:E,'Depreciation Calculator'!I:I,">="&'PPE Schedule'!O5,'Depreciation Calculator'!I:I,"<="&'PPE Schedule'!P5,'Depreciation Calculator'!D:D,P32)/M5,0) -> 0 | T32: =ROUND((SUMIFS('Depreciation Calculator'!E:E,'Depreciation Calculator'!L:L,">="&'PPE Schedule'!O5,'Depreciation Calculator'!L:L,"<="&'PPE Schedule'!P5,'Depreciation Calculator'!D:D,P32,'Depreciation Calculator'!M:M,"Yes")+SUMIFS('Depreciation Calculator'!G:G,'Depreciation Calculator'!L:L,">="&'PPE Schedule'!O5,'Depreciation Calculator'!L:L,"<="&'PPE Schedule'!P5,'Depreciation Calculator'!D:D,P32,'Depreciation Calculator'!M:M,"Yes"))/M5,0) -> 0 | U32: 0 | V32: =ROUND((SUMIF('Depreciation Calculator'!D:D,'PPE Schedule'!P32,'Depreciation Calculator'!H:H)+SUMIF('Depreciation Calculator'!D:D,'PPE Schedule'!P32,'Depreciation Calculator'!S:S)+IF(O5='Depreciation Calculator'!U2,SUM(SUMIF('Depreciation Calculator'!D:D,P32,'Depreciation Calculator'!T:T)),IF(O5='Depreciation Calculator'!V2,SUM(SUMIF('Depreciation Calculator'!D:D,P32,'Depreciation Calculator'!T:T),SUMIF('Depreciation Calculator'!D:D,P32,'Depreciation Calculator'!U:U)),IF(O5='Depreciation Calculator'!W2,SUM(SUMIF('Depreciation Calculator'!D:D,P32,'Depreciation Calculator'!T:T),SUMIF('Depreciation Calculator'!D:D,P32,'Depreciation Calculator'!U:U),SUMIF('Depreciation Calculator'!D:D,P32,'Depreciation Calculator'!V:V)),IF(O5='Depreciation Calculator'!X2,SUM(SUMIF('Depreciation Calculator'!D:D,P32,'Depreciation Calculator'!T:T),SUMIF('Depreciation Calculator'!D:D,P32,'Depreciation Calculator'!U:U),SUMIF('Depreciation Calculator'!D:D,P32,'Depreciation Calculator'!V:V),SUMIF('Depreciation Calculator'!D:D,P32,'Depreciation Calculator'!W:W)),IF(O5='Depreciation Calculator'!Y2,SUM(SUMIF('Depreciation Calculator'!D:D,P32,'Depreciation Calculator'!T:T),SUMIF('Depreciation Calculator'!D:D,P32,'Depreciation Calculator'!U:U),SUMIF('Depreciation Calculator'!D:D,P32,'Depreciation Calculator'!V:V),SUMIF('Depreciation Calculator'!D:D,P32,'Depreciation Calculator'!W:W),SUMIF('Depreciation Calculator'!D:D,P32,'Depreciation Calculator'!X:X)),IF(O5='Depreciation Calculator'!Z2,SUM(SUMIF('Depreciation Calculator'!D:D,P32,'Depreciation Calculator'!T:T),SUMIF('Depreciation Calculator'!D:D,P32,'Depreciation Calculator'!U:U),SUMIF('Depreciation Calculator'!D:D,P32,'Depreciation Calculator'!V:V),SUMIF('Depreciation Calculator'!D:D,P32,'Depreciation Calculator'!W:W),SUMIF('Depreciation Calculator'!D:D,P32,'Depreciation Calculator'!X:X),SUMIF('Depreciation Calculator'!D:D,P32,'Depreciation Calculator'!Y:Y)),IF(O5='Depreciation Calculator'!AA2,SUM(SUMIF('Depreciation Calculator'!D:D,P32,'Depreciation Calculator'!T:T),SUMIF('Depreciation Calculator'!D:D,P32,'Depreciation Calculator'!U:U),SUMIF('Depreciation Calculator'!D:D,P32,'Depreciation Calculator'!V:V),SUMIF('Depreciation Calculator'!D:D,P32,'Depreciation Calculator'!W:W),SUMIF('Depreciation Calculator'!D:D,P32,'Depreciation Calculator'!X:X),SUMIF('Depreciation Calculator'!D:D,P32,'Depreciation Calculator'!Y:Y),SUMIF('Depreciation Calculator'!D:D,P32,'Depreciation Calculator'!Z:Z)),IF(O5='Depreciation Calculator'!AB2,SUM(SUMIF('Depreciation Calculator'!D:D,P32,'Depreciation Calculator'!T:T),SUMIF('Depreciation Calculator'!D:D,P32,'Depreciation Calculator'!U:U),SUMIF('Depreciation Calculator'!D:D,P32,'Depreciation Calculator'!V:V),SUMIF('Depreciation Calculator'!D:D,P32,'Depreciation Calculator'!W:W),SUMIF('Depreciation Calculator'!D:D,P32,'Depreciation Calculator'!X:X),SUMIF('Depreciation Calculator'!D:D,P32,'Depreciation Calculator'!Y:Y),SUMIF('Depreciation Calculator'!D:D,P32,'Depreciation Calculator'!Z:Z),SUMIF('Depreciation Calculator'!D:D,P32,'Depreciation Calculator'!AA:AA)),IF(O5='Depreciation Calculator'!AC2,SUM(SUMIF('Depreciation Calculator'!D:D,P32,'Depreciation Calculator'!T:T),SUMIF('Depreciation Calculator'!D:D,P32,'Depreciation Calculator'!U:U),SUMIF('Depreciation Calculator'!D:D,P32,'Depreciation Calculator'!V:V),SUMIF('Depreciation Calculator'!D:D,P32,'Depreciation Calculator'!W:W),SUMIF('Depreciation Calculator'!D:D,P32,'Depreciation Calculator'!X:X),SUMIF('Depreciation Calculator'!D:D,P32,'Depreciation Calculator'!Y:Y),SUMIF('Depreciation Calculator'!D:D,P32,'Depreciation Calculator'!Z:Z),SUMIF('Depreciation Calculator'!D:D,P32,'Depreciation Calculator'!AA:AA),SUMIF('Depreciation Calculator'!D:D,P32,'Depreciation Calculator'!AB:AB)),IF(O5='Depreciation Calculator'!AD2,SUM(SUMIF('Depreciation Calculator'!D:D,P32,'Depreciation Calculator'!T:T),SUMIF('Depreciation Calculator'!D:D,P32,'Depreciation Calculator'!U:U),SUMIF('Depreciation Calculator'!D:D,P32,'Depreciation Calculator'!V:V),SUMIF('Depreciation Calculator'!D:D,P32,'Depreciation Calculator'!W:W),SUMIF('Depreciation Calculator'!D:D,P32,'Depreciation Calculator'!X:X),SUMIF('Depreciation Calculator'!D:D,P32,'Depreciation Calculator'!Y:Y),SUMIF('Depreciation Calculator'!D:D,P32,'Depreciation Calculator'!Z:Z),SUMIF('Depreciation Calculator'!D:D,P32,'Depreciation Calculator'!AA:AA),SUMIF('Depreciation Calculator'!D:D,P32,'Depreciation Calculator'!AB:AB),SUMIF('Depreciation Calculator'!D:D,P32,'Depreciation Calculator'!AC:AC)),IF(O5='Depreciation Calculator'!AE2,SUM(SUMIF('Depreciation Calculator'!D:D,P32,'Depreciation Calculator'!T:T),SUMIF('Depreciation Calculator'!D:D,P32,'Depreciation Calculator'!U:U),SUMIF('Depreciation Calculator'!D:D,P32,'Depreciation Calculator'!V:V),SUMIF('Depreciation Calculator'!D:D,P32,'Depreciation Calculator'!W:W),SUMIF('Depreciation Calculator'!D:D,P32,'Depreciation Calculator'!X:X),SUMIF('Depreciation Calculator'!D:D,P32,'Depreciation Calculator'!Y:Y),SUMIF('Depreciation Calculator'!D:D,P32,'Depreciation Calculator'!Z:Z),SUMIF('Depreciation Calculator'!D:D,P32,'Depreciation Calculator'!AA:AA),SUMIF('Depreciation Calculator'!D:D,P32,'Depreciation Calculator'!AB:AB),SUMIF('Depreciation Calculator'!D:D,P32,'Depreciation Calculator'!AC:AC),SUMIF('Depreciation Calculator'!D:D,P32,'Depreciation Calculator'!AD:AD))))))))))))))/M5,0)-ROUND((SUMIFS('Depreciation Calculator'!E:E,'Depreciation Calculator'!L:L,"<"&'PPE Schedule'!O5,'Depreciation Calculator'!D:D,P32,'Depreciation Calculator'!M:M,"Yes")+SUMIFS('Depreciation Calculator'!G:G,'Depreciation Calculator'!L:L,"<"&'PPE Schedule'!O5,'Depreciation Calculator'!D:D,P32,'Depreciation Calculator'!M:M,"Yes")+SUMIFS('Depreciation Calculator'!O:O,'Depreciation Calculator'!L:L,"<"&'PPE Schedule'!O5,'Depreciation Calculator'!D:D,P32,'Depreciation Calculator'!M:M,"Yes")-SUMIFS('Depreciation Calculator'!N:N,'Depreciation Calculator'!L:L,"<"&'PPE Schedule'!O5,'Depreciation Calculator'!D:D,P32,'Depreciation Calculator'!M:M,"Yes"))/M5,0) -> 0 | W32: =ROUND((SUMIF('Depreciation Calculator'!D:D,'PPE Schedule'!P32,IF(O5='Depreciation Calculator'!T2,'Depreciation Calculator'!T1,IF(O5='Depreciation Calculator'!U2,'Depreciation Calculator'!U1,IF(O5='Depreciation Calculator'!V2,'Depreciation Calculator'!V1,IF(O5='Depreciation Calculator'!W2,'Depreciation Calculator'!W1,IF(O5='Depreciation Calculator'!X2,'Depreciation Calculator'!X1,IF(O5='Depreciation Calculator'!Y2,'Depreciation Calculator'!Y1,IF(O5='Depreciation Calculator'!AA2,'Depreciation Calculator'!AA1,IF(O5='Depreciation Calculator'!Z2,'Depreciation Calculator'!Z1,IF(O5='Depreciation Calculator'!AB2,'Depreciation Calculator'!AB1,IF(O5='Depreciation Calculator'!AC2,'Depreciation Calculator'!AC1,IF(O5='Depreciation Calculator'!AD2,'Depreciation Calculator'!AD1,IF(O5='Depreciation Calculator'!AE2,'Depreciation Calculator'!AE1,"Select proper range of year"))))))))))))))/M5,0) -> 0 | X32: =ROUND((SUMIFS('Depreciation Calculator'!E:E,'Depreciation Calculator'!L:L,">="&'PPE Schedule'!O5,'Depreciation Calculator'!L:L,"<="&'PPE Schedule'!P5,'Depreciation Calculator'!D:D,P32,'Depreciation Calculator'!M:M,"Yes")+SUMIFS('Depreciation Calculator'!G:G,'Depreciation Calculator'!L:L,">="&'PPE Schedule'!O5,'Depreciation Calculator'!L:L,"<="&'PPE Schedule'!P5,'Depreciation Calculator'!D:D,P32,'Depreciation Calculator'!M:M,"Yes")+SUMIFS('Depreciation Calculator'!O:O,'Depreciation Calculator'!L:L,">="&'PPE Schedule'!O5,'Depreciation Calculator'!L:L,"<="&'PPE Schedule'!P5,'Depreciation Calculator'!D:D,P32,'Depreciation Calculator'!M:M,"Yes")-SUMIFS('Depreciation Calculator'!N:N,'Depreciation Calculator'!L:L,">="&'PPE Schedule'!O5,'Depreciation Calculator'!L:L,"<="&'PPE Schedule'!P5,'Depreciation Calculator'!D:D,P32,'Depreciation Calculator'!M:M,"Yes"))/M5,0) -> 0 | Y32: 0 | Z32: 0
B33: (i) Others (specify nature). | C33: 0 | D33: 0 | E33: 0 | F33: 0 | G33: 0 | H33: 0 | I33: 0 | J33: 0 | K33: 0 | R33: =ROUND(SUMIFS('Depreciation Calculator'!E:E,'Depreciation Calculator'!I:I,"<"&'PPE Schedule'!O5,'Depreciation Calculator'!D:D,P33)/M5,0)+ROUND(SUMIFS('Depreciation Calculator'!G:G,'Depreciation Calculator'!I:I,"<"&'PPE Schedule'!O5,'Depreciation Calculator'!D:D,P33)/M5,0)-ROUND(SUMIFS('Depreciation Calculator'!E:E,'Depreciation Calculator'!L:L,"<"&'PPE Schedule'!O5,'Depreciation Calculator'!D:D,P33,'Depreciation Calculator'!M:M,"Yes")/M5,0)-ROUND(SUMIFS('Depreciation Calculator'!G:G,'Depreciation Calculator'!L:L,"<"&'PPE Schedule'!O5,'Depreciation Calculator'!D:D,P33,'Depreciation Calculator'!M:M,"Yes")/M5,0) -> 0 | S33: =ROUND(SUMIFS('Depreciation Calculator'!E:E,'Depreciation Calculator'!I:I,">="&'PPE Schedule'!O5,'Depreciation Calculator'!I:I,"<="&'PPE Schedule'!P5,'Depreciation Calculator'!D:D,P33)/M5,0) -> 0 | T33: =ROUND((SUMIFS('Depreciation Calculator'!E:E,'Depreciation Calculator'!L:L,">="&'PPE Schedule'!O5,'Depreciation Calculator'!L:L,"<="&'PPE Schedule'!P5,'Depreciation Calculator'!D:D,P33,'Depreciation Calculator'!M:M,"Yes")+SUMIFS('Depreciation Calculator'!G:G,'Depreciation Calculator'!L:L,">="&'PPE Schedule'!O5,'Depreciation Calculator'!L:L,"<="&'PPE Schedule'!P5,'Depreciation Calculator'!D:D,P33,'Depreciation Calculator'!M:M,"Yes"))/M5,0) -> 0 | U33: 0 | V33: =ROUND((SUMIF('Depreciation Calculator'!D:D,'PPE Schedule'!P33,'Depreciation Calculator'!H:H)+SUMIF('Depreciation Calculator'!D:D,'PPE Schedule'!P33,'Depreciation Calculator'!S:S)+IF(O5='Depreciation Calculator'!U2,SUM(SUMIF('Depreciation Calculator'!D:D,P33,'Depreciation Calculator'!T:T)),IF(O5='Depreciation Calculator'!V2,SUM(SUMIF('Depreciation Calculator'!D:D,P33,'Depreciation Calculator'!T:T),SUMIF('Depreciation Calculator'!D:D,P33,'Depreciation Calculator'!U:U)),IF(O5='Depreciation Calculator'!W2,SUM(SUMIF('Depreciation Calculator'!D:D,P33,'Depreciation Calculator'!T:T),SUMIF('Depreciation Calculator'!D:D,P33,'Depreciation Calculator'!U:U),SUMIF('Depreciation Calculator'!D:D,P33,'Depreciation Calculator'!V:V)),IF(O5='Depreciation Calculator'!X2,SUM(SUMIF('Depreciation Calculator'!D:D,P33,'Depreciation Calculator'!T:T),SUMIF('Depreciation Calculator'!D:D,P33,'Depreciation Calculator'!U:U),SUMIF('Depreciation Calculator'!D:D,P33,'Depreciation Calculator'!V:V),SUMIF('Depreciation Calculator'!D:D,P33,'Depreciation Calculator'!W:W)),IF(O5='Depreciation Calculator'!Y2,SUM(SUMIF('Depreciation Calculator'!D:D,P33,'Depreciation Calculator'!T:T),SUMIF('Depreciation Calculator'!D:D,P33,'Depreciation Calculator'!U:U),SUMIF('Depreciation Calculator'!D:D,P33,'Depreciation Calculator'!V:V),SUMIF('Depreciation Calculator'!D:D,P33,'Depreciation Calculator'!W:W),SUMIF('Depreciation Calculator'!D:D,P33,'Depreciation Calculator'!X:X)),IF(O5='Depreciation Calculator'!Z2,SUM(SUMIF('Depreciation Calculator'!D:D,P33,'Depreciation Calculator'!T:T),SUMIF('Depreciation Calculator'!D:D,P33,'Depreciation Calculator'!U:U),SUMIF('Depreciation Calculator'!D:D,P33,'Depreciation Calculator'!V:V),SUMIF('Depreciation Calculator'!D:D,P33,'Depreciation Calculator'!W:W),SUMIF('Depreciation Calculator'!D:D,P33,'Depreciation Calculator'!X:X),SUMIF('Depreciation Calculator'!D:D,P33,'Depreciation Calculator'!Y:Y)),IF(O5='Depreciation Calculator'!AA2,SUM(SUMIF('Depreciation Calculator'!D:D,P33,'Depreciation Calculator'!T:T),SUMIF('Depreciation Calculator'!D:D,P33,'Depreciation Calculator'!U:U),SUMIF('Depreciation Calculator'!D:D,P33,'Depreciation Calculator'!V:V),SUMIF('Depreciation Calculator'!D:D,P33,'Depreciation Calculator'!W:W),SUMIF('Depreciation Calculator'!D:D,P33,'Depreciation Calculator'!X:X),SUMIF('Depreciation Calculator'!D:D,P33,'Depreciation Calculator'!Y:Y),SUMIF('Depreciation Calculator'!D:D,P33,'Depreciation Calculator'!Z:Z)),IF(O5='Depreciation Calculator'!AB2,SUM(SUMIF('Depreciation Calculator'!D:D,P33,'Depreciation Calculator'!T:T),SUMIF('Depreciation Calculator'!D:D,P33,'Depreciation Calculator'!U:U),SUMIF('Depreciation Calculator'!D:D,P33,'Depreciation Calculator'!V:V),SUMIF('Depreciation Calculator'!D:D,P33,'Depreciation Calculator'!W:W),SUMIF('Depreciation Calculator'!D:D,P33,'Depreciation Calculator'!X:X),SUMIF('Depreciation Calculator'!D:D,P33,'Depreciation Calculator'!Y:Y),SUMIF('Depreciation Calculator'!D:D,P33,'Depreciation Calculator'!Z:Z),SUMIF('Depreciation Calculator'!D:D,P33,'Depreciation Calculator'!AA:AA)),IF(O5='Depreciation Calculator'!AC2,SUM(SUMIF('Depreciation Calculator'!D:D,P33,'Depreciation Calculator'!T:T),SUMIF('Depreciation Calculator'!D:D,P33,'Depreciation Calculator'!U:U),SUMIF('Depreciation Calculator'!D:D,P33,'Depreciation Calculator'!V:V),SUMIF('Depreciation Calculator'!D:D,P33,'Depreciation Calculator'!W:W),SUMIF('Depreciation Calculator'!D:D,P33,'Depreciation Calculator'!X:X),SUMIF('Depreciation Calculator'!D:D,P33,'Depreciation Calculator'!Y:Y),SUMIF('Depreciation Calculator'!D:D,P33,'Depreciation Calculator'!Z:Z),SUMIF('Depreciation Calculator'!D:D,P33,'Depreciation Calculator'!AA:AA),SUMIF('Depreciation Calculator'!D:D,P33,'Depreciation Calculator'!AB:AB)),IF(O5='Depreciation Calculator'!AD2,SUM(SUMIF('Depreciation Calculator'!D:D,P33,'Depreciation Calculator'!T:T),SUMIF('Depreciation Calculator'!D:D,P33,'Depreciation Calculator'!U:U),SUMIF('Depreciation Calculator'!D:D,P33,'Depreciation Calculator'!V:V),SUMIF('Depreciation Calculator'!D:D,P33,'Depreciation Calculator'!W:W),SUMIF('Depreciation Calculator'!D:D,P33,'Depreciation Calculator'!X:X),SUMIF('Depreciation Calculator'!D:D,P33,'Depreciation Calculator'!Y:Y),SUMIF('Depreciation Calculator'!D:D,P33,'Depreciation Calculator'!Z:Z),SUMIF('Depreciation Calculator'!D:D,P33,'Depreciation Calculator'!AA:AA),SUMIF('Depreciation Calculator'!D:D,P33,'Depreciation Calculator'!AB:AB),SUMIF('Depreciation Calculator'!D:D,P33,'Depreciation Calculator'!AC:AC)),IF(O5='Depreciation Calculator'!AE2,SUM(SUMIF('Depreciation Calculator'!D:D,P33,'Depreciation Calculator'!T:T),SUMIF('Depreciation Calculator'!D:D,P33,'Depreciation Calculator'!U:U),SUMIF('Depreciation Calculator'!D:D,P33,'Depreciation Calculator'!V:V),SUMIF('Depreciation Calculator'!D:D,P33,'Depreciation Calculator'!W:W),SUMIF('Depreciation Calculator'!D:D,P33,'Depreciation Calculator'!X:X),SUMIF('Depreciation Calculator'!D:D,P33,'Depreciation Calculator'!Y:Y),SUMIF('Depreciation Calculator'!D:D,P33,'Depreciation Calculator'!Z:Z),SUMIF('Depreciation Calculator'!D:D,P33,'Depreciation Calculator'!AA:AA),SUMIF('Depreciation Calculator'!D:D,P33,'Depreciation Calculator'!AB:AB),SUMIF('Depreciation Calculator'!D:D,P33,'Depreciation Calculator'!AC:AC),SUMIF('Depreciation Calculator'!D:D,P33,'Depreciation Calculator'!AD:AD))))))))))))))/M5,0)-ROUND((SUMIFS('Depreciation Calculator'!E:E,'Depreciation Calculator'!L:L,"<"&'PPE Schedule'!O5,'Depreciation Calculator'!D:D,P33,'Depreciation Calculator'!M:M,"Yes")+SUMIFS('Depreciation Calculator'!G:G,'Depreciation Calculator'!L:L,"<"&'PPE Schedule'!O5,'Depreciation Calculator'!D:D,P33,'Depreciation Calculator'!M:M,"Yes")+SUMIFS('Depreciation Calculator'!O:O,'Depreciation Calculator'!L:L,"<"&'PPE Schedule'!O5,'Depreciation Calculator'!D:D,P33,'Depreciation Calculator'!M:M,"Yes")-SUMIFS('Depreciation Calculator'!N:N,'Depreciation Calculator'!L:L,"<"&'PPE Schedule'!O5,'Depreciation Calculator'!D:D,P33,'Depreciation Calculator'!M:M,"Yes"))/M5,0) -> 0 | W33: =ROUND((SUMIF('Depreciation Calculator'!D:D,'PPE Schedule'!P33,IF(O5='Depreciation Calculator'!T2,'Depreciation Calculator'!T1,IF(O5='Depreciation Calculator'!U2,'Depreciation Calculator'!U1,IF(O5='Depreciation Calculator'!V2,'Depreciation Calculator'!V1,IF(O5='Depreciation Calculator'!W2,'Depreciation Calculator'!W1,IF(O5='Depreciation Calculator'!X2,'Depreciation Calculator'!X1,IF(O5='Depreciation Calculator'!Y2,'Depreciation Calculator'!Y1,IF(O5='Depreciation Calculator'!AA2,'Depreciation Calculator'!AA1,IF(O5='Depreciation Calculator'!Z2,'Depreciation Calculator'!Z1,IF(O5='Depreciation Calculator'!AB2,'Depreciation Calculator'!AB1,IF(O5='Depreciation Calculator'!AC2,'Depreciation Calculator'!AC1,IF(O5='Depreciation Calculator'!AD2,'Depreciation Calculator'!AD1,IF(O5='Depreciation Calculator'!AE2,'Depreciation Calculator'!AE1,"Select proper range of year"))))))))))))))/M5,0) -> 0 | X33: =ROUND((SUMIFS('Depreciation Calculator'!E:E,'Depreciation Calculator'!L:L,">="&'PPE Schedule'!O5,'Depreciation Calculator'!L:L,"<="&'PPE Schedule'!P5,'Depreciation Calculator'!D:D,P33,'Depreciation Calculator'!M:M,"Yes")+SUMIFS('Depreciation Calculator'!G:G,'Depreciation Calculator'!L:L,">="&'PPE Schedule'!O5,'Depreciation Calculator'!L:L,"<="&'PPE Schedule'!P5,'Depreciation Calculator'!D:D,P33,'Depreciation Calculator'!M:M,"Yes")+SUMIFS('Depreciation Calculator'!O:O,'Depreciation Calculator'!L:L,">="&'PPE Schedule'!O5,'Depreciation Calculator'!L:L,"<="&'PPE Schedule'!P5,'Depreciation Calculator'!D:D,P33,'Depreciation Calculator'!M:M,"Yes")-SUMIFS('Depreciation Calculator'!N:N,'Depreciation Calculator'!L:L,">="&'PPE Schedule'!O5,'Depreciation Calculator'!L:L,"<="&'PPE Schedule'!P5,'Depreciation Calculator'!D:D,P33,'Depreciation Calculator'!M:M,"Yes"))/M5,0) -> 0 | Y33: 0 | Z33: 0
B34: Total | C34: =SUM(C24:C33) -> 0 | D34: 0 | E34: 0 | F34: 0 | G34: 0 | H34: 0 | I34: 0 | J34: 0 | K34: 0 | L34: 0
B35: Previous Year
B37: Download Source- www.taxguru.in

Sheet Depreciation Calculator
B1: =Readme!C3 -> ABC Infrastructure Private Limited | J1: Input Cells in Blue Table | P1: Method | Q1: WDV | R1: =IF(Q3<S2,"'Range start date' can not be before 'period start date'"," ") -> 
B2: Perpetual Depreciation Calculator | J2: Formulas cell in Green Table | P2: Periodicity | Q2: Yearly | R2: Period Start Date | S2: =MIN(I7:I13) -> 2017-03-31 | T2: =Q3 -> 2018-04-01 | U2: =T3+1 -> 2019-04-01 | V2: =U3+1 -> 2020-04-01 | W2: 2021-04-01 | X2: 2022-04-01 | Y2: 2023-04-01 | Z2: 2024-04-01 | AA2: 2025-04-01 | AB2: 2026-04-01 | AC2: 2027-04-01 | AD2: 2028-04-01 | AE2: 2029-04-01 | AF2: 2030-04-01 | AT2: Yes | AU2: Monthly | AV2: 0 | AW2: Monthly | AX2: 12 | AY2: SLM | AZ2: 1 | BA2: 2 | BB2: 3 | BC2: 4 | BD2: 5 | BE2: 6 | BF2: 7 | BG2: 8 | BH2: 9 | BI2: 10 | BJ2: 11 | BK2: 12
L3: All dates in DD-MM-YYYY Format | P3: Range Start Date | Q3: 2018-04-01 | R3: Period End Date | S3: =IF(S2=T2,S2,T2-1) -> 2018-03-31 | T3: =EOMONTH(T2,VLOOKUP(Q2,AU2:AV5,2,0)) -> 2019-03-31 | U3: =EOMONTH(U2,VLOOKUP(Q2,AU2:AV5,2,0)) -> 2020-03-31 | V3: =EOMONTH(V2,VLOOKUP(Q2,AU2:AV5,2,0)) -> 2021-03-31 | W3: =EOMONTH(W2,VLOOKUP(Q2,AU2:AV5,2,0)) -> 2022-03-31 | X3: =EOMONTH(X2,VLOOKUP(Q2,AU2:AV5,2,0)) -> 2023-03-31 | Y3: =EOMONTH(Y2,VLOOKUP(Q2,AU2:AV5,2,0)) -> 2024-03-31 | Z3: =EOMONTH(Z2,VLOOKUP(Q2,AU2:AV5,2,0)) -> 2025-03-31 | AA3: =EOMONTH(AA2,VLOOKUP(Q2,AU2:AV5,2,0)) -> 2026-03-31 | AB3: =EOMONTH(AB2,VLOOKUP(Q2,AU2:AV5,2,0)) -> 2027-03-31 | AC3: =EOMONTH(AC2,VLOOKUP(Q2,AU2:AV5,2,0)) -> 2028-03-31 | AD3: =EOMONTH(AD2,VLOOKUP(Q2,AU2:AV5,2,0)) -> 2029-03-31 | AE3: =EOMONTH(AE2,VLOOKUP(Q2,AU2:AV5,2,0)) -> 2030-03-31 | AF3: =MAX(J7:J13,L7:L13) -> 2116-05-23 | AT3: No | AU3: Quarterly | AV3: 2 | AW3: Quarter | AX3: 4 | AY3: WDV | AZ3: 0 | BA3: 1 | BB3: 0 | BC3: 1 | BD3: 0 | BE3: 1 | BF3: 0 | BG3: 0 | BH3: 1 | BI3: 0 | BJ3: 1 | BK3: 0
L4: Do not Copy/paste or delete Cell in Green coloured Table | R4: =SUBTOTAL(9,Table9[Column4]) -> -1.396983862e-09 | AU4: Half Yearly | AV4: 5 | AW4: Half Year | AX4: 2
B5: Input 1 | C5: Input 2 | D5: Input 3 | E5: Input 4 | F5: Input 5 | G5: Input 6 | H5: Input 7 | I5: Input 8 | J5: Input 9 | K5: Input 10 | L5: Input 11 | M5: Input 12 | N5: Input 13 | O5: Column1 | P5: Column2 | Q5: Column3 | R5: Column4 | S5: Column5 | T5: Column6 | U5: Column7 | V5: Column8 | W5: Column9 | X5: Column10 | Y5: Column11 | Z5: Column12 | AA5: Column13 | AB5: Column14 | AC5: Column15 | AD5: Column16 | AE5: Column17 | AF5: Column18 | AH5: Summary for entire Useful Life | AU5: Yearly | AV5: 11 | AW5: Year | AX5: 1
A6: Example | B6: Asset ID | C6: Name of Assets | D6: Assets Category | E6: Cost of Purchase | F6: Residual Value | G6: Gross Block Opening Balance | H6: Accumalated Depreciation Opening Balance | I6: Date of Put in Place or Closing Date | J6: Date of Retirement | K6: Original Useful Life of Asset (in Years) | L6: Date of Sale | M6: Sale of Asset | N6: Sale Value | O6: Gain/(Loss) on sale of assets | P6: Rate for WDV method | Q6: Depreciation under SLM for selected Period | R6: Depreciation Check | S6: Accumalted Depreciation for above Period | T6: =CONCATENATE(VLOOKUP(Q2,AU2:AW5,3,0)," 1") -> Year 1 | U6: =CONCATENATE(VLOOKUP(Q2,AU2:AW5,3,0)," 2") -> Year 2 | V6: =CONCATENATE(VLOOKUP(Q2,AU2:AW5,3,0)," 3") -> Year 3 | W6: =CONCATENATE(VLOOKUP(Q2,AU2:AW5,3,0)," 4") -> Year 4 | X6: =CONCATENATE(VLOOKUP(Q2,AU2:AW5,3,0)," 5") -> Year 5 | Y6: =CONCATENATE(VLOOKUP(Q2,AU2:AW5,3,0)," 6") -> Year 6 | Z6: =CONCATENATE(VLOOKUP(Q2,AU2:AW5,3,0)," 7") -> Year 7 | AA6: =CONCATENATE(VLOOKUP(Q2,AU2:AW5,3,0)," 8") -> Year 8 | AB6: =CONCATENATE(VLOOKUP(Q2,AU2:AW5,3,0)," 9") -> Year 9 | AC6: =CONCATENATE(VLOOKUP(Q2,AU2:AW5,3,0)," 10") -> Year 10 | AD6: =CONCATENATE(VLOOKUP(Q2,AU2:AW5,3,0)," 11") -> Year 11 | AE6: =CONCATENATE(VLOOKUP(Q2,AU2:AW5,3,0)," 12") -> Year 12 | AF6: Depreciation for above Period | AH6: Cost | AI6: Depreciation | AJ6: Residual Value/WDV | AK6: Sale Amount | AL6: Gain/(Loss) on sale of assets
A7: Opening Balance as on April 2017 and sale in Year 2020 | B7: 1001 | C7: Laptop @ 10 | D7: Computers | F7: =Table8[[#This Row],[Input 6]]*5% -> 27445 | G7: 548900 | H7: 110454.1325 | I7: 2017-03-31 | J7: 2020-01-10 | K7: 3 | L7: 2020-10-12 | M7: Yes | N7: 22400 | O7: =IF(M7="Yes",N7-(G7+E7-SUM(H7,S7:AF7)),0) -> -5045 | P7: =1-(F7/(IF(G7>0,G7,E7)))^(1/K7) -> 0.6315968501 | Q7: =IF(Q1="SLM",IF((G7-H7)>0,(G7-F7)/(K7*VLOOKUP(Q2,AU2:AX5,4,0)),(E7-F7)/(K7*VLOOKUP(Q2,AU2:AX5,4,0))),0) -> 0 | R7: =SUM(H7,S7:AF7)-IF(G7>0,G7-F7,E7-F7)-IF(M7="Yes",SUM(-N7+O7+F7),0) -> 0 | S7: =IF(Q1="SLM",IF(OR(S2>J7,IF(M7="yes",S2>L7,0)),0,IF(AND(S2<=L7,L7<=S3,M7="Yes"),YEARFRAC(MAX(S2,I7),MIN(L7,J7))*Q7*VLOOKUP(Q2,AU2:AX5,4,0),IF(S2>=I7,IF(S3<=J7,Q7*YEARFRAC(S2,S3)*VLOOKUP(Q2,AU2:AX5,4,0),Q7*YEARFRAC(S2,J7)*VLOOKUP(Q2,AU2:AX5,4,0)),IF(S3<I7,0,IF(S3>=J7,YEARFRAC(I7,J7)*Q7*VLOOKUP(Q2,AU2:AX5,4,0),YEARFRAC(I7,S3+HLOOKUP(MONTH(S3),AZ2:BK3,2,0))*Q7*VLOOKUP(Q2,AU2:AX5,4,0)))))),IF(OR(S2>J7,IF(M7="yes",S2>L7,0)),0,IF(AND(S2<=L7,L7<=S3,M7="Yes"),IF(G7>0,(G7-H7-((G7-H7)*(1-P7)^(YEARFRAC(I7,MIN(J7,L7))))),(E7-(E7*(1-P7)^(YEARFRAC(I7,MIN(J7,L7)))))),IF(S2>I7,IF(S3<J7,IF(G7>0,(G7-H7-((G7-H7)*(1-P7)^(YEARFRAC(I7,S3)))),(E7-(E7*(1-P7)^(YEARFRAC(I7,S3))))),IF(G7>0,(G7-H7-((G7-H7)*(1-P7)^(YEARFRAC(I7,J7)))),(E7-(E7*(1-P7)^(YEARFRAC(I7,J7)))))),IF(S3<I7,0,IF(G7>0,(G7-H7-((G7-H7)*(1-P7)^(YEARFRAC(I7,MIN(J7,S3))))),(E7-(E7*(1-P7)^(YEARFRAC(I7,MIN(J7,S3))))))))))) -> 276921.0289 | T7: =IF(Q1="SLM",IF(OR(T2>J7,IF(M7="yes",T2>L7,0)),0,IF(AND(T2<=L7,L7<=T3,M7="Yes"),YEARFRAC(T2,MIN(L7,J7))*Q7*VLOOKUP(Q2,AU2:AX5,4,0),IF(T2>=I7,IF(T3<=J7,Q7,Q7*YEARFRAC(T2,J7)*VLOOKUP(Q2,AU2:AX5,4,0)),IF(T3<I7,0,YEARFRAC(I7,T3+HLOOKUP(MONTH(T3),AZ2:BK3,2,0))*Q7*VLOOKUP(Q2,AU2:AX5,4,0))))),IF(OR(T2>J7,IF(M7="yes",T2>L7,0)),0,IF(AND(T2<=L7,L7<=T3,M7="Yes"),IF(G7>0,(G7-H7-((G7-H7)*(1-P7)^(YEARFRAC(I7,MIN(L7,J7))))-SUM(S7:S7)),(E7-(E7*(1-P7)^(YEARFRAC(I7,MIN(L7,J7))))-SUM(S7:S7))),IF(T2>=I7,IF(T3<=J7,IF(G7>0,(G7-H7-((G7-H7)*(1-P7)^(YEARFRAC(I7,T3)))-SUM(S7:S7)),(E7-(E7*(1-P7)^(YEARFRAC(I7,T3)))-SUM(S7:S7))),IF(G7>0,(G7-H7-((G7-H7)*(1-P7)^(YEARFRAC(I7+1,J7)))-SUM(S7:S7)),(E7-(E7*(1-P7)^(YEARFRAC(I7,J7)))-SUM(S7:S7)))),IF(T3<I7,0,IF(G7>0,(G7-H7-((G7-H7)*(1-P7)^(YEARFRAC(I7,T3)))-SUM(S7:S7)),(E7-(E7*(1-P7)^(YEARFRAC(I7,T3)))-SUM(S7:S7)))))))) -> 102018.5793 | U7: =IF(Q1="SLM",IF(OR(U2>J7,IF(M7="yes",U2>L7,0)),0,IF(AND(U2<=L7,L7<=U3,M7="Yes"),YEARFRAC(U2,MIN(L7,J7))*Q7*VLOOKUP(Q2,AU2:AX5,4,0),IF(U2>=I7,IF(U3<=J7,Q7,Q7*YEARFRAC(U2,J7)*VLOOKUP(Q2,AU2:AX5,4,0)),IF(U3<I7,0,YEARFRAC(I7,U3+HLOOKUP(MONTH(U3),AZ2:BK3,2,0))*Q7*VLOOKUP(Q2,AU2:AX5,4,0))))),IF(OR(U2>J7,IF(M7="yes",U2>L7,0)),0,IF(AND(U2<=L7,L7<=U3,M7="Yes"),IF(G7>0,(G7-H7-((G7-H7)*(1-P7)^(YEARFRAC(I7,MIN(L7,J7))))-SUM(S7:T7)),(E7-(E7*(1-P7)^(YEARFRAC(I7,MIN(L7,J7))))-SUM(S7:T7))),IF(U2>=I7,IF(U3<=J7,IF(G7>0,(G7-H7-((G7-H7)*(1-P7)^(YEARFRAC(I7,U3)))-SUM(S7:T7)),(E7-(E7*(1-P7)^(YEARFRAC(I7,U3)))-SUM(S7:T7))),IF(G7>0,(G7-H7-((G7-H7)*(1-P7)^(YEARFRAC(I7+1,J7)))-SUM(S7:T7)),(E7-(E7*(1-P7)^(YEARFRAC(I7,J7)))-SUM(S7:T7)))),IF(U3<I7,0,IF(G7>0,(G7-H7-((G7-H7)*(1-P7)^(YEARFRAC(I7,U3)))-SUM(S7:T7)),(E7-(E7*(1-P7)^(YEARFRAC(I7,U3)))-SUM(S7:T7)))))))) -> 32061.25934 | V7: =IF(Q1="SLM",IF(OR(V2>J7,IF(M7="yes",V2>L7,0)),0,IF(AND(V2<=L7,L7<=V3,M7="Yes"),YEARFRAC(V2,MIN(L7,J7))*Q7*VLOOKUP(Q2,AU2:AX5,4,0),IF(V2>=I7,IF(V3<=J7,Q7,Q7*YEARFRAC(V2,J7)*VLOOKUP(Q2,AU2:AX5,4,0)),IF(V3<I7,0,YEARFRAC(I7,V3+HLOOKUP(MONTH(V3),AZ2:BK3,2,0))*Q7*VLOOKUP(Q2,AU2:AX5,4,0))))),IF(OR(V2>J7,IF(M7="yes",V2>L7,0)),0,IF(AND(V2<=L7,L7<=V3,M7="Yes"),IF(G7>0,(G7-H7-((G7-H7)*(1-P7)^(YEARFRAC(I7,MIN(L7,J7))))-SUM(S7:U7)),(E7-(E7*(1-P7)^(YEARFRAC(I7,MIN(L7,J7))))-SUM(S7:U7))),IF(V2>=I7,IF(V3<=J7,IF(G7>0,(G7-H7-((G7-H7)*(1-P7)^(YEARFRAC(I7,V3)))-SUM(S7:U7)),(E7-(E7*(1-P7)^(YEARFRAC(I7,V3)))-SUM(S7:U7))),IF(G7>0,(G7-H7-((G7-H7)*(1-P7)^(YEARFRAC(SUM(I7+1),J7)))-SUM(S7:U7)),(E7-(E7*(1-P7)^(YEARFRAC(I7,J7)))-SUM(S7:U7)))),IF(V3<I7,0,IF(G7>0,(G7-H7-((G7-H7)*(1-P7)^(YEARFRAC(I7,V3)))-SUM(S7:U7)),(E7-(E7*(1-P7)^(YEARFRAC(I7,V3)))-SUM(S7:U7)))))))) -> 0 | W7: =IF(Q1="SLM",IF(OR(W2>J7,IF(M7="yes",W2>L7,0)),0,IF(AND(W2<=L7,L7<=W3,M7="Yes"),YEARFRAC(W2,MIN(L7,J7))*Q7*VLOOKUP(Q2,AU2:AX5,4,0),IF(W2>=I7,IF(W3<=J7,Q7,Q7*YEARFRAC(W2,J7)*VLOOKUP(Q2,AU2:AX5,4,0)),IF(W3<I7,0,YEARFRAC(I7,W3+HLOOKUP(MONTH(W3),AZ2:BK3,2,0))*Q7*VLOOKUP(Q2,AU2:AX5,4,0))))),IF(OR(W2>J7,IF(M7="yes",W2>L7,0)),0,IF(AND(W2<=L7,L7<=W3,M7="Yes"),IF(G7>0,(G7-H7-((G7-H7)*(1-P7)^(YEARFRAC(I7,MIN(L7,J7))))-SUM(S7:V7)),(E7-(E7*(1-P7)^(YEARFRAC(I7,MIN(L7,J7))))-SUM(S7:V7))),IF(W2>=I7,IF(W3<=J7,IF(G7>0,(G7-H7-((G7-H7)*(1-P7)^(YEARFRAC(I7,W3)))-SUM(S7:V7)),(E7-(E7*(1-P7)^(YEARFRAC(I7,W3)))-SUM(S7:V7))),IF(G7>0,(G7-H7-((G7-H7)*(1-P7)^(YEARFRAC(I7+1,J7)))-SUM(S7:V7)),(E7-(E7*(1-P7)^(YEARFRAC(I7,J7)))-SUM(S7:V7)))),IF(W3<I7,0,IF(G7>0,(G7-H7-((G7-H7)*(1-P7)^(YEARFRAC(I7,W3)))-SUM(S7:V7)),(E7-(E7*(1-P7)^(YEARFRAC(I7,W3)))-SUM(S7:V7)))))))) -> 0 | X7: =IF(Q1="SLM",IF(OR(X2>J7,IF(M7="yes",X2>L7,0)),0,IF(AND(X2<=L7,L7<=X3,M7="Yes"),YEARFRAC(X2,MIN(L7,J7))*Q7*VLOOKUP(Q2,AU2:AX5,4,0),IF(X2>=I7,IF(X3<=J7,Q7,Q7*YEARFRAC(X2,J7)*VLOOKUP(Q2,AU2:AX5,4,0)),IF(X3<I7,0,YEARFRAC(I7,X3+HLOOKUP(MONTH(X3),AZ2:BK3,2,0))*Q7*VLOOKUP(Q2,AU2:AX5,4,0))))),IF(OR(X2>J7,IF(M7="yes",X2>L7,0)),0,IF(AND(X2<=L7,L7<=X3,M7="Yes"),IF(G7>0,(G7-H7-((G7-H7)*(1-P7)^(YEARFRAC(I7,MIN(L7,J7))))-SUM(S7:W7)),(E7-(E7*(1-P7)^(YEARFRAC(I7,MIN(L7,J7))))-SUM(S7:W7))),IF(X2>=I7,IF(X3<=J7,IF(G7>0,(G7-H7-((G7-H7)*(1-P7)^(YEARFRAC(I7,X3)))-SUM(S7:W7)),(E7-(E7*(1-P7)^(YEARFRAC(I7,X3)))-SUM(S7:W7))),IF(G7>0,(G7-H7-((G7-H7)*(1-P7)^(YEARFRAC(I7+1,J7)))-SUM(S7:W7)),(E7-(E7*(1-P7)^(YEARFRAC(I7,J7)))-SUM(S7:W7)))),IF(X3<I7,0,IF(G7>0,(G7-H7-((G7-H7)*(1-P7)^(YEARFRAC(I7,X3)))-SUM(S7:W7)),(E7-(E7*(1-P7)^(YEARFRAC(I7,X3)))-SUM(S7:W7)))))))) -> 0 | Y7: =IF(Q1="SLM",IF(OR(Y2>J7,IF(M7="yes",Y2>L7,0)),0,IF(AND(Y2<=L7,L7<=Y3,M7="Yes"),YEARFRAC(Y2,MIN(L7,J7))*Q7*VLOOKUP(Q2,AU2:AX5,4,0),IF(Y2>=I7,IF(Y3<=J7,Q7,Q7*YEARFRAC(Y2,J7)*VLOOKUP(Q2,AU2:AX5,4,0)),IF(Y3<I7,0,YEARFRAC(I7,Y3+HLOOKUP(MONTH(Y3),AZ2:BK3,2,0))*Q7*VLOOKUP(Q2,AU2:AX5,4,0))))),IF(OR(Y2>J7,IF(M7="yes",Y2>L7,0)),0,IF(AND(Y2<=L7,L7<=Y3,M7="Yes"),IF(G7>0,(G7-H7-((G7-H7)*(1-P7)^(YEARFRAC(I7,MIN(L7,J7))))-SUM(S7:X7)),(E7-(E7*(1-P7)^(YEARFRAC(I7,MIN(L7,J7))))-SUM(S7:X7))),IF(Y2>=I7,IF(Y3<=J7,IF(G7>0,(G7-H7-((G7-H7)*(1-P7)^(YEARFRAC(I7,Y3)))-SUM(S7:X7)),(E7-(E7*(1-P7)^(YEARFRAC(I7,Y3)))-SUM(S7:X7))),IF(G7>0,(G7-H7-((G7-H7)*(1-P7)^(YEARFRAC(I7+1,J7)))-SUM(S7:X7)),(E7-(E7*(1-P7)^(YEARFRAC(I7,J7)))-SUM(S7:X7)))),IF(Y3<I7,0,IF(G7>0,(G7-H7-((G7-H7)*(1-P7)^(YEARFRAC(I7,Y3)))-SUM(S7:X7)),(E7-(E7*(1-P7)^(YEARFRAC(I7,Y3)))-SUM(S7:X7)))))))) -> 0 | Z7: =IF(Q1="SLM",IF(OR(Z2>J7,IF(M7="yes",Z2>L7,0)),0,IF(AND(Z2<=L7,L7<=Z3,M7="Yes"),YEARFRAC(Z2,MIN(L7,J7))*Q7*VLOOKUP(Q2,AU2:AX5,4,0),IF(Z2>=I7,IF(Z3<=J7,Q7,Q7*YEARFRAC(Z2,J7)*VLOOKUP(Q2,AU2:AX5,4,0)),IF(Z3<I7,0,YEARFRAC(I7,Z3+HLOOKUP(MONTH(Z3),AZ2:BK3,2,0))*Q7*VLOOKUP(Q2,AU2:AX5,4,0))))),IF(OR(Z2>J7,IF(M7="yes",Z2>L7,0)),0,IF(AND(Z2<=L7,L7<=Z3,M7="Yes"),IF(G7>0,(G7-H7-((G7-H7)*(1-P7)^(YEARFRAC(I7,MIN(L7,J7))))-SUM(S7:Y7)),(E7-(E7*(1-P7)^(YEARFRAC(I7,MIN(L7,J7))))-SUM(S7:Y7))),IF(Z2>=I7,IF(Z3<=J7,IF(G7>0,(G7-H7-((G7-H7)*(1-P7)^(YEARFRAC(I7,Z3)))-SUM(S7:Y7)),(E7-(E7*(1-P7)^(YEARFRAC(I7,Z3)))-SUM(S7:Y7))),IF(G7>0,(G7-H7-((G7-H7)*(1-P7)^(YEARFRAC(I7+1,J7)))-SUM(S7:Y7)),(E7-(E7*(1-P7)^(YEARFRAC(I7,J7)))-SUM(S7:Y7)))),IF(Z3<I7,0,IF(G7>0,(G7-H7-((G7-H7)*(1-P7)^(YEARFRAC(I7,Z3)))-SUM(S7:Y7)),(E7-(E7*(1-P7)^(YEARFRAC(I7,Z3)))-SUM(S7:Y7)))))))) -> 0 | AA7: =IF(Q1="SLM",IF(OR(AA2>J7,IF(M7="yes",AA2>L7,0)),0,IF(AND(AA2<=L7,L7<=AA3,M7="Yes"),YEARFRAC(AA2,MIN(L7,J7))*Q7*VLOOKUP(Q2,AU2:AX5,4,0),IF(AA2>=I7,IF(AA3<=J7,Q7,Q7*YEARFRAC(AA2,J7)*VLOOKUP(Q2,AU2:AX5,4,0)),IF(AA3<I7,0,YEARFRAC(I7,AA3+HLOOKUP(MONTH(AA3),AZ2:BK3,2,0))*Q7*VLOOKUP(Q2,AU2:AX5,4,0))))),IF(OR(AA2>J7,IF(M7="yes",AA2>L7,0)),0,IF(AND(AA2<=L7,L7<=AA3,M7="Yes"),IF(G7>0,(G7-H7-((G7-H7)*(1-P7)^(YEARFRAC(I7,MIN(L7,J7))))-SUM(S7:Z7)),(E7-(E7*(1-P7)^(YEARFRAC(I7,MIN(L7,J7))))-SUM(S7:Z7))),IF(AA2>=I7,IF(AA3<=J7,IF(G7>0,(G7-H7-((G7-H7)*(1-P7)^(YEARFRAC(I7,AA3)))-SUM(S7:Z7)),(E7-(E7*(1-P7)^(YEARFRAC(I7,AA3)))-SUM(S7:Z7))),IF(G7>0,(G7-H7-((G7-H7)*(1-P7)^(YEARFRAC(I7+1,J7)))-SUM(S7:Z7)),(E7-(E7*(1-P7)^(YEARFRAC(I7,J7)))-SUM(S7:Z7)))),IF(AA3<I7,0,IF(G7>0,(G7-H7-((G7-H7)*(1-P7)^(YEARFRAC(I7,AA3)))-SUM(S7:Z7)),(E7-(E7*(1-P7)^(YEARFRAC(I7,AA3)))-SUM(S7:Z7)))))))) -> 0 | AB7: =IF(Q1="SLM",IF(OR(AB2>J7,IF(M7="yes",AB2>L7,0)),0,IF(AND(AB2<=L7,L7<=AB3,M7="Yes"),YEARFRAC(AB2,MIN(L7,J7))*Q7*VLOOKUP(Q2,AU2:AX5,4,0),IF(AB2>=I7,IF(AB3<=J7,Q7,Q7*YEARFRAC(AB2,J7)*VLOOKUP(Q2,AU2:AX5,4,0)),IF(AB3<I7,0,YEARFRAC(I7,AB3+HLOOKUP(MONTH(AB3),AZ2:BK3,2,0))*Q7*VLOOKUP(Q2,AU2:AX5,4,0))))),IF(OR(AB2>J7,IF(M7="yes",AB2>L7,0)),0,IF(AND(AB2<=L7,L7<=AB3,M7="Yes"),IF(G7>0,(G7-H7-((G7-H7)*(1-P7)^(YEARFRAC(I7,MIN(L7,J7))))-SUM(S7:AA7)),(E7-(E7*(1-P7)^(YEARFRAC(I7,MIN(L7,J7))))-SUM(S7:AA7))),IF(AB2>=I7,IF(AB3<=J7,IF(G7>0,(G7-H7-((G7-H7)*(1-P7)^(YEARFRAC(I7,MIN(AB3,J7))))-SUM(S7:AA7)),(E7-(E7*(1-P7)^(YEARFRAC(I7,MIN(AB3,J7))))-SUM(S7:AA7))),IF(G7>0,(G7-H7-((G7-H7)*(1-P7)^(YEARFRAC(I7+1,J7)))-SUM(S7:AA7)),(E7-(E7*(1-P7)^(YEARFRAC(I7,J7)))-SUM(S7:AA7)))),IF(AB3<I7,0,IF(G7>0,(G7-H7-((G7-H7)*(1-P7)^(YEARFRAC(I7,AB3)))-SUM(S7:AA7)),(E7-(E7*(1-P7)^(YEARFRAC(I7,AB3)))-SUM(S7:AA7)))))))) -> 0 | AC7: =IF(Q1="SLM",IF(OR(AC2>J7,IF(M7="yes",AC2>L7,0)),0,IF(AND(AC2<=L7,L7<=AC3,M7="Yes"),YEARFRAC(AC2,MIN(L7,J7))*Q7*VLOOKUP(Q2,AU2:AX5,4,0),IF(AC2>=I7,IF(AC3<=J7,Q7,Q7*YEARFRAC(AC2,J7)*VLOOKUP(Q2,AU2:AX5,4,0)),IF(AC3<I7,0,YEARFRAC(I7,AC3+HLOOKUP(MONTH(AC3),AZ2:BK3,2,0))*Q7*VLOOKUP(Q2,AU2:AX5,4,0))))),IF(OR(AC2>J7,IF(M7="yes",AC2>L7,0)),0,IF(AND(AC2<=L7,L7<=AC3,M7="Yes"),IF(G7>0,(G7-H7-((G7-H7)*(1-P7)^(YEARFRAC(I7,MIN(L7,J7))))-SUM(S7:AB7)),(E7-(E7*(1-P7)^(YEARFRAC(I7,MIN(L7,J7))))-SUM(S7:AB7))),IF(AC2>=I7,IF(AC3<=J7,IF(G7>0,(G7-H7-((G7-H7)*(1-P7)^(YEARFRAC(I7,AC3)))-SUM(S7:AB7)),(E7-(E7*(1-P7)^(YEARFRAC(I7,AC3)))-SUM(S7:AB7))),IF(G7>0,(G7-H7-((G7-H7)*(1-P7)^(YEARFRAC(I7+1,J7)))-SUM(S7:AB7)),(E7-(E7*(1-P7)^(YEARFRAC(I7,J7)))-SUM(S7:AB7)))),IF(AC3<I7,0,IF(G7>0,(G7-H7-((G7-H7)*(1-P7)^(YEARFRAC(I7,AC3)))-SUM(S7:AB7)),(E7-(E7*(1-P7)^(YEARFRAC(I7,AC3)))-SUM(S7:AB7)))))))) -> 0 | AD7: =IF(Q1="SLM",IF(OR(AD2>J7,IF(M7="yes",AD2>L7,0)),0,IF(AND(AD2<=L7,L7<=AD3,M7="Yes"),YEARFRAC(AD2,MIN(L7,J7))*Q7*VLOOKUP(Q2,AU2:AX5,4,0),IF(AD2>=I7,IF(AD3<=J7,Q7,Q7*YEARFRAC(AD2,J7)*VLOOKUP(Q2,AU2:AX5,4,0)),IF(AD3<I7,0,YEARFRAC(I7,AD3+HLOOKUP(MONTH(AD3),AZ2:BK3,2,0))*Q7*VLOOKUP(Q2,AU2:AX5,4,0))))),IF(OR(AD2>J7,IF(M7="yes",AD2>L7,0)),0,IF(AND(AD2<=L7,L7<=AD3,M7="Yes"),IF(G7>0,(G7-H7-((G7-H7)*(1-P7)^(YEARFRAC(I7,MIN(L7,J7))))-SUM(S7:AC7)),(E7-(E7*(1-P7)^(YEARFRAC(I7,MIN(L7,J7))))-SUM(S7:AC7))),IF(AD2>=I7,IF(AD3<=J7,IF(G7>0,(G7-H7-((G7-H7)*(1-P7)^(YEARFRAC(I7,AD3)))-SUM(S7:AC7)),(E7-(E7*(1-P7)^(YEARFRAC(I7,AD3)))-SUM(S7:AC7))),IF(G7>0,(G7-H7-((G7-H7)*(1-P7)^(YEARFRAC(I7+1,J7)))-SUM(S7:AC7)),(E7-(E7*(1-P7)^(YEARFRAC(I7,J7)))-SUM(S7:AC7)))),IF(AD3<I7,0,IF(G7>0,(G7-H7-((G7-H7)*(1-P7)^(YEARFRAC(I7,AD3)))-SUM(S7:AC7)),(E7-(E7*(1-P7)^(YEARFRAC(I7,AD3)))-SUM(S7:AC7)))))))) -> 0 | AE7: =IF(Q1="SLM",IF(OR(AE2>J7,IF(M7="yes",AE2>L7,0)),0,IF(AND(AE2<=L7,L7<=AE3,M7="Yes"),YEARFRAC(AE2,MIN(L7,J7))*Q7*VLOOKUP(Q2,AU2:AX5,4,0),IF(AE2>=I7,IF(AE3<=J7,Q7,Q7*YEARFRAC(AE2,J7)*VLOOKUP(Q2,AU2:AX5,4,0)),IF(AE3<I7,0,YEARFRAC(I7,AE3+HLOOKUP(MONTH(AE3),AZ2:BK3,2,0))*Q7*VLOOKUP(Q2,AU2:AX5,4,0))))),IF(OR(AE2>J7,IF(M7="yes",AE2>L7,0)),0,IF(AND(AE2<=L7,L7<=AE3,M7="Yes"),IF(G7>0,(G7-H7-((G7-H7)*(1-P7)^(YEARFRAC(I7,MIN(L7,J7))))-SUM(S7:AD7)),(E7-(E7*(1-P7)^(YEARFRAC(I7,MIN(L7,J7))))-SUM(S7:AD7))),IF(AE2>=I7,IF(AE3<=J7,IF(G7>0,(G7-H7-((G7-H7)*(1-P7)^(YEARFRAC(I7,AE3)))-SUM(S7:AD7)),(E7-(E7*(1-P7)^(YEARFRAC(I7,AE3)))-SUM(S7:AD7))),IF(G7>0,(G7-H7-((G7-H7)*(1-P7)^(YEARFRAC(I7+1,J7)))-SUM(S7:AD7)),(E7-(E7*(1-P7)^(YEARFRAC(I7,J7)))-SUM(S7:AD7)))),IF(AE3<I7,0,IF(G7>0,(G7-H7-((G7-H7)*(1-P7)^(YEARFRAC(I7,AE3)))-SUM(S7:AD7)),(E7-(E7*(1-P7)^(YEARFRAC(I7,AE3)))-SUM(S7:AD7)))))))) -> 0 | AF7: =IF(Q1="SLM",IF(OR(AF2>J7,IF(M7="yes",AF2>L7,0)),0,IF(AND(AF2<=L7,L7<=AF3,M7="Yes"),YEARFRAC(MAX(I7,AF2),MIN(L7,J7))*Q7*VLOOKUP(Q2,AU2:AX5,4,0),IF(AF2>=I7,IF(AF3<=J7,Q7*YEARFRAC(AF2,J7)*VLOOKUP(Q2,AU2:AX5,4,0),Q7*YEARFRAC(AF2,J7)*VLOOKUP(Q2,AU2:AX5,4,0)),IF(AF3<I7,0,IF(AF3>=J7,YEARFRAC(I7,J7)*Q7*VLOOKUP(Q2,AU2:AX5,4,0),YEARFRAC(I7,AF3)*Q7*VLOOKUP(Q2,AU2:AX5,4,0)))))),IF(OR(AF2>J7,IF(M7="yes",AF2>L7,0)),0,IF(AND(AF2<=L7,L7<=AF3,M7="Yes"),IF(G7>0,(G7-H7-((G7-H7)*(1-P7)^(YEARFRAC(I7+1,MIN(L7,J7))))-SUM(S7:AE7)),(E7-(E7*(1-P7)^(YEARFRAC(I7,MIN(L7,J7))))-SUM(S7:AE7))),IF(AF2>=I7,IF(AF3<=J7,IF(G7>0,(G7-H7-((G7-H7)*(1-P7)^(YEARFRAC(I7+1,AF3)))-SUM(S7:AE7)),(E7-(E7*(1-P7)^(YEARFRAC(I7,AF3)))-SUM(S7:AE7))),IF(G7>0,(G7-H7-((G7-H7)*(1-P7)^(YEARFRAC(I7+1,J7)))-SUM(S7:AE7)),(E7-(E7*(1-P7)^(YEARFRAC(I7,J7)))-SUM(S7:AE7)))),IF(AF3<I7,0,IF(AF3>=J7,IF(G7>0,(G7-H7-((G7-H7)*(1-P7)^(YEARFRAC(I7+1,J7)))-SUM(S7:AE7)),(E7-(E7*(1-P7)^(YEARFRAC(I7,J7)))-SUM(S7:AE7))),IF(G7>0,(G7-H7-((G7-H7)*(1-P7)^(YEARFRAC(I7+1,AF3)))-SUM(S7:AE7)),(E7-(E7*(1-P7)^(YEARFRAC(I7,AF3)))-SUM(S7:AE7))))))))) -> 0 | AH7: =E7+G7 -> 548900 | AI7: =SUM(S7:AF7)+H7 -> 521455 | AJ7: =AH7-AI7 -> 27445 | AK7: =N7 -> 22400 | AL7: =IF(M7="Yes",AK7-AJ7,0) -> -5045
A8: Opening Balance as on April 2017 | B8: 1002 | C8: Office Furniture | D8: Furniture and Fixtures | F8: =Table8[[#This Row],[Input 6]]*5% -> 125150 | G8: 2503000 | H8: 1352422.584 | I8: 2017-03-31 | J8: 2024-08-27 | K8: 10 | O8: 0 | P8: =1-(F8/(IF(G8>0,G8,E8)))^(1/K8) -> 0.2588655509 | Q8: =IF(Q1="SLM",IF((G8-H8)>0,(G8-F8)/(K8*VLOOKUP(Q2,AU2:AX5,4,0)),(E8-F8)/(K8*VLOOKUP(Q2,AU2:AX5,4,0))),0) -> 0 | R8: 4.656612873e-10 | S8: =IF(Q1="SLM",IF(OR(S2>J8,IF(M8="yes",S2>L8,0)),0,IF(AND(S2<=L8,L8<=S3,M8="Yes"),YEARFRAC(MAX(S2,I8),MIN(L8,J8))*Q8*VLOOKUP(Q2,AU2:AX5,4,0),IF(S2>=I8,IF(S3<=J8,Q8*YEARFRAC(S2,S3)*VLOOKUP(Q2,AU2:AX5,4,0),Q8*YEARFRAC(S2,J8)*VLOOKUP(Q2,AU2:AX5,4,0)),IF(S3<I8,0,IF(S3>=J8,YEARFRAC(I8,J8)*Q8*VLOOKUP(Q2,AU2:AX5,4,0),YEARFRAC(I8,S3+HLOOKUP(MONTH(S3),AZ2:BK3,2,0))*Q8*VLOOKUP(Q2,AU2:AX5,4,0)))))),IF(OR(S2>J8,IF(M8="yes",S2>L8,0)),0,IF(AND(S2<=L8,L8<=S3,M8="Yes"),IF(G8>0,(G8-H8-((G8-H8)*(1-P8)^(YEARFRAC(I8,MIN(J8,L8))))),(E8-(E8*(1-P8)^(YEARFRAC(I8,MIN(J8,L8)))))),IF(S2>I8,IF(S3<J8,IF(G8>0,(G8-H8-((G8-H8)*(1-P8)^(YEARFRAC(I8,S3)))),(E8-(E8*(1-P8)^(YEARFRAC(I8,S3))))),IF(G8>0,(G8-H8-((G8-H8)*(1-P8)^(YEARFRAC(I8,J8)))),(E8-(E8*(1-P8)^(YEARFRAC(I8,J8)))))),IF(S3<I8,0,IF(G8>0,(G8-H8-((G8-H8)*(1-P8)^(YEARFRAC(I8,MIN(J8,S3))))),(E8-(E8*(1-P8)^(YEARFRAC(I8,MIN(J8,S3))))))))))) -> 297844.8566 | T8: =IF(Q1="SLM",IF(OR(T2>J8,IF(M8="yes",T2>L8,0)),0,IF(AND(T2<=L8,L8<=T3,M8="Yes"),YEARFRAC(T2,MIN(L8,J8))*Q8*VLOOKUP(Q2,AU2:AX5,4,0),IF(T2>=I8,IF(T3<=J8,Q8,Q8*YEARFRAC(T2,J8)*VLOOKUP(Q2,AU2:AX5,4,0)),IF(T3<I8,0,YEARFRAC(I8,T3+HLOOKUP(MONTH(T3),AZ2:BK3,2,0))*Q8*VLOOKUP(Q2,AU2:AX5,4,0))))),IF(OR(T2>J8,IF(M8="yes",T2>L8,0)),0,IF(AND(T2<=L8,L8<=T3,M8="Yes"),IF(G8>0,(G8-H8-((G8-H8)*(1-P8)^(YEARFRAC(I8,MIN(L8,J8))))-SUM(S8:S8)),(E8-(E8*(1-P8)^(YEARFRAC(I8,MIN(L8,J8))))-SUM(S8:S8))),IF(T2>=I8,IF(T3<=J8,IF(G8>0,(G8-H8-((G8-H8)*(1-P8)^(YEARFRAC(I8,T3)))-SUM(S8:S8)),(E8-(E8*(1-P8)^(YEARFRAC(I8,T3)))-SUM(S8:S8))),IF(G8>0,(G8-H8-((G8-H8)*(1-P8)^(YEARFRAC(I8+1,J8)))-SUM(S8:S8)),(E8-(E8*(1-P8)^(YEARFRAC(I8,J8)))-SUM(S8:S8)))),IF(T3<I8,0,IF(G8>0,(G8-H8-((G8-H8)*(1-P8)^(YEARFRAC(I8,T3)))-SUM(S8:S8)),(E8-(E8*(1-P8)^(YEARFRAC(I8,T3)))-SUM(S8:S8)))))))) -> 220743.0837 | U8: =IF(Q1="SLM",IF(OR(U2>J8,IF(M8="yes",U2>L8,0)),0,IF(AND(U2<=L8,L8<=U3,M8="Yes"),YEARFRAC(U2,MIN(L8,J8))*Q8*VLOOKUP(Q2,AU2:AX5,4,0),IF(U2>=I8,IF(U3<=J8,Q8,Q8*YEARFRAC(U2,J8)*VLOOKUP(Q2,AU2:AX5,4,0)),IF(U3<I8,0,YEARFRAC(I8,U3+HLOOKUP(MONTH(U3),AZ2:BK3,2,0))*Q8*VLOOKUP(Q2,AU2:AX5,4,0))))),IF(OR(U2>J8,IF(M8="yes",U2>L8,0)),0,IF(AND(U2<=L8,L8<=U3,M8="Yes"),IF(G8>0,(G8-H8-((G8-H8)*(1-P8)^(YEARFRAC(I8,MIN(L8,J8))))-SUM(S8:T8)),(E8-(E8*(1-P8)^(YEARFRAC(I8,MIN(L8,J8))))-SUM(S8:T8))),IF(U2>=I8,IF(U3<=J8,IF(G8>0,(G8-H8-((G8-H8)*(1-P8)^(YEARFRAC(I8,U3)))-SUM(S8:T8)),(E8-(E8*(1-P8)^(YEARFRAC(I8,U3)))-SUM(S8:T8))),IF(G8>0,(G8-H8-((G8-H8)*(1-P8)^(YEARFRAC(I8+1,J8)))-SUM(S8:T8)),(E8-(E8*(1-P8)^(YEARFRAC(I8,J8)))-SUM(S8:T8)))),IF(U3<I8,0,IF(G8>0,(G8-H8-((G8-H8)*(1-P8)^(YEARFRAC(I8,U3)))-SUM(S8:T8)),(E8-(E8*(1-P8)^(YEARFRAC(I8,U3)))-SUM(S8:T8)))))))) -> 163600.3037 | V8: =IF(Q1="SLM",IF(OR(V2>J8,IF(M8="yes",V2>L8,0)),0,IF(AND(V2<=L8,L8<=V3,M8="Yes"),YEARFRAC(V2,MIN(L8,J8))*Q8*VLOOKUP(Q2,AU2:AX5,4,0),IF(V2>=I8,IF(V3<=J8,Q8,Q8*YEARFRAC(V2,J8)*VLOOKUP(Q2,AU2:AX5,4,0)),IF(V3<I8,0,YEARFRAC(I8,V3+HLOOKUP(MONTH(V3),AZ2:BK3,2,0))*Q8*VLOOKUP(Q2,AU2:AX5,4,0))))),IF(OR(V2>J8,IF(M8="yes",V2>L8,0)),0,IF(AND(V2<=L8,L8<=V3,M8="Yes"),IF(G8>0,(G8-H8-((G8-H8)*(1-P8)^(YEARFRAC(I8,MIN(L8,J8))))-SUM(S8:U8)),(E8-(E8*(1-P8)^(YEARFRAC(I8,MIN(L8,J8))))-SUM(S8:U8))),IF(V2>=I8,IF(V3<=J8,IF(G8>0,(G8-H8-((G8-H8)*(1-P8)^(YEARFRAC(I8,V3)))-SUM(S8:U8)),(E8-(E8*(1-P8)^(YEARFRAC(I8,V3)))-SUM(S8:U8))),IF(G8>0,(G8-H8-((G8-H8)*(1-P8)^(YEARFRAC(SUM(I8+1),J8)))-SUM(S8:U8)),(E8-(E8*(1-P8)^(YEARFRAC(I8,J8)))-SUM(S8:U8)))),IF(V3<I8,0,IF(G8>0,(G8-H8-((G8-H8)*(1-P8)^(YEARFRAC(I8,V3)))-SUM(S8:U8)),(E8-(E8*(1-P8)^(YEARFRAC(I8,V3)))-SUM(S8:U8)))))))) -> 121249.821 | W8: =IF(Q1="SLM",IF(OR(W2>J8,IF(M8="yes",W2>L8,0)),0,IF(AND(W2<=L8,L8<=W3,M8="Yes"),YEARFRAC(W2,MIN(L8,J8))*Q8*VLOOKUP(Q2,AU2:AX5,4,0),IF(W2>=I8,IF(W3<=J8,Q8,Q8*YEARFRAC(W2,J8)*VLOOKUP(Q2,AU2:AX5,4,0)),IF(W3<I8,0,YEARFRAC(I8,W3+HLOOKUP(MONTH(W3),AZ2:BK3,2,0))*Q8*VLOOKUP(Q2,AU2:AX5,4,0))))),IF(OR(W2>J8,IF(M8="yes",W2>L8,0)),0,IF(AND(W2<=L8,L8<=W3,M8="Yes"),IF(G8>0,(G8-H8-((G8-H8)*(1-P8)^(YEARFRAC(I8,MIN(L8,J8))))-SUM(S8:V8)),(E8-(E8*(1-P8)^(YEARFRAC(I8,MIN(L8,J8))))-SUM(S8:V8))),IF(W2>=I8,IF(W3<=J8,IF(G8>0,(G8-H8-((G8-H8)*(1-P8)^(YEARFRAC(I8,W3)))-SUM(S8:V8)),(E8-(E8*(1-P8)^(YEARFRAC(I8,W3)))-SUM(S8:V8))),IF(G8>0,(G8-H8-((G8-H8)*(1-P8)^(YEARFRAC(I8+1,J8)))-SUM(S8:V8)),(E8-(E8*(1-P8)^(YEARFRAC(I8,J8)))-SUM(S8:V8)))),IF(W3<I8,0,IF(G8>0,(G8-H8-((G8-H8)*(1-P8)^(YEARFRAC(I8,W3)))-SUM(S8:V8)),(E8-(E8*(1-P8)^(YEARFRAC(I8,W3)))-SUM(S8:V8)))))))) -> 89862.41928 | X8: =IF(Q1="SLM",IF(OR(X2>J8,IF(M8="yes",X2>L8,0)),0,IF(AND(X2<=L8,L8<=X3,M8="Yes"),YEARFRAC(X2,MIN(L8,J8))*Q8*VLOOKUP(Q2,AU2:AX5,4,0),IF(X2>=I8,IF(X3<=J8,Q8,Q8*YEARFRAC(X2,J8)*VLOOKUP(Q2,AU2:AX5,4,0)),IF(X3<I8,0,YEARFRAC(I8,X3+HLOOKUP(MONTH(X3),AZ2:BK3,2,0))*Q8*VLOOKUP(Q2,AU2:AX5,4,0))))),IF(OR(X2>J8,IF(M8="yes",X2>L8,0)),0,IF(AND(X2<=L8,L8<=X3,M8="Yes"),IF(G8>0,(G8-H8-((G8-H8)*(1-P8)^(YEARFRAC(I8,MIN(L8,J8))))-SUM(S8:W8)),(E8-(E8*(1-P8)^(YEARFRAC(I8,MIN(L8,J8))))-SUM(S8:W8))),IF(X2>=I8,IF(X3<=J8,IF(G8>0,(G8-H8-((G8-H8)*(1-P8)^(YEARFRAC(I8,X3)))-SUM(S8:W8)),(E8-(E8*(1-P8)^(YEARFRAC(I8,X3)))-SUM(S8:W8))),IF(G8>0,(G8-H8-((G8-H8)*(1-P8)^(YEARFRAC(I8+1,J8)))-SUM(S8:W8)),(E8-(E8*(1-P8)^(YEARFRAC(I8,J8)))-SUM(S8:W8)))),IF(X3<I8,0,IF(G8>0,(G8-H8-((G8-H8)*(1-P8)^(YEARFRAC(I8,X3)))-SUM(S8:W8)),(E8-(E8*(1-P8)^(YEARFRAC(I8,X3)))-SUM(S8:W8)))))))) -> 66600.13461 | Y8: =IF(Q1="SLM",IF(OR(Y2>J8,IF(M8="yes",Y2>L8,0)),0,IF(AND(Y2<=L8,L8<=Y3,M8="Yes"),YEARFRAC(Y2,MIN(L8,J8))*Q8*VLOOKUP(Q2,AU2:AX5,4,0),IF(Y2>=I8,IF(Y3<=J8,Q8,Q8*YEARFRAC(Y2,J8)*VLOOKUP(Q2,AU2:AX5,4,0)),IF(Y3<I8,0,YEARFRAC(I8,Y3+HLOOKUP(MONTH(Y3),AZ2:BK3,2,0))*Q8*VLOOKUP(Q2,AU2:AX5,4,0))))),IF(OR(Y2>J8,IF(M8="yes",Y2>L8,0)),0,IF(AND(Y2<=L8,L8<=Y3,M8="Yes"),IF(G8>0,(G8-H8-((G8-H8)*(1-P8)^(YEARFRAC(I8,MIN(L8,J8))))-SUM(S8:X8)),(E8-(E8*(1-P8)^(YEARFRAC(I8,MIN(L8,J8))))-SUM(S8:X8))),IF(Y2>=I8,IF(Y3<=J8,IF(G8>0,(G8-H8-((G8-H8)*(1-P8)^(YEARFRAC(I8,Y3)))-SUM(S8:X8)),(E8-(E8*(1-P8)^(YEARFRAC(I8,Y3)))-SUM(S8:X8))),IF(G8>0,(G8-H8-((G8-H8)*(1-P8)^(YEARFRAC(I8+1,J8)))-SUM(S8:X8)),(E8-(E8*(1-P8)^(YEARFRAC(I8,J8)))-SUM(S8:X8)))),IF(Y3<I8,0,IF(G8>0,(G8-H8-((G8-H8)*(1-P8)^(YEARFRAC(I8,Y3)))-SUM(S8:X8)),(E8-(E8*(1-P8)^(YEARFRAC(I8,Y3)))-SUM(S8:X8)))))))) -> 49359.65407 | Z8: =IF(Q1="SLM",IF(OR(Z2>J8,IF(M8="yes",Z2>L8,0)),0,IF(AND(Z2<=L8,L8<=Z3,M8="Yes"),YEARFRAC(Z2,MIN(L8,J8))*Q8*VLOOKUP(Q2,AU2:AX5,4,0),IF(Z2>=I8,IF(Z3<=J8,Q8,Q8*YEARFRAC(Z2,J8)*VLOOKUP(Q2,AU2:AX5,4,0)),IF(Z3<I8,0,YEARFRAC(I8,Z3+HLOOKUP(MONTH(Z3),AZ2:BK3,2,0))*Q8*VLOOKUP(Q2,AU2:AX5,4,0))))),IF(OR(Z2>J8,IF(M8="yes",Z2>L8,0)),0,IF(AND(Z2<=L8,L8<=Z3,M8="Yes"),IF(G8>0,(G8-H8-((G8-H8)*(1-P8)^(YEARFRAC(I8,MIN(L8,J8))))-SUM(S8:Y8)),(E8-(E8*(1-P8)^(YEARFRAC(I8,MIN(L8,J8))))-SUM(S8:Y8))),IF(Z2>=I8,IF(Z3<=J8,IF(G8>0,(G8-H8-((G8-H8)*(1-P8)^(YEARFRAC(I8,Z3)))-SUM(S8:Y8)),(E8-(E8*(1-P8)^(YEARFRAC(I8,Z3)))-SUM(S8:Y8))),IF(G8>0,(G8-H8-((G8-H8)*(1-P8)^(YEARFRAC(I8+1,J8)))-SUM(S8:Y8)),(E8-(E8*(1-P8)^(YEARFRAC(I8,J8)))-SUM(S8:Y8)))),IF(Z3<I8,0,IF(G8>0,(G8-H8-((G8-H8)*(1-P8)^(YEARFRAC(I8,Z3)))-SUM(S8:Y8)),(E8-(E8*(1-P8)^(YEARFRAC(I8,Z3)))-SUM(S8:Y8)))))))) -> 16167.14283 | AA8: =IF(Q1="SLM",IF(OR(AA2>J8,IF(M8="yes",AA2>L8,0)),0,IF(AND(AA2<=L8,L8<=AA3,M8="Yes"),YEARFRAC(AA2,MIN(L8,J8))*Q8*VLOOKUP(Q2,AU2:AX5,4,0),IF(AA2>=I8,IF(AA3<=J8,Q8,Q8*YEARFRAC(AA2,J8)*VLOOKUP(Q2,AU2:AX5,4,0)),IF(AA3<I8,0,YEARFRAC(I8,AA3+HLOOKUP(MONTH(AA3),AZ2:BK3,2,0))*Q8*VLOOKUP(Q2,AU2:AX5,4,0))))),IF(OR(AA2>J8,IF(M8="yes",AA2>L8,0)),0,IF(AND(AA2<=L8,L8<=AA3,M8="Yes"),IF(G8>0,(G8-H8-((G8-H8)*(1-P8)^(YEARFRAC(I8,MIN(L8,J8))))-SUM(S8:Z8)),(E8-(E8*(1-P8)^(YEARFRAC(I8,MIN(L8,J8))))-SUM(S8:Z8))),IF(AA2>=I8,IF(AA3<=J8,IF(G8>0,(G8-H8-((G8-H8)*(1-P8)^(YEARFRAC(I8,AA3)))-SUM(S8:Z8)),(E8-(E8*(1-P8)^(YEARFRAC(I8,AA3)))-SUM(S8:Z8))),IF(G8>0,(G8-H8-((G8-H8)*(1-P8)^(YEARFRAC(I8+1,J8)))-SUM(S8:Z8)),(E8-(E8*(1-P8)^(YEARFRAC(I8,J8)))-SUM(S8:Z8)))),IF(AA3<I8,0,IF(G8>0,(G8-H8-((G8-H8)*(1-P8)^(YEARFRAC(I8,AA3)))-SUM(S8:Z8)),(E8-(E8*(1-P8)^(YEARFRAC(I8,AA3)))-SUM(S8:Z8)))))))) -> 0 | AB8: =IF(Q1="SLM",IF(OR(AB2>J8,IF(M8="yes",AB2>L8,0)),0,IF(AND(AB2<=L8,L8<=AB3,M8="Yes"),YEARFRAC(AB2,MIN(L8,J8))*Q8*VLOOKUP(Q2,AU2:AX5,4,0),IF(AB2>=I8,IF(AB3<=J8,Q8,Q8*YEARFRAC(AB2,J8)*VLOOKUP(Q2,AU2:AX5,4,0)),IF(AB3<I8,0,YEARFRAC(I8,AB3+HLOOKUP(MONTH(AB3),AZ2:BK3,2,0))*Q8*VLOOKUP(Q2,AU2:AX5,4,0))))),IF(OR(AB2>J8,IF(M8="yes",AB2>L8,0)),0,IF(AND(AB2<=L8,L8<=AB3,M8="Yes"),IF(G8>0,(G8-H8-((G8-H8)*(1-P8)^(YEARFRAC(I8,MIN(L8,J8))))-SUM(S8:AA8)),(E8-(E8*(1-P8)^(YEARFRAC(I8,MIN(L8,J8))))-SUM(S8:AA8))),IF(AB2>=I8,IF(AB3<=J8,IF(G8>0,(G8-H8-((G8-H8)*(1-P8)^(YEARFRAC(I8,MIN(AB3,J8))))-SUM(S8:AA8)),(E8-(E8*(1-P8)^(YEARFRAC(I8,MIN(AB3,J8))))-SUM(S8:AA8))),IF(G8>0,(G8-H8-((G8-H8)*(1-P8)^(YEARFRAC(I8+1,J8)))-SUM(S8:AA8)),(E8-(E8*(1-P8)^(YEARFRAC(I8,J8)))-SUM(S8:AA8)))),IF(AB3<I8,0,IF(G8>0,(G8-H8-((G8-H8)*(1-P8)^(YEARFRAC(I8,AB3)))-SUM(S8:AA8)),(E8-(E8*(1-P8)^(YEARFRAC(I8,AB3)))-SUM(S8:AA8)))))))) -> 0 | AC8: =IF(Q1="SLM",IF(OR(AC2>J8,IF(M8="yes",AC2>L8,0)),0,IF(AND(AC2<=L8,L8<=AC3,M8="Yes"),YEARFRAC(AC2,MIN(L8,J8))*Q8*VLOOKUP(Q2,AU2:AX5,4,0),IF(AC2>=I8,IF(AC3<=J8,Q8,Q8*YEARFRAC(AC2,J8)*VLOOKUP(Q2,AU2:AX5,4,0)),IF(AC3<I8,0,YEARFRAC(I8,AC3+HLOOKUP(MONTH(AC3),AZ2:BK3,2,0))*Q8*VLOOKUP(Q2,AU2:AX5,4,0))))),IF(OR(AC2>J8,IF(M8="yes",AC2>L8,0)),0,IF(AND(AC2<=L8,L8<=AC3,M8="Yes"),IF(G8>0,(G8-H8-((G8-H8)*(1-P8)^(YEARFRAC(I8,MIN(L8,J8))))-SUM(S8:AB8)),(E8-(E8*(1-P8)^(YEARFRAC(I8,MIN(L8,J8))))-SUM(S8:AB8))),IF(AC2>=I8,IF(AC3<=J8,IF(G8>0,(G8-H8-((G8-H8)*(1-P8)^(YEARFRAC(I8,AC3)))-SUM(S8:AB8)),(E8-(E8*(1-P8)^(YEARFRAC(I8,AC3)))-SUM(S8:AB8))),IF(G8>0,(G8-H8-((G8-H8)*(1-P8)^(YEARFRAC(I8+1,J8)))-SUM(S8:AB8)),(E8-(E8*(1-P8)^(YEARFRAC(I8,J8)))-SUM(S8:AB8)))),IF(AC3<I8,0,IF(G8>0,(G8-H8-((G8-H8)*(1-P8)^(YEARFRAC(I8,AC3)))-SUM(S8:AB8)),(E8-(E8*(1-P8)^(YEARFRAC(I8,AC3)))-SUM(S8:AB8)))))))) -> 0 | AD8: =IF(Q1="SLM",IF(OR(AD2>J8,IF(M8="yes",AD2>L8,0)),0,IF(AND(AD2<=L8,L8<=AD3,M8="Yes"),YEARFRAC(AD2,MIN(L8,J8))*Q8*VLOOKUP(Q2,AU2:AX5,4,0),IF(AD2>=I8,IF(AD3<=J8,Q8,Q8*YEARFRAC(AD2,J8)*VLOOKUP(Q2,AU2:AX5,4,0)),IF(AD3<I8,0,YEARFRAC(I8,AD3+HLOOKUP(MONTH(AD3),AZ2:BK3,2,0))*Q8*VLOOKUP(Q2,AU2:AX5,4,0))))),IF(OR(AD2>J8,IF(M8="yes",AD2>L8,0)),0,IF(AND(AD2<=L8,L8<=AD3,M8="Yes"),IF(G8>0,(G8-H8-((G8-H8)*(1-P8)^(YEARFRAC(I8,MIN(L8,J8))))-SUM(S8:AC8)),(E8-(E8*(1-P8)^(YEARFRAC(I8,MIN(L8,J8))))-SUM(S8:AC8))),IF(AD2>=I8,IF(AD3<=J8,IF(G8>0,(G8-H8-((G8-H8)*(1-P8)^(YEARFRAC(I8,AD3)))-SUM(S8:AC8)),(E8-(E8*(1-P8)^(YEARFRAC(I8,AD3)))-SUM(S8:AC8))),IF(G8>0,(G8-H8-((G8-H8)*(1-P8)^(YEARFRAC(I8+1,J8)))-SUM(S8:AC8)),(E8-(E8*(1-P8)^(YEARFRAC(I8,J8)))-SUM(S8:AC8)))),IF(AD3<I8,0,IF(G8>0,(G8-H8-((G8-H8)*(1-P8)^(YEARFRAC(I8,AD3)))-SUM(S8:AC8)),(E8-(E8*(1-P8)^(YEARFRAC(I8,AD3)))-SUM(S8:AC8)))))))) -> 0 | AE8: =IF(Q1="SLM",IF(OR(AE2>J8,IF(M8="yes",AE2>L8,0)),0,IF(AND(AE2<=L8,L8<=AE3,M8="Yes"),YEARFRAC(AE2,MIN(L8,J8))*Q8*VLOOKUP(Q2,AU2:AX5,4,0),IF(AE2>=I8,IF(AE3<=J8,Q8,Q8*YEARFRAC(AE2,J8)*VLOOKUP(Q2,AU2:AX5,4,0)),IF(AE3<I8,0,YEARFRAC(I8,AE3+HLOOKUP(MONTH(AE3),AZ2:BK3,2,0))*Q8*VLOOKUP(Q2,AU2:AX5,4,0))))),IF(OR(AE2>J8,IF(M8="yes",AE2>L8,0)),0,IF(AND(AE2<=L8,L8<=AE3,M8="Yes"),IF(G8>0,(G8-H8-((G8-H8)*(1-P8)^(YEARFRAC(I8,MIN(L8,J8))))-SUM(S8:AD8)),(E8-(E8*(1-P8)^(YEARFRAC(I8,MIN(L8,J8))))-SUM(S8:AD8))),IF(AE2>=I8,IF(AE3<=J8,IF(G8>0,(G8-H8-((G8-H8)*(1-P8)^(YEARFRAC(I8,AE3)))-SUM(S8:AD8)),(E8-(E8*(1-P8)^(YEARFRAC(I8,AE3)))-SUM(S8:AD8))),IF(G8>0,(G8-H8-((G8-H8)*(1-P8)^(YEARFRAC(I8+1,J8)))-SUM(S8:AD8)),(E8-(E8*(1-P8)^(YEARFRAC(I8,J8)))-SUM(S8:AD8)))),IF(AE3<I8,0,IF(G8>0,(G8-H8-((G8-H8)*(1-P8)^(YEARFRAC(I8,AE3)))-SUM(S8:AD8)),(E8-(E8*(1-P8)^(YEARFRAC(I8,AE3)))-SUM(S8:AD8)))))))) -> 0 | AF8: =IF(Q1="SLM",IF(OR(AF2>J8,IF(M8="yes",AF2>L8,0)),0,IF(AND(AF2<=L8,L8<=AF3,M8="Yes"),YEARFRAC(MAX(I8,AF2),MIN(L8,J8))*Q8*VLOOKUP(Q2,AU2:AX5,4,0),IF(AF2>=I8,IF(AF3<=J8,Q8*YEARFRAC(AF2,J8)*VLOOKUP(Q2,AU2:AX5,4,0),Q8*YEARFRAC(AF2,J8)*VLOOKUP(Q2,AU2:AX5,4,0)),IF(AF3<I8,0,IF(AF3>=J8,YEARFRAC(I8,J8)*Q8*VLOOKUP(Q2,AU2:AX5,4,0),YEARFRAC(I8,AF3)*Q8*VLOOKUP(Q2,AU2:AX5,4,0)))))),IF(OR(AF2>J8,IF(M8="yes",AF2>L8,0)),0,IF(AND(AF2<=L8,L8<=AF3,M8="Yes"),IF(G8>0,(G8-H8-((G8-H8)*(1-P8)^(YEARFRAC(I8+1,MIN(L8,J8))))-SUM(S8:AE8)),(E8-(E8*(1-P8)^(YEARFRAC(I8,MIN(L8,J8))))-SUM(S8:AE8))),IF(AF2>=I8,IF(AF3<=J8,IF(G8>0,(G8-H8-((G8-H8)*(1-P8)^(YEARFRAC(I8+1,AF3)))-SUM(S8:AE8)),(E8-(E8*(1-P8)^(YEARFRAC(I8,AF3)))-SUM(S8:AE8))),IF(G8>0,(G8-H8-((G8-H8)*(1-P8)^(YEARFRAC(I8+1,J8)))-SUM(S8:AE8)),(E8-(E8*(1-P8)^(YEARFRAC(I8,J8)))-SUM(S8:AE8)))),IF(AF3<I8,0,IF(AF3>=J8,IF(G8>0,(G8-H8-((G8-H8)*(1-P8)^(YEARFRAC(I8+1,J8)))-SUM(S8:AE8)),(E8-(E8*(1-P8)^(YEARFRAC(I8,J8)))-SUM(S8:AE8))),IF(G8>0,(G8-H8-((G8-H8)*(1-P8)^(YEARFRAC(I8+1,AF3)))-SUM(S8:AE8)),(E8-(E8*(1-P8)^(YEARFRAC(I8,AF3)))-SUM(S8:AE8))))))))) -> 0 | AH8: 2503000 | AI8: 2377850 | AJ8: =AH8-AI8 -> 125150 | AK8: 0 | AL8: 0
A9: Addition after April 2017 | B9: 1003 | C9: Plant Super30 | D9: Plant and Machinary | E9: 2542000 | F9: =Table8[[#This Row],[Input 4]]*5% -> 127100 | I9: 2017-10-28 | J9: 2032-10-28 | K9: =YEARFRAC(Table8[[#This Row],[Input 8]],Table8[[#This Row],[Input 9]]) -> 15 | O9: 0 | P9: 0.1810362725 | Q9: =IF(Q1="SLM",IF((G9-H9)>0,(G9-F9)/(K9*VLOOKUP(Q2,AU2:AX5,4,0)),(E9-F9)/(K9*VLOOKUP(Q2,AU2:AX5,4,0))),0) -> 0 | R9: 0 | S9: =IF(Q1="SLM",IF(OR(S2>J9,IF(M9="yes",S2>L9,0)),0,IF(AND(S2<=L9,L9<=S3,M9="Yes"),YEARFRAC(MAX(S2,I9),MIN(L9,J9))*Q9*VLOOKUP(Q2,AU2:AX5,4,0),IF(S2>=I9,IF(S3<=J9,Q9*YEARFRAC(S2,S3)*VLOOKUP(Q2,AU2:AX5,4,0),Q9*YEARFRAC(S2,J9)*VLOOKUP(Q2,AU2:AX5,4,0)),IF(S3<I9,0,IF(S3>=J9,YEARFRAC(I9,J9)*Q9*VLOOKUP(Q2,AU2:AX5,4,0),YEARFRAC(I9,S3+HLOOKUP(MONTH(S3),AZ2:BK3,2,0))*Q9*VLOOKUP(Q2,AU2:AX5,4,0)))))),IF(OR(S2>J9,IF(M9="yes",S2>L9,0)),0,IF(AND(S2<=L9,L9<=S3,M9="Yes"),IF(G9>0,(G9-H9-((G9-H9)*(1-P9)^(YEARFRAC(I9,MIN(J9,L9))))),(E9-(E9*(1-P9)^(YEARFRAC(I9,MIN(J9,L9)))))),IF(S2>I9,IF(S3<J9,IF(G9>0,(G9-H9-((G9-H9)*(1-P9)^(YEARFRAC(I9,S3)))),(E9-(E9*(1-P9)^(YEARFRAC(I9,S3))))),IF(G9>0,(G9-H9-((G9-H9)*(1-P9)^(YEARFRAC(I9,J9)))),(E9-(E9*(1-P9)^(YEARFRAC(I9,J9)))))),IF(S3<I9,0,IF(G9>0,(G9-H9-((G9-H9)*(1-P9)^(YEARFRAC(I9,MIN(J9,S3))))),(E9-(E9*(1-P9)^(YEARFRAC(I9,MIN(J9,S3))))))))))) -> 206859.4275 | T9: =IF(Q1="SLM",IF(OR(T2>J9,IF(M9="yes",T2>L9,0)),0,IF(AND(T2<=L9,L9<=T3,M9="Yes"),YEARFRAC(T2,MIN(L9,J9))*Q9*VLOOKUP(Q2,AU2:AX5,4,0),IF(T2>=I9,IF(T3<=J9,Q9,Q9*YEARFRAC(T2,J9)*VLOOKUP(Q2,AU2:AX5,4,0)),IF(T3<I9,0,YEARFRAC(I9,T3+HLOOKUP(MONTH(T3),AZ2:BK3,2,0))*Q9*VLOOKUP(Q2,AU2:AX5,4,0))))),IF(OR(T2>J9,IF(M9="yes",T2>L9,0)),0,IF(AND(T2<=L9,L9<=T3,M9="Yes"),IF(G9>0,(G9-H9-((G9-H9)*(1-P9)^(YEARFRAC(I9,MIN(L9,J9))))-SUM(S9:S9)),(E9-(E9*(1-P9)^(YEARFRAC(I9,MIN(L9,J9))))-SUM(S9:S9))),IF(T2>=I9,IF(T3<=J9,IF(G9>0,(G9-H9-((G9-H9)*(1-P9)^(YEARFRAC(I9,T3)))-SUM(S9:S9)),(E9-(E9*(1-P9)^(YEARFRAC(I9,T3)))-SUM(S9:S9))),IF(G9>0,(G9-H9-((G9-H9)*(1-P9)^(YEARFRAC(I9+1,J9)))-SUM(S9:S9)),(E9-(E9*(1-P9)^(YEARFRAC(I9,J9)))-SUM(S9:S9)))),IF(T3<I9,0,IF(G9>0,(G9-H9-((G9-H9)*(1-P9)^(YEARFRAC(I9,T3)))-SUM(S9:S9)),(E9-(E9*(1-P9)^(YEARFRAC(I9,T3)))-SUM(S9:S9)))))))) -> 422745.1451 | U9: =IF(Q1="SLM",IF(OR(U2>J9,IF(M9="yes",U2>L9,0)),0,IF(AND(U2<=L9,L9<=U3,M9="Yes"),YEARFRAC(U2,MIN(L9,J9))*Q9*VLOOKUP(Q2,AU2:AX5,4,0),IF(U2>=I9,IF(U3<=J9,Q9,Q9*YEARFRAC(U2,J9)*VLOOKUP(Q2,AU2:AX5,4,0)),IF(U3<I9,0,YEARFRAC(I9,U3+HLOOKUP(MONTH(U3),AZ2:BK3,2,0))*Q9*VLOOKUP(Q2,AU2:AX5,4,0))))),IF(OR(U2>J9,IF(M9="yes",U2>L9,0)),0,IF(AND(U2<=L9,L9<=U3,M9="Yes"),IF(G9>0,(G9-H9-((G9-H9)*(1-P9)^(YEARFRAC(I9,MIN(L9,J9))))-SUM(S9:T9)),(E9-(E9*(1-P9)^(YEARFRAC(I9,MIN(L9,J9))))-SUM(S9:T9))),IF(U2>=I9,IF(U3<=J9,IF(G9>0,(G9-H9-((G9-H9)*(1-P9)^(YEARFRAC(I9,U3)))-SUM(S9:T9)),(E9-(E9*(1-P9)^(YEARFRAC(I9,U3)))-SUM(S9:T9))),IF(G9>0,(G9-H9-((G9-H9)*(1-P9)^(YEARFRAC(I9+1,J9)))-SUM(S9:T9)),(E9-(E9*(1-P9)^(YEARFRAC(I9,J9)))-SUM(S9:T9)))),IF(U3<I9,0,IF(G9>0,(G9-H9-((G9-H9)*(1-P9)^(YEARFRAC(I9,U3)))-SUM(S9:T9)),(E9-(E9*(1-P9)^(YEARFRAC(I9,U3)))-SUM(S9:T9)))))))) -> 346212.9398 | V9: =IF(Q1="SLM",IF(OR(V2>J9,IF(M9="yes",V2>L9,0)),0,IF(AND(V2<=L9,L9<=V3,M9="Yes"),YEARFRAC(V2,MIN(L9,J9))*Q9*VLOOKUP(Q2,AU2:AX5,4,0),IF(V2>=I9,IF(V3<=J9,Q9,Q9*YEARFRAC(V2,J9)*VLOOKUP(Q2,AU2:AX5,4,0)),IF(V3<I9,0,YEARFRAC(I9,V3+HLOOKUP(MONTH(V3),AZ2:BK3,2,0))*Q9*VLOOKUP(Q2,AU2:AX5,4,0))))),IF(OR(V2>J9,IF(M9="yes",V2>L9,0)),0,IF(AND(V2<=L9,L9<=V3,M9="Yes"),IF(G9>0,(G9-H9-((G9-H9)*(1-P9)^(YEARFRAC(I9,MIN(L9,J9))))-SUM(S9:U9)),(E9-(E9*(1-P9)^(YEARFRAC(I9,MIN(L9,J9))))-SUM(S9:U9))),IF(V2>=I9,IF(V3<=J9,IF(G9>0,(G9-H9-((G9-H9)*(1-P9)^(YEARFRAC(I9,V3)))-SUM(S9:U9)),(E9-(E9*(1-P9)^(YEARFRAC(I9,V3)))-SUM(S9:U9))),IF(G9>0,(G9-H9-((G9-H9)*(1-P9)^(YEARFRAC(SUM(I9+1),J9)))-SUM(S9:U9)),(E9-(E9*(1-P9)^(YEARFRAC(I9,J9)))-SUM(S9:U9)))),IF(V3<I9,0,IF(G9>0,(G9-H9-((G9-H9)*(1-P9)^(YEARFRAC(I9,V3)))-SUM(S9:U9)),(E9-(E9*(1-P9)^(YEARFRAC(I9,V3)))-SUM(S9:U9)))))))) -> 283535.8397 | W9: =IF(Q1="SLM",IF(OR(W2>J9,IF(M9="yes",W2>L9,0)),0,IF(AND(W2<=L9,L9<=W3,M9="Yes"),YEARFRAC(W2,MIN(L9,J9))*Q9*VLOOKUP(Q2,AU2:AX5,4,0),IF(W2>=I9,IF(W3<=J9,Q9,Q9*YEARFRAC(W2,J9)*VLOOKUP(Q2,AU2:AX5,4,0)),IF(W3<I9,0,YEARFRAC(I9,W3+HLOOKUP(MONTH(W3),AZ2:BK3,2,0))*Q9*VLOOKUP(Q2,AU2:AX5,4,0))))),IF(OR(W2>J9,IF(M9="yes",W2>L9,0)),0,IF(AND(W2<=L9,L9<=W3,M9="Yes"),IF(G9>0,(G9-H9-((G9-H9)*(1-P9)^(YEARFRAC(I9,MIN(L9,J9))))-SUM(S9:V9)),(E9-(E9*(1-P9)^(YEARFRAC(I9,MIN(L9,J9))))-SUM(S9:V9))),IF(W2>=I9,IF(W3<=J9,IF(G9>0,(G9-H9-((G9-H9)*(1-P9)^(YEARFRAC(I9,W3)))-SUM(S9:V9)),(E9-(E9*(1-P9)^(YEARFRAC(I9,W3)))-SUM(S9:V9))),IF(G9>0,(G9-H9-((G9-H9)*(1-P9)^(YEARFRAC(I9+1,J9)))-SUM(S9:V9)),(E9-(E9*(1-P9)^(YEARFRAC(I9,J9)))-SUM(S9:V9)))),IF(W3<I9,0,IF(G9>0,(G9-H9-((G9-H9)*(1-P9)^(YEARFRAC(I9,W3)))-SUM(S9:V9)),(E9-(E9*(1-P9)^(YEARFRAC(I9,W3)))-SUM(S9:V9)))))))) -> 232205.5681 | X9: =IF(Q1="SLM",IF(OR(X2>J9,IF(M9="yes",X2>L9,0)),0,IF(AND(X2<=L9,L9<=X3,M9="Yes"),YEARFRAC(X2,MIN(L9,J9))*Q9*VLOOKUP(Q2,AU2:AX5,4,0),IF(X2>=I9,IF(X3<=J9,Q9,Q9*YEARFRAC(X2,J9)*VLOOKUP(Q2,AU2:AX5,4,0)),IF(X3<I9,0,YEARFRAC(I9,X3+HLOOKUP(MONTH(X3),AZ2:BK3,2,0))*Q9*VLOOKUP(Q2,AU2:AX5,4,0))))),IF(OR(X2>J9,IF(M9="yes",X2>L9,0)),0,IF(AND(X2<=L9,L9<=X3,M9="Yes"),IF(G9>0,(G9-H9-((G9-H9)*(1-P9)^(YEARFRAC(I9,MIN(L9,J9))))-SUM(S9:W9)),(E9-(E9*(1-P9)^(YEARFRAC(I9,MIN(L9,J9))))-SUM(S9:W9))),IF(X2>=I9,IF(X3<=J9,IF(G9>0,(G9-H9-((G9-H9)*(1-P9)^(YEARFRAC(I9,X3)))-SUM(S9:W9)),(E9-(E9*(1-P9)^(YEARFRAC(I9,X3)))-SUM(S9:W9))),IF(G9>0,(G9-H9-((G9-H9)*(1-P9)^(YEARFRAC(I9+1,J9)))-SUM(S9:W9)),(E9-(E9*(1-P9)^(YEARFRAC(I9,J9)))-SUM(S9:W9)))),IF(X3<I9,0,IF(G9>0,(G9-H9-((G9-H9)*(1-P9)^(YEARFRAC(I9,X3)))-SUM(S9:W9)),(E9-(E9*(1-P9)^(YEARFRAC(I9,X3)))-SUM(S9:W9)))))))) -> 190167.9376 | Y9: =IF(Q1="SLM",IF(OR(Y2>J9,IF(M9="yes",Y2>L9,0)),0,IF(AND(Y2<=L9,L9<=Y3,M9="Yes"),YEARFRAC(Y2,MIN(L9,J9))*Q9*VLOOKUP(Q2,AU2:AX5,4,0),IF(Y2>=I9,IF(Y3<=J9,Q9,Q9*YEARFRAC(Y2,J9)*VLOOKUP(Q2,AU2:AX5,4,0)),IF(Y3<I9,0,YEARFRAC(I9,Y3+HLOOKUP(MONTH(Y3),AZ2:BK3,2,0))*Q9*VLOOKUP(Q2,AU2:AX5,4,0))))),IF(OR(Y2>J9,IF(M9="yes",Y2>L9,0)),0,IF(AND(Y2<=L9,L9<=Y3,M9="Yes"),IF(G9>0,(G9-H9-((G9-H9)*(1-P9)^(YEARFRAC(I9,MIN(L9,J9))))-SUM(S9:X9)),(E9-(E9*(1-P9)^(YEARFRAC(I9,MIN(L9,J9))))-SUM(S9:X9))),IF(Y2>=I9,IF(Y3<=J9,IF(G9>0,(G9-H9-((G9-H9)*(1-P9)^(YEARFRAC(I9,Y3)))-SUM(S9:X9)),(E9-(E9*(1-P9)^(YEARFRAC(I9,Y3)))-SUM(S9:X9))),IF(G9>0,(G9-H9-((G9-H9)*(1-P9)^(YEARFRAC(I9+1,J9)))-SUM(S9:X9)),(E9-(E9*(1-P9)^(YEARFRAC(I9,J9)))-SUM(S9:X9)))),IF(Y3<I9,0,IF(G9>0,(G9-H9-((G9-H9)*(1-P9)^(YEARFRAC(I9,Y3)))-SUM(S9:X9)),(E9-(E9*(1-P9)^(YEARFRAC(I9,Y3)))-SUM(S9:X9)))))))) -> 155740.643 | Z9: =IF(Q1="SLM",IF(OR(Z2>J9,IF(M9="yes",Z2>L9,0)),0,IF(AND(Z2<=L9,L9<=Z3,M9="Yes"),YEARFRAC(Z2,MIN(L9,J9))*Q9*VLOOKUP(Q2,AU2:AX5,4,0),IF(Z2>=I9,IF(Z3<=J9,Q9,Q9*YEARFRAC(Z2,J9)*VLOOKUP(Q2,AU2:AX5,4,0)),IF(Z3<I9,0,YEARFRAC(I9,Z3+HLOOKUP(MONTH(Z3),AZ2:BK3,2,0))*Q9*VLOOKUP(Q2,AU2:AX5,4,0))))),IF(OR(Z2>J9,IF(M9="yes",Z2>L9,0)),0,IF(AND(Z2<=L9,L9<=Z3,M9="Yes"),IF(G9>0,(G9-H9-((G9-H9)*(1-P9)^(YEARFRAC(I9,MIN(L9,J9))))-SUM(S9:Y9)),(E9-(E9*(1-P9)^(YEARFRAC(I9,MIN(L9,J9))))-SUM(S9:Y9))),IF(Z2>=I9,IF(Z3<=J9,IF(G9>0,(G9-H9-((G9-H9)*(1-P9)^(YEARFRAC(I9,Z3)))-SUM(S9:Y9)),(E9-(E9*(1-P9)^(YEARFRAC(I9,Z3)))-SUM(S9:Y9))),IF(G9>0,(G9-H9-((G9-H9)*(1-P9)^(YEARFRAC(I9+1,J9)))-SUM(S9:Y9)),(E9-(E9*(1-P9)^(YEARFRAC(I9,J9)))-SUM(S9:Y9)))),IF(Z3<I9,0,IF(G9>0,(G9-H9-((G9-H9)*(1-P9)^(YEARFRAC(I9,Z3)))-SUM(S9:Y9)),(E9-(E9*(1-P9)^(YEARFRAC(I9,Z3)))-SUM(S9:Y9)))))))) -> 127545.9375 | AA9: =IF(Q1="SLM",IF(OR(AA2>J9,IF(M9="yes",AA2>L9,0)),0,IF(AND(AA2<=L9,L9<=AA3,M9="Yes"),YEARFRAC(AA2,MIN(L9,J9))*Q9*VLOOKUP(Q2,AU2:AX5,4,0),IF(AA2>=I9,IF(AA3<=J9,Q9,Q9*YEARFRAC(AA2,J9)*VLOOKUP(Q2,AU2:AX5,4,0)),IF(AA3<I9,0,YEARFRAC(I9,AA3+HLOOKUP(MONTH(AA3),AZ2:BK3,2,0))*Q9*VLOOKUP(Q2,AU2:AX5,4,0))))),IF(OR(AA2>J9,IF(M9="yes",AA2>L9,0)),0,IF(AND(AA2<=L9,L9<=AA3,M9="Yes"),IF(G9>0,(G9-H9-((G9-H9)*(1-P9)^(YEARFRAC(I9,MIN(L9,J9))))-SUM(S9:Z9)),(E9-(E9*(1-P9)^(YEARFRAC(I9,MIN(L9,J9))))-SUM(S9:Z9))),IF(AA2>=I9,IF(AA3<=J9,IF(G9>0,(G9-H9-((G9-H9)*(1-P9)^(YEARFRAC(I9,AA3)))-SUM(S9:Z9)),(E9-(E9*(1-P9)^(YEARFRAC(I9,AA3)))-SUM(S9:Z9))),IF(G9>0,(G9-H9-((G9-H9)*(1-P9)^(YEARFRAC(I9+1,J9)))-SUM(S9:Z9)),(E9-(E9*(1-P9)^(YEARFRAC(I9,J9)))-SUM(S9:Z9)))),IF(AA3<I9,0,IF(G9>0,(G9-H9-((G9-H9)*(1-P9)^(YEARFRAC(I9,AA3)))-SUM(S9:Z9)),(E9-(E9*(1-P9)^(YEARFRAC(I9,AA3)))-SUM(S9:Z9)))))))) -> 104455.4964 | AB9: =IF(Q1="SLM",IF(OR(AB2>J9,IF(M9="yes",AB2>L9,0)),0,IF(AND(AB2<=L9,L9<=AB3,M9="Yes"),YEARFRAC(AB2,MIN(L9,J9))*Q9*VLOOKUP(Q2,AU2:AX5,4,0),IF(AB2>=I9,IF(AB3<=J9,Q9,Q9*YEARFRAC(AB2,J9)*VLOOKUP(Q2,AU2:AX5,4,0)),IF(AB3<I9,0,YEARFRAC(I9,AB3+HLOOKUP(MONTH(AB3),AZ2:BK3,2,0))*Q9*VLOOKUP(Q2,AU2:AX5,4,0))))),IF(OR(AB2>J9,IF(M9="yes",AB2>L9,0)),0,IF(AND(AB2<=L9,L9<=AB3,M9="Yes"),IF(G9>0,(G9-H9-((G9-H9)*(1-P9)^(YEARFRAC(I9,MIN(L9,J9))))-SUM(S9:AA9)),(E9-(E9*(1-P9)^(YEARFRAC(I9,MIN(L9,J9))))-SUM(S9:AA9))),IF(AB2>=I9,IF(AB3<=J9,IF(G9>0,(G9-H9-((G9-H9)*(1-P9)^(YEARFRAC(I9,MIN(AB3,J9))))-SUM(S9:AA9)),(E9-(E9*(1-P9)^(YEARFRAC(I9,MIN(AB3,J9))))-SUM(S9:AA9))),IF(G9>0,(G9-H9-((G9-H9)*(1-P9)^(YEARFRAC(I9+1,J9)))-SUM(S9:AA9)),(E9-(E9*(1-P9)^(YEARFRAC(I9,J9)))-SUM(S9:AA9)))),IF(AB3<I9,0,IF(G9>0,(G9-H9-((G9-H9)*(1-P9)^(YEARFRAC(I9,AB3)))-SUM(S9:AA9)),(E9-(E9*(1-P9)^(YEARFRAC(I9,AB3)))-SUM(S9:AA9)))))))) -> 85545.26271 | AC9: =IF(Q1="SLM",IF(OR(AC2>J9,IF(M9="yes",AC2>L9,0)),0,IF(AND(AC2<=L9,L9<=AC3,M9="Yes"),YEARFRAC(AC2,MIN(L9,J9))*Q9*VLOOKUP(Q2,AU2:AX5,4,0),IF(AC2>=I9,IF(AC3<=J9,Q9,Q9*YEARFRAC(AC2,J9)*VLOOKUP(Q2,AU2:AX5,4,0)),IF(AC3<I9,0,YEARFRAC(I9,AC3+HLOOKUP(MONTH(AC3),AZ2:BK3,2,0))*Q9*VLOOKUP(Q2,AU2:AX5,4,0))))),IF(OR(AC2>J9,IF(M9="yes",AC2>L9,0)),0,IF(AND(AC2<=L9,L9<=AC3,M9="Yes"),IF(G9>0,(G9-H9-((G9-H9)*(1-P9)^(YEARFRAC(I9,MIN(L9,J9))))-SUM(S9:AB9)),(E9-(E9*(1-P9)^(YEARFRAC(I9,MIN(L9,J9))))-SUM(S9:AB9))),IF(AC2>=I9,IF(AC3<=J9,IF(G9>0,(G9-H9-((G9-H9)*(1-P9)^(YEARFRAC(I9,AC3)))-SUM(S9:AB9)),(E9-(E9*(1-P9)^(YEARFRAC(I9,AC3)))-SUM(S9:AB9))),IF(G9>0,(G9-H9-((G9-H9)*(1-P9)^(YEARFRAC(I9+1,J9)))-SUM(S9:AB9)),(E9-(E9*(1-P9)^(YEARFRAC(I9,J9)))-SUM(S9:AB9)))),IF(AC3<I9,0,IF(G9>0,(G9-H9-((G9-H9)*(1-P9)^(YEARFRAC(I9,AC3)))-SUM(S9:AB9)),(E9-(E9*(1-P9)^(YEARFRAC(I9,AC3)))-SUM(S9:AB9)))))))) -> 70058.46722 | AD9: =IF(Q1="SLM",IF(OR(AD2>J9,IF(M9="yes",AD2>L9,0)),0,IF(AND(AD2<=L9,L9<=AD3,M9="Yes"),YEARFRAC(AD2,MIN(L9,J9))*Q9*VLOOKUP(Q2,AU2:AX5,4,0),IF(AD2>=I9,IF(AD3<=J9,Q9,Q9*YEARFRAC(AD2,J9)*VLOOKUP(Q2,AU2:AX5,4,0)),IF(AD3<I9,0,YEARFRAC(I9,AD3+HLOOKUP(MONTH(AD3),AZ2:BK3,2,0))*Q9*VLOOKUP(Q2,AU2:AX5,4,0))))),IF(OR(AD2>J9,IF(M9="yes",AD2>L9,0)),0,IF(AND(AD2<=L9,L9<=AD3,M9="Yes"),IF(G9>0,(G9-H9-((G9-H9)*(1-P9)^(YEARFRAC(I9,MIN(L9,J9))))-SUM(S9:AC9)),(E9-(E9*(1-P9)^(YEARFRAC(I9,MIN(L9,J9))))-SUM(S9:AC9))),IF(AD2>=I9,IF(AD3<=J9,IF(G9>0,(G9-H9-((G9-H9)*(1-P9)^(YEARFRAC(I9,AD3)))-SUM(S9:AC9)),(E9-(E9*(1-P9)^(YEARFRAC(I9,AD3)))-SUM(S9:AC9))),IF(G9>0,(G9-H9-((G9-H9)*(1-P9)^(YEARFRAC(I9+1,J9)))-SUM(S9:AC9)),(E9-(E9*(1-P9)^(YEARFRAC(I9,J9)))-SUM(S9:AC9)))),IF(AD3<I9,0,IF(G9>0,(G9-H9-((G9-H9)*(1-P9)^(YEARFRAC(I9,AD3)))-SUM(S9:AC9)),(E9-(E9*(1-P9)^(YEARFRAC(I9,AD3)))-SUM(S9:AC9)))))))) -> 57375.34346 | AE9: =IF(Q1="SLM",IF(OR(AE2>J9,IF(M9="yes",AE2>L9,0)),0,IF(AND(AE2<=L9,L9<=AE3,M9="Yes"),YEARFRAC(AE2,MIN(L9,J9))*Q9*VLOOKUP(Q2,AU2:AX5,4,0),IF(AE2>=I9,IF(AE3<=J9,Q9,Q9*YEARFRAC(AE2,J9)*VLOOKUP(Q2,AU2:AX5,4,0)),IF(AE3<I9,0,YEARFRAC(I9,AE3+HLOOKUP(MONTH(AE3),AZ2:BK3,2,0))*Q9*VLOOKUP(Q2,AU2:AX5,4,0))))),IF(OR(AE2>J9,IF(M9="yes",AE2>L9,0)),0,IF(AND(AE2<=L9,L9<=AE3,M9="Yes"),IF(G9>0,(G9-H9-((G9-H9)*(1-P9)^(YEARFRAC(I9,MIN(L9,J9))))-SUM(S9:AD9)),(E9-(E9*(1-P9)^(YEARFRAC(I9,MIN(L9,J9))))-SUM(S9:AD9))),IF(AE2>=I9,IF(AE3<=J9,IF(G9>0,(G9-H9-((G9-H9)*(1-P9)^(YEARFRAC(I9,AE3)))-SUM(S9:AD9)),(E9-(E9*(1-P9)^(YEARFRAC(I9,AE3)))-SUM(S9:AD9))),IF(G9>0,(G9-H9-((G9-H9)*(1-P9)^(YEARFRAC(I9+1,J9)))-SUM(S9:AD9)),(E9-(E9*(1-P9)^(YEARFRAC(I9,J9)))-SUM(S9:AD9)))),IF(AE3<I9,0,IF(G9>0,(G9-H9-((G9-H9)*(1-P9)^(YEARFRAC(I9,AE3)))-SUM(S9:AD9)),(E9-(E9*(1-P9)^(YEARFRAC(I9,AE3)))-SUM(S9:AD9)))))))) -> 46988.32514 | AF9: =IF(Q1="SLM",IF(OR(AF2>J9,IF(M9="yes",AF2>L9,0)),0,IF(AND(AF2<=L9,L9<=AF3,M9="Yes"),YEARFRAC(MAX(I9,AF2),MIN(L9,J9))*Q9*VLOOKUP(Q2,AU2:AX5,4,0),IF(AF2>=I9,IF(AF3<=J9,Q9*YEARFRAC(AF2,J9)*VLOOKUP(Q2,AU2:AX5,4,0),Q9*YEARFRAC(AF2,J9)*VLOOKUP(Q2,AU2:AX5,4,0)),IF(AF3<I9,0,IF(AF3>=J9,YEARFRAC(I9,J9)*Q9*VLOOKUP(Q2,AU2:AX5,4,0),YEARFRAC(I9,AF3)*Q9*VLOOKUP(Q2,AU2:AX5,4,0)))))),IF(OR(AF2>J9,IF(M9="yes",AF2>L9,0)),0,IF(AND(AF2<=L9,L9<=AF3,M9="Yes"),IF(G9>0,(G9-H9-((G9-H9)*(1-P9)^(YEARFRAC(I9+1,MIN(L9,J9))))-SUM(S9:AE9)),(E9-(E9*(1-P9)^(YEARFRAC(I9,MIN(L9,J9))))-SUM(S9:AE9))),IF(AF2>=I9,IF(AF3<=J9,IF(G9>0,(G9-H9-((G9-H9)*(1-P9)^(YEARFRAC(I9+1,AF3)))-SUM(S9:AE9)),(E9-(E9*(1-P9)^(YEARFRAC(I9,AF3)))-SUM(S9:AE9))),IF(G9>0,(G9-H9-((G9-H9)*(1-P9)^(YEARFRAC(I9+1,J9)))-SUM(S9:AE9)),(E9-(E9*(1-P9)^(YEARFRAC(I9,J9)))-SUM(S9:AE9)))),IF(AF3<I9,0,IF(AF3>=J9,IF(G9>0,(G9-H9-((G9-H9)*(1-P9)^(YEARFRAC(I9+1,J9)))-SUM(S9:AE9)),(E9-(E9*(1-P9)^(YEARFRAC(I9,J9)))-SUM(S9:AE9))),IF(G9>0,(G9-H9-((G9-H9)*(1-P9)^(YEARFRAC(I9+1,AF3)))-SUM(S9:AE9)),(E9-(E9*(1-P9)^(YEARFRAC(I9,AF3)))-SUM(S9:AE9))))))))) -> 85463.66677 | AH9: 2542000 | AI9: 2414900 | AJ9: 127100 | AK9: 0 | AL9: 0
A10: Addition after April 2017 | B10: 1004 | C10: Factory RCC Structure | D10: Building | E10: 12493800 | F10: =Table8[[#This Row],[Input 4]]*5% -> 624690 | I10: 2017-10-06 | J10: 2077-10-06 | K10: =YEARFRAC(Table8[[#This Row],[Input 8]],Table8[[#This Row],[Input 9]]) -> 60 | O10: 0 | P10: 0.04870291331 | Q10: =IF(Q1="SLM",IF((G10-H10)>0,(G10-F10)/(K10*VLOOKUP(Q2,AU2:AX5,4,0)),(E10-F10)/(K10*VLOOKUP(Q2,AU2:AX5,4,0))),0) -> 0 | R10: -1.862645149e-09 | S10: =IF(Q1="SLM",IF(OR(S2>J10,IF(M10="yes",S2>L10,0)),0,IF(AND(S2<=L10,L10<=S3,M10="Yes"),YEARFRAC(MAX(S2,I10),MIN(L10,J10))*Q10*VLOOKUP(Q2,AU2:AX5,4,0),IF(S2>=I10,IF(S3<=J10,Q10*YEARFRAC(S2,S3)*VLOOKUP(Q2,AU2:AX5,4,0),Q10*YEARFRAC(S2,J10)*VLOOKUP(Q2,AU2:AX5,4,0)),IF(S3<I10,0,IF(S3>=J10,YEARFRAC(I10,J10)*Q10*VLOOKUP(Q2,AU2:AX5,4,0),YEARFRAC(I10,S3+HLOOKUP(MONTH(S3),AZ2:BK3,2,0))*Q10*VLOOKUP(Q2,AU2:AX5,4,0)))))),IF(OR(S2>J10,IF(M10="yes",S2>L10,0)),0,IF(AND(S2<=L10,L10<=S3,M10="Yes"),IF(G10>0,(G10-H10-((G10-H10)*(1-P10)^(YEARFRAC(I10,MIN(J10,L10))))),(E10-(E10*(1-P10)^(YEARFRAC(I10,MIN(J10,L10)))))),IF(S2>I10,IF(S3<J10,IF(G10>0,(G10-H10-((G10-H10)*(1-P10)^(YEARFRAC(I10,S3)))),(E10-(E10*(1-P10)^(YEARFRAC(I10,S3))))),IF(G10>0,(G10-H10-((G10-H10)*(1-P10)^(YEARFRAC(I10,J10)))),(E10-(E10*(1-P10)^(YEARFRAC(I10,J10)))))),IF(S3<I10,0,IF(G10>0,(G10-H10-((G10-H10)*(1-P10)^(YEARFRAC(I10,MIN(J10,S3))))),(E10-(E10*(1-P10)^(YEARFRAC(I10,MIN(J10,S3))))))))))) -> 299586.4238 | T10: =IF(Q1="SLM",IF(OR(T2>J10,IF(M10="yes",T2>L10,0)),0,IF(AND(T2<=L10,L10<=T3,M10="Yes"),YEARFRAC(T2,MIN(L10,J10))*Q10*VLOOKUP(Q2,AU2:AX5,4,0),IF(T2>=I10,IF(T3<=J10,Q10,Q10*YEARFRAC(T2,J10)*VLOOKUP(Q2,AU2:AX5,4,0)),IF(T3<I10,0,YEARFRAC(I10,T3+HLOOKUP(MONTH(T3),AZ2:BK3,2,0))*Q10*VLOOKUP(Q2,AU2:AX5,4,0))))),IF(OR(T2>J10,IF(M10="yes",T2>L10,0)),0,IF(AND(T2<=L10,L10<=T3,M10="Yes"),IF(G10>0,(G10-H10-((G10-H10)*(1-P10)^(YEARFRAC(I10,MIN(L10,J10))))-SUM(S10:S10)),(E10-(E10*(1-P10)^(YEARFRAC(I10,MIN(L10,J10))))-SUM(S10:S10))),IF(T2>=I10,IF(T3<=J10,IF(G10>0,(G10-H10-((G10-H10)*(1-P10)^(YEARFRAC(I10,T3)))-SUM(S10:S10)),(E10-(E10*(1-P10)^(YEARFRAC(I10,T3)))-SUM(S10:S10))),IF(G10>0,(G10-H10-((G10-H10)*(1-P10)^(YEARFRAC(I10+1,J10)))-SUM(S10:S10)),(E10-(E10*(1-P10)^(YEARFRAC(I10,J10)))-SUM(S10:S10)))),IF(T3<I10,0,IF(G10>0,(G10-H10-((G10-H10)*(1-P10)^(YEARFRAC(I10,T3)))-SUM(S10:S10)),(E10-(E10*(1-P10)^(YEARFRAC(I10,T3)))-SUM(S10:S10)))))))) -> 593893.7267 | U10: =IF(Q1="SLM",IF(OR(U2>J10,IF(M10="yes",U2>L10,0)),0,IF(AND(U2<=L10,L10<=U3,M10="Yes"),YEARFRAC(U2,MIN(L10,J10))*Q10*VLOOKUP(Q2,AU2:AX5,4,0),IF(U2>=I10,IF(U3<=J10,Q10,Q10*YEARFRAC(U2,J10)*VLOOKUP(Q2,AU2:AX5,4,0)),IF(U3<I10,0,YEARFRAC(I10,U3+HLOOKUP(MONTH(U3),AZ2:BK3,2,0))*Q10*VLOOKUP(Q2,AU2:AX5,4,0))))),IF(OR(U2>J10,IF(M10="yes",U2>L10,0)),0,IF(AND(U2<=L10,L10<=U3,M10="Yes"),IF(G10>0,(G10-H10-((G10-H10)*(1-P10)^(YEARFRAC(I10,MIN(L10,J10))))-SUM(S10:T10)),(E10-(E10*(1-P10)^(YEARFRAC(I10,MIN(L10,J10))))-SUM(S10:T10))),IF(U2>=I10,IF(U3<=J10,IF(G10>0,(G10-H10-((G10-H10)*(1-P10)^(YEARFRAC(I10,U3)))-SUM(S10:T10)),(E10-(E10*(1-P10)^(YEARFRAC(I10,U3)))-SUM(S10:T10))),IF(G10>0,(G10-H10-((G10-H10)*(1-P10)^(YEARFRAC(I10+1,J10)))-SUM(S10:T10)),(E10-(E10*(1-P10)^(YEARFRAC(I10,J10)))-SUM(S10:T10)))),IF(U3<I10,0,IF(G10>0,(G10-H10-((G10-H10)*(1-P10)^(YEARFRAC(I10,U3)))-SUM(S10:T10)),(E10-(E10*(1-P10)^(YEARFRAC(I10,U3)))-SUM(S10:T10)))))))) -> 564969.372 | V10: =IF(Q1="SLM",IF(OR(V2>J10,IF(M10="yes",V2>L10,0)),0,IF(AND(V2<=L10,L10<=V3,M10="Yes"),YEARFRAC(V2,MIN(L10,J10))*Q10*VLOOKUP(Q2,AU2:AX5,4,0),IF(V2>=I10,IF(V3<=J10,Q10,Q10*YEARFRAC(V2,J10)*VLOOKUP(Q2,AU2:AX5,4,0)),IF(V3<I10,0,YEARFRAC(I10,V3+HLOOKUP(MONTH(V3),AZ2:BK3,2,0))*Q10*VLOOKUP(Q2,AU2:AX5,4,0))))),IF(OR(V2>J10,IF(M10="yes",V2>L10,0)),0,IF(AND(V2<=L10,L10<=V3,M10="Yes"),IF(G10>0,(G10-H10-((G10-H10)*(1-P10)^(YEARFRAC(I10,MIN(L10,J10))))-SUM(S10:U10)),(E10-(E10*(1-P10)^(YEARFRAC(I10,MIN(L10,J10))))-SUM(S10:U10))),IF(V2>=I10,IF(V3<=J10,IF(G10>0,(G10-H10-((G10-H10)*(1-P10)^(YEARFRAC(I10,V3)))-SUM(S10:U10)),(E10-(E10*(1-P10)^(YEARFRAC(I10,V3)))-SUM(S10:U10))),IF(G10>0,(G10-H10-((G10-H10)*(1-P10)^(YEARFRAC(SUM(I10+1),J10)))-SUM(S10:U10)),(E10-(E10*(1-P10)^(YEARFRAC(I10,J10)))-SUM(S10:U10)))),IF(V3<I10,0,IF(G10>0,(G10-H10-((G10-H10)*(1-P10)^(YEARFRAC(I10,V3)))-SUM(S10:U10)),(E10-(E10*(1-P10)^(YEARFRAC(I10,V3)))-SUM(S10:U10)))))))) -> 537453.7177 | W10: =IF(Q1="SLM",IF(OR(W2>J10,IF(M10="yes",W2>L10,0)),0,IF(AND(W2<=L10,L10<=W3,M10="Yes"),YEARFRAC(W2,MIN(L10,J10))*Q10*VLOOKUP(Q2,AU2:AX5,4,0),IF(W2>=I10,IF(W3<=J10,Q10,Q10*YEARFRAC(W2,J10)*VLOOKUP(Q2,AU2:AX5,4,0)),IF(W3<I10,0,YEARFRAC(I10,W3+HLOOKUP(MONTH(W3),AZ2:BK3,2,0))*Q10*VLOOKUP(Q2,AU2:AX5,4,0))))),IF(OR(W2>J10,IF(M10="yes",W2>L10,0)),0,IF(AND(W2<=L10,L10<=W3,M10="Yes"),IF(G10>0,(G10-H10-((G10-H10)*(1-P10)^(YEARFRAC(I10,MIN(L10,J10))))-SUM(S10:V10)),(E10-(E10*(1-P10)^(YEARFRAC(I10,MIN(L10,J10))))-SUM(S10:V10))),IF(W2>=I10,IF(W3<=J10,IF(G10>0,(G10-H10-((G10-H10)*(1-P10)^(YEARFRAC(I10,W3)))-SUM(S10:V10)),(E10-(E10*(1-P10)^(YEARFRAC(I10,W3)))-SUM(S10:V10))),IF(G10>0,(G10-H10-((G10-H10)*(1-P10)^(YEARFRAC(I10+1,J10)))-SUM(S10:V10)),(E10-(E10*(1-P10)^(YEARFRAC(I10,J10)))-SUM(S10:V10)))),IF(W3<I10,0,IF(G10>0,(G10-H10-((G10-H10)*(1-P10)^(YEARFRAC(I10,W3)))-SUM(S10:V10)),(E10-(E10*(1-P10)^(YEARFRAC(I10,W3)))-SUM(S10:V10)))))))) -> 511278.1558 | X10: =IF(Q1="SLM",IF(OR(X2>J10,IF(M10="yes",X2>L10,0)),0,IF(AND(X2<=L10,L10<=X3,M10="Yes"),YEARFRAC(X2,MIN(L10,J10))*Q10*VLOOKUP(Q2,AU2:AX5,4,0),IF(X2>=I10,IF(X3<=J10,Q10,Q10*YEARFRAC(X2,J10)*VLOOKUP(Q2,AU2:AX5,4,0)),IF(X3<I10,0,YEARFRAC(I10,X3+HLOOKUP(MONTH(X3),AZ2:BK3,2,0))*Q10*VLOOKUP(Q2,AU2:AX5,4,0))))),IF(OR(X2>J10,IF(M10="yes",X2>L10,0)),0,IF(AND(X2<=L10,L10<=X3,M10="Yes"),IF(G10>0,(G10-H10-((G10-H10)*(1-P10)^(YEARFRAC(I10,MIN(L10,J10))))-SUM(S10:W10)),(E10-(E10*(1-P10)^(YEARFRAC(I10,MIN(L10,J10))))-SUM(S10:W10))),IF(X2>=I10,IF(X3<=J10,IF(G10>0,(G10-H10-((G10-H10)*(1-P10)^(YEARFRAC(I10,X3)))-SUM(S10:W10)),(E10-(E10*(1-P10)^(YEARFRAC(I10,X3)))-SUM(S10:W10))),IF(G10>0,(G10-H10-((G10-H10)*(1-P10)^(YEARFRAC(I10+1,J10)))-SUM(S10:W10)),(E10-(E10*(1-P10)^(YEARFRAC(I10,J10)))-SUM(S10:W10)))),IF(X3<I10,0,IF(G10>0,(G10-H10-((G10-H10)*(1-P10)^(YEARFRAC(I10,X3)))-SUM(S10:W10)),(E10-(E10*(1-P10)^(YEARFRAC(I10,X3)))-SUM(S10:W10)))))))) -> 486377.4201 | Y10: =IF(Q1="SLM",IF(OR(Y2>J10,IF(M10="yes",Y2>L10,0)),0,IF(AND(Y2<=L10,L10<=Y3,M10="Yes"),YEARFRAC(Y2,MIN(L10,J10))*Q10*VLOOKUP(Q2,AU2:AX5,4,0),IF(Y2>=I10,IF(Y3<=J10,Q10,Q10*YEARFRAC(Y2,J10)*VLOOKUP(Q2,AU2:AX5,4,0)),IF(Y3<I10,0,YEARFRAC(I10,Y3+HLOOKUP(MONTH(Y3),AZ2:BK3,2,0))*Q10*VLOOKUP(Q2,AU2:AX5,4,0))))),IF(OR(Y2>J10,IF(M10="yes",Y2>L10,0)),0,IF(AND(Y2<=L10,L10<=Y3,M10="Yes"),IF(G10>0,(G10-H10-((G10-H10)*(1-P10)^(YEARFRAC(I10,MIN(L10,J10))))-SUM(S10:X10)),(E10-(E10*(1-P10)^(YEARFRAC(I10,MIN(L10,J10))))-SUM(S10:X10))),IF(Y2>=I10,IF(Y3<=J10,IF(G10>0,(G10-H10-((G10-H10)*(1-P10)^(YEARFRAC(I10,Y3)))-SUM(S10:X10)),(E10-(E10*(1-P10)^(YEARFRAC(I10,Y3)))-SUM(S10:X10))),IF(G10>0,(G10-H10-((G10-H10)*(1-P10)^(YEARFRAC(I10+1,J10)))-SUM(S10:X10)),(E10-(E10*(1-P10)^(YEARFRAC(I10,J10)))-SUM(S10:X10)))),IF(Y3<I10,0,IF(G10>0,(G10-H10-((G10-H10)*(1-P10)^(YEARFRAC(I10,Y3)))-SUM(S10:X10)),(E10-(E10*(1-P10)^(YEARFRAC(I10,Y3)))-SUM(S10:X10)))))))) -> 462689.4228 | Z10: =IF(Q1="SLM",IF(OR(Z2>J10,IF(M10="yes",Z2>L10,0)),0,IF(AND(Z2<=L10,L10<=Z3,M10="Yes"),YEARFRAC(Z2,MIN(L10,J10))*Q10*VLOOKUP(Q2,AU2:AX5,4,0),IF(Z2>=I10,IF(Z3<=J10,Q10,Q10*YEARFRAC(Z2,J10)*VLOOKUP(Q2,AU2:AX5,4,0)),IF(Z3<I10,0,YEARFRAC(I10,Z3+HLOOKUP(MONTH(Z3),AZ2:BK3,2,0))*Q10*VLOOKUP(Q2,AU2:AX5,4,0))))),IF(OR(Z2>J10,IF(M10="yes",Z2>L10,0)),0,IF(AND(Z2<=L10,L10<=Z3,M10="Yes"),IF(G10>0,(G10-H10-((G10-H10)*(1-P10)^(YEARFRAC(I10,MIN(L10,J10))))-SUM(S10:Y10)),(E10-(E10*(1-P10)^(YEARFRAC(I10,MIN(L10,J10))))-SUM(S10:Y10))),IF(Z2>=I10,IF(Z3<=J10,IF(G10>0,(G10-H10-((G10-H10)*(1-P10)^(YEARFRAC(I10,Z3)))-SUM(S10:Y10)),(E10-(E10*(1-P10)^(YEARFRAC(I10,Z3)))-SUM(S10:Y10))),IF(G10>0,(G10-H10-((G10-H10)*(1-P10)^(YEARFRAC(I10+1,J10)))-SUM(S10:Y10)),(E10-(E10*(1-P10)^(YEARFRAC(I10,J10)))-SUM(S10:Y10)))),IF(Z3<I10,0,IF(G10>0,(G10-H10-((G10-H10)*(1-P10)^(YEARFRAC(I10,Z3)))-SUM(S10:Y10)),(E10-(E10*(1-P10)^(YEARFRAC(I10,Z3)))-SUM(S10:Y10)))))))) -> 440155.1 | AA10: =IF(Q1="SLM",IF(OR(AA2>J10,IF(M10="yes",AA2>L10,0)),0,IF(AND(AA2<=L10,L10<=AA3,M10="Yes"),YEARFRAC(AA2,MIN(L10,J10))*Q10*VLOOKUP(Q2,AU2:AX5,4,0),IF(AA2>=I10,IF(AA3<=J10,Q10,Q10*YEARFRAC(AA2,J10)*VLOOKUP(Q2,AU2:AX5,4,0)),IF(AA3<I10,0,YEARFRAC(I10,AA3+HLOOKUP(MONTH(AA3),AZ2:BK3,2,0))*Q10*VLOOKUP(Q2,AU2:AX5,4,0))))),IF(OR(AA2>J10,IF(M10="yes",AA2>L10,0)),0,IF(AND(AA2<=L10,L10<=AA3,M10="Yes"),IF(G10>0,(G10-H10-((G10-H10)*(1-P10)^(YEARFRAC(I10,MIN(L10,J10))))-SUM(S10:Z10)),(E10-(E10*(1-P10)^(YEARFRAC(I10,MIN(L10,J10))))-SUM(S10:Z10))),IF(AA2>=I10,IF(AA3<=J10,IF(G10>0,(G10-H10-((G10-H10)*(1-P10)^(YEARFRAC(I10,AA3)))-SUM(S10:Z10)),(E10-(E10*(1-P10)^(YEARFRAC(I10,AA3)))-SUM(S10:Z10))),IF(G10>0,(G10-H10-((G10-H10)*(1-P10)^(YEARFRAC(I10+1,J10)))-SUM(S10:Z10)),(E10-(E10*(1-P10)^(YEARFRAC(I10,J10)))-SUM(S10:Z10)))),IF(AA3<I10,0,IF(G10>0,(G10-H10-((G10-H10)*(1-P10)^(YEARFRAC(I10,AA3)))-SUM(S10:Z10)),(E10-(E10*(1-P10)^(YEARFRAC(I10,AA3)))-SUM(S10:Z10)))))))) -> 418718.2643 | AB10: =IF(Q1="SLM",IF(OR(AB2>J10,IF(M10="yes",AB2>L10,0)),0,IF(AND(AB2<=L10,L10<=AB3,M10="Yes"),YEARFRAC(AB2,MIN(L10,J10))*Q10*VLOOKUP(Q2,AU2:AX5,4,0),IF(AB2>=I10,IF(AB3<=J10,Q10,Q10*YEARFRAC(AB2,J10)*VLOOKUP(Q2,AU2:AX5,4,0)),IF(AB3<I10,0,YEARFRAC(I10,AB3+HLOOKUP(MONTH(AB3),AZ2:BK3,2,0))*Q10*VLOOKUP(Q2,AU2:AX5,4,0))))),IF(OR(AB2>J10,IF(M10="yes",AB2>L10,0)),0,IF(AND(AB2<=L10,L10<=AB3,M10="Yes"),IF(G10>0,(G10-H10-((G10-H10)*(1-P10)^(YEARFRAC(I10,MIN(L10,J10))))-SUM(S10:AA10)),(E10-(E10*(1-P10)^(YEARFRAC(I10,MIN(L10,J10))))-SUM(S10:AA10))),IF(AB2>=I10,IF(AB3<=J10,IF(G10>0,(G10-H10-((G10-H10)*(1-P10)^(YEARFRAC(I10,MIN(AB3,J10))))-SUM(S10:AA10)),(E10-(E10*(1-P10)^(YEARFRAC(I10,MIN(AB3,J10))))-SUM(S10:AA10))),IF(G10>0,(G10-H10-((G10-H10)*(1-P10)^(YEARFRAC(I10+1,J10)))-SUM(S10:AA10)),(E10-(E10*(1-P10)^(YEARFRAC(I10,J10)))-SUM(S10:AA10)))),IF(AB3<I10,0,IF(G10>0,(G10-H10-((G10-H10)*(1-P10)^(YEARFRAC(I10,AB3)))-SUM(S10:AA10)),(E10-(E10*(1-P10)^(YEARFRAC(I10,AB3)))-SUM(S10:AA10)))))))) -> 398325.465 | AC10: =IF(Q1="SLM",IF(OR(AC2>J10,IF(M10="yes",AC2>L10,0)),0,IF(AND(AC2<=L10,L10<=AC3,M10="Yes"),YEARFRAC(AC2,MIN(L10,J10))*Q10*VLOOKUP(Q2,AU2:AX5,4,0),IF(AC2>=I10,IF(AC3<=J10,Q10,Q10*YEARFRAC(AC2,J10)*VLOOKUP(Q2,AU2:AX5,4,0)),IF(AC3<I10,0,YEARFRAC(I10,AC3+HLOOKUP(MONTH(AC3),AZ2:BK3,2,0))*Q10*VLOOKUP(Q2,AU2:AX5,4,0))))),IF(OR(AC2>J10,IF(M10="yes",AC2>L10,0)),0,IF(AND(AC2<=L10,L10<=AC3,M10="Yes"),IF(G10>0,(G10-H10-((G10-H10)*(1-P10)^(YEARFRAC(I10,MIN(L10,J10))))-SUM(S10:AB10)),(E10-(E10*(1-P10)^(YEARFRAC(I10,MIN(L10,J10))))-SUM(S10:AB10))),IF(AC2>=I10,IF(AC3<=J10,IF(G10>0,(G10-H10-((G10-H10)*(1-P10)^(YEARFRAC(I10,AC3)))-SUM(S10:AB10)),(E10-(E10*(1-P10)^(YEARFRAC(I10,AC3)))-SUM(S10:AB10))),IF(G10>0,(G10-H10-((G10-H10)*(1-P10)^(YEARFRAC(I10+1,J10)))-SUM(S10:AB10)),(E10-(E10*(1-P10)^(YEARFRAC(I10,J10)))-SUM(S10:AB10)))),IF(AC3<I10,0,IF(G10>0,(G10-H10-((G10-H10)*(1-P10)^(YEARFRAC(I10,AC3)))-SUM(S10:AB10)),(E10-(E10*(1-P10)^(YEARFRAC(I10,AC3)))-SUM(S10:AB10)))))))) -> 378925.8544 | AD10: =IF(Q1="SLM",IF(OR(AD2>J10,IF(M10="yes",AD2>L10,0)),0,IF(AND(AD2<=L10,L10<=AD3,M10="Yes"),YEARFRAC(AD2,MIN(L10,J10))*Q10*VLOOKUP(Q2,AU2:AX5,4,0),IF(AD2>=I10,IF(AD3<=J10,Q10,Q10*YEARFRAC(AD2,J10)*VLOOKUP(Q2,AU2:AX5,4,0)),IF(AD3<I10,0,YEARFRAC(I10,AD3+HLOOKUP(MONTH(AD3),AZ2:BK3,2,0))*Q10*VLOOKUP(Q2,AU2:AX5,4,0))))),IF(OR(AD2>J10,IF(M10="yes",AD2>L10,0)),0,IF(AND(AD2<=L10,L10<=AD3,M10="Yes"),IF(G10>0,(G10-H10-((G10-H10)*(1-P10)^(YEARFRAC(I10,MIN(L10,J10))))-SUM(S10:AC10)),(E10-(E10*(1-P10)^(YEARFRAC(I10,MIN(L10,J10))))-SUM(S10:AC10))),IF(AD2>=I10,IF(AD3<=J10,IF(G10>0,(G10-H10-((G10-H10)*(1-P10)^(YEARFRAC(I10,AD3)))-SUM(S10:AC10)),(E10-(E10*(1-P10)^(YEARFRAC(I10,AD3)))-SUM(S10:AC10))),IF(G10>0,(G10-H10-((G10-H10)*(1-P10)^(YEARFRAC(I10+1,J10)))-SUM(S10:AC10)),(E10-(E10*(1-P10)^(YEARFRAC(I10,J10)))-SUM(S10:AC10)))),IF(AD3<I10,0,IF(G10>0,(G10-H10-((G10-H10)*(1-P10)^(YEARFRAC(I10,AD3)))-SUM(S10:AC10)),(E10-(E10*(1-P10)^(YEARFRAC(I10,AD3)))-SUM(S10:AC10)))))))) -> 360471.0613 | AE10: =IF(Q1="SLM",IF(OR(AE2>J10,IF(M10="yes",AE2>L10,0)),0,IF(AND(AE2<=L10,L10<=AE3,M10="Yes"),YEARFRAC(AE2,MIN(L10,J10))*Q10*VLOOKUP(Q2,AU2:AX5,4,0),IF(AE2>=I10,IF(AE3<=J10,Q10,Q10*YEARFRAC(AE2,J10)*VLOOKUP(Q2,AU2:AX5,4,0)),IF(AE3<I10,0,YEARFRAC(I10,AE3+HLOOKUP(MONTH(AE3),AZ2:BK3,2,0))*Q10*VLOOKUP(Q2,AU2:AX5,4,0))))),IF(OR(AE2>J10,IF(M10="yes",AE2>L10,0)),0,IF(AND(AE2<=L10,L10<=AE3,M10="Yes"),IF(G10>0,(G10-H10-((G10-H10)*(1-P10)^(YEARFRAC(I10,MIN(L10,J10))))-SUM(S10:AD10)),(E10-(E10*(1-P10)^(YEARFRAC(I10,MIN(L10,J10))))-SUM(S10:AD10))),IF(AE2>=I10,IF(AE3<=J10,IF(G10>0,(G10-H10-((G10-H10)*(1-P10)^(YEARFRAC(I10,AE3)))-SUM(S10:AD10)),(E10-(E10*(1-P10)^(YEARFRAC(I10,AE3)))-SUM(S10:AD10))),IF(G10>0,(G10-H10-((G10-H10)*(1-P10)^(YEARFRAC(I10+1,J10)))-SUM(S10:AD10)),(E10-(E10*(1-P10)^(YEARFRAC(I10,J10)))-SUM(S10:AD10)))),IF(AE3<I10,0,IF(G10>0,(G10-H10-((G10-H10)*(1-P10)^(YEARFRAC(I10,AE3)))-SUM(S10:AD10)),(E10-(E10*(1-P10)^(YEARFRAC(I10,AE3)))-SUM(S10:AD10)))))))) -> 342915.0705 | AF10: =IF(Q1="SLM",IF(OR(AF2>J10,IF(M10="yes",AF2>L10,0)),0,IF(AND(AF2<=L10,L10<=AF3,M10="Yes"),YEARFRAC(MAX(I10,AF2),MIN(L10,J10))*Q10*VLOOKUP(Q2,AU2:AX5,4,0),IF(AF2>=I10,IF(AF3<=J10,Q10*YEARFRAC(AF2,J10)*VLOOKUP(Q2,AU2:AX5,4,0),Q10*YEARFRAC(AF2,J10)*VLOOKUP(Q2,AU2:AX5,4,0)),IF(AF3<I10,0,IF(AF3>=J10,YEARFRAC(I10,J10)*Q10*VLOOKUP(Q2,AU2:AX5,4,0),YEARFRAC(I10,AF3)*Q10*VLOOKUP(Q2,AU2:AX5,4,0)))))),IF(OR(AF2>J10,IF(M10="yes",AF2>L10,0)),0,IF(AND(AF2<=L10,L10<=AF3,M10="Yes"),IF(G10>0,(G10-H10-((G10-H10)*(1-P10)^(YEARFRAC(I10+1,MIN(L10,J10))))-SUM(S10:AE10)),(E10-(E10*(1-P10)^(YEARFRAC(I10,MIN(L10,J10))))-SUM(S10:AE10))),IF(AF2>=I10,IF(AF3<=J10,IF(G10>0,(G10-H10-((G10-H10)*(1-P10)^(YEARFRAC(I10+1,AF3)))-SUM(S10:AE10)),(E10-(E10*(1-P10)^(YEARFRAC(I10,AF3)))-SUM(S10:AE10))),IF(G10>0,(G10-H10-((G10-H10)*(1-P10)^(YEARFRAC(I10+1,J10)))-SUM(S10:AE10)),(E10-(E10*(1-P10)^(YEARFRAC(I10,J10)))-SUM(S10:AE10)))),IF(AF3<I10,0,IF(AF3>=J10,IF(G10>0,(G10-H10-((G10-H10)*(1-P10)^(YEARFRAC(I10+1,J10)))-SUM(S10:AE10)),(E10-(E10*(1-P10)^(YEARFRAC(I10,J10)))-SUM(S10:AE10))),IF(G10>0,(G10-H10-((G10-H10)*(1-P10)^(YEARFRAC(I10+1,AF3)))-SUM(S10:AE10)),(E10-(E10*(1-P10)^(YEARFRAC(I10,AF3)))-SUM(S10:AE10))))))))) -> 6073350.946 | AH10: 12493800 | AI10: 11869110 | AJ10: 624690 | AK10: 0 | AL10: 0
A11: Non Depreciable assets_Residual value 100% so depreciation will be counted Zero | B11: 1005 | C11: Plot_99 years lease | D11: Land | E11: 7000000 | F11: =Table8[[#This Row],[Input 4]] -> 7000000 | I11: 2017-05-23 | J11: 2116-05-23 | K11: =YEARFRAC(Table8[[#This Row],[Input 8]],Table8[[#This Row],[Input 9]]) -> 99 | O11: 0 | P11: 0 | Q11: =IF(Q1="SLM",IF((G11-H11)>0,(G11-F11)/(K11*VLOOKUP(Q2,AU2:AX5,4,0)),(E11-F11)/(K11*VLOOKUP(Q2,AU2:AX5,4,0))),0) -> 0 | R11: 0 | S11: =IF(Q1="SLM",IF(OR(S2>J11,IF(M11="yes",S2>L11,0)),0,IF(AND(S2<=L11,L11<=S3,M11="Yes"),YEARFRAC(MAX(S2,I11),MIN(L11,J11))*Q11*VLOOKUP(Q2,AU2:AX5,4,0),IF(S2>=I11,IF(S3<=J11,Q11*YEARFRAC(S2,S3)*VLOOKUP(Q2,AU2:AX5,4,0),Q11*YEARFRAC(S2,J11)*VLOOKUP(Q2,AU2:AX5,4,0)),IF(S3<I11,0,IF(S3>=J11,YEARFRAC(I11,J11)*Q11*VLOOKUP(Q2,AU2:AX5,4,0),YEARFRAC(I11,S3+HLOOKUP(MONTH(S3),AZ2:BK3,2,0))*Q11*VLOOKUP(Q2,AU2:AX5,4,0)))))),IF(OR(S2>J11,IF(M11="yes",S2>L11,0)),0,IF(AND(S2<=L11,L11<=S3,M11="Yes"),IF(G11>0,(G11-H11-((G11-H11)*(1-P11)^(YEARFRAC(I11,MIN(J11,L11))))),(E11-(E11*(1-P11)^(YEARFRAC(I11,MIN(J11,L11)))))),IF(S2>I11,IF(S3<J11,IF(G11>0,(G11-H11-((G11-H11)*(1-P11)^(YEARFRAC(I11,S3)))),(E11-(E11*(1-P11)^(YEARFRAC(I11,S3))))),IF(G11>0,(G11-H11-((G11-H11)*(1-P11)^(YEARFRAC(I11,J11)))),(E11-(E11*(1-P11)^(YEARFRAC(I11,J11)))))),IF(S3<I11,0,IF(G11>0,(G11-H11-((G11-H11)*(1-P11)^(YEARFRAC(I11,MIN(J11,S3))))),(E11-(E11*(1-P11)^(YEARFRAC(I11,MIN(J11,S3))))))))))) -> 0 | T11: =IF(Q1="SLM",IF(OR(T2>J11,IF(M11="yes",T2>L11,0)),0,IF(AND(T2<=L11,L11<=T3,M11="Yes"),YEARFRAC(T2,MIN(L11,J11))*Q11*VLOOKUP(Q2,AU2:AX5,4,0),IF(T2>=I11,IF(T3<=J11,Q11,Q11*YEARFRAC(T2,J11)*VLOOKUP(Q2,AU2:AX5,4,0)),IF(T3<I11,0,YEARFRAC(I11,T3+HLOOKUP(MONTH(T3),AZ2:BK3,2,0))*Q11*VLOOKUP(Q2,AU2:AX5,4,0))))),IF(OR(T2>J11,IF(M11="yes",T2>L11,0)),0,IF(AND(T2<=L11,L11<=T3,M11="Yes"),IF(G11>0,(G11-H11-((G11-H11)*(1-P11)^(YEARFRAC(I11,MIN(L11,J11))))-SUM(S11:S11)),(E11-(E11*(1-P11)^(YEARFRAC(I11,MIN(L11,J11))))-SUM(S11:S11))),IF(T2>=I11,IF(T3<=J11,IF(G11>0,(G11-H11-((G11-H11)*(1-P11)^(YEARFRAC(I11,T3)))-SUM(S11:S11)),(E11-(E11*(1-P11)^(YEARFRAC(I11,T3)))-SUM(S11:S11))),IF(G11>0,(G11-H11-((G11-H11)*(1-P11)^(YEARFRAC(I11+1,J11)))-SUM(S11:S11)),(E11-(E11*(1-P11)^(YEARFRAC(I11,J11)))-SUM(S11:S11)))),IF(T3<I11,0,IF(G11>0,(G11-H11-((G11-H11)*(1-P11)^(YEARFRAC(I11,T3)))-SUM(S11:S11)),(E11-(E11*(1-P11)^(YEARFRAC(I11,T3)))-SUM(S11:S11)))))))) -> 0 | U11: =IF(Q1="SLM",IF(OR(U2>J11,IF(M11="yes",U2>L11,0)),0,IF(AND(U2<=L11,L11<=U3,M11="Yes"),YEARFRAC(U2,MIN(L11,J11))*Q11*VLOOKUP(Q2,AU2:AX5,4,0),IF(U2>=I11,IF(U3<=J11,Q11,Q11*YEARFRAC(U2,J11)*VLOOKUP(Q2,AU2:AX5,4,0)),IF(U3<I11,0,YEARFRAC(I11,U3+HLOOKUP(MONTH(U3),AZ2:BK3,2,0))*Q11*VLOOKUP(Q2,AU2:AX5,4,0))))),IF(OR(U2>J11,IF(M11="yes",U2>L11,0)),0,IF(AND(U2<=L11,L11<=U3,M11="Yes"),IF(G11>0,(G11-H11-((G11-H11)*(1-P11)^(YEARFRAC(I11,MIN(L11,J11))))-SUM(S11:T11)),(E11-(E11*(1-P11)^(YEARFRAC(I11,MIN(L11,J11))))-SUM(S11:T11))),IF(U2>=I11,IF(U3<=J11,IF(G11>0,(G11-H11-((G11-H11)*(1-P11)^(YEARFRAC(I11,U3)))-SUM(S11:T11)),(E11-(E11*(1-P11)^(YEARFRAC(I11,U3)))-SUM(S11:T11))),IF(G11>0,(G11-H11-((G11-H11)*(1-P11)^(YEARFRAC(I11+1,J11)))-SUM(S11:T11)),(E11-(E11*(1-P11)^(YEARFRAC(I11,J11)))-SUM(S11:T11)))),IF(U3<I11,0,IF(G11>0,(G11-H11-((G11-H11)*(1-P11)^(YEARFRAC(I11,U3)))-SUM(S11:T11)),(E11-(E11*(1-P11)^(YEARFRAC(I11,U3)))-SUM(S11:T11)))))))) -> 0 | V11: =IF(Q1="SLM",IF(OR(V2>J11,IF(M11="yes",V2>L11,0)),0,IF(AND(V2<=L11,L11<=V3,M11="Yes"),YEARFRAC(V2,MIN(L11,J11))*Q11*VLOOKUP(Q2,AU2:AX5,4,0),IF(V2>=I11,IF(V3<=J11,Q11,Q11*YEARFRAC(V2,J11)*VLOOKUP(Q2,AU2:AX5,4,0)),IF(V3<I11,0,YEARFRAC(I11,V3+HLOOKUP(MONTH(V3),AZ2:BK3,2,0))*Q11*VLOOKUP(Q2,AU2:AX5,4,0))))),IF(OR(V2>J11,IF(M11="yes",V2>L11,0)),0,IF(AND(V2<=L11,L11<=V3,M11="Yes"),IF(G11>0,(G11-H11-((G11-H11)*(1-P11)^(YEARFRAC(I11,MIN(L11,J11))))-SUM(S11:U11)),(E11-(E11*(1-P11)^(YEARFRAC(I11,MIN(L11,J11))))-SUM(S11:U11))),IF(V2>=I11,IF(V3<=J11,IF(G11>0,(G11-H11-((G11-H11)*(1-P11)^(YEARFRAC(I11,V3)))-SUM(S11:U11)),(E11-(E11*(1-P11)^(YEARFRAC(I11,V3)))-SUM(S11:U11))),IF(G11>0,(G11-H11-((G11-H11)*(1-P11)^(YEARFRAC(SUM(I11+1),J11)))-SUM(S11:U11)),(E11-(E11*(1-P11)^(YEARFRAC(I11,J11)))-SUM(S11:U11)))),IF(V3<I11,0,IF(G11>0,(G11-H11-((G11-H11)*(1-P11)^(YEARFRAC(I11,V3)))-SUM(S11:U11)),(E11-(E11*(1-P11)^(YEARFRAC(I11,V3)))-SUM(S11:U11)))))))) -> 0 | W11: =IF(Q1="SLM",IF(OR(W2>J11,IF(M11="yes",W2>L11,0)),0,IF(AND(W2<=L11,L11<=W3,M11="Yes"),YEARFRAC(W2,MIN(L11,J11))*Q11*VLOOKUP(Q2,AU2:AX5,4,0),IF(W2>=I11,IF(W3<=J11,Q11,Q11*YEARFRAC(W2,J11)*VLOOKUP(Q2,AU2:AX5,4,0)),IF(W3<I11,0,YEARFRAC(I11,W3+HLOOKUP(MONTH(W3),AZ2:BK3,2,0))*Q11*VLOOKUP(Q2,AU2:AX5,4,0))))),IF(OR(W2>J11,IF(M11="yes",W2>L11,0)),0,IF(AND(W2<=L11,L11<=W3,M11="Yes"),IF(G11>0,(G11-H11-((G11-H11)*(1-P11)^(YEARFRAC(I11,MIN(L11,J11))))-SUM(S11:V11)),(E11-(E11*(1-P11)^(YEARFRAC(I11,MIN(L11,J11))))-SUM(S11:V11))),IF(W2>=I11,IF(W3<=J11,IF(G11>0,(G11-H11-((G11-H11)*(1-P11)^(YEARFRAC(I11,W3)))-SUM(S11:V11)),(E11-(E11*(1-P11)^(YEARFRAC(I11,W3)))-SUM(S11:V11))),IF(G11>0,(G11-H11-((G11-H11)*(1-P11)^(YEARFRAC(I11+1,J11)))-SUM(S11:V11)),(E11-(E11*(1-P11)^(YEARFRAC(I11,J11)))-SUM(S11:V11)))),IF(W3<I11,0,IF(G11>0,(G11-H11-((G11-H11)*(1-P11)^(YEARFRAC(I11,W3)))-SUM(S11:V11)),(E11-(E11*(1-P11)^(YEARFRAC(I11,W3)))-SUM(S11:V11)))))))) -> 0 | X11: =IF(Q1="SLM",IF(OR(X2>J11,IF(M11="yes",X2>L11,0)),0,IF(AND(X2<=L11,L11<=X3,M11="Yes"),YEARFRAC(X2,MIN(L11,J11))*Q11*VLOOKUP(Q2,AU2:AX5,4,0),IF(X2>=I11,IF(X3<=J11,Q11,Q11*YEARFRAC(X2,J11)*VLOOKUP(Q2,AU2:AX5,4,0)),IF(X3<I11,0,YEARFRAC(I11,X3+HLOOKUP(MONTH(X3),AZ2:BK3,2,0))*Q11*VLOOKUP(Q2,AU2:AX5,4,0))))),IF(OR(X2>J11,IF(M11="yes",X2>L11,0)),0,IF(AND(X2<=L11,L11<=X3,M11="Yes"),IF(G11>0,(G11-H11-((G11-H11)*(1-P11)^(YEARFRAC(I11,MIN(L11,J11))))-SUM(S11:W11)),(E11-(E11*(1-P11)^(YEARFRAC(I11,MIN(L11,J11))))-SUM(S11:W11))),IF(X2>=I11,IF(X3<=J11,IF(G11>0,(G11-H11-((G11-H11)*(1-P11)^(YEARFRAC(I11,X3)))-SUM(S11:W11)),(E11-(E11*(1-P11)^(YEARFRAC(I11,X3)))-SUM(S11:W11))),IF(G11>0,(G11-H11-((G11-H11)*(1-P11)^(YEARFRAC(I11+1,J11)))-SUM(S11:W11)),(E11-(E11*(1-P11)^(YEARFRAC(I11,J11)))-SUM(S11:W11)))),IF(X3<I11,0,IF(G11>0,(G11-H11-((G11-H11)*(1-P11)^(YEARFRAC(I11,X3)))-SUM(S11:W11)),(E11-(E11*(1-P11)^(YEARFRAC(I11,X3)))-SUM(S11:W11)))))))) -> 0 | Y11: =IF(Q1="SLM",IF(OR(Y2>J11,IF(M11="yes",Y2>L11,0)),0,IF(AND(Y2<=L11,L11<=Y3,M11="Yes"),YEARFRAC(Y2,MIN(L11,J11))*Q11*VLOOKUP(Q2,AU2:AX5,4,0),IF(Y2>=I11,IF(Y3<=J11,Q11,Q11*YEARFRAC(Y2,J11)*VLOOKUP(Q2,AU2:AX5,4,0)),IF(Y3<I11,0,YEARFRAC(I11,Y3+HLOOKUP(MONTH(Y3),AZ2:BK3,2,0))*Q11*VLOOKUP(Q2,AU2:AX5,4,0))))),IF(OR(Y2>J11,IF(M11="yes",Y2>L11,0)),0,IF(AND(Y2<=L11,L11<=Y3,M11="Yes"),IF(G11>0,(G11-H11-((G11-H11)*(1-P11)^(YEARFRAC(I11,MIN(L11,J11))))-SUM(S11:X11)),(E11-(E11*(1-P11)^(YEARFRAC(I11,MIN(L11,J11))))-SUM(S11:X11))),IF(Y2>=I11,IF(Y3<=J11,IF(G11>0,(G11-H11-((G11-H11)*(1-P11)^(YEARFRAC(I11,Y3)))-SUM(S11:X11)),(E11-(E11*(1-P11)^(YEARFRAC(I11,Y3)))-SUM(S11:X11))),IF(G11>0,(G11-H11-((G11-H11)*(1-P11)^(YEARFRAC(I11+1,J11)))-SUM(S11:X11)),(E11-(E11*(1-P11)^(YEARFRAC(I11,J11)))-SUM(S11:X11)))),IF(Y3<I11,0,IF(G11>0,(G11-H11-((G11-H11)*(1-P11)^(YEARFRAC(I11,Y3)))-SUM(S11:X11)),(E11-(E11*(1-P11)^(YEARFRAC(I11,Y3)))-SUM(S11:X11)))))))) -> 0 | Z11: =IF(Q1="SLM",IF(OR(Z2>J11,IF(M11="yes",Z2>L11,0)),0,IF(AND(Z2<=L11,L11<=Z3,M11="Yes"),YEARFRAC(Z2,MIN(L11,J11))*Q11*VLOOKUP(Q2,AU2:AX5,4,0),IF(Z2>=I11,IF(Z3<=J11,Q11,Q11*YEARFRAC(Z2,J11)*VLOOKUP(Q2,AU2:AX5,4,0)),IF(Z3<I11,0,YEARFRAC(I11,Z3+HLOOKUP(MONTH(Z3),AZ2:BK3,2,0))*Q11*VLOOKUP(Q2,AU2:AX5,4,0))))),IF(OR(Z2>J11,IF(M11="yes",Z2>L11,0)),0,IF(AND(Z2<=L11,L11<=Z3,M11="Yes"),IF(G11>0,(G11-H11-((G11-H11)*(1-P11)^(YEARFRAC(I11,MIN(L11,J11))))-SUM(S11:Y11)),(E11-(E11*(1-P11)^(YEARFRAC(I11,MIN(L11,J11))))-SUM(S11:Y11))),IF(Z2>=I11,IF(Z3<=J11,IF(G11>0,(G11-H11-((G11-H11)*(1-P11)^(YEARFRAC(I11,Z3)))-SUM(S11:Y11)),(E11-(E11*(1-P11)^(YEARFRAC(I11,Z3)))-SUM(S11:Y11))),IF(G11>0,(G11-H11-((G11-H11)*(1-P11)^(YEARFRAC(I11+1,J11)))-SUM(S11:Y11)),(E11-(E11*(1-P11)^(YEARFRAC(I11,J11)))-SUM(S11:Y11)))),IF(Z3<I11,0,IF(G11>0,(G11-H11-((G11-H11)*(1-P11)^(YEARFRAC(I11,Z3)))-SUM(S11:Y11)),(E11-(E11*(1-P11)^(YEARFRAC(I11,Z3)))-SUM(S11:Y11)))))))) -> 0 | AA11: =IF(Q1="SLM",IF(OR(AA2>J11,IF(M11="yes",AA2>L11,0)),0,IF(AND(AA2<=L11,L11<=AA3,M11="Yes"),YEARFRAC(AA2,MIN(L11,J11))*Q11*VLOOKUP(Q2,AU2:AX5,4,0),IF(AA2>=I11,IF(AA3<=J11,Q11,Q11*YEARFRAC(AA2,J11)*VLOOKUP(Q2,AU2:AX5,4,0)),IF(AA3<I11,0,YEARFRAC(I11,AA3+HLOOKUP(MONTH(AA3),AZ2:BK3,2,0))*Q11*VLOOKUP(Q2,AU2:AX5,4,0))))),IF(OR(AA2>J11,IF(M11="yes",AA2>L11,0)),0,IF(AND(AA2<=L11,L11<=AA3,M11="Yes"),IF(G11>0,(G11-H11-((G11-H11)*(1-P11)^(YEARFRAC(I11,MIN(L11,J11))))-SUM(S11:Z11)),(E11-(E11*(1-P11)^(YEARFRAC(I11,MIN(L11,J11))))-SUM(S11:Z11))),IF(AA2>=I11,IF(AA3<=J11,IF(G11>0,(G11-H11-((G11-H11)*(1-P11)^(YEARFRAC(I11,AA3)))-SUM(S11:Z11)),(E11-(E11*(1-P11)^(YEARFRAC(I11,AA3)))-SUM(S11:Z11))),IF(G11>0,(G11-H11-((G11-H11)*(1-P11)^(YEARFRAC(I11+1,J11)))-SUM(S11:Z11)),(E11-(E11*(1-P11)^(YEARFRAC(I11,J11)))-SUM(S11:Z11)))),IF(AA3<I11,0,IF(G11>0,(G11-H11-((G11-H11)*(1-P11)^(YEARFRAC(I11,AA3)))-SUM(S11:Z11)),(E11-(E11*(1-P11)^(YEARFRAC(I11,AA3)))-SUM(S11:Z11)))))))) -> 0 | AB11: =IF(Q1="SLM",IF(OR(AB2>J11,IF(M11="yes",AB2>L11,0)),0,IF(AND(AB2<=L11,L11<=AB3,M11="Yes"),YEARFRAC(AB2,MIN(L11,J11))*Q11*VLOOKUP(Q2,AU2:AX5,4,0),IF(AB2>=I11,IF(AB3<=J11,Q11,Q11*YEARFRAC(AB2,J11)*VLOOKUP(Q2,AU2:AX5,4,0)),IF(AB3<I11,0,YEARFRAC(I11,AB3+HLOOKUP(MONTH(AB3),AZ2:BK3,2,0))*Q11*VLOOKUP(Q2,AU2:AX5,4,0))))),IF(OR(AB2>J11,IF(M11="yes",AB2>L11,0)),0,IF(AND(AB2<=L11,L11<=AB3,M11="Yes"),IF(G11>0,(G11-H11-((G11-H11)*(1-P11)^(YEARFRAC(I11,MIN(L11,J11))))-SUM(S11:AA11)),(E11-(E11*(1-P11)^(YEARFRAC(I11,MIN(L11,J11))))-SUM(S11:AA11))),IF(AB2>=I11,IF(AB3<=J11,IF(G11>0,(G11-H11-((G11-H11)*(1-P11)^(YEARFRAC(I11,MIN(AB3,J11))))-SUM(S11:AA11)),(E11-(E11*(1-P11)^(YEARFRAC(I11,MIN(AB3,J11))))-SUM(S11:AA11))),IF(G11>0,(G11-H11-((G11-H11)*(1-P11)^(YEARFRAC(I11+1,J11)))-SUM(S11:AA11)),(E11-(E11*(1-P11)^(YEARFRAC(I11,J11)))-SUM(S11:AA11)))),IF(AB3<I11,0,IF(G11>0,(G11-H11-((G11-H11)*(1-P11)^(YEARFRAC(I11,AB3)))-SUM(S11:AA11)),(E11-(E11*(1-P11)^(YEARFRAC(I11,AB3)))-SUM(S11:AA11)))))))) -> 0 | AC11: =IF(Q1="SLM",IF(OR(AC2>J11,IF(M11="yes",AC2>L11,0)),0,IF(AND(AC2<=L11,L11<=AC3,M11="Yes"),YEARFRAC(AC2,MIN(L11,J11))*Q11*VLOOKUP(Q2,AU2:AX5,4,0),IF(AC2>=I11,IF(AC3<=J11,Q11,Q11*YEARFRAC(AC2,J11)*VLOOKUP(Q2,AU2:AX5,4,0)),IF(AC3<I11,0,YEARFRAC(I11,AC3+HLOOKUP(MONTH(AC3),AZ2:BK3,2,0))*Q11*VLOOKUP(Q2,AU2:AX5,4,0))))),IF(OR(AC2>J11,IF(M11="yes",AC2>L11,0)),0,IF(AND(AC2<=L11,L11<=AC3,M11="Yes"),IF(G11>0,(G11-H11-((G11-H11)*(1-P11)^(YEARFRAC(I11,MIN(L11,J11))))-SUM(S11:AB11)),(E11-(E11*(1-P11)^(YEARFRAC(I11,MIN(L11,J11))))-SUM(S11:AB11))),IF(AC2>=I11,IF(AC3<=J11,IF(G11>0,(G11-H11-((G11-H11)*(1-P11)^(YEARFRAC(I11,AC3)))-SUM(S11:AB11)),(E11-(E11*(1-P11)^(YEARFRAC(I11,AC3)))-SUM(S11:AB11))),IF(G11>0,(G11-H11-((G11-H11)*(1-P11)^(YEARFRAC(I11+1,J11)))-SUM(S11:AB11)),(E11-(E11*(1-P11)^(YEARFRAC(I11,J11)))-SUM(S11:AB11)))),IF(AC3<I11,0,IF(G11>0,(G11-H11-((G11-H11)*(1-P11)^(YEARFRAC(I11,AC3)))-SUM(S11:AB11)),(E11-(E11*(1-P11)^(YEARFRAC(I11,AC3)))-SUM(S11:AB11)))))))) -> 0 | AD11: =IF(Q1="SLM",IF(OR(AD2>J11,IF(M11="yes",AD2>L11,0)),0,IF(AND(AD2<=L11,L11<=AD3,M11="Yes"),YEARFRAC(AD2,MIN(L11,J11))*Q11*VLOOKUP(Q2,AU2:AX5,4,0),IF(AD2>=I11,IF(AD3<=J11,Q11,Q11*YEARFRAC(AD2,J11)*VLOOKUP(Q2,AU2:AX5,4,0)),IF(AD3<I11,0,YEARFRAC(I11,AD3+HLOOKUP(MONTH(AD3),AZ2:BK3,2,0))*Q11*VLOOKUP(Q2,AU2:AX5,4,0))))),IF(OR(AD2>J11,IF(M11="yes",AD2>L11,0)),0,IF(AND(AD2<=L11,L11<=AD3,M11="Yes"),IF(G11>0,(G11-H11-((G11-H11)*(1-P11)^(YEARFRAC(I11,MIN(L11,J11))))-SUM(S11:AC11)),(E11-(E11*(1-P11)^(YEARFRAC(I11,MIN(L11,J11))))-SUM(S11:AC11))),IF(AD2>=I11,IF(AD3<=J11,IF(G11>0,(G11-H11-((G11-H11)*(1-P11)^(YEARFRAC(I11,AD3)))-SUM(S11:AC11)),(E11-(E11*(1-P11)^(YEARFRAC(I11,AD3)))-SUM(S11:AC11))),IF(G11>0,(G11-H11-((G11-H11)*(1-P11)^(YEARFRAC(I11+1,J11)))-SUM(S11:AC11)),(E11-(E11*(1-P11)^(YEARFRAC(I11,J11)))-SUM(S11:AC11)))),IF(AD3<I11,0,IF(G11>0,(G11-H11-((G11-H11)*(1-P11)^(YEARFRAC(I11,AD3)))-SUM(S11:AC11)),(E11-(E11*(1-P11)^(YEARFRAC(I11,AD3)))-SUM(S11:AC11)))))))) -> 0 | AE11: =IF(Q1="SLM",IF(OR(AE2>J11,IF(M11="yes",AE2>L11,0)),0,IF(AND(AE2<=L11,L11<=AE3,M11="Yes"),YEARFRAC(AE2,MIN(L11,J11))*Q11*VLOOKUP(Q2,AU2:AX5,4,0),IF(AE2>=I11,IF(AE3<=J11,Q11,Q11*YEARFRAC(AE2,J11)*VLOOKUP(Q2,AU2:AX5,4,0)),IF(AE3<I11,0,YEARFRAC(I11,AE3+HLOOKUP(MONTH(AE3),AZ2:BK3,2,0))*Q11*VLOOKUP(Q2,AU2:AX5,4,0))))),IF(OR(AE2>J11,IF(M11="yes",AE2>L11,0)),0,IF(AND(AE2<=L11,L11<=AE3,M11="Yes"),IF(G11>0,(G11-H11-((G11-H11)*(1-P11)^(YEARFRAC(I11,MIN(L11,J11))))-SUM(S11:AD11)),(E11-(E11*(1-P11)^(YEARFRAC(I11,MIN(L11,J11))))-SUM(S11:AD11))),IF(AE2>=I11,IF(AE3<=J11,IF(G11>0,(G11-H11-((G11-H11)*(1-P11)^(YEARFRAC(I11,AE3)))-SUM(S11:AD11)),(E11-(E11*(1-P11)^(YEARFRAC(I11,AE3)))-SUM(S11:AD11))),IF(G11>0,(G11-H11-((G11-H11)*(1-P11)^(YEARFRAC(I11+1,J11)))-SUM(S11:AD11)),(E11-(E11*(1-P11)^(YEARFRAC(I11,J11)))-SUM(S11:AD11)))),IF(AE3<I11,0,IF(G11>0,(G11-H11-((G11-H11)*(1-P11)^(YEARFRAC(I11,AE3)))-SUM(S11:AD11)),(E11-(E11*(1-P11)^(YEARFRAC(I11,AE3)))-SUM(S11:AD11)))))))) -> 0 | AF11: =IF(Q1="SLM",IF(OR(AF2>J11,IF(M11="yes",AF2>L11,0)),0,IF(AND(AF2<=L11,L11<=AF3,M11="Yes"),YEARFRAC(MAX(I11,AF2),MIN(L11,J11))*Q11*VLOOKUP(Q2,AU2:AX5,4,0),IF(AF2>=I11,IF(AF3<=J11,Q11*YEARFRAC(AF2,J11)*VLOOKUP(Q2,AU2:AX5,4,0),Q11*YEARFRAC(AF2,J11)*VLOOKUP(Q2,AU2:AX5,4,0)),IF(AF3<I11,0,IF(AF3>=J11,YEARFRAC(I11,J11)*Q11*VLOOKUP(Q2,AU2:AX5,4,0),YEARFRAC(I11,AF3)*Q11*VLOOKUP(Q2,AU2:AX5,4,0)))))),IF(OR(AF2>J11,IF(M11="yes",AF2>L11,0)),0,IF(AND(AF2<=L11,L11<=AF3,M11="Yes"),IF(G11>0,(G11-H11-((G11-H11)*(1-P11)^(YEARFRAC(I11+1,MIN(L11,J11))))-SUM(S11:AE11)),(E11-(E11*(1-P11)^(YEARFRAC(I11,MIN(L11,J11))))-SUM(S11:AE11))),IF(AF2>=I11,IF(AF3<=J11,IF(G11>0,(G11-H11-((G11-H11)*(1-P11)^(YEARFRAC(I11+1,AF3)))-SUM(S11:AE11)),(E11-(E11*(1-P11)^(YEARFRAC(I11,AF3)))-SUM(S11:AE11))),IF(G11>0,(G11-H11-((G11-H11)*(1-P11)^(YEARFRAC(I11+1,J11)))-SUM(S11:AE11)),(E11-(E11*(1-P11)^(YEARFRAC(I11,J11)))-SUM(S11:AE11)))),IF(AF3<I11,0,IF(AF3>=J11,IF(G11>0,(G11-H11-((G11-H11)*(1-P11)^(YEARFRAC(I11+1,J11)))-SUM(S11:AE11)),(E11-(E11*(1-P11)^(YEARFRAC(I11,J11)))-SUM(S11:AE11))),IF(G11>0,(G11-H11-((G11-H11)*(1-P11)^(YEARFRAC(I11+1,AF3)))-SUM(S11:AE11)),(E11-(E11*(1-P11)^(YEARFRAC(I11,AF3)))-SUM(S11:AE11))))))))) -> 0 | AH11: 7000000 | AI11: 0 | AJ11: 7000000 | AK11: 0 | AL11: 0
